Workbook

Sheet Farm data entry
B2: www.cranfield.ac.uk www.kent.gov.uk | D2: www.ukri.org/
B4: Polytunnels and glasshouses are used extensively within the soft fruit and ornamental horticulture sectors, which are important parts of the rural economy, and entirely dependent on irrigation. In recent years there has been a growing interest in the potential for rainwater harvesting (RWH) systems to be used in polytunnel and glasshouse production to reduce dependence on public mains water supplies, to reduce the need to treat surfacewater for irrigation and to reduce runoff risks. Working with growers and key stakeholders, and building on earlier work with Kent County Council, researchers from Cranfield University have designed and developed a simple Microsoft Excel-based tool to help growers and farm business advisors evaluate the potential hydrological performance and water storage effectiveness of RWH systems to support investment decision making. The national-scale tool was designed to be simple and intuitive to use and requires only a limited set of readily-accessible input data.
B5: To use the RWH tool, we suggest you first read the manual which will guide you through the steps to generate a reference or ‘baseline’ scenario for your business. For each variable listed below (in the grey shaded area) you will first need to provide typical or appropriate values for your business. In the blue shaded area are listed a set of 'default' values relating to the modelling of the polytunnel hydrology and reservoir strorage. These can be used as default values or you can modify them (if necessary) but please refer to the guidance manual. As variables are defined, the model will automatically generate outputs. These include a summary analysis (annual and monthly) graphs for a 30-year period for your location, two graphs showing the RWH performance metrics and a summary analysis. By changing any of the input variables (e.g. polytunnel/glasshouse area, crop types, reservoir storage) different scenarios to assess the impacts on the viability of RWH system can then be evaluated
B7: Variable | D7: User defined
B8: Site location (first part of postcode) | D8: hr8
B9: Protected cropping type | D9: Polytunnel
B10: Total polytunnel or glasshouse area (ha) | D10: 50
B11: Crop type | D11: Strawberry(EB)
B12: Typical start of irrigation (date) | D12: 2020-03-01
B13: Typical end of irrigation (date) | D13: 2020-11-25
B14: Irrigation leaching fraction (%) | D14: 0.15
B15: Start date of rainwater harvesting | D15: 2020-02-01 | E15: =D15-DATE(YEAR(D15),1,0) -> 32
B16: End date of rainwater harvesting | D16: 2020-11-25 | E16: =D16-DATE(YEAR(D16),1,0) -> 330
B17: Minimum storage capacity to be evaluated (m3) | D17: 50000
B18: Maximum storage capacity to be evaluated (m3) | D18: 100000
B19: Alternative water source | D19: Mains
B20: Typical cost for alternative water source (£/m3) | D20: =+DefaultCost -> 1.37
B21: Variable | D21: Default/Modified
B22: Proportion of polytunnel or glasshouse area that is cropped (%) | D22: 1 | E22: =+D10*D22 -> 50
B23: Proportion of polytunnel or glasshouse area used for RWH (%) | D23: 1
B24: Annual average agroclimatic zone rainfall (mm) | D24: =+DefaultAZ_Rainfall -> 669.8600002
B25: Site average annual rainfall (mm) | D25: =+Default_SAAR -> 669.8600002
B26: Site rainfall correction factor (%) | D26: =+DeafaultCF -> 0
B27: Irrigation adjustment factor | D27: 1
B28: Average annual irrigation need (mm) | D28: =+Default_AAIN -> 282.7931882
B29: Average annual irrigation demand (m3/ha) | D29: =+Default_AAID -> 2827.931882
B30: Average annual site irrigation demand (m3/year) | D30: =+Default_AAID1 -> 141396.5941
B31: Polytunnel or glasshouse runoff efficiency (%) | D31: =+DefaultRefficiency -> 0.9
B32: Rainfall threshold: minimum amount before runoff occurs (mm) | D32: =+DefaultRainfallThresold -> 2
B33: Protected cropping evapotranspiration as % of outdoor evapotranspiration | D33: =+DefaultETfactor -> 0.7
B34: Required emergency reservoir storage (hours) | D34: 48
B36: Disclaimer: This RWH tool is provided for information only. This tool is a revised version of our RWH tool designed for Kent County Council. Cranfield University provide no express or implied warranty as to the quality, fitness for purpose, accuracy or sufficiency of the tool. The RWH tool and its outputs should be interpreted with caution and you should seek professional advice if you plan to use the outputs to inform investment decisions in a RWH system. On that basis no liability shall be accepted by Cranfield University for any direct or indirect or consequential loss or damage incurred in connection with the use of the RWH tool.
B38: Note: Password for removing the protection of selected hidden work sheets: RWH

Sheet WB (hidden)
S1: Selected storage capacities | T1: Average storage = 75,000 m3
A2: Sl no | B2: Selected storage capacities | C2: Week no | D2: Month | E2: Days | F2: Irrigation (m3/month) | G2: Irrigation from RWH reservoir_ | H2: Irrigation from alternative sources_ | I2: mm/month | J2: mm/day | K2: Rainfall | L2: Losses from RWH structure_ | M2: Harvestable runoff but not harvested_ | N2: Harvested runoff_ | O2: Overflow_
A3: 1 | B3: ="Minimum storage = "& FIXED(Hydrology!$Q$1,0,FALSE) &" m3" -> Minimum storage = 50,000 m3 | C3: 1 | D3: Jan | E3: 31 | F3: =-AVERAGEIF(Hydrology!$AB$4:$AB$10960,WB!C3,Hydrology!$O$4:$O$10960)*E3 -> 0 | G3: =-AVERAGEIF(Hydrology!$AB$4:$AB$10960,WB!C3,Hydrology!$P$4:$P$10960)*E3 -> 0 | H3: =-AVERAGEIF(Hydrology!$AB$4:$AB$10960,WB!C3,Hydrology!$S$4:$S$10960)*E3 -> 0 | I3: =H3/('Farm data entry'!$D$10*10000)*1000 -> 0 | J3: =I3/E3 -> 0 | K3: =AVERAGEIF(Hydrology!$AB$4:$AB$10960,WB!$C3,Hydrology!$E$4:$E$10960)*$E3*'Farm data entry'!$D$10*10*'Farm data entry'!$D$23 -> 33181.66679 | L3: =K3-M3 -> 33181.66679 | M3: =AVERAGEIF(Hydrology!$AB$4:$AB$10960,WB!$C3,Hydrology!$H$4:$H$10960)*$E3 -> 0 | N3: =M3-O3 -> 0 | O3: =AVERAGEIF(Hydrology!$AB$4:$AB$10960,WB!$C3,Hydrology!$Q$4:$Q$10960)*$E3 -> 0 | T3: Irrigation from RWH reservoir | U3: Irrigation from alternative sources | V3: Harvested runoff | W3: Overflow | X3: Losses from RWH structure
A4: 2 | B4: ="Minimum storage = "& FIXED(Hydrology!$Q$1,0,FALSE) &" m3" -> Minimum storage = 50,000 m3 | C4: 2 | D4: Feb | E4: 28 | F4: =-AVERAGEIF(Hydrology!$AB$4:$AB$10960,WB!C4,Hydrology!$O$4:$O$10960)*E4 -> 0 | G4: =-AVERAGEIF(Hydrology!$AB$4:$AB$10960,WB!C4,Hydrology!$P$4:$P$10960)*E4 -> 0 | H4: =-AVERAGEIF(Hydrology!$AB$4:$AB$10960,WB!C4,Hydrology!$S$4:$S$10960)*E4 -> 0 | I4: =H4/('Farm data entry'!$D$10*10000)*1000 -> 0 | J4: =I4/E4 -> 0 | K4: =AVERAGEIF(Hydrology!$AB$4:$AB$10960,WB!$C4,Hydrology!$E$4:$E$10960)*$E4*'Farm data entry'!$D$10*10*'Farm data entry'!$D$23 -> 23052.89254 | L4: =K4-M4 -> 11298.04154 | M4: =AVERAGEIF(Hydrology!$AB$4:$AB$10960,WB!$C4,Hydrology!$H$4:$H$10960)*$E4 -> 11754.851 | N4: =M4-O4 -> 4820.146339 | O4: =AVERAGEIF(Hydrology!$AB$4:$AB$10960,WB!$C4,Hydrology!$Q$4:$Q$10960)*$E4 -> 6934.704661 | Q4: =SUM(H7:H11)/H41*100 -> 95.07979338 | S4: Jan | T4: 0 | U4: 0 | V4: 0 | W4: 0 | X4: 33181.66679
A5: 3 | B5: ="Minimum storage = "& FIXED(Hydrology!$Q$1,0,FALSE) &" m3" -> Minimum storage = 50,000 m3 | C5: 3 | D5: Mar | E5: 31 | F5: =-AVERAGEIF(Hydrology!$AB$4:$AB$10960,WB!C5,Hydrology!$O$4:$O$10960)*E5 -> -5857.613217 | G5: =-AVERAGEIF(Hydrology!$AB$4:$AB$10960,WB!C5,Hydrology!$P$4:$P$10960)*E5 -> -5857.613217 | H5: =-AVERAGEIF(Hydrology!$AB$4:$AB$10960,WB!C5,Hydrology!$S$4:$S$10960)*E5 -> 0 | I5: =H5/('Farm data entry'!$D$10*10000)*1000 -> 0 | J5: 0 | K5: =AVERAGEIF(Hydrology!$AB$4:$AB$10960,WB!$C5,Hydrology!$E$4:$E$10960)*$E5*'Farm data entry'!$D$10*10*'Farm data entry'!$D$23 -> 21419.99999 | L5: 10715.53748 | M5: =AVERAGEIF(Hydrology!$AB$4:$AB$10960,WB!$C5,Hydrology!$H$4:$H$10960)*$E5 -> 10704.46251 | N5: 5272.856118 | O5: =AVERAGEIF(Hydrology!$AB$4:$AB$10960,WB!$C5,Hydrology!$Q$4:$Q$10960)*$E5 -> 5431.606392 | S5: Feb | T5: 0 | U5: 0 | V5: 8086.678929 | W5: 3668.172072 | X5: 11298.04154
A6: 4 | B6: ="Minimum storage = "& FIXED(Hydrology!$Q$1,0,FALSE) &" m3" -> Minimum storage = 50,000 m3 | C6: 4 | D6: Apr | E6: 30 | F6: =-AVERAGEIF(Hydrology!$AB$4:$AB$10960,WB!C6,Hydrology!$O$4:$O$10960)*E6 -> -11662.03621 | G6: =-AVERAGEIF(Hydrology!$AB$4:$AB$10960,WB!C6,Hydrology!$P$4:$P$10960)*E6 -> -11662.03621 | H6: =-AVERAGEIF(Hydrology!$AB$4:$AB$10960,WB!C6,Hydrology!$S$4:$S$10960)*E6 -> 0 | I6: =H6/('Farm data entry'!$D$10*10000)*1000 -> 0 | J6: 0 | K6: =AVERAGEIF(Hydrology!$AB$4:$AB$10960,WB!$C6,Hydrology!$E$4:$E$10960)*$E6*'Farm data entry'!$D$10*10*'Farm data entry'!$D$23 -> 25341.66666 | L6: 11644.74515 | M6: =AVERAGEIF(Hydrology!$AB$4:$AB$10960,WB!$C6,Hydrology!$H$4:$H$10960)*$E6 -> 13696.92151 | N6: 8986.839304 | O6: =AVERAGEIF(Hydrology!$AB$4:$AB$10960,WB!$C6,Hydrology!$Q$4:$Q$10960)*$E6 -> 4710.082202 | S6: Mar | T6: -5857.613217 | U6: 0 | V6: 7998.323888 | W6: 2706.138622 | X6: 10715.53748
A7: 5 | B7: ="Minimum storage = "& FIXED(Hydrology!$Q$1,0,FALSE) &" m3" -> Minimum storage = 50,000 m3 | C7: 5 | D7: May | E7: 31 | F7: =-AVERAGEIF(Hydrology!$AB$4:$AB$10960,WB!C7,Hydrology!$O$4:$O$10960)*E7 -> -19723.26634 | G7: =-AVERAGEIF(Hydrology!$AB$4:$AB$10960,WB!C7,Hydrology!$P$4:$P$10960)*E7 -> -19723.26634 | H7: =-AVERAGEIF(Hydrology!$AB$4:$AB$10960,WB!C7,Hydrology!$S$4:$S$10960)*E7 -> 0 | I7: =H7/('Farm data entry'!$D$10*10000)*1000 -> 0 | J7: 0 | K7: =AVERAGEIF(Hydrology!$AB$4:$AB$10960,WB!$C7,Hydrology!$E$4:$E$10960)*$E7*'Farm data entry'!$D$10*10*'Farm data entry'!$D$23 -> 25855.00007 | L7: 11531.83747 | M7: =AVERAGEIF(Hydrology!$AB$4:$AB$10960,WB!$C7,Hydrology!$H$4:$H$10960)*$E7 -> 14323.16261 | N7: 13396.8229 | O7: =AVERAGEIF(Hydrology!$AB$4:$AB$10960,WB!$C7,Hydrology!$Q$4:$Q$10960)*$E7 -> 926.3397067 | S7: Apr | T7: -11662.03621 | U7: 0 | V7: 10381.01496 | W7: 3315.906549 | X7: 11644.74515
A8: 6 | B8: ="Minimum storage = "& FIXED(Hydrology!$Q$1,0,FALSE) &" m3" -> Minimum storage = 50,000 m3 | C8: 6 | D8: Jun | E8: 30 | F8: =-AVERAGEIF(Hydrology!$AB$4:$AB$10960,WB!C8,Hydrology!$O$4:$O$10960)*E8 -> -24598.38509 | G8: =-AVERAGEIF(Hydrology!$AB$4:$AB$10960,WB!C8,Hydrology!$P$4:$P$10960)*E8 -> -24373.15517 | H8: =-AVERAGEIF(Hydrology!$AB$4:$AB$10960,WB!C8,Hydrology!$S$4:$S$10960)*E8 -> -225.2299198 | I8: =H8/('Farm data entry'!$D$10*10000)*1000 -> -0.4504598396 | J8: -0.01501532799 | K8: =AVERAGEIF(Hydrology!$AB$4:$AB$10960,WB!$C8,Hydrology!$E$4:$E$10960)*$E8*'Farm data entry'!$D$10*10*'Farm data entry'!$D$23 -> 24596.66672 | L8: 11058.95325 | M8: =AVERAGEIF(Hydrology!$AB$4:$AB$10960,WB!$C8,Hydrology!$H$4:$H$10960)*$E8 -> 13537.71348 | N8: 12353.60659 | O8: =AVERAGEIF(Hydrology!$AB$4:$AB$10960,WB!$C8,Hydrology!$Q$4:$Q$10960)*$E8 -> 1184.106886 | S8: May | T8: -19723.26634 | U8: 0 | V8: 13870.27933 | W8: 452.8832703 | X8: 11531.83747
A9: 7 | B9: ="Minimum storage = "& FIXED(Hydrology!$Q$1,0,FALSE) &" m3" -> Minimum storage = 50,000 m3 | C9: 7 | D9: Jul | E9: 31 | F9: =-AVERAGEIF(Hydrology!$AB$4:$AB$10960,WB!C9,Hydrology!$O$4:$O$10960)*E9 -> -28347.72321 | G9: =-AVERAGEIF(Hydrology!$AB$4:$AB$10960,WB!C9,Hydrology!$P$4:$P$10960)*E9 -> -22690.0024 | H9: =-AVERAGEIF(Hydrology!$AB$4:$AB$10960,WB!C9,Hydrology!$S$4:$S$10960)*E9 -> -5657.720812 | I9: =H9/('Farm data entry'!$D$10*10000)*1000 -> -11.31544162 | J9: -0.3650142459 | K9: =AVERAGEIF(Hydrology!$AB$4:$AB$10960,WB!$C9,Hydrology!$E$4:$E$10960)*$E9*'Farm data entry'!$D$10*10*'Farm data entry'!$D$23 -> 24915 | L9: 10773.59718 | M9: =AVERAGEIF(Hydrology!$AB$4:$AB$10960,WB!$C9,Hydrology!$H$4:$H$10960)*$E9 -> 14141.40282 | N9: 12616.09045 | O9: =AVERAGEIF(Hydrology!$AB$4:$AB$10960,WB!$C9,Hydrology!$Q$4:$Q$10960)*$E9 -> 1525.312371 | S9: Jun | T9: -24598.38509 | U9: 0 | V9: 12804.92778 | W9: 732.7857005 | X9: 11058.95325
A10: 8 | B10: ="Minimum storage = "& FIXED(Hydrology!$Q$1,0,FALSE) &" m3" -> Minimum storage = 50,000 m3 | C10: 8 | D10: Aug | E10: 31 | F10: =-AVERAGEIF(Hydrology!$AB$4:$AB$10960,WB!C10,Hydrology!$O$4:$O$10960)*E10 -> -24313.49559 | G10: =-AVERAGEIF(Hydrology!$AB$4:$AB$10960,WB!C10,Hydrology!$P$4:$P$10960)*E10 -> -16981.55158 | H10: =-AVERAGEIF(Hydrology!$AB$4:$AB$10960,WB!C10,Hydrology!$S$4:$S$10960)*E10 -> -7331.944009 | I10: =H10/('Farm data entry'!$D$10*10000)*1000 -> -14.66388802 | J10: -0.4730286457 | K10: =AVERAGEIF(Hydrology!$AB$4:$AB$10960,WB!$C10,Hydrology!$E$4:$E$10960)*$E10*'Farm data entry'!$D$10*10*'Farm data entry'!$D$23 -> 27176.66661 | L10: 11413.80444 | M10: =AVERAGEIF(Hydrology!$AB$4:$AB$10960,WB!$C10,Hydrology!$H$4:$H$10960)*$E10 -> 15762.86216 | N10: 15762.86216 | O10: =AVERAGEIF(Hydrology!$AB$4:$AB$10960,WB!$C10,Hydrology!$Q$4:$Q$10960)*$E10 -> 0 | S10: Jul | T10: -27365.27051 | U10: -982.4526929 | V10: 12763.18072 | W10: 1378.222099 | X10: 10773.59718
A11: 9 | B11: ="Minimum storage = "& FIXED(Hydrology!$Q$1,0,FALSE) &" m3" -> Minimum storage = 50,000 m3 | C11: 9 | D11: Sep | E11: 30 | F11: =-AVERAGEIF(Hydrology!$AB$4:$AB$10960,WB!C11,Hydrology!$O$4:$O$10960)*E11 -> -15435.01398 | G11: =-AVERAGEIF(Hydrology!$AB$4:$AB$10960,WB!C11,Hydrology!$P$4:$P$10960)*E11 -> -10537.19812 | H11: =-AVERAGEIF(Hydrology!$AB$4:$AB$10960,WB!C11,Hydrology!$S$4:$S$10960)*E11 -> -4897.815862 | I11: =H11/('Farm data entry'!$D$10*10000)*1000 -> -9.795631724 | J11: -0.3265210575 | K11: =AVERAGEIF(Hydrology!$AB$4:$AB$10960,WB!$C11,Hydrology!$E$4:$E$10960)*$E11*'Farm data entry'!$D$10*10*'Farm data entry'!$D$23 -> 24228.33333 | L11: 10338.32086 | M11: =AVERAGEIF(Hydrology!$AB$4:$AB$10960,WB!$C11,Hydrology!$H$4:$H$10960)*$E11 -> 13890.01247 | N11: 13168.20159 | O11: =AVERAGEIF(Hydrology!$AB$4:$AB$10960,WB!$C11,Hydrology!$Q$4:$Q$10960)*$E11 -> 721.8108812 | S11: Aug | T11: -20384.91255 | U11: -3928.583041 | V11: 15762.86216 | W11: 0 | X11: 11413.80444
A12: 10 | B12: ="Minimum storage = "& FIXED(Hydrology!$Q$1,0,FALSE) &" m3" -> Minimum storage = 50,000 m3 | C12: 10 | D12: Oct | E12: 31 | F12: =-AVERAGEIF(Hydrology!$AB$4:$AB$10960,WB!C12,Hydrology!$O$4:$O$10960)*E12 -> -8405.891056 | G12: =-AVERAGEIF(Hydrology!$AB$4:$AB$10960,WB!C12,Hydrology!$P$4:$P$10960)*E12 -> -7468.591179 | H12: =-AVERAGEIF(Hydrology!$AB$4:$AB$10960,WB!C12,Hydrology!$S$4:$S$10960)*E12 -> -937.2998761 | I12: =H12/('Farm data entry'!$D$10*10000)*1000 -> -1.874599752 | J12: -0.06047095975 | K12: =AVERAGEIF(Hydrology!$AB$4:$AB$10960,WB!$C12,Hydrology!$E$4:$E$10960)*$E12*'Farm data entry'!$D$10*10*'Farm data entry'!$D$23 -> 38104.99994 | L12: 15335.16508 | M12: =AVERAGEIF(Hydrology!$AB$4:$AB$10960,WB!$C12,Hydrology!$H$4:$H$10960)*$E12 -> 22769.83486 | N12: 22080.45509 | O12: =AVERAGEIF(Hydrology!$AB$4:$AB$10960,WB!$C12,Hydrology!$Q$4:$Q$10960)*$E12 -> 689.3797778 | S12: Sep | T12: -12832.35796 | U12: -2602.656019 | V12: 13168.20159 | W12: 721.8108812 | X12: 10338.32086
A13: 11 | B13: ="Minimum storage = "& FIXED(Hydrology!$Q$1,0,FALSE) &" m3" -> Minimum storage = 50,000 m3 | C13: 11 | D13: Nov | E13: 30 | F13: =-AVERAGEIF(Hydrology!$AB$4:$AB$10960,WB!C13,Hydrology!$O$4:$O$10960)*E13 -> -3053.1694 | G13: =-AVERAGEIF(Hydrology!$AB$4:$AB$10960,WB!C13,Hydrology!$P$4:$P$10960)*E13 -> -3053.1694 | H13: =-AVERAGEIF(Hydrology!$AB$4:$AB$10960,WB!C13,Hydrology!$S$4:$S$10960)*E13 -> 0 | I13: =H13/('Farm data entry'!$D$10*10000)*1000 -> 0 | J13: 0 | K13: =AVERAGEIF(Hydrology!$AB$4:$AB$10960,WB!$C13,Hydrology!$E$4:$E$10960)*$E13*'Farm data entry'!$D$10*10*'Farm data entry'!$D$23 -> 32810 | L13: 16581.70357 | M13: =AVERAGEIF(Hydrology!$AB$4:$AB$10960,WB!$C13,Hydrology!$H$4:$H$10960)*$E13 -> 16228.29643 | N13: 12635.64285 | O13: =AVERAGEIF(Hydrology!$AB$4:$AB$10960,WB!$C13,Hydrology!$Q$4:$Q$10960)*$E13 -> 3592.653587 | S13: Oct | T13: -7648.195948 | U13: -757.6951078 | V13: 22290.02594 | W13: 479.8089215 | X13: 15335.16508
A14: 12 | B14: ="Minimum storage = "& FIXED(Hydrology!$Q$1,0,FALSE) &" m3" -> Minimum storage = 50,000 m3 | C14: 12 | D14: Dec | E14: 31 | F14: =-AVERAGEIF(Hydrology!$AB$4:$AB$10960,WB!C14,Hydrology!$O$4:$O$10960)*E14 -> 0 | G14: =-AVERAGEIF(Hydrology!$AB$4:$AB$10960,WB!C14,Hydrology!$P$4:$P$10960)*E14 -> 0 | H14: =-AVERAGEIF(Hydrology!$AB$4:$AB$10960,WB!C14,Hydrology!$S$4:$S$10960)*E14 -> 0 | I14: =H14/('Farm data entry'!$D$10*10000)*1000 -> 0 | J14: =I14/E14 -> 0 | K14: =AVERAGEIF(Hydrology!$AB$4:$AB$10960,WB!$C14,Hydrology!$E$4:$E$10960)*$E14*'Farm data entry'!$D$10*10*'Farm data entry'!$D$23 -> 34054.99997 | L14: 34054.99997 | M14: =AVERAGEIF(Hydrology!$AB$4:$AB$10960,WB!$C14,Hydrology!$H$4:$H$10960)*$E14 -> 0 | N14: 0 | O14: =AVERAGEIF(Hydrology!$AB$4:$AB$10960,WB!$C14,Hydrology!$Q$4:$Q$10960)*$E14 -> 0 | S14: Nov | T14: -3053.1694 | U14: 0 | V14: 14033.73311 | W14: 2194.563324 | X14: 16581.70357
A15: 13 | B15: ="Average storage = "& FIXED(Hydrology!$U$1,0,FALSE) &" m3" -> Average storage = 75,000 m3 | C15: 1 | D15: Jan | E15: 31 | F15: =-AVERAGEIF(Hydrology!$AB$4:$AB$10960,WB!C15,Hydrology!$O$4:$O$10960)*E15 -> 0 | G15: =-AVERAGEIF(Hydrology!$AB$4:$AB$10960,WB!C15,Hydrology!$T$4:$T$10960)*E15 -> 0 | H15: =-AVERAGEIF(Hydrology!$AB$4:$AB$10960,WB!C15,Hydrology!$W$4:$W$10960)*E15 -> 0 | I15: =H15/('Farm data entry'!$D$10*10000)*1000 -> 0 | J15: =I15/E15 -> 0 | K15: =AVERAGEIF(Hydrology!$AB$4:$AB$10960,WB!$C15,Hydrology!$E$4:$E$10960)*$E15*'Farm data entry'!$D$10*10*'Farm data entry'!$D$23 -> 33181.66679 | L15: =K15-M15 -> 33181.66679 | M15: =AVERAGEIF(Hydrology!$AB$4:$AB$10960,WB!$C15,Hydrology!$H$4:$H$10960)*$E15 -> 0 | N15: =M15-O15 -> 0 | O15: =AVERAGEIF(Hydrology!$AB$4:$AB$10960,WB!$C15,Hydrology!$U$4:$U$10960)*$E15 -> 0 | S15: Dec | T15: 0 | U15: 0 | V15: 0 | W15: 0 | X15: 34054.99997
A16: 14 | B16: ="Average storage = "& FIXED(Hydrology!$U$1,0,FALSE) &" m3" -> Average storage = 75,000 m3 | C16: 2 | D16: Feb | E16: 28 | F16: =-AVERAGEIF(Hydrology!$AB$4:$AB$10960,WB!C16,Hydrology!$O$4:$O$10960)*E16 -> 0 | G16: =-AVERAGEIF(Hydrology!$AB$4:$AB$10960,WB!C16,Hydrology!$T$4:$T$10960)*E16 -> 0 | H16: =-AVERAGEIF(Hydrology!$AB$4:$AB$10960,WB!C16,Hydrology!$W$4:$W$10960)*E16 -> 0 | I16: =H16/('Farm data entry'!$D$10*10000)*1000 -> 0 | J16: =I16/E16 -> 0 | K16: =AVERAGEIF(Hydrology!$AB$4:$AB$10960,WB!$C16,Hydrology!$E$4:$E$10960)*$E16*'Farm data entry'!$D$10*10*'Farm data entry'!$D$23 -> 23052.89254 | L16: =K16-M16 -> 11298.04154 | M16: =AVERAGEIF(Hydrology!$AB$4:$AB$10960,WB!$C16,Hydrology!$H$4:$H$10960)*$E16 -> 11754.851 | N16: =M16-O16 -> 8086.678929 | O16: =AVERAGEIF(Hydrology!$AB$4:$AB$10960,WB!$C16,Hydrology!$U$4:$U$10960)*$E16 -> 3668.172072 | S16: Grand Total | T16: -133125.2072 | U16: -8271.386861 | V16: 131159.2284 | W16: 15650.29144 | X16: 187928.3728
A17: 15 | B17: ="Average storage = "& FIXED(Hydrology!$U$1,0,FALSE) &" m3" -> Average storage = 75,000 m3 | C17: 3 | D17: Mar | E17: 31 | F17: =-AVERAGEIF(Hydrology!$AB$4:$AB$10960,WB!C17,Hydrology!$O$4:$O$10960)*E17 -> -5857.613217 | G17: =-AVERAGEIF(Hydrology!$AB$4:$AB$10960,WB!C17,Hydrology!$T$4:$T$10960)*E17 -> -5857.613217 | H17: =-AVERAGEIF(Hydrology!$AB$4:$AB$10960,WB!C17,Hydrology!$W$4:$W$10960)*E17 -> 0 | I17: =H17/('Farm data entry'!$D$10*10000)*1000 -> 0 | J17: 0 | K17: =AVERAGEIF(Hydrology!$AB$4:$AB$10960,WB!$C17,Hydrology!$E$4:$E$10960)*$E17*'Farm data entry'!$D$10*10*'Farm data entry'!$D$23 -> 21419.99999 | L17: 10715.53748 | M17: =AVERAGEIF(Hydrology!$AB$4:$AB$10960,WB!$C17,Hydrology!$H$4:$H$10960)*$E17 -> 10704.46251 | N17: 7998.323888 | O17: =AVERAGEIF(Hydrology!$AB$4:$AB$10960,WB!$C17,Hydrology!$U$4:$U$10960)*$E17 -> 2706.138622
A18: 16 | B18: ="Average storage = "& FIXED(Hydrology!$U$1,0,FALSE) &" m3" -> Average storage = 75,000 m3 | C18: 4 | D18: Apr | E18: 30 | F18: =-AVERAGEIF(Hydrology!$AB$4:$AB$10960,WB!C18,Hydrology!$O$4:$O$10960)*E18 -> -11662.03621 | G18: =-AVERAGEIF(Hydrology!$AB$4:$AB$10960,WB!C18,Hydrology!$T$4:$T$10960)*E18 -> -11662.03621 | H18: =-AVERAGEIF(Hydrology!$AB$4:$AB$10960,WB!C18,Hydrology!$W$4:$W$10960)*E18 -> 0 | I18: =H18/('Farm data entry'!$D$10*10000)*1000 -> 0 | J18: 0 | K18: =AVERAGEIF(Hydrology!$AB$4:$AB$10960,WB!$C18,Hydrology!$E$4:$E$10960)*$E18*'Farm data entry'!$D$10*10*'Farm data entry'!$D$23 -> 25341.66666 | L18: 11644.74515 | M18: =AVERAGEIF(Hydrology!$AB$4:$AB$10960,WB!$C18,Hydrology!$H$4:$H$10960)*$E18 -> 13696.92151 | N18: 10381.01496 | O18: =AVERAGEIF(Hydrology!$AB$4:$AB$10960,WB!$C18,Hydrology!$U$4:$U$10960)*$E18 -> 3315.906549
A19: 17 | B19: ="Average storage = "& FIXED(Hydrology!$U$1,0,FALSE) &" m3" -> Average storage = 75,000 m3 | C19: 5 | D19: May | E19: 31 | F19: =-AVERAGEIF(Hydrology!$AB$4:$AB$10960,WB!C19,Hydrology!$O$4:$O$10960)*E19 -> -19723.26634 | G19: =-AVERAGEIF(Hydrology!$AB$4:$AB$10960,WB!C19,Hydrology!$T$4:$T$10960)*E19 -> -19723.26634 | H19: =-AVERAGEIF(Hydrology!$AB$4:$AB$10960,WB!C19,Hydrology!$W$4:$W$10960)*E19 -> 0 | I19: =H19/('Farm data entry'!$D$10*10000)*1000 -> 0 | J19: 0 | K19: =AVERAGEIF(Hydrology!$AB$4:$AB$10960,WB!$C19,Hydrology!$E$4:$E$10960)*$E19*'Farm data entry'!$D$10*10*'Farm data entry'!$D$23 -> 25855.00007 | L19: 11531.83747 | M19: =AVERAGEIF(Hydrology!$AB$4:$AB$10960,WB!$C19,Hydrology!$H$4:$H$10960)*$E19 -> 14323.16261 | N19: 13870.27933 | O19: =AVERAGEIF(Hydrology!$AB$4:$AB$10960,WB!$C19,Hydrology!$U$4:$U$10960)*$E19 -> 452.8832703
A20: 18 | B20: ="Average storage = "& FIXED(Hydrology!$U$1,0,FALSE) &" m3" -> Average storage = 75,000 m3 | C20: 6 | D20: Jun | E20: 30 | F20: =-AVERAGEIF(Hydrology!$AB$4:$AB$10960,WB!C20,Hydrology!$O$4:$O$10960)*E20 -> -24598.38509 | G20: =-AVERAGEIF(Hydrology!$AB$4:$AB$10960,WB!C20,Hydrology!$T$4:$T$10960)*E20 -> -24598.38509 | H20: =-AVERAGEIF(Hydrology!$AB$4:$AB$10960,WB!C20,Hydrology!$W$4:$W$10960)*E20 -> 0 | I20: =H20/('Farm data entry'!$D$10*10000)*1000 -> 0 | J20: 0 | K20: =AVERAGEIF(Hydrology!$AB$4:$AB$10960,WB!$C20,Hydrology!$E$4:$E$10960)*$E20*'Farm data entry'!$D$10*10*'Farm data entry'!$D$23 -> 24596.66672 | L20: 11058.95325 | M20: =AVERAGEIF(Hydrology!$AB$4:$AB$10960,WB!$C20,Hydrology!$H$4:$H$10960)*$E20 -> 13537.71348 | N20: 12804.92778 | O20: =AVERAGEIF(Hydrology!$AB$4:$AB$10960,WB!$C20,Hydrology!$U$4:$U$10960)*$E20 -> 732.7857005
A21: 19 | B21: ="Average storage = "& FIXED(Hydrology!$U$1,0,FALSE) &" m3" -> Average storage = 75,000 m3 | C21: 7 | D21: Jul | E21: 31 | F21: =-AVERAGEIF(Hydrology!$AB$4:$AB$10960,WB!C21,Hydrology!$O$4:$O$10960)*E21 -> -28347.72321 | G21: =-AVERAGEIF(Hydrology!$AB$4:$AB$10960,WB!C21,Hydrology!$T$4:$T$10960)*E21 -> -27365.27051 | H21: =-AVERAGEIF(Hydrology!$AB$4:$AB$10960,WB!C21,Hydrology!$W$4:$W$10960)*E21 -> -982.4526929 | I21: =H21/('Farm data entry'!$D$10*10000)*1000 -> -1.964905386 | J21: -0.0633840447 | K21: =AVERAGEIF(Hydrology!$AB$4:$AB$10960,WB!$C21,Hydrology!$E$4:$E$10960)*$E21*'Farm data entry'!$D$10*10*'Farm data entry'!$D$23 -> 24915 | L21: 10773.59718 | M21: =AVERAGEIF(Hydrology!$AB$4:$AB$10960,WB!$C21,Hydrology!$H$4:$H$10960)*$E21 -> 14141.40282 | N21: 12763.18072 | O21: =AVERAGEIF(Hydrology!$AB$4:$AB$10960,WB!$C21,Hydrology!$U$4:$U$10960)*$E21 -> 1378.222099
A22: 20 | B22: ="Average storage = "& FIXED(Hydrology!$U$1,0,FALSE) &" m3" -> Average storage = 75,000 m3 | C22: 8 | D22: Aug | E22: 31 | F22: =-AVERAGEIF(Hydrology!$AB$4:$AB$10960,WB!C22,Hydrology!$O$4:$O$10960)*E22 -> -24313.49559 | G22: =-AVERAGEIF(Hydrology!$AB$4:$AB$10960,WB!C22,Hydrology!$T$4:$T$10960)*E22 -> -20384.91255 | H22: =-AVERAGEIF(Hydrology!$AB$4:$AB$10960,WB!C22,Hydrology!$W$4:$W$10960)*E22 -> -3928.583041 | I22: =H22/('Farm data entry'!$D$10*10000)*1000 -> -7.857166083 | J22: -0.2534569704 | K22: =AVERAGEIF(Hydrology!$AB$4:$AB$10960,WB!$C22,Hydrology!$E$4:$E$10960)*$E22*'Farm data entry'!$D$10*10*'Farm data entry'!$D$23 -> 27176.66661 | L22: 11413.80444 | M22: =AVERAGEIF(Hydrology!$AB$4:$AB$10960,WB!$C22,Hydrology!$H$4:$H$10960)*$E22 -> 15762.86216 | N22: 15762.86216 | O22: =AVERAGEIF(Hydrology!$AB$4:$AB$10960,WB!$C22,Hydrology!$U$4:$U$10960)*$E22 -> 0
A23: 21 | B23: ="Average storage = "& FIXED(Hydrology!$U$1,0,FALSE) &" m3" -> Average storage = 75,000 m3 | C23: 9 | D23: Sep | E23: 30 | F23: =-AVERAGEIF(Hydrology!$AB$4:$AB$10960,WB!C23,Hydrology!$O$4:$O$10960)*E23 -> -15435.01398 | G23: =-AVERAGEIF(Hydrology!$AB$4:$AB$10960,WB!C23,Hydrology!$T$4:$T$10960)*E23 -> -12832.35796 | H23: =-AVERAGEIF(Hydrology!$AB$4:$AB$10960,WB!C23,Hydrology!$W$4:$W$10960)*E23 -> -2602.656019 | I23: =H23/('Farm data entry'!$D$10*10000)*1000 -> -5.205312037 | J23: -0.1735104012 | K23: =AVERAGEIF(Hydrology!$AB$4:$AB$10960,WB!$C23,Hydrology!$E$4:$E$10960)*$E23*'Farm data entry'!$D$10*10*'Farm data entry'!$D$23 -> 24228.33333 | L23: 10338.32086 | M23: =AVERAGEIF(Hydrology!$AB$4:$AB$10960,WB!$C23,Hydrology!$H$4:$H$10960)*$E23 -> 13890.01247 | N23: 13168.20159 | O23: =AVERAGEIF(Hydrology!$AB$4:$AB$10960,WB!$C23,Hydrology!$U$4:$U$10960)*$E23 -> 721.8108812
A24: 22 | B24: ="Average storage = "& FIXED(Hydrology!$U$1,0,FALSE) &" m3" -> Average storage = 75,000 m3 | C24: 10 | D24: Oct | E24: 31 | F24: =-AVERAGEIF(Hydrology!$AB$4:$AB$10960,WB!C24,Hydrology!$O$4:$O$10960)*E24 -> -8405.891056 | G24: =-AVERAGEIF(Hydrology!$AB$4:$AB$10960,WB!C24,Hydrology!$T$4:$T$10960)*E24 -> -7648.195948 | H24: =-AVERAGEIF(Hydrology!$AB$4:$AB$10960,WB!C24,Hydrology!$W$4:$W$10960)*E24 -> -757.6951078 | I24: =H24/('Farm data entry'!$D$10*10000)*1000 -> -1.515390216 | J24: -0.04888355534 | K24: =AVERAGEIF(Hydrology!$AB$4:$AB$10960,WB!$C24,Hydrology!$E$4:$E$10960)*$E24*'Farm data entry'!$D$10*10*'Farm data entry'!$D$23 -> 38104.99994 | L24: 15335.16508 | M24: =AVERAGEIF(Hydrology!$AB$4:$AB$10960,WB!$C24,Hydrology!$H$4:$H$10960)*$E24 -> 22769.83486 | N24: 22290.02594 | O24: =AVERAGEIF(Hydrology!$AB$4:$AB$10960,WB!$C24,Hydrology!$U$4:$U$10960)*$E24 -> 479.8089215
A25: 23 | B25: ="Average storage = "& FIXED(Hydrology!$U$1,0,FALSE) &" m3" -> Average storage = 75,000 m3 | C25: 11 | D25: Nov | E25: 30 | F25: =-AVERAGEIF(Hydrology!$AB$4:$AB$10960,WB!C25,Hydrology!$O$4:$O$10960)*E25 -> -3053.1694 | G25: =-AVERAGEIF(Hydrology!$AB$4:$AB$10960,WB!C25,Hydrology!$T$4:$T$10960)*E25 -> -3053.1694 | H25: =-AVERAGEIF(Hydrology!$AB$4:$AB$10960,WB!C25,Hydrology!$W$4:$W$10960)*E25 -> 0 | I25: =H25/('Farm data entry'!$D$10*10000)*1000 -> 0 | J25: 0 | K25: =AVERAGEIF(Hydrology!$AB$4:$AB$10960,WB!$C25,Hydrology!$E$4:$E$10960)*$E25*'Farm data entry'!$D$10*10*'Farm data entry'!$D$23 -> 32810 | L25: 16581.70357 | M25: =AVERAGEIF(Hydrology!$AB$4:$AB$10960,WB!$C25,Hydrology!$H$4:$H$10960)*$E25 -> 16228.29643 | N25: 14033.73311 | O25: =AVERAGEIF(Hydrology!$AB$4:$AB$10960,WB!$C25,Hydrology!$U$4:$U$10960)*$E25 -> 2194.563324
A26: 24 | B26: ="Average storage = "& FIXED(Hydrology!$U$1,0,FALSE) &" m3" -> Average storage = 75,000 m3 | C26: 12 | D26: Dec | E26: 31 | F26: =-AVERAGEIF(Hydrology!$AB$4:$AB$10960,WB!C26,Hydrology!$O$4:$O$10960)*E26 -> 0 | G26: =-AVERAGEIF(Hydrology!$AB$4:$AB$10960,WB!C26,Hydrology!$T$4:$T$10960)*E26 -> 0 | H26: =-AVERAGEIF(Hydrology!$AB$4:$AB$10960,WB!C26,Hydrology!$W$4:$W$10960)*E26 -> 0 | I26: =H26/('Farm data entry'!$D$10*10000)*1000 -> 0 | J26: 0 | K26: =AVERAGEIF(Hydrology!$AB$4:$AB$10960,WB!$C26,Hydrology!$E$4:$E$10960)*$E26*'Farm data entry'!$D$10*10*'Farm data entry'!$D$23 -> 34054.99997 | L26: 34054.99997 | M26: =AVERAGEIF(Hydrology!$AB$4:$AB$10960,WB!$C26,Hydrology!$H$4:$H$10960)*$E26 -> 0 | N26: 0 | O26: =AVERAGEIF(Hydrology!$AB$4:$AB$10960,WB!$C26,Hydrology!$U$4:$U$10960)*$E26 -> 0
A27: 13 | B27: ="Maximum storage = "& FIXED(Hydrology!$Y$1,0,FALSE) &" m3" -> Maximum storage = 100,000 m3 | C27: 1 | D27: Jan | E27: 31 | F27: =-AVERAGEIF(Hydrology!$AB$4:$AB$10960,WB!C27,Hydrology!$O$4:$O$10960)*E27 -> 0 | G27: =-AVERAGEIF(Hydrology!$AB$4:$AB$10960,WB!C27,Hydrology!$X$4:$X$10960)*E27 -> 0 | H27: =-AVERAGEIF(Hydrology!$AB$4:$AB$10960,WB!C27,Hydrology!$AA$4:$AA$10960)*E27 -> 0 | I27: =H27/('Farm data entry'!$D$10*10000)*1000 -> 0 | J27: =I27/E27 -> 0 | K27: =AVERAGEIF(Hydrology!$AB$4:$AB$10960,WB!$C27,Hydrology!$E$4:$E$10960)*$E27*'Farm data entry'!$D$10*10*'Farm data entry'!$D$23 -> 33181.66679 | L27: =K27-M27 -> 33181.66679 | M27: =AVERAGEIF(Hydrology!$AB$4:$AB$10960,WB!$C27,Hydrology!$H$4:$H$10960)*$E27 -> 0 | N27: =M27-O27 -> 0 | O27: =AVERAGEIF(Hydrology!$AB$4:$AB$10960,WB!$C27,Hydrology!$Y$4:$Y$10960)*$E27 -> 0
A28: 14 | B28: ="Maximum storage = "& FIXED(Hydrology!$Y$1,0,FALSE) &" m3" -> Maximum storage = 100,000 m3 | C28: 2 | D28: Feb | E28: 28 | F28: =-AVERAGEIF(Hydrology!$AB$4:$AB$10960,WB!C28,Hydrology!$O$4:$O$10960)*E28 -> 0 | G28: =-AVERAGEIF(Hydrology!$AB$4:$AB$10960,WB!C28,Hydrology!$X$4:$X$10960)*E28 -> 0 | H28: =-AVERAGEIF(Hydrology!$AB$4:$AB$10960,WB!C28,Hydrology!$AA$4:$AA$10960)*E28 -> 0 | I28: =H28/('Farm data entry'!$D$10*10000)*1000 -> 0 | J28: =I28/E28 -> 0 | K28: =AVERAGEIF(Hydrology!$AB$4:$AB$10960,WB!$C28,Hydrology!$E$4:$E$10960)*$E28*'Farm data entry'!$D$10*10*'Farm data entry'!$D$23 -> 23052.89254 | L28: =K28-M28 -> 11298.04154 | M28: =AVERAGEIF(Hydrology!$AB$4:$AB$10960,WB!$C28,Hydrology!$H$4:$H$10960)*$E28 -> 11754.851 | N28: =M28-O28 -> 8319.434273 | O28: =AVERAGEIF(Hydrology!$AB$4:$AB$10960,WB!$C28,Hydrology!$Y$4:$Y$10960)*$E28 -> 3435.416728
A29: 15 | B29: ="Maximum storage = "& FIXED(Hydrology!$Y$1,0,FALSE) &" m3" -> Maximum storage = 100,000 m3 | C29: 3 | D29: Mar | E29: 31 | F29: =-AVERAGEIF(Hydrology!$AB$4:$AB$10960,WB!C29,Hydrology!$O$4:$O$10960)*E29 -> -5857.613217 | G29: =-AVERAGEIF(Hydrology!$AB$4:$AB$10960,WB!C29,Hydrology!$X$4:$X$10960)*E29 -> -5857.613217 | H29: =-AVERAGEIF(Hydrology!$AB$4:$AB$10960,WB!C29,Hydrology!$AA$4:$AA$10960)*E29 -> 0 | I29: =H29/('Farm data entry'!$D$10*10000)*1000 -> 0 | J29: 0 | K29: =AVERAGEIF(Hydrology!$AB$4:$AB$10960,WB!$C29,Hydrology!$E$4:$E$10960)*$E29*'Farm data entry'!$D$10*10*'Farm data entry'!$D$23 -> 21419.99999 | L29: 10715.53748 | M29: =AVERAGEIF(Hydrology!$AB$4:$AB$10960,WB!$C29,Hydrology!$H$4:$H$10960)*$E29 -> 10704.46251 | N29: 8294.615766 | O29: =AVERAGEIF(Hydrology!$AB$4:$AB$10960,WB!$C29,Hydrology!$Y$4:$Y$10960)*$E29 -> 2409.846743
A30: 16 | B30: ="Maximum storage = "& FIXED(Hydrology!$Y$1,0,FALSE) &" m3" -> Maximum storage = 100,000 m3 | C30: 4 | D30: Apr | E30: 30 | F30: =-AVERAGEIF(Hydrology!$AB$4:$AB$10960,WB!C30,Hydrology!$O$4:$O$10960)*E30 -> -11662.03621 | G30: =-AVERAGEIF(Hydrology!$AB$4:$AB$10960,WB!C30,Hydrology!$X$4:$X$10960)*E30 -> -11662.03621 | H30: =-AVERAGEIF(Hydrology!$AB$4:$AB$10960,WB!C30,Hydrology!$AA$4:$AA$10960)*E30 -> 0 | I30: =H30/('Farm data entry'!$D$10*10000)*1000 -> 0 | J30: 0 | K30: =AVERAGEIF(Hydrology!$AB$4:$AB$10960,WB!$C30,Hydrology!$E$4:$E$10960)*$E30*'Farm data entry'!$D$10*10*'Farm data entry'!$D$23 -> 25341.66666 | L30: 11644.74515 | M30: =AVERAGEIF(Hydrology!$AB$4:$AB$10960,WB!$C30,Hydrology!$H$4:$H$10960)*$E30 -> 13696.92151 | N30: 11177.09922 | O30: =AVERAGEIF(Hydrology!$AB$4:$AB$10960,WB!$C30,Hydrology!$Y$4:$Y$10960)*$E30 -> 2519.822282
A31: 17 | B31: ="Maximum storage = "& FIXED(Hydrology!$Y$1,0,FALSE) &" m3" -> Maximum storage = 100,000 m3 | C31: 5 | D31: May | E31: 31 | F31: =-AVERAGEIF(Hydrology!$AB$4:$AB$10960,WB!C31,Hydrology!$O$4:$O$10960)*E31 -> -19723.26634 | G31: =-AVERAGEIF(Hydrology!$AB$4:$AB$10960,WB!C31,Hydrology!$X$4:$X$10960)*E31 -> -19723.26634 | H31: =-AVERAGEIF(Hydrology!$AB$4:$AB$10960,WB!C31,Hydrology!$AA$4:$AA$10960)*E31 -> 0 | I31: =H31/('Farm data entry'!$D$10*10000)*1000 -> 0 | J31: 0 | K31: =AVERAGEIF(Hydrology!$AB$4:$AB$10960,WB!$C31,Hydrology!$E$4:$E$10960)*$E31*'Farm data entry'!$D$10*10*'Farm data entry'!$D$23 -> 25855.00007 | L31: 11531.83747 | M31: =AVERAGEIF(Hydrology!$AB$4:$AB$10960,WB!$C31,Hydrology!$H$4:$H$10960)*$E31 -> 14323.16261 | N31: 13944.68688 | O31: =AVERAGEIF(Hydrology!$AB$4:$AB$10960,WB!$C31,Hydrology!$Y$4:$Y$10960)*$E31 -> 378.4757282
A32: 18 | B32: ="Maximum storage = "& FIXED(Hydrology!$Y$1,0,FALSE) &" m3" -> Maximum storage = 100,000 m3 | C32: 6 | D32: Jun | E32: 30 | F32: =-AVERAGEIF(Hydrology!$AB$4:$AB$10960,WB!C32,Hydrology!$O$4:$O$10960)*E32 -> -24598.38509 | G32: =-AVERAGEIF(Hydrology!$AB$4:$AB$10960,WB!C32,Hydrology!$X$4:$X$10960)*E32 -> -24598.38509 | H32: =-AVERAGEIF(Hydrology!$AB$4:$AB$10960,WB!C32,Hydrology!$AA$4:$AA$10960)*E32 -> 0 | I32: =H32/('Farm data entry'!$D$10*10000)*1000 -> 0 | J32: 0 | K32: =AVERAGEIF(Hydrology!$AB$4:$AB$10960,WB!$C32,Hydrology!$E$4:$E$10960)*$E32*'Farm data entry'!$D$10*10*'Farm data entry'!$D$23 -> 24596.66672 | L32: 11058.95325 | M32: =AVERAGEIF(Hydrology!$AB$4:$AB$10960,WB!$C32,Hydrology!$H$4:$H$10960)*$E32 -> 13537.71348 | N32: 13286.02742 | O32: =AVERAGEIF(Hydrology!$AB$4:$AB$10960,WB!$C32,Hydrology!$Y$4:$Y$10960)*$E32 -> 251.6860527
A33: 19 | B33: ="Maximum storage = "& FIXED(Hydrology!$Y$1,0,FALSE) &" m3" -> Maximum storage = 100,000 m3 | C33: 7 | D33: Jul | E33: 31 | F33: =-AVERAGEIF(Hydrology!$AB$4:$AB$10960,WB!C33,Hydrology!$O$4:$O$10960)*E33 -> -28347.72321 | G33: =-AVERAGEIF(Hydrology!$AB$4:$AB$10960,WB!C33,Hydrology!$X$4:$X$10960)*E33 -> -27816.33398 | H33: =-AVERAGEIF(Hydrology!$AB$4:$AB$10960,WB!C33,Hydrology!$AA$4:$AA$10960)*E33 -> -531.3892269 | I33: =H33/('Farm data entry'!$D$10*10000)*1000 -> -1.062778454 | J33: -0.03428317593 | K33: =AVERAGEIF(Hydrology!$AB$4:$AB$10960,WB!$C33,Hydrology!$E$4:$E$10960)*$E33*'Farm data entry'!$D$10*10*'Farm data entry'!$D$23 -> 24915 | L33: 10773.59718 | M33: =AVERAGEIF(Hydrology!$AB$4:$AB$10960,WB!$C33,Hydrology!$H$4:$H$10960)*$E33 -> 14141.40282 | N33: 12891.06588 | O33: =AVERAGEIF(Hydrology!$AB$4:$AB$10960,WB!$C33,Hydrology!$Y$4:$Y$10960)*$E33 -> 1250.336948
A34: 20 | B34: ="Maximum storage = "& FIXED(Hydrology!$Y$1,0,FALSE) &" m3" -> Maximum storage = 100,000 m3 | C34: 8 | D34: Aug | E34: 31 | F34: =-AVERAGEIF(Hydrology!$AB$4:$AB$10960,WB!C34,Hydrology!$O$4:$O$10960)*E34 -> -24313.49559 | G34: =-AVERAGEIF(Hydrology!$AB$4:$AB$10960,WB!C34,Hydrology!$X$4:$X$10960)*E34 -> -22093.65646 | H34: =-AVERAGEIF(Hydrology!$AB$4:$AB$10960,WB!C34,Hydrology!$AA$4:$AA$10960)*E34 -> -2219.839133 | I34: =H34/('Farm data entry'!$D$10*10000)*1000 -> -4.439678267 | J34: -0.143215428 | K34: =AVERAGEIF(Hydrology!$AB$4:$AB$10960,WB!$C34,Hydrology!$E$4:$E$10960)*$E34*'Farm data entry'!$D$10*10*'Farm data entry'!$D$23 -> 27176.66661 | L34: 11413.80444 | M34: =AVERAGEIF(Hydrology!$AB$4:$AB$10960,WB!$C34,Hydrology!$H$4:$H$10960)*$E34 -> 15762.86216 | N34: 15762.86216 | O34: =AVERAGEIF(Hydrology!$AB$4:$AB$10960,WB!$C34,Hydrology!$Y$4:$Y$10960)*$E34 -> 0
A35: 21 | B35: ="Maximum storage = "& FIXED(Hydrology!$Y$1,0,FALSE) &" m3" -> Maximum storage = 100,000 m3 | C35: 9 | D35: Sep | E35: 30 | F35: =-AVERAGEIF(Hydrology!$AB$4:$AB$10960,WB!C35,Hydrology!$O$4:$O$10960)*E35 -> -15435.01398 | G35: =-AVERAGEIF(Hydrology!$AB$4:$AB$10960,WB!C35,Hydrology!$X$4:$X$10960)*E35 -> -13420.08715 | H35: =-AVERAGEIF(Hydrology!$AB$4:$AB$10960,WB!C35,Hydrology!$AA$4:$AA$10960)*E35 -> -2014.926832 | I35: =H35/('Farm data entry'!$D$10*10000)*1000 -> -4.029853664 | J35: -0.1343284555 | K35: =AVERAGEIF(Hydrology!$AB$4:$AB$10960,WB!$C35,Hydrology!$E$4:$E$10960)*$E35*'Farm data entry'!$D$10*10*'Farm data entry'!$D$23 -> 24228.33333 | L35: 10338.32086 | M35: =AVERAGEIF(Hydrology!$AB$4:$AB$10960,WB!$C35,Hydrology!$H$4:$H$10960)*$E35 -> 13890.01247 | N35: 13237.65325 | O35: =AVERAGEIF(Hydrology!$AB$4:$AB$10960,WB!$C35,Hydrology!$Y$4:$Y$10960)*$E35 -> 652.3592172
A36: 22 | B36: ="Maximum storage = "& FIXED(Hydrology!$Y$1,0,FALSE) &" m3" -> Maximum storage = 100,000 m3 | C36: 10 | D36: Oct | E36: 31 | F36: =-AVERAGEIF(Hydrology!$AB$4:$AB$10960,WB!C36,Hydrology!$O$4:$O$10960)*E36 -> -8405.891056 | G36: =-AVERAGEIF(Hydrology!$AB$4:$AB$10960,WB!C36,Hydrology!$X$4:$X$10960)*E36 -> -7712.416819 | H36: =-AVERAGEIF(Hydrology!$AB$4:$AB$10960,WB!C36,Hydrology!$AA$4:$AA$10960)*E36 -> -693.4742367 | I36: =H36/('Farm data entry'!$D$10*10000)*1000 -> -1.386948473 | J36: -0.04474027334 | K36: =AVERAGEIF(Hydrology!$AB$4:$AB$10960,WB!$C36,Hydrology!$E$4:$E$10960)*$E36*'Farm data entry'!$D$10*10*'Farm data entry'!$D$23 -> 38104.99994 | L36: 15335.16508 | M36: =AVERAGEIF(Hydrology!$AB$4:$AB$10960,WB!$C36,Hydrology!$H$4:$H$10960)*$E36 -> 22769.83486 | N36: 22703.91875 | O36: =AVERAGEIF(Hydrology!$AB$4:$AB$10960,WB!$C36,Hydrology!$Y$4:$Y$10960)*$E36 -> 65.91611749
A37: 23 | B37: ="Maximum storage = "& FIXED(Hydrology!$Y$1,0,FALSE) &" m3" -> Maximum storage = 100,000 m3 | C37: 11 | D37: Nov | E37: 30 | F37: =-AVERAGEIF(Hydrology!$AB$4:$AB$10960,WB!C37,Hydrology!$O$4:$O$10960)*E37 -> -3053.1694 | G37: =-AVERAGEIF(Hydrology!$AB$4:$AB$10960,WB!C37,Hydrology!$X$4:$X$10960)*E37 -> -3053.1694 | H37: =-AVERAGEIF(Hydrology!$AB$4:$AB$10960,WB!C37,Hydrology!$AA$4:$AA$10960)*E37 -> 0 | I37: =H37/('Farm data entry'!$D$10*10000)*1000 -> 0 | J37: 0 | K37: =AVERAGEIF(Hydrology!$AB$4:$AB$10960,WB!$C37,Hydrology!$E$4:$E$10960)*$E37*'Farm data entry'!$D$10*10*'Farm data entry'!$D$23 -> 32810 | L37: 16581.70357 | M37: =AVERAGEIF(Hydrology!$AB$4:$AB$10960,WB!$C37,Hydrology!$H$4:$H$10960)*$E37 -> 16228.29643 | N37: 14351.68261 | O37: =AVERAGEIF(Hydrology!$AB$4:$AB$10960,WB!$C37,Hydrology!$Y$4:$Y$10960)*$E37 -> 1876.613818
A38: 24 | B38: ="Maximum storage = "& FIXED(Hydrology!$Y$1,0,FALSE) &" m3" -> Maximum storage = 100,000 m3 | C38: 12 | D38: Dec | E38: 31 | F38: =-AVERAGEIF(Hydrology!$AB$4:$AB$10960,WB!C38,Hydrology!$O$4:$O$10960)*E38 -> 0 | G38: =-AVERAGEIF(Hydrology!$AB$4:$AB$10960,WB!C38,Hydrology!$X$4:$X$10960)*E38 -> 0 | H38: =-AVERAGEIF(Hydrology!$AB$4:$AB$10960,WB!C38,Hydrology!$AA$4:$AA$10960)*E38 -> 0 | I38: =H38/('Farm data entry'!$D$10*10000)*1000 -> 0 | J38: 0 | K38: =AVERAGEIF(Hydrology!$AB$4:$AB$10960,WB!$C38,Hydrology!$E$4:$E$10960)*$E38*'Farm data entry'!$D$10*10*'Farm data entry'!$D$23 -> 34054.99997 | L38: 34054.99997 | M38: =AVERAGEIF(Hydrology!$AB$4:$AB$10960,WB!$C38,Hydrology!$H$4:$H$10960)*$E38 -> 0 | N38: 0 | O38: =AVERAGEIF(Hydrology!$AB$4:$AB$10960,WB!$C38,Hydrology!$Y$4:$Y$10960)*$E38 -> 0
F41: =SUM(F3:F14) -> -141396.5941 | G41: -122346.5836 | H41: -19050.01048 | I41: -38.10002096 | J41: -1.240050237 | K41: 334737.8926 | L41: 187928.3728 | M41: 146809.5198 | N41: 121093.5234 | O41: 25715.99646
F42: =SUM(F27:F38) -> -141396.5941 | G42: -135936.9647 | H42: -5459.629429 | I42: -10.91925886 | J42: -0.3565673327 | K42: 334737.8926 | L42: 187928.3728 | M42: 146809.5198 | N42: 133969.0462 | O42: 12840.47364

Sheet Costs_AlternativeWaterSources (hidden)
A1: Sl number | B1: Source | C1: £/m3 | D1: Range (£/m3) | E1: Source
A2: 1 | B2: Mains | C2: 1.37 | E2: Else (2020)
A3: 2 | B3: Surface water abstraction (summer) | C3: 0.031 | E3: Environment Agency
A4: 3 | B4: Reservoir (lined) | C4: 0.6929422106 | D4: (0.57-0.85) | E4: Updared from Weatherhead et al. 2014
A5: 4 | B5: Reservoir (unlined) | C5: 0.44 | D5: (0.36-0.54) | E5: Updared from Weatherhead et al. 2014
A6: 5 | B6: Selected cost | C6: ='Farm data entry'!D20 -> 1.37
B7: References
B8: Else (2020) | C8: Assessing the potential of using rain water harvesting to improve local water security for the soft fruit sector
B9: Environment Agency | C9: https://assets.publishing.service.gov.uk/government/uploads/system/uploads/attachment_data/file/878456/Environment_Agency_Scheme_of_Abstraction_Charges_2020-21.pdf
B10: Weatherhead et al 2014 | C10: https://www.fensforthefuture.org.uk/admin/resources/water-for-agriculture-final-report-march-2014.pdf

Sheet RWH summary
B1: Summary RWH model output | H1: RWH storage evaluation
B2: Protected cropping area (ha) | C2: ='Farm data entry'!D10 -> 50 | D2: ha | H2: RWH performance metric | I2: Rainfall year | J2: Selected storage capacities (m3)
B3: Cropped area (ha) | C3: =C2*'Farm data entry'!D22 -> 50 | D3: ha | J3: =D19 -> 50000 | K3: =D31 -> 75000 | L3: =D43 -> 100000
B4: Rainwater harvesting area | C4: =C3*'Farm data entry'!D23 -> 50 | D4: ha | H4: Irrigation deficit (m3): Gross irrigation water demand not met due the rainfall variability and insufficient available reservoir storage | I4: Average year | J4: =D22 -> 14232.11972 | K4: =D34 -> 0 | L4: =D46 -> 0
C5: mm | D5: m3 | I5: Very dry year | J5: =D23 -> 57525.20551 | K5: =D35 -> 40083.95693 | L5: =D47 -> 30140.43168
B6: Average annual Rainfall | C6: =GETPIVOTDATA("Sum of Rainfall (mm)",PivotTable!$A$1)/30 -> 669.8600002 | D6: =C6*10*$C$2 -> 334930.0001 | I6: Driest year | J6: =D24 -> 67078.1073 | K6: =D36 -> 46021.50331 | L6: =D48 -> 39228.0784
B7: Average annual Reference evapotranspiration (ETo) | C7: =GETPIVOTDATA("Sum of ETo (mm)",PivotTable!$A$1)/30 -> 526.8404983 | D7: =C7*10*$C$2 -> 263420.2491 | H7: Water saving efficiency (%): Ratio of the total amount of water supplied from the RWH to the total amount of water demand | I7: Average year | J7: =E25 -> 89.9789397 | K7: =E37 -> 100 | L7: =E49 -> 100
B8: Average annual crop evapotranspiration (ETc) | C8: =GETPIVOTDATA("Sum of ETc of polytunnel crops (mm)",PivotTable!$A$1)/30 -> 245.9071202 | D8: =C8*10*$C$2 -> 122953.5601 | I8: Very dry year | J8: =E26 -> 62.24903828 | K8: =E38 -> 74.89655151 | L8: =E50 -> 80.62704851
B9: Maximum daily irrigation need | C9: =D9/('Farm data entry'!$E$22*10) -> 3.774359107 | D9: =MAX(Hydrology!O4:O10960) -> 1887.179553 | I9: Driest year | J9: =E27 -> 56.88512585 | K9: =E39 -> 67.86600803 | L9: =E51 -> 75.6711621
B10: Maximum ETc | C10: =MAX(Hydrology!L4:L10960) -> 3.282051397 | D10: =C10*'Farm data entry'!$E$22*10 -> 1641.025699 | H10: Notes: The green coloured cells are used to highlight the lower irrigation deficit and higher water saving efficiency and red coloured cells are used to highlight the higher irrigation deficit and lower water saving efficiency achieved for each selected storage capacity, respectively.
B11: Average annual net irrigation | C11: =C8*'Farm data entry'!D22 -> 245.9071202 | D11: =C11*10*$C$2 -> 122953.5601
B12: Average annual leaching requirement | C12: =C11*'Farm data entry'!$D$14 -> 36.88606802 | D12: =C12*10*$C$2 -> 18443.03401
B13: Average annual Gross irrigation | C13: =SUM(C11:C12) -> 282.7931882 | D13: =SUM(D11:D12) -> 141396.5941
B14: Peak irrigation demand (two days) | C14: =D14/10/$C$2 -> 7.548718213 | D14: =(('Farm data entry'!D34)/24)*MAX(Hydrology!O4:O10960) -> 3774.359107
B15: Average annual harvestable rainfall | C15: =D15/10/$C$4 -> 293.8149539 | D15: =GETPIVOTDATA("Sum of Harvestable rainfall from polytunnels (m3)",PivotTable!$A$1)/30 -> 146907.4769
B17: Minimum reservoir capacity (m3) | D17: =D19 -> 50000
C18: mm | D18: m3 | E18: % | F18: £
B19: Tank capacity | C19: =D19/10/$C$2 -> 100 | D19: =Hydrology!Q1 -> 50000
B20: Usable storage | C20: 92.45128179 | D20: =D19-D14 -> 46225.64089
B21: Average annual harvested rainfall | C21: =D21/10/$C$4 -> 242.2673825 | D21: =(SUM(Hydrology!$H$4:$H$10960)-SUM(Hydrology!$Q$4:$Q$10960))/30 -> 121133.6913
B22: Average year irrigation deficit | C22: 28.46423944 | D22: ='I Deficit'!K16 -> 14232.11972 | F22: =D22*Costs_AlternativeWaterSources!$C$6 -> 19498.00402
B23: Very dry year irrigation deficit | C23: 115.050411 | D23: ='I Deficit'!K4 -> 57525.20551 | F23: =D23*Costs_AlternativeWaterSources!$C$6 -> 78809.53154
B24: Driest year irrigation deficit | C24: 134.1562146 | D24: ='I Deficit'!K2 -> 67078.1073 | F24: =D24*Costs_AlternativeWaterSources!$C$6 -> 91897.007
B25: Average year rainwater saving efficiency | E25: ='WSE(%)'!M16 -> 89.9789397
B26: Dry year rainwater saving efficiency | E26: ='WSE(%)'!M4 -> 62.24903828
B27: Driest year rainwater saving efficiency | E27: ='WSE(%)'!M2 -> 56.88512585
B29: Average reservoir capacity (m3) | D29: =D31 -> 75000
C30: mm | D30: m3 | E30: % | F30: £
B31: Tank capacity | C31: =D31/10/$C$2 -> 150 | D31: =Hydrology!U1 -> 75000
B32: Usable storage | C32: =D32/10/$C$2 -> 142.4512818 | D32: =D31-D14 -> 71225.64089
B33: Average annual harvested rainfall | C33: =D33/10/$C$4 -> 262.4532348 | D33: =(SUM(Hydrology!$H$4:$H$10960)-SUM(Hydrology!$U$4:$U$10960))/30 -> 131226.6174
B34: Average year irrigation deficit | C34: =D34/10/$C$2 -> 0 | D34: ='I Deficit'!L16 -> 0 | F34: =D34*Costs_AlternativeWaterSources!$C$6 -> 0
B35: Very dry year irrigation deficit | C35: =D35/10/$C$2 -> 80.16791386 | D35: ='I Deficit'!L4 -> 40083.95693 | F35: =D35*Costs_AlternativeWaterSources!$C$6 -> 54915.02099
B36: Driest year irrigation deficit | C36: =D36/10/$C$2 -> 92.04300662 | D36: ='I Deficit'!L2 -> 46021.50331 | F36: =D36*Costs_AlternativeWaterSources!$C$6 -> 63049.45954
B37: Average year rainwater saving efficiency | E37: ='WSE(%)'!N16 -> 100
B38: Dry year rainwater saving efficiency | E38: ='WSE(%)'!N4 -> 74.89655151
B39: Driest year rainwater saving efficiency | E39: ='WSE(%)'!N2 -> 67.86600803
B41: Maximum reservoir capacity (m3) | D41: =D43 -> 100000
C42: mm | D42: m3 | E42: % | F42: £
B43: Tank capacity | C43: =D43/10/$C$2 -> 200 | D43: =Hydrology!Y1 -> 100000
B44: Usable storage | C44: =D44/10/$C$2 -> 192.4512818 | D44: =D43-D14 -> 96225.64089
B45: Average annual harvested rainfall | C45: =D45/10/$C$4 -> 268.0767497 | D45: =(SUM(Hydrology!$H$4:$H$10960)-SUM(Hydrology!$Y$4:$Y$10960))/30 -> 134038.3748
B46: Average year irrigation deficit | C46: =D46/10/$C$2 -> 0 | D46: ='I Deficit'!M16 -> 0 | F46: =D46*Costs_AlternativeWaterSources!$C$6 -> 0
B47: Very dry year irrigation deficit | C47: =D47/10/$C$2 -> 60.28086336 | D47: ='I Deficit'!M4 -> 30140.43168 | F47: =D47*Costs_AlternativeWaterSources!$C$6 -> 41292.3914
B48: Driest year irrigation deficit | C48: =D48/10/$C$2 -> 78.45615681 | D48: ='I Deficit'!M2 -> 39228.0784 | F48: =D48*Costs_AlternativeWaterSources!$C$6 -> 53742.46741
B49: Average year rainwater saving efficiency | E49: ='WSE(%)'!O16 -> 100
B50: Dry year rainwater saving efficiency | E50: ='WSE(%)'!O4 -> 80.62704851
B51: Driest year rainwater saving efficiency | E51: ='WSE(%)'!O2 -> 75.6711621

Sheet Hydrology (hidden)
A1: =DefaultPostcode -> 25N | D1: =MATCH($A$1,'AgClim-Rain'!$D$2:$CH$2,0) -> 49 | H1: =(SUM(H4:H10960)-SUM(Q4:Q10960))/30 -> 121133.6913 | I1: ='Farm data entry'!$D$11 -> Strawberry(EB) | P1: Tank1 | Q1: ='Farm data entry'!$D$17 -> 50000 | R1: Buffer | S1: ="Irrigation used from minimum storage = "& FIXED(Q1,0,FALSE) &" m3" -> Irrigation used from minimum storage = 50,000 m3 | T1: Tank2 | U1: =AVERAGE('Farm data entry'!D17:D18) -> 75000 | V1: Buffer | W1: ="Irrigation used from average storage = "& FIXED(U1,0,FALSE) &" m3" -> Irrigation used from average storage = 75,000 m3 | X1: Tank3 | Y1: ='Farm data entry'!D18 -> 100000 | Z1: Buffer | AA1: ="Irrigation used from maximum storage = "& FIXED(Y1,0,FALSE) &" m3" -> Irrigation used from maximum storage = 100,000 m3 | AE1: ="Rain water used for irrigation ( "& FIXED(U1,0,FALSE) &" m3)" -> Rain water used for irrigation ( 75,000 m3)
A2: Date | B2: Year | C2: DoY | D2: Rainfall (mm) | E2: Site adjusted rainfall (mm) | F2: Harvestable rainfall (m3) | G2: Covered | H2: Harvestable rainfall from polytunnels (m3) | I2: ETo (mm) | J2: ETo adjusted to polytunnel crops, (mm) | K2: Kc adjusted | L2: ETc of polytunnel crops (mm) | M2: Net irrigation water demand (m3) | N2: IWD for leaching adjustment (m3) | O2: Gross irrigation water demand (m3) | P2: Actual rainwater used from reservoir (m3) | Q2: Overflow from reservoir (m3) | R2: Reservoir volume at end of each day (m3) | S2: Irrigation deficit_T1 | T2: Actual rainwater used from reservoir (m3) | U2: Overflow from reservoir (m3) | V2: Reservoir volume at end of each day (m3) | W2: Irrigation deficit_T2 | X2: Actual rainwater used from reservoir (m3) | Y2: Overflow from reservoir (m3) | Z2: Reservoir volume at end of each day (m3) | AA2: Irrigation deficit_T3
R3: =Q1 -> 50000 | V3: =U1 -> 75000 | Z3: =Y1 -> 100000 | AB3: Month
A4: 1986-01-01 | B4: =YEAR(A4) -> 1986 | C4: =A4-DATE(YEAR(A4)-1,12,31) -> 1 | D4: =VLOOKUP($A4,'AgClim-Rain'!$D$4:$CH$10960,Hydrology!$D$1,FALSE) -> 8.500000032 | E4: =D4-(D4*-DeafaultCF) -> 8.500000032 | F4: =MAX((E4-'Farm data entry'!$D$32)*'Farm data entry'!$D$31,0)*10*'Farm data entry'!$D$10*'Farm data entry'!$D$23 -> 2925.000014 | G4: =AND(C4>='Farm data entry'!$E$15,Hydrology!C4<='Farm data entry'!$E$16) -> FALSE | H4: =F4*G4 -> 0 | I4: =VLOOKUP($A4,'AgClim-ETo'!$A$4:$CE$10960,Hydrology!$D$1,FALSE) -> 0.3982629 | J4: =(I4*'Farm data entry'!$D$33) -> 0.27878403 | K4: =kc(C4,Kc!$F$16:$I$16,Kc!$N$16:$Q$16) -> 0 | L4: =(K4*J4) -> 0 | M4: =L4*10*'Farm data entry'!$E$22 -> 0 | N4: =(M4*'Farm data entry'!$D$14) -> 0 | O4: =SUM(M4:N4) -> 0 | P4: =MIN($O4,R3+$H4-MIN('RWH summary'!$D$14,$R$3)) -> 0 | Q4: =MAX(R3+$H4-$O4-Q$1,0) -> 0 | R4: =MIN(R3-P4+$H4,Q$1) -> 50000 | S4: =$O4-P4 -> 0 | T4: =MIN($O4,V3+$H4-MIN('RWH summary'!$D$14,$V$3)) -> 0 | U4: =MAX(V3+$H4-$O4-U$1,0) -> 0 | V4: =MIN(V3-T4+$H4,U$1) -> 75000 | W4: =$O4-T4 -> 0 | X4: =MIN($O4,Z3+$H4-MIN('RWH summary'!$D$14,$Z$3)) -> 0 | Y4: =MAX(Z3+$H4-$O4-Y$1,0) -> 0 | Z4: =MIN(Z3-X4+$H4,Y$1) -> 100000 | AA4: =$O4-X4 -> 0 | AB4: =MONTH(A4) -> 1
A5: 1986-01-02 | B5: =YEAR(A5) -> 1986 | C5: 2 | D5: =VLOOKUP($A5,'AgClim-Rain'!$D$4:$CH$10960,Hydrology!$D$1,FALSE) -> 2.600000035 | E5: 2.600000035 | F5: =MAX((E5-'Farm data entry'!$D$32)*'Farm data entry'!$D$31,0)*10*'Farm data entry'!$D$10*'Farm data entry'!$D$23 -> 270.0000158 | G5: =AND(C5>='Farm data entry'!$E$15,Hydrology!C5<='Farm data entry'!$E$16) -> FALSE | H5: =F5*G5 -> 0 | I5: =VLOOKUP($A5,'AgClim-ETo'!$A$4:$CE$10960,Hydrology!$D$1,FALSE) -> 0 | J5: =(I5*'Farm data entry'!$D$33) -> 0 | K5: =kc(C5,Kc!$F$16:$I$16,Kc!$N$16:$Q$16) -> 0 | L5: 0 | M5: =L5*10*'Farm data entry'!$E$22 -> 0 | N5: =(M5*'Farm data entry'!$D$14) -> 0 | O5: =SUM(M5:N5) -> 0 | P5: =MIN($O5,R4+$H5-MIN('RWH summary'!$D$14,$R$3)) -> 0 | Q5: 0 | R5: =MIN(R4-P5+$H5,Q$1) -> 50000 | S5: =$O5-P5 -> 0 | T5: =MIN($O5,V4+$H5-MIN('RWH summary'!$D$14,$V$3)) -> 0 | U5: =MAX(V4+$H5-$O5-U$1,0) -> 0 | V5: =MIN(V4-T5+$H5,U$1) -> 75000 | W5: =$O5-T5 -> 0 | X5: =MIN($O5,Z4+$H5-MIN('RWH summary'!$D$14,$Z$3)) -> 0 | Y5: =MAX(Z4+$H5-$O5-Y$1,0) -> 0 | Z5: =MIN(Z4-X5+$H5,Y$1) -> 100000 | AA5: =$O5-X5 -> 0 | AB5: =MONTH(A5) -> 1
A6: 1986-01-03 | B6: 1986 | C6: 3 | D6: =VLOOKUP($A6,'AgClim-Rain'!$D$4:$CH$10960,Hydrology!$D$1,FALSE) -> 0 | E6: 0 | F6: =MAX((E6-'Farm data entry'!$D$32)*'Farm data entry'!$D$31,0)*10*'Farm data entry'!$D$10*'Farm data entry'!$D$23 -> 0 | G6: =AND(C6>='Farm data entry'!$E$15,Hydrology!C6<='Farm data entry'!$E$16) -> FALSE | H6: 0 | I6: =VLOOKUP($A6,'AgClim-ETo'!$A$4:$CE$10960,Hydrology!$D$1,FALSE) -> 0.3760012 | J6: =(I6*'Farm data entry'!$D$33) -> 0.26320084 | K6: =kc(C6,Kc!$F$16:$I$16,Kc!$N$16:$Q$16) -> 0 | L6: 0 | M6: =L6*10*'Farm data entry'!$E$22 -> 0 | N6: =(M6*'Farm data entry'!$D$14) -> 0 | O6: 0 | P6: =MIN($O6,R5+$H6-MIN('RWH summary'!$D$14,$R$3)) -> 0 | Q6: 0 | R6: 50000 | S6: 0 | T6: =MIN($O6,V5+$H6-MIN('RWH summary'!$D$14,$V$3)) -> 0 | U6: 0 | V6: 75000 | W6: 0 | X6: =MIN($O6,Z5+$H6-MIN('RWH summary'!$D$14,$Z$3)) -> 0 | Y6: 0 | Z6: 100000 | AA6: 0 | AB6: 1
A7: 1986-01-04 | B7: 1986 | C7: 4 | D7: =VLOOKUP($A7,'AgClim-Rain'!$D$4:$CH$10960,Hydrology!$D$1,FALSE) -> 3.300000048 | E7: 3.300000048 | F7: =MAX((E7-'Farm data entry'!$D$32)*'Farm data entry'!$D$31,0)*10*'Farm data entry'!$D$10*'Farm data entry'!$D$23 -> 585.0000216 | G7: =AND(C7>='Farm data entry'!$E$15,Hydrology!C7<='Farm data entry'!$E$16) -> FALSE | H7: 0 | I7: =VLOOKUP($A7,'AgClim-ETo'!$A$4:$CE$10960,Hydrology!$D$1,FALSE) -> 0.3837612 | J7: =(I7*'Farm data entry'!$D$33) -> 0.26863284 | K7: =kc(C7,Kc!$F$16:$I$16,Kc!$N$16:$Q$16) -> 0 | L7: 0 | M7: =L7*10*'Farm data entry'!$E$22 -> 0 | N7: =(M7*'Farm data entry'!$D$14) -> 0 | O7: 0 | P7: =MIN($O7,R6+$H7-MIN('RWH summary'!$D$14,$R$3)) -> 0 | Q7: 0 | R7: 50000 | S7: 0 | T7: =MIN($O7,V6+$H7-MIN('RWH summary'!$D$14,$V$3)) -> 0 | U7: 0 | V7: 75000 | W7: 0 | X7: =MIN($O7,Z6+$H7-MIN('RWH summary'!$D$14,$Z$3)) -> 0 | Y7: 0 | Z7: 100000 | AA7: 0 | AB7: 1
A8: 1986-01-05 | B8: 1986 | C8: 5 | D8: =VLOOKUP($A8,'AgClim-Rain'!$D$4:$CH$10960,Hydrology!$D$1,FALSE) -> 0.09999999936 | E8: 0.09999999936 | F8: =MAX((E8-'Farm data entry'!$D$32)*'Farm data entry'!$D$31,0)*10*'Farm data entry'!$D$10*'Farm data entry'!$D$23 -> 0 | G8: =AND(C8>='Farm data entry'!$E$15,Hydrology!C8<='Farm data entry'!$E$16) -> FALSE | H8: 0 | I8: =VLOOKUP($A8,'AgClim-ETo'!$A$4:$CE$10960,Hydrology!$D$1,FALSE) -> 0.2766511 | J8: =(I8*'Farm data entry'!$D$33) -> 0.19365577 | K8: =kc(C8,Kc!$F$16:$I$16,Kc!$N$16:$Q$16) -> 0 | L8: 0 | M8: =L8*10*'Farm data entry'!$E$22 -> 0 | N8: =(M8*'Farm data entry'!$D$14) -> 0 | O8: 0 | P8: =MIN($O8,R7+$H8-MIN('RWH summary'!$D$14,$R$3)) -> 0 | Q8: 0 | R8: 50000 | S8: 0 | T8: =MIN($O8,V7+$H8-MIN('RWH summary'!$D$14,$V$3)) -> 0 | U8: 0 | V8: 75000 | W8: 0 | X8: =MIN($O8,Z7+$H8-MIN('RWH summary'!$D$14,$Z$3)) -> 0 | Y8: 0 | Z8: 100000 | AA8: 0 | AB8: 1
A9: 1986-01-06 | B9: 1986 | C9: 6 | D9: =VLOOKUP($A9,'AgClim-Rain'!$D$4:$CH$10960,Hydrology!$D$1,FALSE) -> 0.7999999776 | E9: 0.7999999776 | F9: =MAX((E9-'Farm data entry'!$D$32)*'Farm data entry'!$D$31,0)*10*'Farm data entry'!$D$10*'Farm data entry'!$D$23 -> 0 | G9: =AND(C9>='Farm data entry'!$E$15,Hydrology!C9<='Farm data entry'!$E$16) -> FALSE | H9: 0 | I9: =VLOOKUP($A9,'AgClim-ETo'!$A$4:$CE$10960,Hydrology!$D$1,FALSE) -> 0.101022534 | J9: =(I9*'Farm data entry'!$D$33) -> 0.0707157738 | K9: =kc(C9,Kc!$F$16:$I$16,Kc!$N$16:$Q$16) -> 0 | L9: 0 | M9: =L9*10*'Farm data entry'!$E$22 -> 0 | N9: =(M9*'Farm data entry'!$D$14) -> 0 | O9: 0 | P9: =MIN($O9,R8+$H9-MIN('RWH summary'!$D$14,$R$3)) -> 0 | Q9: 0 | R9: 50000 | S9: 0 | T9: =MIN($O9,V8+$H9-MIN('RWH summary'!$D$14,$V$3)) -> 0 | U9: 0 | V9: 75000 | W9: 0 | X9: =MIN($O9,Z8+$H9-MIN('RWH summary'!$D$14,$Z$3)) -> 0 | Y9: 0 | Z9: 100000 | AA9: 0 | AB9: 1
A10: 1986-01-07 | B10: 1986 | C10: 7 | D10: =VLOOKUP($A10,'AgClim-Rain'!$D$4:$CH$10960,Hydrology!$D$1,FALSE) -> 15.00000077 | E10: 15.00000077 | F10: =MAX((E10-'Farm data entry'!$D$32)*'Farm data entry'!$D$31,0)*10*'Farm data entry'!$D$10*'Farm data entry'!$D$23 -> 5850.000346 | G10: =AND(C10>='Farm data entry'!$E$15,Hydrology!C10<='Farm data entry'!$E$16) -> FALSE | H10: 0 | I10: =VLOOKUP($A10,'AgClim-ETo'!$A$4:$CE$10960,Hydrology!$D$1,FALSE) -> 0.2748936 | J10: =(I10*'Farm data entry'!$D$33) -> 0.19242552 | K10: =kc(C10,Kc!$F$16:$I$16,Kc!$N$16:$Q$16) -> 0 | L10: 0 | M10: =L10*10*'Farm data entry'!$E$22 -> 0 | N10: =(M10*'Farm data entry'!$D$14) -> 0 | O10: 0 | P10: =MIN($O10,R9+$H10-MIN('RWH summary'!$D$14,$R$3)) -> 0 | Q10: 0 | R10: 50000 | S10: 0 | T10: =MIN($O10,V9+$H10-MIN('RWH summary'!$D$14,$V$3)) -> 0 | U10: 0 | V10: 75000 | W10: 0 | X10: =MIN($O10,Z9+$H10-MIN('RWH summary'!$D$14,$Z$3)) -> 0 | Y10: 0 | Z10: 100000 | AA10: 0 | AB10: 1
A11: 1986-01-08 | B11: 1986 | C11: 8 | D11: =VLOOKUP($A11,'AgClim-Rain'!$D$4:$CH$10960,Hydrology!$D$1,FALSE) -> 0.4999999968 | E11: 0.4999999968 | F11: =MAX((E11-'Farm data entry'!$D$32)*'Farm data entry'!$D$31,0)*10*'Farm data entry'!$D$10*'Farm data entry'!$D$23 -> 0 | G11: =AND(C11>='Farm data entry'!$E$15,Hydrology!C11<='Farm data entry'!$E$16) -> FALSE | H11: 0 | I11: =VLOOKUP($A11,'AgClim-ETo'!$A$4:$CE$10960,Hydrology!$D$1,FALSE) -> 0 | J11: =(I11*'Farm data entry'!$D$33) -> 0 | K11: =kc(C11,Kc!$F$16:$I$16,Kc!$N$16:$Q$16) -> 0 | L11: =(K11*J11) -> 0 | M11: =L11*10*'Farm data entry'!$E$22 -> 0 | N11: =(M11*'Farm data entry'!$D$14) -> 0 | O11: 0 | P11: =MIN($O11,R10+$H11-MIN('RWH summary'!$D$14,$R$3)) -> 0 | Q11: 0 | R11: 50000 | S11: 0 | T11: =MIN($O11,V10+$H11-MIN('RWH summary'!$D$14,$V$3)) -> 0 | U11: 0 | V11: 75000 | W11: 0 | X11: =MIN($O11,Z10+$H11-MIN('RWH summary'!$D$14,$Z$3)) -> 0 | Y11: 0 | Z11: 100000 | AA11: 0 | AB11: 1
A12: 1986-01-09 | B12: 1986 | C12: 9 | D12: =VLOOKUP($A12,'AgClim-Rain'!$D$4:$CH$10960,Hydrology!$D$1,FALSE) -> 4.699999987 | E12: 4.699999987 | F12: =MAX((E12-'Farm data entry'!$D$32)*'Farm data entry'!$D$31,0)*10*'Farm data entry'!$D$10*'Farm data entry'!$D$23 -> 1214.999994 | G12: =AND(C12>='Farm data entry'!$E$15,Hydrology!C12<='Farm data entry'!$E$16) -> FALSE | H12: 0 | I12: =VLOOKUP($A12,'AgClim-ETo'!$A$4:$CE$10960,Hydrology!$D$1,FALSE) -> 0.5474651 | J12: =(I12*'Farm data entry'!$D$33) -> 0.38322557 | K12: =kc(C12,Kc!$F$16:$I$16,Kc!$N$16:$Q$16) -> 0 | L12: 0 | M12: =L12*10*'Farm data entry'!$E$22 -> 0 | N12: =(M12*'Farm data entry'!$D$14) -> 0 | O12: 0 | P12: =MIN($O12,R11+$H12-MIN('RWH summary'!$D$14,$R$3)) -> 0 | Q12: 0 | R12: 50000 | S12: 0 | T12: =MIN($O12,V11+$H12-MIN('RWH summary'!$D$14,$V$3)) -> 0 | U12: 0 | V12: 75000 | W12: 0 | X12: =MIN($O12,Z11+$H12-MIN('RWH summary'!$D$14,$Z$3)) -> 0 | Y12: 0 | Z12: 100000 | AA12: 0 | AB12: 1
A13: 1986-01-10 | B13: 1986 | C13: 10 | D13: =VLOOKUP($A13,'AgClim-Rain'!$D$4:$CH$10960,Hydrology!$D$1,FALSE) -> 0.3000000067 | E13: 0.3000000067 | F13: =MAX((E13-'Farm data entry'!$D$32)*'Farm data entry'!$D$31,0)*10*'Farm data entry'!$D$10*'Farm data entry'!$D$23 -> 0 | G13: =AND(C13>='Farm data entry'!$E$15,Hydrology!C13<='Farm data entry'!$E$16) -> FALSE | H13: 0 | I13: =VLOOKUP($A13,'AgClim-ETo'!$A$4:$CE$10960,Hydrology!$D$1,FALSE) -> 0 | J13: =(I13*'Farm data entry'!$D$33) -> 0 | K13: =kc(C13,Kc!$F$16:$I$16,Kc!$N$16:$Q$16) -> 0 | L13: 0 | M13: =L13*10*'Farm data entry'!$E$22 -> 0 | N13: =(M13*'Farm data entry'!$D$14) -> 0 | O13: 0 | P13: =MIN($O13,R12+$H13-MIN('RWH summary'!$D$14,$R$3)) -> 0 | Q13: 0 | R13: 50000 | S13: 0 | T13: =MIN($O13,V12+$H13-MIN('RWH summary'!$D$14,$V$3)) -> 0 | U13: 0 | V13: 75000 | W13: 0 | X13: =MIN($O13,Z12+$H13-MIN('RWH summary'!$D$14,$Z$3)) -> 0 | Y13: 0 | Z13: 100000 | AA13: 0 | AB13: 1
A14: 1986-01-11 | B14: 1986 | C14: 11 | D14: =VLOOKUP($A14,'AgClim-Rain'!$D$4:$CH$10960,Hydrology!$D$1,FALSE) -> 0.4999999968 | E14: 0.4999999968 | F14: =MAX((E14-'Farm data entry'!$D$32)*'Farm data entry'!$D$31,0)*10*'Farm data entry'!$D$10*'Farm data entry'!$D$23 -> 0 | G14: =AND(C14>='Farm data entry'!$E$15,Hydrology!C14<='Farm data entry'!$E$16) -> FALSE | H14: 0 | I14: =VLOOKUP($A14,'AgClim-ETo'!$A$4:$CE$10960,Hydrology!$D$1,FALSE) -> 0.79218584 | J14: =(I14*'Farm data entry'!$D$33) -> 0.554530088 | K14: =kc(C14,Kc!$F$16:$I$16,Kc!$N$16:$Q$16) -> 0 | L14: 0 | M14: =L14*10*'Farm data entry'!$E$22 -> 0 | N14: =(M14*'Farm data entry'!$D$14) -> 0 | O14: 0 | P14: =MIN($O14,R13+$H14-MIN('RWH summary'!$D$14,$R$3)) -> 0 | Q14: 0 | R14: 50000 | S14: 0 | T14: =MIN($O14,V13+$H14-MIN('RWH summary'!$D$14,$V$3)) -> 0 | U14: 0 | V14: 75000 | W14: 0 | X14: =MIN($O14,Z13+$H14-MIN('RWH summary'!$D$14,$Z$3)) -> 0 | Y14: 0 | Z14: 100000 | AA14: 0 | AB14: 1
A15: 1986-01-12 | B15: 1986 | C15: 12 | D15: =VLOOKUP($A15,'AgClim-Rain'!$D$4:$CH$10960,Hydrology!$D$1,FALSE) -> 0 | E15: 0 | F15: =MAX((E15-'Farm data entry'!$D$32)*'Farm data entry'!$D$31,0)*10*'Farm data entry'!$D$10*'Farm data entry'!$D$23 -> 0 | G15: =AND(C15>='Farm data entry'!$E$15,Hydrology!C15<='Farm data entry'!$E$16) -> FALSE | H15: 0 | I15: =VLOOKUP($A15,'AgClim-ETo'!$A$4:$CE$10960,Hydrology!$D$1,FALSE) -> 1.0724264 | J15: =(I15*'Farm data entry'!$D$33) -> 0.75069848 | K15: =kc(C15,Kc!$F$16:$I$16,Kc!$N$16:$Q$16) -> 0 | L15: 0 | M15: =L15*10*'Farm data entry'!$E$22 -> 0 | N15: =(M15*'Farm data entry'!$D$14) -> 0 | O15: 0 | P15: =MIN($O15,R14+$H15-MIN('RWH summary'!$D$14,$R$3)) -> 0 | Q15: 0 | R15: 50000 | S15: 0 | T15: =MIN($O15,V14+$H15-MIN('RWH summary'!$D$14,$V$3)) -> 0 | U15: 0 | V15: 75000 | W15: 0 | X15: =MIN($O15,Z14+$H15-MIN('RWH summary'!$D$14,$Z$3)) -> 0 | Y15: 0 | Z15: 100000 | AA15: 0 | AB15: 1
A16: 1986-01-13 | B16: 1986 | C16: 13 | D16: =VLOOKUP($A16,'AgClim-Rain'!$D$4:$CH$10960,Hydrology!$D$1,FALSE) -> 0.6000000048 | E16: 0.6000000048 | F16: =MAX((E16-'Farm data entry'!$D$32)*'Farm data entry'!$D$31,0)*10*'Farm data entry'!$D$10*'Farm data entry'!$D$23 -> 0 | G16: =AND(C16>='Farm data entry'!$E$15,Hydrology!C16<='Farm data entry'!$E$16) -> FALSE | H16: 0 | I16: =VLOOKUP($A16,'AgClim-ETo'!$A$4:$CE$10960,Hydrology!$D$1,FALSE) -> 0.43888474 | J16: =(I16*'Farm data entry'!$D$33) -> 0.307219318 | K16: =kc(C16,Kc!$F$16:$I$16,Kc!$N$16:$Q$16) -> 0 | L16: 0 | M16: =L16*10*'Farm data entry'!$E$22 -> 0 | N16: =(M16*'Farm data entry'!$D$14) -> 0 | O16: 0 | P16: =MIN($O16,R15+$H16-MIN('RWH summary'!$D$14,$R$3)) -> 0 | Q16: 0 | R16: 50000 | S16: 0 | T16: =MIN($O16,V15+$H16-MIN('RWH summary'!$D$14,$V$3)) -> 0 | U16: 0 | V16: 75000 | W16: 0 | X16: =MIN($O16,Z15+$H16-MIN('RWH summary'!$D$14,$Z$3)) -> 0 | Y16: 0 | Z16: 100000 | AA16: 0 | AB16: 1
A17: 1986-01-14 | B17: 1986 | C17: 14 | D17: =VLOOKUP($A17,'AgClim-Rain'!$D$4:$CH$10960,Hydrology!$D$1,FALSE) -> 0.7000000128 | E17: 0.7000000128 | F17: =MAX((E17-'Farm data entry'!$D$32)*'Farm data entry'!$D$31,0)*10*'Farm data entry'!$D$10*'Farm data entry'!$D$23 -> 0 | G17: =AND(C17>='Farm data entry'!$E$15,Hydrology!C17<='Farm data entry'!$E$16) -> FALSE | H17: 0 | I17: =VLOOKUP($A17,'AgClim-ETo'!$A$4:$CE$10960,Hydrology!$D$1,FALSE) -> 1.276197 | J17: =(I17*'Farm data entry'!$D$33) -> 0.8933379 | K17: =kc(C17,Kc!$F$16:$I$16,Kc!$N$16:$Q$16) -> 0 | L17: 0 | M17: =L17*10*'Farm data entry'!$E$22 -> 0 | N17: =(M17*'Farm data entry'!$D$14) -> 0 | O17: 0 | P17: =MIN($O17,R16+$H17-MIN('RWH summary'!$D$14,$R$3)) -> 0 | Q17: 0 | R17: 50000 | S17: 0 | T17: =MIN($O17,V16+$H17-MIN('RWH summary'!$D$14,$V$3)) -> 0 | U17: 0 | V17: 75000 | W17: 0 | X17: =MIN($O17,Z16+$H17-MIN('RWH summary'!$D$14,$Z$3)) -> 0 | Y17: 0 | Z17: 100000 | AA17: 0 | AB17: 1
A18: 1986-01-15 | B18: 1986 | C18: 15 | D18: =VLOOKUP($A18,'AgClim-Rain'!$D$4:$CH$10960,Hydrology!$D$1,FALSE) -> 2.299999968 | E18: 2.299999968 | F18: =MAX((E18-'Farm data entry'!$D$32)*'Farm data entry'!$D$31,0)*10*'Farm data entry'!$D$10*'Farm data entry'!$D$23 -> 134.9999856 | G18: =AND(C18>='Farm data entry'!$E$15,Hydrology!C18<='Farm data entry'!$E$16) -> FALSE | H18: 0 | I18: =VLOOKUP($A18,'AgClim-ETo'!$A$4:$CE$10960,Hydrology!$D$1,FALSE) -> 0.6356887 | J18: =(I18*'Farm data entry'!$D$33) -> 0.44498209 | K18: =kc(C18,Kc!$F$16:$I$16,Kc!$N$16:$Q$16) -> 0 | L18: 0 | M18: =L18*10*'Farm data entry'!$E$22 -> 0 | N18: =(M18*'Farm data entry'!$D$14) -> 0 | O18: 0 | P18: =MIN($O18,R17+$H18-MIN('RWH summary'!$D$14,$R$3)) -> 0 | Q18: 0 | R18: 50000 | S18: 0 | T18: =MIN($O18,V17+$H18-MIN('RWH summary'!$D$14,$V$3)) -> 0 | U18: 0 | V18: 75000 | W18: 0 | X18: =MIN($O18,Z17+$H18-MIN('RWH summary'!$D$14,$Z$3)) -> 0 | Y18: 0 | Z18: 100000 | AA18: 0 | AB18: 1
A19: 1986-01-16 | B19: 1986 | C19: 16 | D19: =VLOOKUP($A19,'AgClim-Rain'!$D$4:$CH$10960,Hydrology!$D$1,FALSE) -> 1.100000045 | E19: 1.100000045 | F19: =MAX((E19-'Farm data entry'!$D$32)*'Farm data entry'!$D$31,0)*10*'Farm data entry'!$D$10*'Farm data entry'!$D$23 -> 0 | G19: =AND(C19>='Farm data entry'!$E$15,Hydrology!C19<='Farm data entry'!$E$16) -> FALSE | H19: 0 | I19: =VLOOKUP($A19,'AgClim-ETo'!$A$4:$CE$10960,Hydrology!$D$1,FALSE) -> 0.19479822 | J19: =(I19*'Farm data entry'!$D$33) -> 0.136358754 | K19: =kc(C19,Kc!$F$16:$I$16,Kc!$N$16:$Q$16) -> 0 | L19: 0 | M19: =L19*10*'Farm data entry'!$E$22 -> 0 | N19: =(M19*'Farm data entry'!$D$14) -> 0 | O19: 0 | P19: =MIN($O19,R18+$H19-MIN('RWH summary'!$D$14,$R$3)) -> 0 | Q19: 0 | R19: 50000 | S19: 0 | T19: =MIN($O19,V18+$H19-MIN('RWH summary'!$D$14,$V$3)) -> 0 | U19: 0 | V19: 75000 | W19: 0 | X19: =MIN($O19,Z18+$H19-MIN('RWH summary'!$D$14,$Z$3)) -> 0 | Y19: 0 | Z19: 100000 | AA19: 0 | AB19: 1
A20: 1986-01-17 | B20: 1986 | C20: 17 | D20: =VLOOKUP($A20,'AgClim-Rain'!$D$4:$CH$10960,Hydrology!$D$1,FALSE) -> 0.09999999936 | E20: 0.09999999936 | F20: =MAX((E20-'Farm data entry'!$D$32)*'Farm data entry'!$D$31,0)*10*'Farm data entry'!$D$10*'Farm data entry'!$D$23 -> 0 | G20: =AND(C20>='Farm data entry'!$E$15,Hydrology!C20<='Farm data entry'!$E$16) -> FALSE | H20: 0 | I20: =VLOOKUP($A20,'AgClim-ETo'!$A$4:$CE$10960,Hydrology!$D$1,FALSE) -> 0.37538388 | J20: =(I20*'Farm data entry'!$D$33) -> 0.262768716 | K20: =kc(C20,Kc!$F$16:$I$16,Kc!$N$16:$Q$16) -> 0 | L20: 0 | M20: =L20*10*'Farm data entry'!$E$22 -> 0 | N20: =(M20*'Farm data entry'!$D$14) -> 0 | O20: 0 | P20: =MIN($O20,R19+$H20-MIN('RWH summary'!$D$14,$R$3)) -> 0 | Q20: 0 | R20: 50000 | S20: 0 | T20: =MIN($O20,V19+$H20-MIN('RWH summary'!$D$14,$V$3)) -> 0 | U20: 0 | V20: 75000 | W20: 0 | X20: =MIN($O20,Z19+$H20-MIN('RWH summary'!$D$14,$Z$3)) -> 0 | Y20: 0 | Z20: 100000 | AA20: 0 | AB20: 1
A21: 1986-01-18 | B21: 1986 | C21: 18 | D21: =VLOOKUP($A21,'AgClim-Rain'!$D$4:$CH$10960,Hydrology!$D$1,FALSE) -> 0.09999999936 | E21: 0.09999999936 | F21: =MAX((E21-'Farm data entry'!$D$32)*'Farm data entry'!$D$31,0)*10*'Farm data entry'!$D$10*'Farm data entry'!$D$23 -> 0 | G21: =AND(C21>='Farm data entry'!$E$15,Hydrology!C21<='Farm data entry'!$E$16) -> FALSE | H21: 0 | I21: =VLOOKUP($A21,'AgClim-ETo'!$A$4:$CE$10960,Hydrology!$D$1,FALSE) -> 0 | J21: =(I21*'Farm data entry'!$D$33) -> 0 | K21: =kc(C21,Kc!$F$16:$I$16,Kc!$N$16:$Q$16) -> 0 | L21: 0 | M21: =L21*10*'Farm data entry'!$E$22 -> 0 | N21: =(M21*'Farm data entry'!$D$14) -> 0 | O21: 0 | P21: =MIN($O21,R20+$H21-MIN('RWH summary'!$D$14,$R$3)) -> 0 | Q21: 0 | R21: 50000 | S21: 0 | T21: =MIN($O21,V20+$H21-MIN('RWH summary'!$D$14,$V$3)) -> 0 | U21: 0 | V21: 75000 | W21: 0 | X21: =MIN($O21,Z20+$H21-MIN('RWH summary'!$D$14,$Z$3)) -> 0 | Y21: 0 | Z21: 100000 | AA21: 0 | AB21: 1
A22: 1986-01-19 | B22: 1986 | C22: 19 | D22: =VLOOKUP($A22,'AgClim-Rain'!$D$4:$CH$10960,Hydrology!$D$1,FALSE) -> 0.7999999776 | E22: 0.7999999776 | F22: =MAX((E22-'Farm data entry'!$D$32)*'Farm data entry'!$D$31,0)*10*'Farm data entry'!$D$10*'Farm data entry'!$D$23 -> 0 | G22: =AND(C22>='Farm data entry'!$E$15,Hydrology!C22<='Farm data entry'!$E$16) -> FALSE | H22: 0 | I22: =VLOOKUP($A22,'AgClim-ETo'!$A$4:$CE$10960,Hydrology!$D$1,FALSE) -> 0.3053258 | J22: =(I22*'Farm data entry'!$D$33) -> 0.21372806 | K22: =kc(C22,Kc!$F$16:$I$16,Kc!$N$16:$Q$16) -> 0 | L22: 0 | M22: =L22*10*'Farm data entry'!$E$22 -> 0 | N22: =(M22*'Farm data entry'!$D$14) -> 0 | O22: 0 | P22: =MIN($O22,R21+$H22-MIN('RWH summary'!$D$14,$R$3)) -> 0 | Q22: 0 | R22: 50000 | S22: 0 | T22: =MIN($O22,V21+$H22-MIN('RWH summary'!$D$14,$V$3)) -> 0 | U22: 0 | V22: 75000 | W22: 0 | X22: =MIN($O22,Z21+$H22-MIN('RWH summary'!$D$14,$Z$3)) -> 0 | Y22: 0 | Z22: 100000 | AA22: 0 | AB22: 1
A23: 1986-01-20 | B23: 1986 | C23: 20 | D23: =VLOOKUP($A23,'AgClim-Rain'!$D$4:$CH$10960,Hydrology!$D$1,FALSE) -> 2.7 | E23: 2.7 | F23: =MAX((E23-'Farm data entry'!$D$32)*'Farm data entry'!$D$31,0)*10*'Farm data entry'!$D$10*'Farm data entry'!$D$23 -> 315 | G23: =AND(C23>='Farm data entry'!$E$15,Hydrology!C23<='Farm data entry'!$E$16) -> FALSE | H23: 0 | I23: =VLOOKUP($A23,'AgClim-ETo'!$A$4:$CE$10960,Hydrology!$D$1,FALSE) -> 0.73804003 | J23: =(I23*'Farm data entry'!$D$33) -> 0.516628021 | K23: =kc(C23,Kc!$F$16:$I$16,Kc!$N$16:$Q$16) -> 0 | L23: 0 | M23: =L23*10*'Farm data entry'!$E$22 -> 0 | N23: =(M23*'Farm data entry'!$D$14) -> 0 | O23: 0 | P23: =MIN($O23,R22+$H23-MIN('RWH summary'!$D$14,$R$3)) -> 0 | Q23: 0 | R23: 50000 | S23: 0 | T23: =MIN($O23,V22+$H23-MIN('RWH summary'!$D$14,$V$3)) -> 0 | U23: 0 | V23: 75000 | W23: 0 | X23: =MIN($O23,Z22+$H23-MIN('RWH summary'!$D$14,$Z$3)) -> 0 | Y23: 0 | Z23: 100000 | AA23: 0 | AB23: 1
A24: 1986-01-21 | B24: 1986 | C24: 21 | D24: =VLOOKUP($A24,'AgClim-Rain'!$D$4:$CH$10960,Hydrology!$D$1,FALSE) -> 1.100000045 | E24: 1.100000045 | F24: =MAX((E24-'Farm data entry'!$D$32)*'Farm data entry'!$D$31,0)*10*'Farm data entry'!$D$10*'Farm data entry'!$D$23 -> 0 | G24: =AND(C24>='Farm data entry'!$E$15,Hydrology!C24<='Farm data entry'!$E$16) -> FALSE | H24: 0 | I24: =VLOOKUP($A24,'AgClim-ETo'!$A$4:$CE$10960,Hydrology!$D$1,FALSE) -> 0.44300845 | J24: =(I24*'Farm data entry'!$D$33) -> 0.310105915 | K24: =kc(C24,Kc!$F$16:$I$16,Kc!$N$16:$Q$16) -> 0 | L24: 0 | M24: =L24*10*'Farm data entry'!$E$22 -> 0 | N24: =(M24*'Farm data entry'!$D$14) -> 0 | O24: 0 | P24: =MIN($O24,R23+$H24-MIN('RWH summary'!$D$14,$R$3)) -> 0 | Q24: 0 | R24: 50000 | S24: 0 | T24: =MIN($O24,V23+$H24-MIN('RWH summary'!$D$14,$V$3)) -> 0 | U24: 0 | V24: 75000 | W24: 0 | X24: =MIN($O24,Z23+$H24-MIN('RWH summary'!$D$14,$Z$3)) -> 0 | Y24: 0 | Z24: 100000 | AA24: 0 | AB24: 1
A25: 1986-01-22 | B25: 1986 | C25: 22 | D25: =VLOOKUP($A25,'AgClim-Rain'!$D$4:$CH$10960,Hydrology!$D$1,FALSE) -> 4.999999968 | E25: 4.999999968 | F25: =MAX((E25-'Farm data entry'!$D$32)*'Farm data entry'!$D$31,0)*10*'Farm data entry'!$D$10*'Farm data entry'!$D$23 -> 1349.999986 | G25: =AND(C25>='Farm data entry'!$E$15,Hydrology!C25<='Farm data entry'!$E$16) -> FALSE | H25: 0 | I25: =VLOOKUP($A25,'AgClim-ETo'!$A$4:$CE$10960,Hydrology!$D$1,FALSE) -> 0.2571331 | J25: =(I25*'Farm data entry'!$D$33) -> 0.17999317 | K25: =kc(C25,Kc!$F$16:$I$16,Kc!$N$16:$Q$16) -> 0 | L25: 0 | M25: =L25*10*'Farm data entry'!$E$22 -> 0 | N25: =(M25*'Farm data entry'!$D$14) -> 0 | O25: 0 | P25: =MIN($O25,R24+$H25-MIN('RWH summary'!$D$14,$R$3)) -> 0 | Q25: 0 | R25: 50000 | S25: 0 | T25: =MIN($O25,V24+$H25-MIN('RWH summary'!$D$14,$V$3)) -> 0 | U25: 0 | V25: 75000 | W25: 0 | X25: =MIN($O25,Z24+$H25-MIN('RWH summary'!$D$14,$Z$3)) -> 0 | Y25: 0 | Z25: 100000 | AA25: 0 | AB25: 1
A26: 1986-01-23 | B26: 1986 | C26: 23 | D26: =VLOOKUP($A26,'AgClim-Rain'!$D$4:$CH$10960,Hydrology!$D$1,FALSE) -> 0.09999999936 | E26: 0.09999999936 | F26: =MAX((E26-'Farm data entry'!$D$32)*'Farm data entry'!$D$31,0)*10*'Farm data entry'!$D$10*'Farm data entry'!$D$23 -> 0 | G26: =AND(C26>='Farm data entry'!$E$15,Hydrology!C26<='Farm data entry'!$E$16) -> FALSE | H26: 0 | I26: =VLOOKUP($A26,'AgClim-ETo'!$A$4:$CE$10960,Hydrology!$D$1,FALSE) -> 0.9090362 | J26: =(I26*'Farm data entry'!$D$33) -> 0.63632534 | K26: =kc(C26,Kc!$F$16:$I$16,Kc!$N$16:$Q$16) -> 0 | L26: 0 | M26: =L26*10*'Farm data entry'!$E$22 -> 0 | N26: =(M26*'Farm data entry'!$D$14) -> 0 | O26: 0 | P26: =MIN($O26,R25+$H26-MIN('RWH summary'!$D$14,$R$3)) -> 0 | Q26: 0 | R26: 50000 | S26: 0 | T26: =MIN($O26,V25+$H26-MIN('RWH summary'!$D$14,$V$3)) -> 0 | U26: 0 | V26: 75000 | W26: 0 | X26: =MIN($O26,Z25+$H26-MIN('RWH summary'!$D$14,$Z$3)) -> 0 | Y26: 0 | Z26: 100000 | AA26: 0 | AB26: 1
A27: 1986-01-24 | B27: 1986 | C27: 24 | D27: =VLOOKUP($A27,'AgClim-Rain'!$D$4:$CH$10960,Hydrology!$D$1,FALSE) -> 0.1999999987 | E27: 0.1999999987 | F27: =MAX((E27-'Farm data entry'!$D$32)*'Farm data entry'!$D$31,0)*10*'Farm data entry'!$D$10*'Farm data entry'!$D$23 -> 0 | G27: =AND(C27>='Farm data entry'!$E$15,Hydrology!C27<='Farm data entry'!$E$16) -> FALSE | H27: 0 | I27: =VLOOKUP($A27,'AgClim-ETo'!$A$4:$CE$10960,Hydrology!$D$1,FALSE) -> 0.8459887 | J27: =(I27*'Farm data entry'!$D$33) -> 0.59219209 | K27: =kc(C27,Kc!$F$16:$I$16,Kc!$N$16:$Q$16) -> 0 | L27: 0 | M27: =L27*10*'Farm data entry'!$E$22 -> 0 | N27: =(M27*'Farm data entry'!$D$14) -> 0 | O27: 0 | P27: =MIN($O27,R26+$H27-MIN('RWH summary'!$D$14,$R$3)) -> 0 | Q27: 0 | R27: 50000 | S27: 0 | T27: =MIN($O27,V26+$H27-MIN('RWH summary'!$D$14,$V$3)) -> 0 | U27: 0 | V27: 75000 | W27: 0 | X27: =MIN($O27,Z26+$H27-MIN('RWH summary'!$D$14,$Z$3)) -> 0 | Y27: 0 | Z27: 100000 | AA27: 0 | AB27: 1
A28: 1986-01-25 | B28: 1986 | C28: 25 | D28: =VLOOKUP($A28,'AgClim-Rain'!$D$4:$CH$10960,Hydrology!$D$1,FALSE) -> 0 | E28: 0 | F28: =MAX((E28-'Farm data entry'!$D$32)*'Farm data entry'!$D$31,0)*10*'Farm data entry'!$D$10*'Farm data entry'!$D$23 -> 0 | G28: =AND(C28>='Farm data entry'!$E$15,Hydrology!C28<='Farm data entry'!$E$16) -> FALSE | H28: 0 | I28: =VLOOKUP($A28,'AgClim-ETo'!$A$4:$CE$10960,Hydrology!$D$1,FALSE) -> 0.18015386 | J28: =(I28*'Farm data entry'!$D$33) -> 0.126107702 | K28: =kc(C28,Kc!$F$16:$I$16,Kc!$N$16:$Q$16) -> 0 | L28: 0 | M28: =L28*10*'Farm data entry'!$E$22 -> 0 | N28: =(M28*'Farm data entry'!$D$14) -> 0 | O28: 0 | P28: =MIN($O28,R27+$H28-MIN('RWH summary'!$D$14,$R$3)) -> 0 | Q28: 0 | R28: 50000 | S28: 0 | T28: =MIN($O28,V27+$H28-MIN('RWH summary'!$D$14,$V$3)) -> 0 | U28: 0 | V28: 75000 | W28: 0 | X28: =MIN($O28,Z27+$H28-MIN('RWH summary'!$D$14,$Z$3)) -> 0 | Y28: 0 | Z28: 100000 | AA28: 0 | AB28: 1
A29: 1986-01-26 | B29: 1986 | C29: 26 | D29: =VLOOKUP($A29,'AgClim-Rain'!$D$4:$CH$10960,Hydrology!$D$1,FALSE) -> 1.999999987 | E29: 1.999999987 | F29: =MAX((E29-'Farm data entry'!$D$32)*'Farm data entry'!$D$31,0)*10*'Farm data entry'!$D$10*'Farm data entry'!$D$23 -> 0 | G29: =AND(C29>='Farm data entry'!$E$15,Hydrology!C29<='Farm data entry'!$E$16) -> FALSE | H29: 0 | I29: =VLOOKUP($A29,'AgClim-ETo'!$A$4:$CE$10960,Hydrology!$D$1,FALSE) -> 0.25962436 | J29: =(I29*'Farm data entry'!$D$33) -> 0.181737052 | K29: =kc(C29,Kc!$F$16:$I$16,Kc!$N$16:$Q$16) -> 0 | L29: 0 | M29: =L29*10*'Farm data entry'!$E$22 -> 0 | N29: =(M29*'Farm data entry'!$D$14) -> 0 | O29: 0 | P29: =MIN($O29,R28+$H29-MIN('RWH summary'!$D$14,$R$3)) -> 0 | Q29: 0 | R29: 50000 | S29: 0 | T29: =MIN($O29,V28+$H29-MIN('RWH summary'!$D$14,$V$3)) -> 0 | U29: 0 | V29: 75000 | W29: 0 | X29: =MIN($O29,Z28+$H29-MIN('RWH summary'!$D$14,$Z$3)) -> 0 | Y29: 0 | Z29: 100000 | AA29: 0 | AB29: 1
A30: 1986-01-27 | B30: 1986 | C30: 27 | D30: =VLOOKUP($A30,'AgClim-Rain'!$D$4:$CH$10960,Hydrology!$D$1,FALSE) -> 1.599999955 | E30: 1.599999955 | F30: =MAX((E30-'Farm data entry'!$D$32)*'Farm data entry'!$D$31,0)*10*'Farm data entry'!$D$10*'Farm data entry'!$D$23 -> 0 | G30: =AND(C30>='Farm data entry'!$E$15,Hydrology!C30<='Farm data entry'!$E$16) -> FALSE | H30: 0 | I30: =VLOOKUP($A30,'AgClim-ETo'!$A$4:$CE$10960,Hydrology!$D$1,FALSE) -> 0.015564688 | J30: =(I30*'Farm data entry'!$D$33) -> 0.0108952816 | K30: =kc(C30,Kc!$F$16:$I$16,Kc!$N$16:$Q$16) -> 0 | L30: 0 | M30: =L30*10*'Farm data entry'!$E$22 -> 0 | N30: =(M30*'Farm data entry'!$D$14) -> 0 | O30: 0 | P30: =MIN($O30,R29+$H30-MIN('RWH summary'!$D$14,$R$3)) -> 0 | Q30: 0 | R30: 50000 | S30: 0 | T30: =MIN($O30,V29+$H30-MIN('RWH summary'!$D$14,$V$3)) -> 0 | U30: 0 | V30: 75000 | W30: 0 | X30: =MIN($O30,Z29+$H30-MIN('RWH summary'!$D$14,$Z$3)) -> 0 | Y30: 0 | Z30: 100000 | AA30: 0 | AB30: 1
A31: 1986-01-28 | B31: 1986 | C31: 28 | D31: =VLOOKUP($A31,'AgClim-Rain'!$D$4:$CH$10960,Hydrology!$D$1,FALSE) -> 8.200000224 | E31: 8.200000224 | F31: =MAX((E31-'Farm data entry'!$D$32)*'Farm data entry'!$D$31,0)*10*'Farm data entry'!$D$10*'Farm data entry'!$D$23 -> 2790.000101 | G31: =AND(C31>='Farm data entry'!$E$15,Hydrology!C31<='Farm data entry'!$E$16) -> FALSE | H31: 0 | I31: =VLOOKUP($A31,'AgClim-ETo'!$A$4:$CE$10960,Hydrology!$D$1,FALSE) -> 0.4012522 | J31: =(I31*'Farm data entry'!$D$33) -> 0.28087654 | K31: =kc(C31,Kc!$F$16:$I$16,Kc!$N$16:$Q$16) -> 0 | L31: 0 | M31: =L31*10*'Farm data entry'!$E$22 -> 0 | N31: =(M31*'Farm data entry'!$D$14) -> 0 | O31: 0 | P31: =MIN($O31,R30+$H31-MIN('RWH summary'!$D$14,$R$3)) -> 0 | Q31: 0 | R31: 50000 | S31: 0 | T31: =MIN($O31,V30+$H31-MIN('RWH summary'!$D$14,$V$3)) -> 0 | U31: 0 | V31: 75000 | W31: 0 | X31: =MIN($O31,Z30+$H31-MIN('RWH summary'!$D$14,$Z$3)) -> 0 | Y31: 0 | Z31: 100000 | AA31: 0 | AB31: 1
A32: 1986-01-29 | B32: 1986 | C32: 29 | D32: =VLOOKUP($A32,'AgClim-Rain'!$D$4:$CH$10960,Hydrology!$D$1,FALSE) -> 19.99999987 | E32: 19.99999987 | F32: =MAX((E32-'Farm data entry'!$D$32)*'Farm data entry'!$D$31,0)*10*'Farm data entry'!$D$10*'Farm data entry'!$D$23 -> 8099.999942 | G32: =AND(C32>='Farm data entry'!$E$15,Hydrology!C32<='Farm data entry'!$E$16) -> FALSE | H32: 0 | I32: =VLOOKUP($A32,'AgClim-ETo'!$A$4:$CE$10960,Hydrology!$D$1,FALSE) -> 0.10512285 | J32: =(I32*'Farm data entry'!$D$33) -> 0.073585995 | K32: =kc(C32,Kc!$F$16:$I$16,Kc!$N$16:$Q$16) -> 0 | L32: 0 | M32: =L32*10*'Farm data entry'!$E$22 -> 0 | N32: =(M32*'Farm data entry'!$D$14) -> 0 | O32: 0 | P32: =MIN($O32,R31+$H32-MIN('RWH summary'!$D$14,$R$3)) -> 0 | Q32: 0 | R32: 50000 | S32: 0 | T32: =MIN($O32,V31+$H32-MIN('RWH summary'!$D$14,$V$3)) -> 0 | U32: 0 | V32: 75000 | W32: 0 | X32: =MIN($O32,Z31+$H32-MIN('RWH summary'!$D$14,$Z$3)) -> 0 | Y32: 0 | Z32: 100000 | AA32: 0 | AB32: 1
A33: 1986-01-30 | B33: 1986 | C33: 30 | D33: =VLOOKUP($A33,'AgClim-Rain'!$D$4:$CH$10960,Hydrology!$D$1,FALSE) -> 3.099999859 | E33: 3.099999859 | F33: =MAX((E33-'Farm data entry'!$D$32)*'Farm data entry'!$D$31,0)*10*'Farm data entry'!$D$10*'Farm data entry'!$D$23 -> 494.9999366 | G33: =AND(C33>='Farm data entry'!$E$15,Hydrology!C33<='Farm data entry'!$E$16) -> FALSE | H33: 0 | I33: =VLOOKUP($A33,'AgClim-ETo'!$A$4:$CE$10960,Hydrology!$D$1,FALSE) -> 0.21215434 | J33: =(I33*'Farm data entry'!$D$33) -> 0.148508038 | K33: =kc(C33,Kc!$F$16:$I$16,Kc!$N$16:$Q$16) -> 0 | L33: 0 | M33: =L33*10*'Farm data entry'!$E$22 -> 0 | N33: =(M33*'Farm data entry'!$D$14) -> 0 | O33: 0 | P33: =MIN($O33,R32+$H33-MIN('RWH summary'!$D$14,$R$3)) -> 0 | Q33: 0 | R33: 50000 | S33: 0 | T33: =MIN($O33,V32+$H33-MIN('RWH summary'!$D$14,$V$3)) -> 0 | U33: 0 | V33: 75000 | W33: 0 | X33: =MIN($O33,Z32+$H33-MIN('RWH summary'!$D$14,$Z$3)) -> 0 | Y33: 0 | Z33: 100000 | AA33: 0 | AB33: 1
A34: 1986-01-31 | B34: 1986 | C34: 31 | D34: =VLOOKUP($A34,'AgClim-Rain'!$D$4:$CH$10960,Hydrology!$D$1,FALSE) -> 1.20000001 | E34: 1.20000001 | F34: =MAX((E34-'Farm data entry'!$D$32)*'Farm data entry'!$D$31,0)*10*'Farm data entry'!$D$10*'Farm data entry'!$D$23 -> 0 | G34: =AND(C34>='Farm data entry'!$E$15,Hydrology!C34<='Farm data entry'!$E$16) -> FALSE | H34: 0 | I34: =VLOOKUP($A34,'AgClim-ETo'!$A$4:$CE$10960,Hydrology!$D$1,FALSE) -> 0.5300304 | J34: =(I34*'Farm data entry'!$D$33) -> 0.37102128 | K34: =kc(C34,Kc!$F$16:$I$16,Kc!$N$16:$Q$16) -> 0 | L34: 0 | M34: =L34*10*'Farm data entry'!$E$22 -> 0 | N34: =(M34*'Farm data entry'!$D$14) -> 0 | O34: 0 | P34: =MIN($O34,R33+$H34-MIN('RWH summary'!$D$14,$R$3)) -> 0 | Q34: 0 | R34: 50000 | S34: 0 | T34: =MIN($O34,V33+$H34-MIN('RWH summary'!$D$14,$V$3)) -> 0 | U34: 0 | V34: 75000 | W34: 0 | X34: =MIN($O34,Z33+$H34-MIN('RWH summary'!$D$14,$Z$3)) -> 0 | Y34: 0 | Z34: 100000 | AA34: 0 | AB34: 1
A35: 1986-02-01 | B35: 1986 | C35: 32 | D35: =VLOOKUP($A35,'AgClim-Rain'!$D$4:$CH$10960,Hydrology!$D$1,FALSE) -> 1.300000018 | E35: 1.300000018 | F35: =MAX((E35-'Farm data entry'!$D$32)*'Farm data entry'!$D$31,0)*10*'Farm data entry'!$D$10*'Farm data entry'!$D$23 -> 0 | G35: =AND(C35>='Farm data entry'!$E$15,Hydrology!C35<='Farm data entry'!$E$16) -> TRUE | H35: 0 | I35: =VLOOKUP($A35,'AgClim-ETo'!$A$4:$CE$10960,Hydrology!$D$1,FALSE) -> 0.4617267 | J35: =(I35*'Farm data entry'!$D$33) -> 0.32320869 | K35: =kc(C35,Kc!$F$16:$I$16,Kc!$N$16:$Q$16) -> 0 | L35: 0 | M35: =L35*10*'Farm data entry'!$E$22 -> 0 | N35: =(M35*'Farm data entry'!$D$14) -> 0 | O35: 0 | P35: =MIN($O35,R34+$H35-MIN('RWH summary'!$D$14,$R$3)) -> 0 | Q35: 0 | R35: 50000 | S35: 0 | T35: =MIN($O35,V34+$H35-MIN('RWH summary'!$D$14,$V$3)) -> 0 | U35: 0 | V35: 75000 | W35: 0 | X35: =MIN($O35,Z34+$H35-MIN('RWH summary'!$D$14,$Z$3)) -> 0 | Y35: 0 | Z35: 100000 | AA35: 0 | AB35: 2
A36: 1986-02-02 | B36: 1986 | C36: 33 | D36: =VLOOKUP($A36,'AgClim-Rain'!$D$4:$CH$10960,Hydrology!$D$1,FALSE) -> 4.800000038 | E36: 4.800000038 | F36: =MAX((E36-'Farm data entry'!$D$32)*'Farm data entry'!$D$31,0)*10*'Farm data entry'!$D$10*'Farm data entry'!$D$23 -> 1260.000017 | G36: =AND(C36>='Farm data entry'!$E$15,Hydrology!C36<='Farm data entry'!$E$16) -> TRUE | H36: 1260.000017 | I36: =VLOOKUP($A36,'AgClim-ETo'!$A$4:$CE$10960,Hydrology!$D$1,FALSE) -> 0.33509868 | J36: =(I36*'Farm data entry'!$D$33) -> 0.234569076 | K36: =kc(C36,Kc!$F$16:$I$16,Kc!$N$16:$Q$16) -> 0 | L36: 0 | M36: =L36*10*'Farm data entry'!$E$22 -> 0 | N36: =(M36*'Farm data entry'!$D$14) -> 0 | O36: 0 | P36: =MIN($O36,R35+$H36-MIN('RWH summary'!$D$14,$R$3)) -> 0 | Q36: 1260.000017 | R36: 50000 | S36: 0 | T36: =MIN($O36,V35+$H36-MIN('RWH summary'!$D$14,$V$3)) -> 0 | U36: 1260.000017 | V36: 75000 | W36: 0 | X36: =MIN($O36,Z35+$H36-MIN('RWH summary'!$D$14,$Z$3)) -> 0 | Y36: 1260.000017 | Z36: 100000 | AA36: 0 | AB36: 2
A37: 1986-02-03 | B37: 1986 | C37: 34 | D37: =VLOOKUP($A37,'AgClim-Rain'!$D$4:$CH$10960,Hydrology!$D$1,FALSE) -> 0.1999999987 | E37: 0.1999999987 | F37: =MAX((E37-'Farm data entry'!$D$32)*'Farm data entry'!$D$31,0)*10*'Farm data entry'!$D$10*'Farm data entry'!$D$23 -> 0 | G37: =AND(C37>='Farm data entry'!$E$15,Hydrology!C37<='Farm data entry'!$E$16) -> TRUE | H37: 0 | I37: =VLOOKUP($A37,'AgClim-ETo'!$A$4:$CE$10960,Hydrology!$D$1,FALSE) -> 0.19115786 | J37: =(I37*'Farm data entry'!$D$33) -> 0.133810502 | K37: =kc(C37,Kc!$F$16:$I$16,Kc!$N$16:$Q$16) -> 0 | L37: 0 | M37: =L37*10*'Farm data entry'!$E$22 -> 0 | N37: =(M37*'Farm data entry'!$D$14) -> 0 | O37: 0 | P37: =MIN($O37,R36+$H37-MIN('RWH summary'!$D$14,$R$3)) -> 0 | Q37: 0 | R37: 50000 | S37: 0 | T37: =MIN($O37,V36+$H37-MIN('RWH summary'!$D$14,$V$3)) -> 0 | U37: 0 | V37: 75000 | W37: 0 | X37: =MIN($O37,Z36+$H37-MIN('RWH summary'!$D$14,$Z$3)) -> 0 | Y37: 0 | Z37: 100000 | AA37: 0 | AB37: 2
A38: 1986-02-04 | B38: 1986 | C38: 35 | D38: =VLOOKUP($A38,'AgClim-Rain'!$D$4:$CH$10960,Hydrology!$D$1,FALSE) -> 0 | E38: 0 | F38: =MAX((E38-'Farm data entry'!$D$32)*'Farm data entry'!$D$31,0)*10*'Farm data entry'!$D$10*'Farm data entry'!$D$23 -> 0 | G38: =AND(C38>='Farm data entry'!$E$15,Hydrology!C38<='Farm data entry'!$E$16) -> TRUE | H38: 0 | I38: =VLOOKUP($A38,'AgClim-ETo'!$A$4:$CE$10960,Hydrology!$D$1,FALSE) -> 0.098920554 | J38: =(I38*'Farm data entry'!$D$33) -> 0.0692443878 | K38: =kc(C38,Kc!$F$16:$I$16,Kc!$N$16:$Q$16) -> 0 | L38: 0 | M38: =L38*10*'Farm data entry'!$E$22 -> 0 | N38: =(M38*'Farm data entry'!$D$14) -> 0 | O38: 0 | P38: =MIN($O38,R37+$H38-MIN('RWH summary'!$D$14,$R$3)) -> 0 | Q38: 0 | R38: 50000 | S38: 0 | T38: =MIN($O38,V37+$H38-MIN('RWH summary'!$D$14,$V$3)) -> 0 | U38: 0 | V38: 75000 | W38: 0 | X38: =MIN($O38,Z37+$H38-MIN('RWH summary'!$D$14,$Z$3)) -> 0 | Y38: 0 | Z38: 100000 | AA38: 0 | AB38: 2
A39: 1986-02-05 | B39: 1986 | C39: 36 | D39: =VLOOKUP($A39,'AgClim-Rain'!$D$4:$CH$10960,Hydrology!$D$1,FALSE) -> 0.09999999936 | E39: 0.09999999936 | F39: =MAX((E39-'Farm data entry'!$D$32)*'Farm data entry'!$D$31,0)*10*'Farm data entry'!$D$10*'Farm data entry'!$D$23 -> 0 | G39: =AND(C39>='Farm data entry'!$E$15,Hydrology!C39<='Farm data entry'!$E$16) -> TRUE | H39: 0 | I39: =VLOOKUP($A39,'AgClim-ETo'!$A$4:$CE$10960,Hydrology!$D$1,FALSE) -> 0.34906188 | J39: =(I39*'Farm data entry'!$D$33) -> 0.244343316 | K39: =kc(C39,Kc!$F$16:$I$16,Kc!$N$16:$Q$16) -> 0 | L39: 0 | M39: =L39*10*'Farm data entry'!$E$22 -> 0 | N39: =(M39*'Farm data entry'!$D$14) -> 0 | O39: 0 | P39: =MIN($O39,R38+$H39-MIN('RWH summary'!$D$14,$R$3)) -> 0 | Q39: 0 | R39: 50000 | S39: 0 | T39: =MIN($O39,V38+$H39-MIN('RWH summary'!$D$14,$V$3)) -> 0 | U39: 0 | V39: 75000 | W39: 0 | X39: =MIN($O39,Z38+$H39-MIN('RWH summary'!$D$14,$Z$3)) -> 0 | Y39: 0 | Z39: 100000 | AA39: 0 | AB39: 2
A40: 1986-02-06 | B40: 1986 | C40: 37 | D40: =VLOOKUP($A40,'AgClim-Rain'!$D$4:$CH$10960,Hydrology!$D$1,FALSE) -> 0.1999999987 | E40: 0.1999999987 | F40: =MAX((E40-'Farm data entry'!$D$32)*'Farm data entry'!$D$31,0)*10*'Farm data entry'!$D$10*'Farm data entry'!$D$23 -> 0 | G40: =AND(C40>='Farm data entry'!$E$15,Hydrology!C40<='Farm data entry'!$E$16) -> TRUE | H40: 0 | I40: =VLOOKUP($A40,'AgClim-ETo'!$A$4:$CE$10960,Hydrology!$D$1,FALSE) -> 0.2692828 | J40: =(I40*'Farm data entry'!$D$33) -> 0.18849796 | K40: =kc(C40,Kc!$F$16:$I$16,Kc!$N$16:$Q$16) -> 0 | L40: 0 | M40: =L40*10*'Farm data entry'!$E$22 -> 0 | N40: =(M40*'Farm data entry'!$D$14) -> 0 | O40: 0 | P40: =MIN($O40,R39+$H40-MIN('RWH summary'!$D$14,$R$3)) -> 0 | Q40: 0 | R40: 50000 | S40: 0 | T40: =MIN($O40,V39+$H40-MIN('RWH summary'!$D$14,$V$3)) -> 0 | U40: 0 | V40: 75000 | W40: 0 | X40: =MIN($O40,Z39+$H40-MIN('RWH summary'!$D$14,$Z$3)) -> 0 | Y40: 0 | Z40: 100000 | AA40: 0 | AB40: 2
A41: 1986-02-07 | B41: 1986 | C41: 38 | D41: =VLOOKUP($A41,'AgClim-Rain'!$D$4:$CH$10960,Hydrology!$D$1,FALSE) -> 0.3000000067 | E41: 0.3000000067 | F41: =MAX((E41-'Farm data entry'!$D$32)*'Farm data entry'!$D$31,0)*10*'Farm data entry'!$D$10*'Farm data entry'!$D$23 -> 0 | G41: =AND(C41>='Farm data entry'!$E$15,Hydrology!C41<='Farm data entry'!$E$16) -> TRUE | H41: 0 | I41: =VLOOKUP($A41,'AgClim-ETo'!$A$4:$CE$10960,Hydrology!$D$1,FALSE) -> 0.34173334 | J41: =(I41*'Farm data entry'!$D$33) -> 0.239213338 | K41: =kc(C41,Kc!$F$16:$I$16,Kc!$N$16:$Q$16) -> 0 | L41: 0 | M41: =L41*10*'Farm data entry'!$E$22 -> 0 | N41: =(M41*'Farm data entry'!$D$14) -> 0 | O41: 0 | P41: =MIN($O41,R40+$H41-MIN('RWH summary'!$D$14,$R$3)) -> 0 | Q41: 0 | R41: 50000 | S41: 0 | T41: =MIN($O41,V40+$H41-MIN('RWH summary'!$D$14,$V$3)) -> 0 | U41: 0 | V41: 75000 | W41: 0 | X41: =MIN($O41,Z40+$H41-MIN('RWH summary'!$D$14,$Z$3)) -> 0 | Y41: 0 | Z41: 100000 | AA41: 0 | AB41: 2
A42: 1986-02-08 | B42: 1986 | C42: 39 | D42: =VLOOKUP($A42,'AgClim-Rain'!$D$4:$CH$10960,Hydrology!$D$1,FALSE) -> 0 | E42: 0 | F42: =MAX((E42-'Farm data entry'!$D$32)*'Farm data entry'!$D$31,0)*10*'Farm data entry'!$D$10*'Farm data entry'!$D$23 -> 0 | G42: =AND(C42>='Farm data entry'!$E$15,Hydrology!C42<='Farm data entry'!$E$16) -> TRUE | H42: 0 | I42: =VLOOKUP($A42,'AgClim-ETo'!$A$4:$CE$10960,Hydrology!$D$1,FALSE) -> 0.33755124 | J42: =(I42*'Farm data entry'!$D$33) -> 0.236285868 | K42: =kc(C42,Kc!$F$16:$I$16,Kc!$N$16:$Q$16) -> 0 | L42: 0 | M42: =L42*10*'Farm data entry'!$E$22 -> 0 | N42: =(M42*'Farm data entry'!$D$14) -> 0 | O42: 0 | P42: =MIN($O42,R41+$H42-MIN('RWH summary'!$D$14,$R$3)) -> 0 | Q42: 0 | R42: 50000 | S42: 0 | T42: =MIN($O42,V41+$H42-MIN('RWH summary'!$D$14,$V$3)) -> 0 | U42: 0 | V42: 75000 | W42: 0 | X42: =MIN($O42,Z41+$H42-MIN('RWH summary'!$D$14,$Z$3)) -> 0 | Y42: 0 | Z42: 100000 | AA42: 0 | AB42: 2
A43: 1986-02-09 | B43: 1986 | C43: 40 | D43: =VLOOKUP($A43,'AgClim-Rain'!$D$4:$CH$10960,Hydrology!$D$1,FALSE) -> 0 | E43: 0 | F43: =MAX((E43-'Farm data entry'!$D$32)*'Farm data entry'!$D$31,0)*10*'Farm data entry'!$D$10*'Farm data entry'!$D$23 -> 0 | G43: =AND(C43>='Farm data entry'!$E$15,Hydrology!C43<='Farm data entry'!$E$16) -> TRUE | H43: 0 | I43: =VLOOKUP($A43,'AgClim-ETo'!$A$4:$CE$10960,Hydrology!$D$1,FALSE) -> 0.1475408 | J43: =(I43*'Farm data entry'!$D$33) -> 0.10327856 | K43: =kc(C43,Kc!$F$16:$I$16,Kc!$N$16:$Q$16) -> 0 | L43: 0 | M43: =L43*10*'Farm data entry'!$E$22 -> 0 | N43: =(M43*'Farm data entry'!$D$14) -> 0 | O43: 0 | P43: =MIN($O43,R42+$H43-MIN('RWH summary'!$D$14,$R$3)) -> 0 | Q43: 0 | R43: 50000 | S43: 0 | T43: =MIN($O43,V42+$H43-MIN('RWH summary'!$D$14,$V$3)) -> 0 | U43: 0 | V43: 75000 | W43: 0 | X43: =MIN($O43,Z42+$H43-MIN('RWH summary'!$D$14,$Z$3)) -> 0 | Y43: 0 | Z43: 100000 | AA43: 0 | AB43: 2
A44: 1986-02-10 | B44: 1986 | C44: 41 | D44: =VLOOKUP($A44,'AgClim-Rain'!$D$4:$CH$10960,Hydrology!$D$1,FALSE) -> 0 | E44: 0 | F44: =MAX((E44-'Farm data entry'!$D$32)*'Farm data entry'!$D$31,0)*10*'Farm data entry'!$D$10*'Farm data entry'!$D$23 -> 0 | G44: =AND(C44>='Farm data entry'!$E$15,Hydrology!C44<='Farm data entry'!$E$16) -> TRUE | H44: 0 | I44: =VLOOKUP($A44,'AgClim-ETo'!$A$4:$CE$10960,Hydrology!$D$1,FALSE) -> 0.35766852 | J44: =(I44*'Farm data entry'!$D$33) -> 0.250367964 | K44: =kc(C44,Kc!$F$16:$I$16,Kc!$N$16:$Q$16) -> 0 | L44: 0 | M44: =L44*10*'Farm data entry'!$E$22 -> 0 | N44: =(M44*'Farm data entry'!$D$14) -> 0 | O44: 0 | P44: =MIN($O44,R43+$H44-MIN('RWH summary'!$D$14,$R$3)) -> 0 | Q44: 0 | R44: 50000 | S44: 0 | T44: =MIN($O44,V43+$H44-MIN('RWH summary'!$D$14,$V$3)) -> 0 | U44: 0 | V44: 75000 | W44: 0 | X44: =MIN($O44,Z43+$H44-MIN('RWH summary'!$D$14,$Z$3)) -> 0 | Y44: 0 | Z44: 100000 | AA44: 0 | AB44: 2
A45: 1986-02-11 | B45: 1986 | C45: 42 | D45: =VLOOKUP($A45,'AgClim-Rain'!$D$4:$CH$10960,Hydrology!$D$1,FALSE) -> 0.09999999936 | E45: 0.09999999936 | F45: =MAX((E45-'Farm data entry'!$D$32)*'Farm data entry'!$D$31,0)*10*'Farm data entry'!$D$10*'Farm data entry'!$D$23 -> 0 | G45: =AND(C45>='Farm data entry'!$E$15,Hydrology!C45<='Farm data entry'!$E$16) -> TRUE | H45: 0 | I45: =VLOOKUP($A45,'AgClim-ETo'!$A$4:$CE$10960,Hydrology!$D$1,FALSE) -> 0.25584552 | J45: =(I45*'Farm data entry'!$D$33) -> 0.179091864 | K45: =kc(C45,Kc!$F$16:$I$16,Kc!$N$16:$Q$16) -> 0 | L45: 0 | M45: =L45*10*'Farm data entry'!$E$22 -> 0 | N45: =(M45*'Farm data entry'!$D$14) -> 0 | O45: 0 | P45: =MIN($O45,R44+$H45-MIN('RWH summary'!$D$14,$R$3)) -> 0 | Q45: 0 | R45: 50000 | S45: 0 | T45: =MIN($O45,V44+$H45-MIN('RWH summary'!$D$14,$V$3)) -> 0 | U45: 0 | V45: 75000 | W45: 0 | X45: =MIN($O45,Z44+$H45-MIN('RWH summary'!$D$14,$Z$3)) -> 0 | Y45: 0 | Z45: 100000 | AA45: 0 | AB45: 2
A46: 1986-02-12 | B46: 1986 | C46: 43 | D46: =VLOOKUP($A46,'AgClim-Rain'!$D$4:$CH$10960,Hydrology!$D$1,FALSE) -> 0 | E46: 0 | F46: =MAX((E46-'Farm data entry'!$D$32)*'Farm data entry'!$D$31,0)*10*'Farm data entry'!$D$10*'Farm data entry'!$D$23 -> 0 | G46: =AND(C46>='Farm data entry'!$E$15,Hydrology!C46<='Farm data entry'!$E$16) -> TRUE | H46: 0 | I46: =VLOOKUP($A46,'AgClim-ETo'!$A$4:$CE$10960,Hydrology!$D$1,FALSE) -> 0.36926767 | J46: =(I46*'Farm data entry'!$D$33) -> 0.258487369 | K46: =kc(C46,Kc!$F$16:$I$16,Kc!$N$16:$Q$16) -> 0 | L46: 0 | M46: =L46*10*'Farm data entry'!$E$22 -> 0 | N46: =(M46*'Farm data entry'!$D$14) -> 0 | O46: 0 | P46: =MIN($O46,R45+$H46-MIN('RWH summary'!$D$14,$R$3)) -> 0 | Q46: 0 | R46: 50000 | S46: 0 | T46: =MIN($O46,V45+$H46-MIN('RWH summary'!$D$14,$V$3)) -> 0 | U46: 0 | V46: 75000 | W46: 0 | X46: =MIN($O46,Z45+$H46-MIN('RWH summary'!$D$14,$Z$3)) -> 0 | Y46: 0 | Z46: 100000 | AA46: 0 | AB46: 2
A47: 1986-02-13 | B47: 1986 | C47: 44 | D47: =VLOOKUP($A47,'AgClim-Rain'!$D$4:$CH$10960,Hydrology!$D$1,FALSE) -> 0 | E47: 0 | F47: =MAX((E47-'Farm data entry'!$D$32)*'Farm data entry'!$D$31,0)*10*'Farm data entry'!$D$10*'Farm data entry'!$D$23 -> 0 | G47: =AND(C47>='Farm data entry'!$E$15,Hydrology!C47<='Farm data entry'!$E$16) -> TRUE | H47: 0 | I47: =VLOOKUP($A47,'AgClim-ETo'!$A$4:$CE$10960,Hydrology!$D$1,FALSE) -> 0.9817526 | J47: =(I47*'Farm data entry'!$D$33) -> 0.68722682 | K47: =kc(C47,Kc!$F$16:$I$16,Kc!$N$16:$Q$16) -> 0 | L47: 0 | M47: =L47*10*'Farm data entry'!$E$22 -> 0 | N47: =(M47*'Farm data entry'!$D$14) -> 0 | O47: 0 | P47: =MIN($O47,R46+$H47-MIN('RWH summary'!$D$14,$R$3)) -> 0 | Q47: 0 | R47: 50000 | S47: 0 | T47: =MIN($O47,V46+$H47-MIN('RWH summary'!$D$14,$V$3)) -> 0 | U47: 0 | V47: 75000 | W47: 0 | X47: =MIN($O47,Z46+$H47-MIN('RWH summary'!$D$14,$Z$3)) -> 0 | Y47: 0 | Z47: 100000 | AA47: 0 | AB47: 2
A48: 1986-02-14 | B48: 1986 | C48: 45 | D48: =VLOOKUP($A48,'AgClim-Rain'!$D$4:$CH$10960,Hydrology!$D$1,FALSE) -> 0 | E48: 0 | F48: =MAX((E48-'Farm data entry'!$D$32)*'Farm data entry'!$D$31,0)*10*'Farm data entry'!$D$10*'Farm data entry'!$D$23 -> 0 | G48: =AND(C48>='Farm data entry'!$E$15,Hydrology!C48<='Farm data entry'!$E$16) -> TRUE | H48: 0 | I48: =VLOOKUP($A48,'AgClim-ETo'!$A$4:$CE$10960,Hydrology!$D$1,FALSE) -> 0.4745829 | J48: =(I48*'Farm data entry'!$D$33) -> 0.33220803 | K48: =kc(C48,Kc!$F$16:$I$16,Kc!$N$16:$Q$16) -> 0 | L48: 0 | M48: =L48*10*'Farm data entry'!$E$22 -> 0 | N48: =(M48*'Farm data entry'!$D$14) -> 0 | O48: 0 | P48: =MIN($O48,R47+$H48-MIN('RWH summary'!$D$14,$R$3)) -> 0 | Q48: 0 | R48: 50000 | S48: 0 | T48: =MIN($O48,V47+$H48-MIN('RWH summary'!$D$14,$V$3)) -> 0 | U48: 0 | V48: 75000 | W48: 0 | X48: =MIN($O48,Z47+$H48-MIN('RWH summary'!$D$14,$Z$3)) -> 0 | Y48: 0 | Z48: 100000 | AA48: 0 | AB48: 2
A49: 1986-02-15 | B49: 1986 | C49: 46 | D49: =VLOOKUP($A49,'AgClim-Rain'!$D$4:$CH$10960,Hydrology!$D$1,FALSE) -> 0 | E49: 0 | F49: =MAX((E49-'Farm data entry'!$D$32)*'Farm data entry'!$D$31,0)*10*'Farm data entry'!$D$10*'Farm data entry'!$D$23 -> 0 | G49: =AND(C49>='Farm data entry'!$E$15,Hydrology!C49<='Farm data entry'!$E$16) -> TRUE | H49: 0 | I49: =VLOOKUP($A49,'AgClim-ETo'!$A$4:$CE$10960,Hydrology!$D$1,FALSE) -> 0.4656551 | J49: =(I49*'Farm data entry'!$D$33) -> 0.32595857 | K49: =kc(C49,Kc!$F$16:$I$16,Kc!$N$16:$Q$16) -> 0 | L49: 0 | M49: =L49*10*'Farm data entry'!$E$22 -> 0 | N49: =(M49*'Farm data entry'!$D$14) -> 0 | O49: 0 | P49: =MIN($O49,R48+$H49-MIN('RWH summary'!$D$14,$R$3)) -> 0 | Q49: 0 | R49: 50000 | S49: 0 | T49: =MIN($O49,V48+$H49-MIN('RWH summary'!$D$14,$V$3)) -> 0 | U49: 0 | V49: 75000 | W49: 0 | X49: =MIN($O49,Z48+$H49-MIN('RWH summary'!$D$14,$Z$3)) -> 0 | Y49: 0 | Z49: 100000 | AA49: 0 | AB49: 2
A50: 1986-02-16 | B50: 1986 | C50: 47 | D50: =VLOOKUP($A50,'AgClim-Rain'!$D$4:$CH$10960,Hydrology!$D$1,FALSE) -> 0 | E50: 0 | F50: =MAX((E50-'Farm data entry'!$D$32)*'Farm data entry'!$D$31,0)*10*'Farm data entry'!$D$10*'Farm data entry'!$D$23 -> 0 | G50: =AND(C50>='Farm data entry'!$E$15,Hydrology!C50<='Farm data entry'!$E$16) -> TRUE | H50: 0 | I50: =VLOOKUP($A50,'AgClim-ETo'!$A$4:$CE$10960,Hydrology!$D$1,FALSE) -> 0.52254057 | J50: =(I50*'Farm data entry'!$D$33) -> 0.365778399 | K50: =kc(C50,Kc!$F$16:$I$16,Kc!$N$16:$Q$16) -> 0 | L50: 0 | M50: =L50*10*'Farm data entry'!$E$22 -> 0 | N50: =(M50*'Farm data entry'!$D$14) -> 0 | O50: 0 | P50: =MIN($O50,R49+$H50-MIN('RWH summary'!$D$14,$R$3)) -> 0 | Q50: 0 | R50: 50000 | S50: 0 | T50: =MIN($O50,V49+$H50-MIN('RWH summary'!$D$14,$V$3)) -> 0 | U50: 0 | V50: 75000 | W50: 0 | X50: =MIN($O50,Z49+$H50-MIN('RWH summary'!$D$14,$Z$3)) -> 0 | Y50: 0 | Z50: 100000 | AA50: 0 | AB50: 2
A51: 1986-02-17 | B51: 1986 | C51: 48 | D51: =VLOOKUP($A51,'AgClim-Rain'!$D$4:$CH$10960,Hydrology!$D$1,FALSE) -> 0 | E51: 0 | F51: =MAX((E51-'Farm data entry'!$D$32)*'Farm data entry'!$D$31,0)*10*'Farm data entry'!$D$10*'Farm data entry'!$D$23 -> 0 | G51: =AND(C51>='Farm data entry'!$E$15,Hydrology!C51<='Farm data entry'!$E$16) -> TRUE | H51: 0 | I51: =VLOOKUP($A51,'AgClim-ETo'!$A$4:$CE$10960,Hydrology!$D$1,FALSE) -> 0.65163547 | J51: =(I51*'Farm data entry'!$D$33) -> 0.456144829 | K51: =kc(C51,Kc!$F$16:$I$16,Kc!$N$16:$Q$16) -> 0 | L51: 0 | M51: =L51*10*'Farm data entry'!$E$22 -> 0 | N51: =(M51*'Farm data entry'!$D$14) -> 0 | O51: 0 | P51: =MIN($O51,R50+$H51-MIN('RWH summary'!$D$14,$R$3)) -> 0 | Q51: 0 | R51: 50000 | S51: 0 | T51: =MIN($O51,V50+$H51-MIN('RWH summary'!$D$14,$V$3)) -> 0 | U51: 0 | V51: 75000 | W51: 0 | X51: =MIN($O51,Z50+$H51-MIN('RWH summary'!$D$14,$Z$3)) -> 0 | Y51: 0 | Z51: 100000 | AA51: 0 | AB51: 2
A52: 1986-02-18 | B52: 1986 | C52: 49 | D52: =VLOOKUP($A52,'AgClim-Rain'!$D$4:$CH$10960,Hydrology!$D$1,FALSE) -> 0 | E52: 0 | F52: =MAX((E52-'Farm data entry'!$D$32)*'Farm data entry'!$D$31,0)*10*'Farm data entry'!$D$10*'Farm data entry'!$D$23 -> 0 | G52: =AND(C52>='Farm data entry'!$E$15,Hydrology!C52<='Farm data entry'!$E$16) -> TRUE | H52: 0 | I52: =VLOOKUP($A52,'AgClim-ETo'!$A$4:$CE$10960,Hydrology!$D$1,FALSE) -> 0.6098048 | J52: =(I52*'Farm data entry'!$D$33) -> 0.42686336 | K52: =kc(C52,Kc!$F$16:$I$16,Kc!$N$16:$Q$16) -> 0 | L52: 0 | M52: =L52*10*'Farm data entry'!$E$22 -> 0 | N52: =(M52*'Farm data entry'!$D$14) -> 0 | O52: 0 | P52: =MIN($O52,R51+$H52-MIN('RWH summary'!$D$14,$R$3)) -> 0 | Q52: 0 | R52: 50000 | S52: 0 | T52: =MIN($O52,V51+$H52-MIN('RWH summary'!$D$14,$V$3)) -> 0 | U52: 0 | V52: 75000 | W52: 0 | X52: =MIN($O52,Z51+$H52-MIN('RWH summary'!$D$14,$Z$3)) -> 0 | Y52: 0 | Z52: 100000 | AA52: 0 | AB52: 2
A53: 1986-02-19 | B53: 1986 | C53: 50 | D53: =VLOOKUP($A53,'AgClim-Rain'!$D$4:$CH$10960,Hydrology!$D$1,FALSE) -> 0 | E53: 0 | F53: =MAX((E53-'Farm data entry'!$D$32)*'Farm data entry'!$D$31,0)*10*'Farm data entry'!$D$10*'Farm data entry'!$D$23 -> 0 | G53: =AND(C53>='Farm data entry'!$E$15,Hydrology!C53<='Farm data entry'!$E$16) -> TRUE | H53: 0 | I53: =VLOOKUP($A53,'AgClim-ETo'!$A$4:$CE$10960,Hydrology!$D$1,FALSE) -> 0.4677181 | J53: =(I53*'Farm data entry'!$D$33) -> 0.32740267 | K53: =kc(C53,Kc!$F$16:$I$16,Kc!$N$16:$Q$16) -> 0 | L53: 0 | M53: =L53*10*'Farm data entry'!$E$22 -> 0 | N53: =(M53*'Farm data entry'!$D$14) -> 0 | O53: 0 | P53: =MIN($O53,R52+$H53-MIN('RWH summary'!$D$14,$R$3)) -> 0 | Q53: 0 | R53: 50000 | S53: 0 | T53: =MIN($O53,V52+$H53-MIN('RWH summary'!$D$14,$V$3)) -> 0 | U53: 0 | V53: 75000 | W53: 0 | X53: =MIN($O53,Z52+$H53-MIN('RWH summary'!$D$14,$Z$3)) -> 0 | Y53: 0 | Z53: 100000 | AA53: 0 | AB53: 2
A54: 1986-02-20 | B54: 1986 | C54: 51 | D54: =VLOOKUP($A54,'AgClim-Rain'!$D$4:$CH$10960,Hydrology!$D$1,FALSE) -> 0 | E54: 0 | F54: =MAX((E54-'Farm data entry'!$D$32)*'Farm data entry'!$D$31,0)*10*'Farm data entry'!$D$10*'Farm data entry'!$D$23 -> 0 | G54: =AND(C54>='Farm data entry'!$E$15,Hydrology!C54<='Farm data entry'!$E$16) -> TRUE | H54: 0 | I54: =VLOOKUP($A54,'AgClim-ETo'!$A$4:$CE$10960,Hydrology!$D$1,FALSE) -> 0.34239078 | J54: =(I54*'Farm data entry'!$D$33) -> 0.239673546 | K54: =kc(C54,Kc!$F$16:$I$16,Kc!$N$16:$Q$16) -> 0 | L54: 0 | M54: =L54*10*'Farm data entry'!$E$22 -> 0 | N54: =(M54*'Farm data entry'!$D$14) -> 0 | O54: 0 | P54: =MIN($O54,R53+$H54-MIN('RWH summary'!$D$14,$R$3)) -> 0 | Q54: 0 | R54: 50000 | S54: 0 | T54: =MIN($O54,V53+$H54-MIN('RWH summary'!$D$14,$V$3)) -> 0 | U54: 0 | V54: 75000 | W54: 0 | X54: =MIN($O54,Z53+$H54-MIN('RWH summary'!$D$14,$Z$3)) -> 0 | Y54: 0 | Z54: 100000 | AA54: 0 | AB54: 2
A55: 1986-02-21 | B55: 1986 | C55: 52 | D55: =VLOOKUP($A55,'AgClim-Rain'!$D$4:$CH$10960,Hydrology!$D$1,FALSE) -> 0 | E55: 0 | F55: =MAX((E55-'Farm data entry'!$D$32)*'Farm data entry'!$D$31,0)*10*'Farm data entry'!$D$10*'Farm data entry'!$D$23 -> 0 | G55: =AND(C55>='Farm data entry'!$E$15,Hydrology!C55<='Farm data entry'!$E$16) -> TRUE | H55: 0 | I55: =VLOOKUP($A55,'AgClim-ETo'!$A$4:$CE$10960,Hydrology!$D$1,FALSE) -> 0.3722321 | J55: =(I55*'Farm data entry'!$D$33) -> 0.26056247 | K55: =kc(C55,Kc!$F$16:$I$16,Kc!$N$16:$Q$16) -> 0 | L55: 0 | M55: =L55*10*'Farm data entry'!$E$22 -> 0 | N55: =(M55*'Farm data entry'!$D$14) -> 0 | O55: 0 | P55: =MIN($O55,R54+$H55-MIN('RWH summary'!$D$14,$R$3)) -> 0 | Q55: 0 | R55: 50000 | S55: 0 | T55: =MIN($O55,V54+$H55-MIN('RWH summary'!$D$14,$V$3)) -> 0 | U55: 0 | V55: 75000 | W55: 0 | X55: =MIN($O55,Z54+$H55-MIN('RWH summary'!$D$14,$Z$3)) -> 0 | Y55: 0 | Z55: 100000 | AA55: 0 | AB55: 2
A56: 1986-02-22 | B56: 1986 | C56: 53 | D56: =VLOOKUP($A56,'AgClim-Rain'!$D$4:$CH$10960,Hydrology!$D$1,FALSE) -> 0 | E56: 0 | F56: =MAX((E56-'Farm data entry'!$D$32)*'Farm data entry'!$D$31,0)*10*'Farm data entry'!$D$10*'Farm data entry'!$D$23 -> 0 | G56: =AND(C56>='Farm data entry'!$E$15,Hydrology!C56<='Farm data entry'!$E$16) -> TRUE | H56: 0 | I56: =VLOOKUP($A56,'AgClim-ETo'!$A$4:$CE$10960,Hydrology!$D$1,FALSE) -> 0.38449705 | J56: =(I56*'Farm data entry'!$D$33) -> 0.269147935 | K56: =kc(C56,Kc!$F$16:$I$16,Kc!$N$16:$Q$16) -> 0 | L56: 0 | M56: =L56*10*'Farm data entry'!$E$22 -> 0 | N56: =(M56*'Farm data entry'!$D$14) -> 0 | O56: 0 | P56: =MIN($O56,R55+$H56-MIN('RWH summary'!$D$14,$R$3)) -> 0 | Q56: 0 | R56: 50000 | S56: 0 | T56: =MIN($O56,V55+$H56-MIN('RWH summary'!$D$14,$V$3)) -> 0 | U56: 0 | V56: 75000 | W56: 0 | X56: =MIN($O56,Z55+$H56-MIN('RWH summary'!$D$14,$Z$3)) -> 0 | Y56: 0 | Z56: 100000 | AA56: 0 | AB56: 2
A57: 1986-02-23 | B57: 1986 | C57: 54 | D57: =VLOOKUP($A57,'AgClim-Rain'!$D$4:$CH$10960,Hydrology!$D$1,FALSE) -> 0 | E57: 0 | F57: =MAX((E57-'Farm data entry'!$D$32)*'Farm data entry'!$D$31,0)*10*'Farm data entry'!$D$10*'Farm data entry'!$D$23 -> 0 | G57: =AND(C57>='Farm data entry'!$E$15,Hydrology!C57<='Farm data entry'!$E$16) -> TRUE | H57: 0 | I57: =VLOOKUP($A57,'AgClim-ETo'!$A$4:$CE$10960,Hydrology!$D$1,FALSE) -> 0.5380028 | J57: =(I57*'Farm data entry'!$D$33) -> 0.37660196 | K57: =kc(C57,Kc!$F$16:$I$16,Kc!$N$16:$Q$16) -> 0 | L57: 0 | M57: =L57*10*'Farm data entry'!$E$22 -> 0 | N57: =(M57*'Farm data entry'!$D$14) -> 0 | O57: 0 | P57: =MIN($O57,R56+$H57-MIN('RWH summary'!$D$14,$R$3)) -> 0 | Q57: 0 | R57: 50000 | S57: 0 | T57: =MIN($O57,V56+$H57-MIN('RWH summary'!$D$14,$V$3)) -> 0 | U57: 0 | V57: 75000 | W57: 0 | X57: =MIN($O57,Z56+$H57-MIN('RWH summary'!$D$14,$Z$3)) -> 0 | Y57: 0 | Z57: 100000 | AA57: 0 | AB57: 2
A58: 1986-02-24 | B58: 1986 | C58: 55 | D58: =VLOOKUP($A58,'AgClim-Rain'!$D$4:$CH$10960,Hydrology!$D$1,FALSE) -> 0 | E58: 0 | F58: =MAX((E58-'Farm data entry'!$D$32)*'Farm data entry'!$D$31,0)*10*'Farm data entry'!$D$10*'Farm data entry'!$D$23 -> 0 | G58: =AND(C58>='Farm data entry'!$E$15,Hydrology!C58<='Farm data entry'!$E$16) -> TRUE | H58: 0 | I58: =VLOOKUP($A58,'AgClim-ETo'!$A$4:$CE$10960,Hydrology!$D$1,FALSE) -> 0.6564236 | J58: =(I58*'Farm data entry'!$D$33) -> 0.45949652 | K58: =kc(C58,Kc!$F$16:$I$16,Kc!$N$16:$Q$16) -> 0 | L58: 0 | M58: =L58*10*'Farm data entry'!$E$22 -> 0 | N58: =(M58*'Farm data entry'!$D$14) -> 0 | O58: 0 | P58: =MIN($O58,R57+$H58-MIN('RWH summary'!$D$14,$R$3)) -> 0 | Q58: 0 | R58: 50000 | S58: 0 | T58: =MIN($O58,V57+$H58-MIN('RWH summary'!$D$14,$V$3)) -> 0 | U58: 0 | V58: 75000 | W58: 0 | X58: =MIN($O58,Z57+$H58-MIN('RWH summary'!$D$14,$Z$3)) -> 0 | Y58: 0 | Z58: 100000 | AA58: 0 | AB58: 2
A59: 1986-02-25 | B59: 1986 | C59: 56 | D59: =VLOOKUP($A59,'AgClim-Rain'!$D$4:$CH$10960,Hydrology!$D$1,FALSE) -> 0 | E59: 0 | F59: =MAX((E59-'Farm data entry'!$D$32)*'Farm data entry'!$D$31,0)*10*'Farm data entry'!$D$10*'Farm data entry'!$D$23 -> 0 | G59: =AND(C59>='Farm data entry'!$E$15,Hydrology!C59<='Farm data entry'!$E$16) -> TRUE | H59: 0 | I59: =VLOOKUP($A59,'AgClim-ETo'!$A$4:$CE$10960,Hydrology!$D$1,FALSE) -> 0.5732583 | J59: =(I59*'Farm data entry'!$D$33) -> 0.40128081 | K59: =kc(C59,Kc!$F$16:$I$16,Kc!$N$16:$Q$16) -> 0 | L59: 0 | M59: =L59*10*'Farm data entry'!$E$22 -> 0 | N59: =(M59*'Farm data entry'!$D$14) -> 0 | O59: 0 | P59: =MIN($O59,R58+$H59-MIN('RWH summary'!$D$14,$R$3)) -> 0 | Q59: 0 | R59: 50000 | S59: 0 | T59: =MIN($O59,V58+$H59-MIN('RWH summary'!$D$14,$V$3)) -> 0 | U59: 0 | V59: 75000 | W59: 0 | X59: =MIN($O59,Z58+$H59-MIN('RWH summary'!$D$14,$Z$3)) -> 0 | Y59: 0 | Z59: 100000 | AA59: 0 | AB59: 2
A60: 1986-02-26 | B60: 1986 | C60: 57 | D60: =VLOOKUP($A60,'AgClim-Rain'!$D$4:$CH$10960,Hydrology!$D$1,FALSE) -> 0 | E60: 0 | F60: =MAX((E60-'Farm data entry'!$D$32)*'Farm data entry'!$D$31,0)*10*'Farm data entry'!$D$10*'Farm data entry'!$D$23 -> 0 | G60: =AND(C60>='Farm data entry'!$E$15,Hydrology!C60<='Farm data entry'!$E$16) -> TRUE | H60: 0 | I60: =VLOOKUP($A60,'AgClim-ETo'!$A$4:$CE$10960,Hydrology!$D$1,FALSE) -> 1.0416985 | J60: =(I60*'Farm data entry'!$D$33) -> 0.72918895 | K60: =kc(C60,Kc!$F$16:$I$16,Kc!$N$16:$Q$16) -> 0 | L60: 0 | M60: =L60*10*'Farm data entry'!$E$22 -> 0 | N60: =(M60*'Farm data entry'!$D$14) -> 0 | O60: 0 | P60: =MIN($O60,R59+$H60-MIN('RWH summary'!$D$14,$R$3)) -> 0 | Q60: 0 | R60: 50000 | S60: 0 | T60: =MIN($O60,V59+$H60-MIN('RWH summary'!$D$14,$V$3)) -> 0 | U60: 0 | V60: 75000 | W60: 0 | X60: =MIN($O60,Z59+$H60-MIN('RWH summary'!$D$14,$Z$3)) -> 0 | Y60: 0 | Z60: 100000 | AA60: 0 | AB60: 2
A61: 1986-02-27 | B61: 1986 | C61: 58 | D61: =VLOOKUP($A61,'AgClim-Rain'!$D$4:$CH$10960,Hydrology!$D$1,FALSE) -> 0 | E61: 0 | F61: =MAX((E61-'Farm data entry'!$D$32)*'Farm data entry'!$D$31,0)*10*'Farm data entry'!$D$10*'Farm data entry'!$D$23 -> 0 | G61: =AND(C61>='Farm data entry'!$E$15,Hydrology!C61<='Farm data entry'!$E$16) -> TRUE | H61: 0 | I61: =VLOOKUP($A61,'AgClim-ETo'!$A$4:$CE$10960,Hydrology!$D$1,FALSE) -> 1.1046301 | J61: =(I61*'Farm data entry'!$D$33) -> 0.77324107 | K61: =kc(C61,Kc!$F$16:$I$16,Kc!$N$16:$Q$16) -> 0 | L61: 0 | M61: =L61*10*'Farm data entry'!$E$22 -> 0 | N61: =(M61*'Farm data entry'!$D$14) -> 0 | O61: 0 | P61: =MIN($O61,R60+$H61-MIN('RWH summary'!$D$14,$R$3)) -> 0 | Q61: 0 | R61: 50000 | S61: 0 | T61: =MIN($O61,V60+$H61-MIN('RWH summary'!$D$14,$V$3)) -> 0 | U61: 0 | V61: 75000 | W61: 0 | X61: =MIN($O61,Z60+$H61-MIN('RWH summary'!$D$14,$Z$3)) -> 0 | Y61: 0 | Z61: 100000 | AA61: 0 | AB61: 2
A62: 1986-02-28 | B62: 1986 | C62: 59 | D62: =VLOOKUP($A62,'AgClim-Rain'!$D$4:$CH$10960,Hydrology!$D$1,FALSE) -> 0 | E62: 0 | F62: =MAX((E62-'Farm data entry'!$D$32)*'Farm data entry'!$D$31,0)*10*'Farm data entry'!$D$10*'Farm data entry'!$D$23 -> 0 | G62: =AND(C62>='Farm data entry'!$E$15,Hydrology!C62<='Farm data entry'!$E$16) -> TRUE | H62: 0 | I62: =VLOOKUP($A62,'AgClim-ETo'!$A$4:$CE$10960,Hydrology!$D$1,FALSE) -> 1.0929292 | J62: =(I62*'Farm data entry'!$D$33) -> 0.76505044 | K62: =kc(C62,Kc!$F$16:$I$16,Kc!$N$16:$Q$16) -> 0 | L62: 0 | M62: =L62*10*'Farm data entry'!$E$22 -> 0 | N62: =(M62*'Farm data entry'!$D$14) -> 0 | O62: 0 | P62: =MIN($O62,R61+$H62-MIN('RWH summary'!$D$14,$R$3)) -> 0 | Q62: 0 | R62: 50000 | S62: 0 | T62: =MIN($O62,V61+$H62-MIN('RWH summary'!$D$14,$V$3)) -> 0 | U62: 0 | V62: 75000 | W62: 0 | X62: =MIN($O62,Z61+$H62-MIN('RWH summary'!$D$14,$Z$3)) -> 0 | Y62: 0 | Z62: 100000 | AA62: 0 | AB62: 2
A63: 1986-03-01 | B63: 1986 | C63: 60 | D63: =VLOOKUP($A63,'AgClim-Rain'!$D$4:$CH$10960,Hydrology!$D$1,FALSE) -> 0 | E63: 0 | F63: =MAX((E63-'Farm data entry'!$D$32)*'Farm data entry'!$D$31,0)*10*'Farm data entry'!$D$10*'Farm data entry'!$D$23 -> 0 | G63: =AND(C63>='Farm data entry'!$E$15,Hydrology!C63<='Farm data entry'!$E$16) -> TRUE | H63: 0 | I63: =VLOOKUP($A63,'AgClim-ETo'!$A$4:$CE$10960,Hydrology!$D$1,FALSE) -> 1.0611601 | J63: =(I63*'Farm data entry'!$D$33) -> 0.74281207 | K63: =kc(C63,Kc!$F$16:$I$16,Kc!$N$16:$Q$16) -> 0 | L63: 0 | M63: =L63*10*'Farm data entry'!$E$22 -> 0 | N63: =(M63*'Farm data entry'!$D$14) -> 0 | O63: 0 | P63: =MIN($O63,R62+$H63-MIN('RWH summary'!$D$14,$R$3)) -> 0 | Q63: 0 | R63: 50000 | S63: 0 | T63: =MIN($O63,V62+$H63-MIN('RWH summary'!$D$14,$V$3)) -> 0 | U63: 0 | V63: 75000 | W63: 0 | X63: =MIN($O63,Z62+$H63-MIN('RWH summary'!$D$14,$Z$3)) -> 0 | Y63: 0 | Z63: 100000 | AA63: 0 | AB63: 3
A64: 1986-03-02 | B64: 1986 | C64: 61 | D64: =VLOOKUP($A64,'AgClim-Rain'!$D$4:$CH$10960,Hydrology!$D$1,FALSE) -> 0 | E64: 0 | F64: =MAX((E64-'Farm data entry'!$D$32)*'Farm data entry'!$D$31,0)*10*'Farm data entry'!$D$10*'Farm data entry'!$D$23 -> 0 | G64: =AND(C64>='Farm data entry'!$E$15,Hydrology!C64<='Farm data entry'!$E$16) -> TRUE | H64: 0 | I64: =VLOOKUP($A64,'AgClim-ETo'!$A$4:$CE$10960,Hydrology!$D$1,FALSE) -> 0.9491952 | J64: =(I64*'Farm data entry'!$D$33) -> 0.66443664 | K64: =kc(C64,Kc!$F$16:$I$16,Kc!$N$16:$Q$16) -> 0.4 | L64: 0.265774656 | M64: =L64*10*'Farm data entry'!$E$22 -> 132.887328 | N64: =(M64*'Farm data entry'!$D$14) -> 19.9330992 | O64: 152.8204272 | P64: =MIN($O64,R63+$H64-MIN('RWH summary'!$D$14,$R$3)) -> 152.8204272 | Q64: 0 | R64: 49847.17957 | S64: 0 | T64: =MIN($O64,V63+$H64-MIN('RWH summary'!$D$14,$V$3)) -> 152.8204272 | U64: 0 | V64: 74847.17957 | W64: 0 | X64: =MIN($O64,Z63+$H64-MIN('RWH summary'!$D$14,$Z$3)) -> 152.8204272 | Y64: 0 | Z64: 99847.17957 | AA64: 0 | AB64: 3
A65: 1986-03-03 | B65: 1986 | C65: 62 | D65: =VLOOKUP($A65,'AgClim-Rain'!$D$4:$CH$10960,Hydrology!$D$1,FALSE) -> 0.3999999888 | E65: 0.3999999888 | F65: =MAX((E65-'Farm data entry'!$D$32)*'Farm data entry'!$D$31,0)*10*'Farm data entry'!$D$10*'Farm data entry'!$D$23 -> 0 | G65: =AND(C65>='Farm data entry'!$E$15,Hydrology!C65<='Farm data entry'!$E$16) -> TRUE | H65: 0 | I65: =VLOOKUP($A65,'AgClim-ETo'!$A$4:$CE$10960,Hydrology!$D$1,FALSE) -> 0.69861937 | J65: =(I65*'Farm data entry'!$D$33) -> 0.489033559 | K65: =kc(C65,Kc!$F$16:$I$16,Kc!$N$16:$Q$16) -> 0.4029411765 | L65: 0.1970517576 | M65: =L65*10*'Farm data entry'!$E$22 -> 98.5258788 | N65: =(M65*'Farm data entry'!$D$14) -> 14.77888182 | O65: 113.3047606 | P65: =MIN($O65,R64+$H65-MIN('RWH summary'!$D$14,$R$3)) -> 113.3047606 | Q65: 0 | R65: 49733.87481 | S65: 0 | T65: =MIN($O65,V64+$H65-MIN('RWH summary'!$D$14,$V$3)) -> 113.3047606 | U65: 0 | V65: 74733.87481 | W65: 0 | X65: =MIN($O65,Z64+$H65-MIN('RWH summary'!$D$14,$Z$3)) -> 113.3047606 | Y65: 0 | Z65: 99733.87481 | AA65: 0 | AB65: 3
A66: 1986-03-04 | B66: 1986 | C66: 63 | D66: =VLOOKUP($A66,'AgClim-Rain'!$D$4:$CH$10960,Hydrology!$D$1,FALSE) -> 0.6000000048 | E66: 0.6000000048 | F66: =MAX((E66-'Farm data entry'!$D$32)*'Farm data entry'!$D$31,0)*10*'Farm data entry'!$D$10*'Farm data entry'!$D$23 -> 0 | G66: =AND(C66>='Farm data entry'!$E$15,Hydrology!C66<='Farm data entry'!$E$16) -> TRUE | H66: 0 | I66: =VLOOKUP($A66,'AgClim-ETo'!$A$4:$CE$10960,Hydrology!$D$1,FALSE) -> 0.07563297 | J66: =(I66*'Farm data entry'!$D$33) -> 0.052943079 | K66: =kc(C66,Kc!$F$16:$I$16,Kc!$N$16:$Q$16) -> 0.4058823529 | L66: 0.02148866148 | M66: =L66*10*'Farm data entry'!$E$22 -> 10.74433074 | N66: =(M66*'Farm data entry'!$D$14) -> 1.611649611 | O66: 12.35598035 | P66: =MIN($O66,R65+$H66-MIN('RWH summary'!$D$14,$R$3)) -> 12.35598035 | Q66: 0 | R66: 49721.51883 | S66: 0 | T66: =MIN($O66,V65+$H66-MIN('RWH summary'!$D$14,$V$3)) -> 12.35598035 | U66: 0 | V66: 74721.51883 | W66: 0 | X66: =MIN($O66,Z65+$H66-MIN('RWH summary'!$D$14,$Z$3)) -> 12.35598035 | Y66: 0 | Z66: 99721.51883 | AA66: 0 | AB66: 3
A67: 1986-03-05 | B67: 1986 | C67: 64 | D67: =VLOOKUP($A67,'AgClim-Rain'!$D$4:$CH$10960,Hydrology!$D$1,FALSE) -> 0 | E67: 0 | F67: =MAX((E67-'Farm data entry'!$D$32)*'Farm data entry'!$D$31,0)*10*'Farm data entry'!$D$10*'Farm data entry'!$D$23 -> 0 | G67: =AND(C67>='Farm data entry'!$E$15,Hydrology!C67<='Farm data entry'!$E$16) -> TRUE | H67: 0 | I67: =VLOOKUP($A67,'AgClim-ETo'!$A$4:$CE$10960,Hydrology!$D$1,FALSE) -> 0.9103072 | J67: =(I67*'Farm data entry'!$D$33) -> 0.63721504 | K67: =kc(C67,Kc!$F$16:$I$16,Kc!$N$16:$Q$16) -> 0.4088235294 | L67: 0.2605085016 | M67: =L67*10*'Farm data entry'!$E$22 -> 130.2542508 | N67: =(M67*'Farm data entry'!$D$14) -> 19.53813762 | O67: 149.7923884 | P67: =MIN($O67,R66+$H67-MIN('RWH summary'!$D$14,$R$3)) -> 149.7923884 | Q67: 0 | R67: 49571.72644 | S67: 0 | T67: =MIN($O67,V66+$H67-MIN('RWH summary'!$D$14,$V$3)) -> 149.7923884 | U67: 0 | V67: 74571.72644 | W67: 0 | X67: =MIN($O67,Z66+$H67-MIN('RWH summary'!$D$14,$Z$3)) -> 149.7923884 | Y67: 0 | Z67: 99571.72644 | AA67: 0 | AB67: 3
A68: 1986-03-06 | B68: 1986 | C68: =A68-DATE(YEAR(A68)-1,12,31) -> 65 | D68: =VLOOKUP($A68,'AgClim-Rain'!$D$4:$CH$10960,Hydrology!$D$1,FALSE) -> 0.09999999936 | E68: =D68-(D68*-DeafaultCF) -> 0.09999999936 | F68: =MAX((E68-'Farm data entry'!$D$32)*'Farm data entry'!$D$31,0)*10*'Farm data entry'!$D$10*'Farm data entry'!$D$23 -> 0 | G68: =AND(C68>='Farm data entry'!$E$15,Hydrology!C68<='Farm data entry'!$E$16) -> TRUE | H68: =F68*G68 -> 0 | I68: =VLOOKUP($A68,'AgClim-ETo'!$A$4:$CE$10960,Hydrology!$D$1,FALSE) -> 1.1648391 | J68: =(I68*'Farm data entry'!$D$33) -> 0.81538737 | K68: =kc(C68,Kc!$F$16:$I$16,Kc!$N$16:$Q$16) -> 0.4117647059 | L68: =(K68*J68) -> 0.3357477406 | M68: =L68*10*'Farm data entry'!$E$22 -> 167.8738703 | N68: =(M68*'Farm data entry'!$D$14) -> 25.18108054 | O68: 193.0549508 | P68: =MIN($O68,R67+$H68-MIN('RWH summary'!$D$14,$R$3)) -> 193.0549508 | Q68: =MAX(R67+$H68-$O68-Q$1,0) -> 0 | R68: =MIN(R67-P68+$H68,Q$1) -> 49378.67149 | S68: 0 | T68: =MIN($O68,V67+$H68-MIN('RWH summary'!$D$14,$V$3)) -> 193.0549508 | U68: 0 | V68: 74378.67149 | W68: 0 | X68: =MIN($O68,Z67+$H68-MIN('RWH summary'!$D$14,$Z$3)) -> 193.0549508 | Y68: 0 | Z68: 99378.67149 | AA68: 0 | AB68: 3
A69: 1986-03-07 | B69: =YEAR(A69) -> 1986 | C69: 66 | D69: =VLOOKUP($A69,'AgClim-Rain'!$D$4:$CH$10960,Hydrology!$D$1,FALSE) -> 0 | E69: 0 | F69: =MAX((E69-'Farm data entry'!$D$32)*'Farm data entry'!$D$31,0)*10*'Farm data entry'!$D$10*'Farm data entry'!$D$23 -> 0 | G69: =AND(C69>='Farm data entry'!$E$15,Hydrology!C69<='Farm data entry'!$E$16) -> TRUE | H69: 0 | I69: =VLOOKUP($A69,'AgClim-ETo'!$A$4:$CE$10960,Hydrology!$D$1,FALSE) -> 0.8313841 | J69: =(I69*'Farm data entry'!$D$33) -> 0.58196887 | K69: =kc(C69,Kc!$F$16:$I$16,Kc!$N$16:$Q$16) -> 0.4147058824 | L69: 0.2413459137 | M69: =L69*10*'Farm data entry'!$E$22 -> 120.6729569 | N69: =(M69*'Farm data entry'!$D$14) -> 18.10094353 | O69: =SUM(M69:N69) -> 138.7739004 | P69: =MIN($O69,R68+$H69-MIN('RWH summary'!$D$14,$R$3)) -> 138.7739004 | Q69: 0 | R69: 49239.89759 | S69: =$O69-P69 -> 0 | T69: =MIN($O69,V68+$H69-MIN('RWH summary'!$D$14,$V$3)) -> 138.7739004 | U69: =MAX(V68+$H69-$O69-U$1,0) -> 0 | V69: =MIN(V68-T69+$H69,U$1) -> 74239.89759 | W69: =$O69-T69 -> 0 | X69: =MIN($O69,Z68+$H69-MIN('RWH summary'!$D$14,$Z$3)) -> 138.7739004 | Y69: =MAX(Z68+$H69-$O69-Y$1,0) -> 0 | Z69: =MIN(Z68-X69+$H69,Y$1) -> 99239.89759 | AA69: =$O69-X69 -> 0 | AB69: =MONTH(A69) -> 3
A70: 1986-03-08 | B70: 1986 | C70: 67 | D70: =VLOOKUP($A70,'AgClim-Rain'!$D$4:$CH$10960,Hydrology!$D$1,FALSE) -> 1.500000077 | E70: 1.500000077 | F70: =MAX((E70-'Farm data entry'!$D$32)*'Farm data entry'!$D$31,0)*10*'Farm data entry'!$D$10*'Farm data entry'!$D$23 -> 0 | G70: =AND(C70>='Farm data entry'!$E$15,Hydrology!C70<='Farm data entry'!$E$16) -> TRUE | H70: 0 | I70: =VLOOKUP($A70,'AgClim-ETo'!$A$4:$CE$10960,Hydrology!$D$1,FALSE) -> 1.0282879 | J70: =(I70*'Farm data entry'!$D$33) -> 0.71980153 | K70: =kc(C70,Kc!$F$16:$I$16,Kc!$N$16:$Q$16) -> 0.4176470588 | L70: 0.3006229919 | M70: =L70*10*'Farm data entry'!$E$22 -> 150.311496 | N70: =(M70*'Farm data entry'!$D$14) -> 22.5467244 | O70: 172.8582204 | P70: =MIN($O70,R69+$H70-MIN('RWH summary'!$D$14,$R$3)) -> 172.8582204 | Q70: 0 | R70: 49067.03937 | S70: 0 | T70: =MIN($O70,V69+$H70-MIN('RWH summary'!$D$14,$V$3)) -> 172.8582204 | U70: 0 | V70: 74067.03937 | W70: 0 | X70: =MIN($O70,Z69+$H70-MIN('RWH summary'!$D$14,$Z$3)) -> 172.8582204 | Y70: 0 | Z70: 99067.03937 | AA70: 0 | AB70: 3
A71: 1986-03-09 | B71: 1986 | C71: 68 | D71: =VLOOKUP($A71,'AgClim-Rain'!$D$4:$CH$10960,Hydrology!$D$1,FALSE) -> 0.09999999936 | E71: 0.09999999936 | F71: =MAX((E71-'Farm data entry'!$D$32)*'Farm data entry'!$D$31,0)*10*'Farm data entry'!$D$10*'Farm data entry'!$D$23 -> 0 | G71: =AND(C71>='Farm data entry'!$E$15,Hydrology!C71<='Farm data entry'!$E$16) -> TRUE | H71: 0 | I71: =VLOOKUP($A71,'AgClim-ETo'!$A$4:$CE$10960,Hydrology!$D$1,FALSE) -> 0.25154465 | J71: =(I71*'Farm data entry'!$D$33) -> 0.176081255 | K71: =kc(C71,Kc!$F$16:$I$16,Kc!$N$16:$Q$16) -> 0.4205882353 | L71: 0.07405770431 | M71: =L71*10*'Farm data entry'!$E$22 -> 37.02885215 | N71: =(M71*'Farm data entry'!$D$14) -> 5.554327823 | O71: 42.58317998 | P71: =MIN($O71,R70+$H71-MIN('RWH summary'!$D$14,$R$3)) -> 42.58317998 | Q71: 0 | R71: 49024.45619 | S71: 0 | T71: =MIN($O71,V70+$H71-MIN('RWH summary'!$D$14,$V$3)) -> 42.58317998 | U71: 0 | V71: 74024.45619 | W71: 0 | X71: =MIN($O71,Z70+$H71-MIN('RWH summary'!$D$14,$Z$3)) -> 42.58317998 | Y71: 0 | Z71: 99024.45619 | AA71: 0 | AB71: 3
A72: 1986-03-10 | B72: 1986 | C72: 69 | D72: =VLOOKUP($A72,'AgClim-Rain'!$D$4:$CH$10960,Hydrology!$D$1,FALSE) -> 0 | E72: 0 | F72: =MAX((E72-'Farm data entry'!$D$32)*'Farm data entry'!$D$31,0)*10*'Farm data entry'!$D$10*'Farm data entry'!$D$23 -> 0 | G72: =AND(C72>='Farm data entry'!$E$15,Hydrology!C72<='Farm data entry'!$E$16) -> TRUE | H72: 0 | I72: =VLOOKUP($A72,'AgClim-ETo'!$A$4:$CE$10960,Hydrology!$D$1,FALSE) -> 0.46433595 | J72: =(I72*'Farm data entry'!$D$33) -> 0.325035165 | K72: =kc(C72,Kc!$F$16:$I$16,Kc!$N$16:$Q$16) -> 0.4235294118 | L72: 0.1376619522 | M72: =L72*10*'Farm data entry'!$E$22 -> 68.83097612 | N72: =(M72*'Farm data entry'!$D$14) -> 10.32464642 | O72: 79.15562254 | P72: =MIN($O72,R71+$H72-MIN('RWH summary'!$D$14,$R$3)) -> 79.15562254 | Q72: 0 | R72: 48945.30057 | S72: 0 | T72: =MIN($O72,V71+$H72-MIN('RWH summary'!$D$14,$V$3)) -> 79.15562254 | U72: 0 | V72: 73945.30057 | W72: 0 | X72: =MIN($O72,Z71+$H72-MIN('RWH summary'!$D$14,$Z$3)) -> 79.15562254 | Y72: 0 | Z72: 98945.30057 | AA72: 0 | AB72: 3
A73: 1986-03-11 | B73: 1986 | C73: 70 | D73: =VLOOKUP($A73,'AgClim-Rain'!$D$4:$CH$10960,Hydrology!$D$1,FALSE) -> 0 | E73: 0 | F73: =MAX((E73-'Farm data entry'!$D$32)*'Farm data entry'!$D$31,0)*10*'Farm data entry'!$D$10*'Farm data entry'!$D$23 -> 0 | G73: =AND(C73>='Farm data entry'!$E$15,Hydrology!C73<='Farm data entry'!$E$16) -> TRUE | H73: 0 | I73: =VLOOKUP($A73,'AgClim-ETo'!$A$4:$CE$10960,Hydrology!$D$1,FALSE) -> 0.58235186 | J73: =(I73*'Farm data entry'!$D$33) -> 0.407646302 | K73: =kc(C73,Kc!$F$16:$I$16,Kc!$N$16:$Q$16) -> 0.4264705882 | L73: 0.1738491582 | M73: =L73*10*'Farm data entry'!$E$22 -> 86.9245791 | N73: =(M73*'Farm data entry'!$D$14) -> 13.03868687 | O73: 99.96326597 | P73: =MIN($O73,R72+$H73-MIN('RWH summary'!$D$14,$R$3)) -> 99.96326597 | Q73: 0 | R73: 48845.3373 | S73: 0 | T73: =MIN($O73,V72+$H73-MIN('RWH summary'!$D$14,$V$3)) -> 99.96326597 | U73: 0 | V73: 73845.3373 | W73: 0 | X73: =MIN($O73,Z72+$H73-MIN('RWH summary'!$D$14,$Z$3)) -> 99.96326597 | Y73: 0 | Z73: 98845.3373 | AA73: 0 | AB73: 3
A74: 1986-03-12 | B74: 1986 | C74: 71 | D74: =VLOOKUP($A74,'AgClim-Rain'!$D$4:$CH$10960,Hydrology!$D$1,FALSE) -> 0 | E74: 0 | F74: =MAX((E74-'Farm data entry'!$D$32)*'Farm data entry'!$D$31,0)*10*'Farm data entry'!$D$10*'Farm data entry'!$D$23 -> 0 | G74: =AND(C74>='Farm data entry'!$E$15,Hydrology!C74<='Farm data entry'!$E$16) -> TRUE | H74: 0 | I74: =VLOOKUP($A74,'AgClim-ETo'!$A$4:$CE$10960,Hydrology!$D$1,FALSE) -> 0.7030736 | J74: =(I74*'Farm data entry'!$D$33) -> 0.49215152 | K74: =kc(C74,Kc!$F$16:$I$16,Kc!$N$16:$Q$16) -> 0.4294117647 | L74: 0.2113356527 | M74: =L74*10*'Farm data entry'!$E$22 -> 105.6678264 | N74: =(M74*'Farm data entry'!$D$14) -> 15.85017395 | O74: 121.5180003 | P74: =MIN($O74,R73+$H74-MIN('RWH summary'!$D$14,$R$3)) -> 121.5180003 | Q74: 0 | R74: 48723.8193 | S74: 0 | T74: =MIN($O74,V73+$H74-MIN('RWH summary'!$D$14,$V$3)) -> 121.5180003 | U74: 0 | V74: 73723.8193 | W74: 0 | X74: =MIN($O74,Z73+$H74-MIN('RWH summary'!$D$14,$Z$3)) -> 121.5180003 | Y74: 0 | Z74: 98723.8193 | AA74: 0 | AB74: 3
A75: 1986-03-13 | B75: 1986 | C75: 72 | D75: =VLOOKUP($A75,'AgClim-Rain'!$D$4:$CH$10960,Hydrology!$D$1,FALSE) -> 0 | E75: 0 | F75: =MAX((E75-'Farm data entry'!$D$32)*'Farm data entry'!$D$31,0)*10*'Farm data entry'!$D$10*'Farm data entry'!$D$23 -> 0 | G75: =AND(C75>='Farm data entry'!$E$15,Hydrology!C75<='Farm data entry'!$E$16) -> TRUE | H75: 0 | I75: =VLOOKUP($A75,'AgClim-ETo'!$A$4:$CE$10960,Hydrology!$D$1,FALSE) -> 0.7056736 | J75: =(I75*'Farm data entry'!$D$33) -> 0.49397152 | K75: =kc(C75,Kc!$F$16:$I$16,Kc!$N$16:$Q$16) -> 0.4323529412 | L75: 0.2135700395 | M75: =L75*10*'Farm data entry'!$E$22 -> 106.7850198 | N75: =(M75*'Farm data entry'!$D$14) -> 16.01775296 | O75: 122.8027727 | P75: =MIN($O75,R74+$H75-MIN('RWH summary'!$D$14,$R$3)) -> 122.8027727 | Q75: 0 | R75: 48601.01653 | S75: 0 | T75: =MIN($O75,V74+$H75-MIN('RWH summary'!$D$14,$V$3)) -> 122.8027727 | U75: 0 | V75: 73601.01653 | W75: 0 | X75: =MIN($O75,Z74+$H75-MIN('RWH summary'!$D$14,$Z$3)) -> 122.8027727 | Y75: 0 | Z75: 98601.01653 | AA75: 0 | AB75: 3
A76: 1986-03-14 | B76: 1986 | C76: 73 | D76: =VLOOKUP($A76,'AgClim-Rain'!$D$4:$CH$10960,Hydrology!$D$1,FALSE) -> 0 | E76: 0 | F76: =MAX((E76-'Farm data entry'!$D$32)*'Farm data entry'!$D$31,0)*10*'Farm data entry'!$D$10*'Farm data entry'!$D$23 -> 0 | G76: =AND(C76>='Farm data entry'!$E$15,Hydrology!C76<='Farm data entry'!$E$16) -> TRUE | H76: 0 | I76: =VLOOKUP($A76,'AgClim-ETo'!$A$4:$CE$10960,Hydrology!$D$1,FALSE) -> 0.28256238 | J76: =(I76*'Farm data entry'!$D$33) -> 0.197793666 | K76: =kc(C76,Kc!$F$16:$I$16,Kc!$N$16:$Q$16) -> 0.4352941176 | L76: 0.08609841932 | M76: =L76*10*'Farm data entry'!$E$22 -> 43.04920966 | N76: =(M76*'Farm data entry'!$D$14) -> 6.457381449 | O76: 49.50659111 | P76: =MIN($O76,R75+$H76-MIN('RWH summary'!$D$14,$R$3)) -> 49.50659111 | Q76: 0 | R76: 48551.50994 | S76: 0 | T76: =MIN($O76,V75+$H76-MIN('RWH summary'!$D$14,$V$3)) -> 49.50659111 | U76: 0 | V76: 73551.50994 | W76: 0 | X76: =MIN($O76,Z75+$H76-MIN('RWH summary'!$D$14,$Z$3)) -> 49.50659111 | Y76: 0 | Z76: 98551.50994 | AA76: 0 | AB76: 3
A77: 1986-03-15 | B77: 1986 | C77: 74 | D77: =VLOOKUP($A77,'AgClim-Rain'!$D$4:$CH$10960,Hydrology!$D$1,FALSE) -> 0.3000000067 | E77: 0.3000000067 | F77: =MAX((E77-'Farm data entry'!$D$32)*'Farm data entry'!$D$31,0)*10*'Farm data entry'!$D$10*'Farm data entry'!$D$23 -> 0 | G77: =AND(C77>='Farm data entry'!$E$15,Hydrology!C77<='Farm data entry'!$E$16) -> TRUE | H77: 0 | I77: =VLOOKUP($A77,'AgClim-ETo'!$A$4:$CE$10960,Hydrology!$D$1,FALSE) -> 0.4770796 | J77: =(I77*'Farm data entry'!$D$33) -> 0.33395572 | K77: =kc(C77,Kc!$F$16:$I$16,Kc!$N$16:$Q$16) -> 0.4382352941 | L77: 0.1463511832 | M77: =L77*10*'Farm data entry'!$E$22 -> 73.17559159 | N77: =(M77*'Farm data entry'!$D$14) -> 10.97633874 | O77: 84.15193033 | P77: =MIN($O77,R76+$H77-MIN('RWH summary'!$D$14,$R$3)) -> 84.15193033 | Q77: 0 | R77: 48467.35801 | S77: 0 | T77: =MIN($O77,V76+$H77-MIN('RWH summary'!$D$14,$V$3)) -> 84.15193033 | U77: 0 | V77: 73467.35801 | W77: 0 | X77: =MIN($O77,Z76+$H77-MIN('RWH summary'!$D$14,$Z$3)) -> 84.15193033 | Y77: 0 | Z77: 98467.35801 | AA77: 0 | AB77: 3
A78: 1986-03-16 | B78: 1986 | C78: 75 | D78: =VLOOKUP($A78,'AgClim-Rain'!$D$4:$CH$10960,Hydrology!$D$1,FALSE) -> 3.599999942 | E78: 3.599999942 | F78: =MAX((E78-'Farm data entry'!$D$32)*'Farm data entry'!$D$31,0)*10*'Farm data entry'!$D$10*'Farm data entry'!$D$23 -> 719.9999741 | G78: =AND(C78>='Farm data entry'!$E$15,Hydrology!C78<='Farm data entry'!$E$16) -> TRUE | H78: 719.9999741 | I78: =VLOOKUP($A78,'AgClim-ETo'!$A$4:$CE$10960,Hydrology!$D$1,FALSE) -> 0.8989594 | J78: =(I78*'Farm data entry'!$D$33) -> 0.62927158 | K78: =kc(C78,Kc!$F$16:$I$16,Kc!$N$16:$Q$16) -> 0.4411764706 | L78: 0.2776198147 | M78: =L78*10*'Farm data entry'!$E$22 -> 138.8099074 | N78: =(M78*'Farm data entry'!$D$14) -> 20.8214861 | O78: 159.6313935 | P78: =MIN($O78,R77+$H78-MIN('RWH summary'!$D$14,$R$3)) -> 159.6313935 | Q78: 0 | R78: 49027.72659 | S78: 0 | T78: =MIN($O78,V77+$H78-MIN('RWH summary'!$D$14,$V$3)) -> 159.6313935 | U78: 0 | V78: 74027.72659 | W78: 0 | X78: =MIN($O78,Z77+$H78-MIN('RWH summary'!$D$14,$Z$3)) -> 159.6313935 | Y78: 0 | Z78: 99027.72659 | AA78: 0 | AB78: 3
A79: 1986-03-17 | B79: 1986 | C79: 76 | D79: =VLOOKUP($A79,'AgClim-Rain'!$D$4:$CH$10960,Hydrology!$D$1,FALSE) -> 0 | E79: 0 | F79: =MAX((E79-'Farm data entry'!$D$32)*'Farm data entry'!$D$31,0)*10*'Farm data entry'!$D$10*'Farm data entry'!$D$23 -> 0 | G79: =AND(C79>='Farm data entry'!$E$15,Hydrology!C79<='Farm data entry'!$E$16) -> TRUE | H79: 0 | I79: =VLOOKUP($A79,'AgClim-ETo'!$A$4:$CE$10960,Hydrology!$D$1,FALSE) -> 1.0869685 | J79: =(I79*'Farm data entry'!$D$33) -> 0.76087795 | K79: =kc(C79,Kc!$F$16:$I$16,Kc!$N$16:$Q$16) -> 0.4441176471 | L79: 0.3379193249 | M79: =L79*10*'Farm data entry'!$E$22 -> 168.9596624 | N79: =(M79*'Farm data entry'!$D$14) -> 25.34394936 | O79: 194.3036118 | P79: =MIN($O79,R78+$H79-MIN('RWH summary'!$D$14,$R$3)) -> 194.3036118 | Q79: 0 | R79: 48833.42298 | S79: 0 | T79: =MIN($O79,V78+$H79-MIN('RWH summary'!$D$14,$V$3)) -> 194.3036118 | U79: 0 | V79: 73833.42298 | W79: 0 | X79: =MIN($O79,Z78+$H79-MIN('RWH summary'!$D$14,$Z$3)) -> 194.3036118 | Y79: 0 | Z79: 98833.42298 | AA79: 0 | AB79: 3
A80: 1986-03-18 | B80: 1986 | C80: 77 | D80: =VLOOKUP($A80,'AgClim-Rain'!$D$4:$CH$10960,Hydrology!$D$1,FALSE) -> 9.199999872 | E80: 9.199999872 | F80: =MAX((E80-'Farm data entry'!$D$32)*'Farm data entry'!$D$31,0)*10*'Farm data entry'!$D$10*'Farm data entry'!$D$23 -> 3239.999942 | G80: =AND(C80>='Farm data entry'!$E$15,Hydrology!C80<='Farm data entry'!$E$16) -> TRUE | H80: 3239.999942 | I80: =VLOOKUP($A80,'AgClim-ETo'!$A$4:$CE$10960,Hydrology!$D$1,FALSE) -> 0.16845112 | J80: =(I80*'Farm data entry'!$D$33) -> 0.117915784 | K80: =kc(C80,Kc!$F$16:$I$16,Kc!$N$16:$Q$16) -> 0.4470588235 | L80: 0.05271529167 | M80: =L80*10*'Farm data entry'!$E$22 -> 26.35764584 | N80: =(M80*'Farm data entry'!$D$14) -> 3.953646875 | O80: 30.31129271 | P80: =MIN($O80,R79+$H80-MIN('RWH summary'!$D$14,$R$3)) -> 30.31129271 | Q80: 2043.111627 | R80: 50000 | S80: 0 | T80: =MIN($O80,V79+$H80-MIN('RWH summary'!$D$14,$V$3)) -> 30.31129271 | U80: 2043.111627 | V80: 75000 | W80: 0 | X80: =MIN($O80,Z79+$H80-MIN('RWH summary'!$D$14,$Z$3)) -> 30.31129271 | Y80: 2043.111627 | Z80: 100000 | AA80: 0 | AB80: 3
A81: 1986-03-19 | B81: 1986 | C81: 78 | D81: =VLOOKUP($A81,'AgClim-Rain'!$D$4:$CH$10960,Hydrology!$D$1,FALSE) -> 0.7999999776 | E81: 0.7999999776 | F81: =MAX((E81-'Farm data entry'!$D$32)*'Farm data entry'!$D$31,0)*10*'Farm data entry'!$D$10*'Farm data entry'!$D$23 -> 0 | G81: =AND(C81>='Farm data entry'!$E$15,Hydrology!C81<='Farm data entry'!$E$16) -> TRUE | H81: 0 | I81: =VLOOKUP($A81,'AgClim-ETo'!$A$4:$CE$10960,Hydrology!$D$1,FALSE) -> 1.4884073 | J81: =(I81*'Farm data entry'!$D$33) -> 1.04188511 | K81: =kc(C81,Kc!$F$16:$I$16,Kc!$N$16:$Q$16) -> 0.45 | L81: 0.4688482995 | M81: =L81*10*'Farm data entry'!$E$22 -> 234.4241497 | N81: =(M81*'Farm data entry'!$D$14) -> 35.16362246 | O81: 269.5877722 | P81: =MIN($O81,R80+$H81-MIN('RWH summary'!$D$14,$R$3)) -> 269.5877722 | Q81: 0 | R81: 49730.41223 | S81: 0 | T81: =MIN($O81,V80+$H81-MIN('RWH summary'!$D$14,$V$3)) -> 269.5877722 | U81: 0 | V81: 74730.41223 | W81: 0 | X81: =MIN($O81,Z80+$H81-MIN('RWH summary'!$D$14,$Z$3)) -> 269.5877722 | Y81: 0 | Z81: 99730.41223 | AA81: 0 | AB81: 3
A82: 1986-03-20 | B82: 1986 | C82: 79 | D82: =VLOOKUP($A82,'AgClim-Rain'!$D$4:$CH$10960,Hydrology!$D$1,FALSE) -> 0.09999999936 | E82: 0.09999999936 | F82: =MAX((E82-'Farm data entry'!$D$32)*'Farm data entry'!$D$31,0)*10*'Farm data entry'!$D$10*'Farm data entry'!$D$23 -> 0 | G82: =AND(C82>='Farm data entry'!$E$15,Hydrology!C82<='Farm data entry'!$E$16) -> TRUE | H82: 0 | I82: =VLOOKUP($A82,'AgClim-ETo'!$A$4:$CE$10960,Hydrology!$D$1,FALSE) -> 1.4211237 | J82: =(I82*'Farm data entry'!$D$33) -> 0.99478659 | K82: =kc(C82,Kc!$F$16:$I$16,Kc!$N$16:$Q$16) -> 0.4529411765 | L82: 0.4505798084 | M82: =L82*10*'Farm data entry'!$E$22 -> 225.2899042 | N82: =(M82*'Farm data entry'!$D$14) -> 33.79348563 | O82: 259.0833898 | P82: =MIN($O82,R81+$H82-MIN('RWH summary'!$D$14,$R$3)) -> 259.0833898 | Q82: 0 | R82: 49471.32884 | S82: 0 | T82: =MIN($O82,V81+$H82-MIN('RWH summary'!$D$14,$V$3)) -> 259.0833898 | U82: 0 | V82: 74471.32884 | W82: 0 | X82: =MIN($O82,Z81+$H82-MIN('RWH summary'!$D$14,$Z$3)) -> 259.0833898 | Y82: 0 | Z82: 99471.32884 | AA82: 0 | AB82: 3
A83: 1986-03-21 | B83: 1986 | C83: 80 | D83: =VLOOKUP($A83,'AgClim-Rain'!$D$4:$CH$10960,Hydrology!$D$1,FALSE) -> 0.09999999936 | E83: 0.09999999936 | F83: =MAX((E83-'Farm data entry'!$D$32)*'Farm data entry'!$D$31,0)*10*'Farm data entry'!$D$10*'Farm data entry'!$D$23 -> 0 | G83: =AND(C83>='Farm data entry'!$E$15,Hydrology!C83<='Farm data entry'!$E$16) -> TRUE | H83: 0 | I83: =VLOOKUP($A83,'AgClim-ETo'!$A$4:$CE$10960,Hydrology!$D$1,FALSE) -> 1.2850395 | J83: =(I83*'Farm data entry'!$D$33) -> 0.89952765 | K83: =kc(C83,Kc!$F$16:$I$16,Kc!$N$16:$Q$16) -> 0.4558823529 | L83: 0.4100787816 | M83: =L83*10*'Farm data entry'!$E$22 -> 205.0393908 | N83: =(M83*'Farm data entry'!$D$14) -> 30.75590862 | O83: 235.7952994 | P83: =MIN($O83,R82+$H83-MIN('RWH summary'!$D$14,$R$3)) -> 235.7952994 | Q83: =MAX(R82+$H83-$O83-Q$1,0) -> 0 | R83: 49235.53354 | S83: 0 | T83: =MIN($O83,V82+$H83-MIN('RWH summary'!$D$14,$V$3)) -> 235.7952994 | U83: 0 | V83: 74235.53354 | W83: 0 | X83: =MIN($O83,Z82+$H83-MIN('RWH summary'!$D$14,$Z$3)) -> 235.7952994 | Y83: 0 | Z83: 99235.53354 | AA83: 0 | AB83: 3
A84: 1986-03-22 | B84: 1986 | C84: 81 | D84: =VLOOKUP($A84,'AgClim-Rain'!$D$4:$CH$10960,Hydrology!$D$1,FALSE) -> 0.9000000288 | E84: 0.9000000288 | F84: =MAX((E84-'Farm data entry'!$D$32)*'Farm data entry'!$D$31,0)*10*'Farm data entry'!$D$10*'Farm data entry'!$D$23 -> 0 | G84: =AND(C84>='Farm data entry'!$E$15,Hydrology!C84<='Farm data entry'!$E$16) -> TRUE | H84: 0 | I84: =VLOOKUP($A84,'AgClim-ETo'!$A$4:$CE$10960,Hydrology!$D$1,FALSE) -> 0.7099002 | J84: =(I84*'Farm data entry'!$D$33) -> 0.49693014 | K84: =kc(C84,Kc!$F$16:$I$16,Kc!$N$16:$Q$16) -> 0.4588235294 | L84: 0.2280032407 | M84: =L84*10*'Farm data entry'!$E$22 -> 114.0016204 | N84: =(M84*'Farm data entry'!$D$14) -> 17.10024305 | O84: 131.1018634 | P84: =MIN($O84,R83+$H84-MIN('RWH summary'!$D$14,$R$3)) -> 131.1018634 | Q84: 0 | R84: 49104.43168 | S84: 0 | T84: =MIN($O84,V83+$H84-MIN('RWH summary'!$D$14,$V$3)) -> 131.1018634 | U84: 0 | V84: 74104.43168 | W84: 0 | X84: =MIN($O84,Z83+$H84-MIN('RWH summary'!$D$14,$Z$3)) -> 131.1018634 | Y84: 0 | Z84: 99104.43168 | AA84: 0 | AB84: 3
A85: 1986-03-23 | B85: 1986 | C85: 82 | D85: =VLOOKUP($A85,'AgClim-Rain'!$D$4:$CH$10960,Hydrology!$D$1,FALSE) -> 5.800000032 | E85: 5.800000032 | F85: =MAX((E85-'Farm data entry'!$D$32)*'Farm data entry'!$D$31,0)*10*'Farm data entry'!$D$10*'Farm data entry'!$D$23 -> 1710.000014 | G85: =AND(C85>='Farm data entry'!$E$15,Hydrology!C85<='Farm data entry'!$E$16) -> TRUE | H85: 1710.000014 | I85: =VLOOKUP($A85,'AgClim-ETo'!$A$4:$CE$10960,Hydrology!$D$1,FALSE) -> 2.1605382 | J85: =(I85*'Farm data entry'!$D$33) -> 1.51237674 | K85: =kc(C85,Kc!$F$16:$I$16,Kc!$N$16:$Q$16) -> 0.4617647059 | L85: 0.6983622005 | M85: =L85*10*'Farm data entry'!$E$22 -> 349.1811003 | N85: =(M85*'Farm data entry'!$D$14) -> 52.37716504 | O85: 401.5582653 | P85: =MIN($O85,R84+$H85-MIN('RWH summary'!$D$14,$R$3)) -> 401.5582653 | Q85: 412.8734242 | R85: 50000 | S85: 0 | T85: =MIN($O85,V84+$H85-MIN('RWH summary'!$D$14,$V$3)) -> 401.5582653 | U85: 412.8734242 | V85: 75000 | W85: 0 | X85: =MIN($O85,Z84+$H85-MIN('RWH summary'!$D$14,$Z$3)) -> 401.5582653 | Y85: 412.8734242 | Z85: 100000 | AA85: 0 | AB85: 3
A86: 1986-03-24 | B86: 1986 | C86: 83 | D86: =VLOOKUP($A86,'AgClim-Rain'!$D$4:$CH$10960,Hydrology!$D$1,FALSE) -> 0.09999999936 | E86: 0.09999999936 | F86: =MAX((E86-'Farm data entry'!$D$32)*'Farm data entry'!$D$31,0)*10*'Farm data entry'!$D$10*'Farm data entry'!$D$23 -> 0 | G86: =AND(C86>='Farm data entry'!$E$15,Hydrology!C86<='Farm data entry'!$E$16) -> TRUE | H86: 0 | I86: =VLOOKUP($A86,'AgClim-ETo'!$A$4:$CE$10960,Hydrology!$D$1,FALSE) -> 1.093246 | J86: =(I86*'Farm data entry'!$D$33) -> 0.7652722 | K86: =kc(C86,Kc!$F$16:$I$16,Kc!$N$16:$Q$16) -> 0.4647058824 | L86: 0.3556264929 | M86: =L86*10*'Farm data entry'!$E$22 -> 177.8132465 | N86: =(M86*'Farm data entry'!$D$14) -> 26.67198697 | O86: 204.4852334 | P86: =MIN($O86,R85+$H86-MIN('RWH summary'!$D$14,$R$3)) -> 204.4852334 | Q86: 0 | R86: 49795.51477 | S86: 0 | T86: =MIN($O86,V85+$H86-MIN('RWH summary'!$D$14,$V$3)) -> 204.4852334 | U86: 0 | V86: 74795.51477 | W86: 0 | X86: =MIN($O86,Z85+$H86-MIN('RWH summary'!$D$14,$Z$3)) -> 204.4852334 | Y86: 0 | Z86: 99795.51477 | AA86: 0 | AB86: 3
A87: 1986-03-25 | B87: 1986 | C87: 84 | D87: =VLOOKUP($A87,'AgClim-Rain'!$D$4:$CH$10960,Hydrology!$D$1,FALSE) -> 0.09999999936 | E87: 0.09999999936 | F87: =MAX((E87-'Farm data entry'!$D$32)*'Farm data entry'!$D$31,0)*10*'Farm data entry'!$D$10*'Farm data entry'!$D$23 -> 0 | G87: =AND(C87>='Farm data entry'!$E$15,Hydrology!C87<='Farm data entry'!$E$16) -> TRUE | H87: 0 | I87: =VLOOKUP($A87,'AgClim-ETo'!$A$4:$CE$10960,Hydrology!$D$1,FALSE) -> 1.1455977 | J87: =(I87*'Farm data entry'!$D$33) -> 0.80191839 | K87: =kc(C87,Kc!$F$16:$I$16,Kc!$N$16:$Q$16) -> 0.4676470588 | L87: 0.3750147765 | M87: =L87*10*'Farm data entry'!$E$22 -> 187.5073882 | N87: =(M87*'Farm data entry'!$D$14) -> 28.12610824 | O87: 215.6334965 | P87: =MIN($O87,R86+$H87-MIN('RWH summary'!$D$14,$R$3)) -> 215.6334965 | Q87: 0 | R87: 49579.88127 | S87: 0 | T87: =MIN($O87,V86+$H87-MIN('RWH summary'!$D$14,$V$3)) -> 215.6334965 | U87: 0 | V87: 74579.88127 | W87: 0 | X87: =MIN($O87,Z86+$H87-MIN('RWH summary'!$D$14,$Z$3)) -> 215.6334965 | Y87: 0 | Z87: 99579.88127 | AA87: 0 | AB87: 3
A88: 1986-03-26 | B88: 1986 | C88: 85 | D88: =VLOOKUP($A88,'AgClim-Rain'!$D$4:$CH$10960,Hydrology!$D$1,FALSE) -> 1.900000109 | E88: 1.900000109 | F88: =MAX((E88-'Farm data entry'!$D$32)*'Farm data entry'!$D$31,0)*10*'Farm data entry'!$D$10*'Farm data entry'!$D$23 -> 0 | G88: =AND(C88>='Farm data entry'!$E$15,Hydrology!C88<='Farm data entry'!$E$16) -> TRUE | H88: 0 | I88: =VLOOKUP($A88,'AgClim-ETo'!$A$4:$CE$10960,Hydrology!$D$1,FALSE) -> 1.3682477 | J88: =(I88*'Farm data entry'!$D$33) -> 0.95777339 | K88: =kc(C88,Kc!$F$16:$I$16,Kc!$N$16:$Q$16) -> 0.4705882353 | L88: 0.4507168894 | M88: =L88*10*'Farm data entry'!$E$22 -> 225.3584447 | N88: =(M88*'Farm data entry'!$D$14) -> 33.80376671 | O88: 259.1622114 | P88: =MIN($O88,R87+$H88-MIN('RWH summary'!$D$14,$R$3)) -> 259.1622114 | Q88: 0 | R88: 49320.71906 | S88: 0 | T88: =MIN($O88,V87+$H88-MIN('RWH summary'!$D$14,$V$3)) -> 259.1622114 | U88: 0 | V88: 74320.71906 | W88: 0 | X88: =MIN($O88,Z87+$H88-MIN('RWH summary'!$D$14,$Z$3)) -> 259.1622114 | Y88: 0 | Z88: 99320.71906 | AA88: 0 | AB88: 3
A89: 1986-03-27 | B89: 1986 | C89: 86 | D89: =VLOOKUP($A89,'AgClim-Rain'!$D$4:$CH$10960,Hydrology!$D$1,FALSE) -> 3.400000099 | E89: 3.400000099 | F89: =MAX((E89-'Farm data entry'!$D$32)*'Farm data entry'!$D$31,0)*10*'Farm data entry'!$D$10*'Farm data entry'!$D$23 -> 630.0000446 | G89: =AND(C89>='Farm data entry'!$E$15,Hydrology!C89<='Farm data entry'!$E$16) -> TRUE | H89: 630.0000446 | I89: =VLOOKUP($A89,'AgClim-ETo'!$A$4:$CE$10960,Hydrology!$D$1,FALSE) -> 1.7807732 | J89: =(I89*'Farm data entry'!$D$33) -> 1.24654124 | K89: =kc(C89,Kc!$F$16:$I$16,Kc!$N$16:$Q$16) -> 0.4735294118 | L89: 0.5902739401 | M89: =L89*10*'Farm data entry'!$E$22 -> 295.1369701 | N89: =(M89*'Farm data entry'!$D$14) -> 44.27054551 | O89: 339.4075156 | P89: =MIN($O89,R88+$H89-MIN('RWH summary'!$D$14,$R$3)) -> 339.4075156 | Q89: 0 | R89: 49611.31159 | S89: 0 | T89: =MIN($O89,V88+$H89-MIN('RWH summary'!$D$14,$V$3)) -> 339.4075156 | U89: 0 | V89: 74611.31159 | W89: 0 | X89: =MIN($O89,Z88+$H89-MIN('RWH summary'!$D$14,$Z$3)) -> 339.4075156 | Y89: 0 | Z89: 99611.31159 | AA89: 0 | AB89: 3
A90: 1986-03-28 | B90: 1986 | C90: 87 | D90: =VLOOKUP($A90,'AgClim-Rain'!$D$4:$CH$10960,Hydrology!$D$1,FALSE) -> 3.099999859 | E90: 3.099999859 | F90: =MAX((E90-'Farm data entry'!$D$32)*'Farm data entry'!$D$31,0)*10*'Farm data entry'!$D$10*'Farm data entry'!$D$23 -> 494.9999366 | G90: =AND(C90>='Farm data entry'!$E$15,Hydrology!C90<='Farm data entry'!$E$16) -> TRUE | H90: 494.9999366 | I90: =VLOOKUP($A90,'AgClim-ETo'!$A$4:$CE$10960,Hydrology!$D$1,FALSE) -> 1.3161607 | J90: =(I90*'Farm data entry'!$D$33) -> 0.92131249 | K90: =kc(C90,Kc!$F$16:$I$16,Kc!$N$16:$Q$16) -> 0.4764705882 | L90: 0.4389783041 | M90: =L90*10*'Farm data entry'!$E$22 -> 219.489152 | N90: =(M90*'Farm data entry'!$D$14) -> 32.9233728 | O90: 252.4125248 | P90: =MIN($O90,R89+$H90-MIN('RWH summary'!$D$14,$R$3)) -> 252.4125248 | Q90: 0 | R90: 49853.899 | S90: 0 | T90: =MIN($O90,V89+$H90-MIN('RWH summary'!$D$14,$V$3)) -> 252.4125248 | U90: 0 | V90: 74853.899 | W90: 0 | X90: =MIN($O90,Z89+$H90-MIN('RWH summary'!$D$14,$Z$3)) -> 252.4125248 | Y90: 0 | Z90: 99853.899 | AA90: 0 | AB90: 3
A91: 1986-03-29 | B91: 1986 | C91: 88 | D91: =VLOOKUP($A91,'AgClim-Rain'!$D$4:$CH$10960,Hydrology!$D$1,FALSE) -> 4.699999987 | E91: 4.699999987 | F91: =MAX((E91-'Farm data entry'!$D$32)*'Farm data entry'!$D$31,0)*10*'Farm data entry'!$D$10*'Farm data entry'!$D$23 -> 1214.999994 | G91: =AND(C91>='Farm data entry'!$E$15,Hydrology!C91<='Farm data entry'!$E$16) -> TRUE | H91: 1214.999994 | I91: =VLOOKUP($A91,'AgClim-ETo'!$A$4:$CE$10960,Hydrology!$D$1,FALSE) -> 1.3249841 | J91: =(I91*'Farm data entry'!$D$33) -> 0.92748887 | K91: =kc(C91,Kc!$F$16:$I$16,Kc!$N$16:$Q$16) -> 0.4794117647 | L91: 0.4446490759 | M91: =L91*10*'Farm data entry'!$E$22 -> 222.324538 | N91: =(M91*'Farm data entry'!$D$14) -> 33.34868069 | O91: 255.6732186 | P91: =MIN($O91,R90+$H91-MIN('RWH summary'!$D$14,$R$3)) -> 255.6732186 | Q91: 813.2257751 | R91: 50000 | S91: 0 | T91: =MIN($O91,V90+$H91-MIN('RWH summary'!$D$14,$V$3)) -> 255.6732186 | U91: 813.2257751 | V91: 75000 | W91: 0 | X91: =MIN($O91,Z90+$H91-MIN('RWH summary'!$D$14,$Z$3)) -> 255.6732186 | Y91: 813.2257751 | Z91: 100000 | AA91: 0 | AB91: 3
A92: 1986-03-30 | B92: 1986 | C92: 89 | D92: =VLOOKUP($A92,'AgClim-Rain'!$D$4:$CH$10960,Hydrology!$D$1,FALSE) -> 1.500000077 | E92: 1.500000077 | F92: =MAX((E92-'Farm data entry'!$D$32)*'Farm data entry'!$D$31,0)*10*'Farm data entry'!$D$10*'Farm data entry'!$D$23 -> 0 | G92: =AND(C92>='Farm data entry'!$E$15,Hydrology!C92<='Farm data entry'!$E$16) -> TRUE | H92: 0 | I92: =VLOOKUP($A92,'AgClim-ETo'!$A$4:$CE$10960,Hydrology!$D$1,FALSE) -> 0.8167161 | J92: =(I92*'Farm data entry'!$D$33) -> 0.57170127 | K92: =kc(C92,Kc!$F$16:$I$16,Kc!$N$16:$Q$16) -> 0.4823529412 | L92: 0.2757617891 | M92: =L92*10*'Farm data entry'!$E$22 -> 137.8808945 | N92: =(M92*'Farm data entry'!$D$14) -> 20.68213418 | O92: 158.5630287 | P92: =MIN($O92,R91+$H92-MIN('RWH summary'!$D$14,$R$3)) -> 158.5630287 | Q92: 0 | R92: 49841.43697 | S92: 0 | T92: =MIN($O92,V91+$H92-MIN('RWH summary'!$D$14,$V$3)) -> 158.5630287 | U92: 0 | V92: 74841.43697 | W92: 0 | X92: =MIN($O92,Z91+$H92-MIN('RWH summary'!$D$14,$Z$3)) -> 158.5630287 | Y92: 0 | Z92: 99841.43697 | AA92: 0 | AB92: 3
A93: 1986-03-31 | B93: 1986 | C93: 90 | D93: =VLOOKUP($A93,'AgClim-Rain'!$D$4:$CH$10960,Hydrology!$D$1,FALSE) -> 0.9999999936 | E93: 0.9999999936 | F93: =MAX((E93-'Farm data entry'!$D$32)*'Farm data entry'!$D$31,0)*10*'Farm data entry'!$D$10*'Farm data entry'!$D$23 -> 0 | G93: =AND(C93>='Farm data entry'!$E$15,Hydrology!C93<='Farm data entry'!$E$16) -> TRUE | H93: 0 | I93: =VLOOKUP($A93,'AgClim-ETo'!$A$4:$CE$10960,Hydrology!$D$1,FALSE) -> 1.3097153 | J93: =(I93*'Farm data entry'!$D$33) -> 0.91680071 | K93: =kc(C93,Kc!$F$16:$I$16,Kc!$N$16:$Q$16) -> 0.4852941176 | L93: 0.4449179916 | M93: =L93*10*'Farm data entry'!$E$22 -> 222.4589958 | N93: =(M93*'Farm data entry'!$D$14) -> 33.36884937 | O93: 255.8278452 | P93: =MIN($O93,R92+$H93-MIN('RWH summary'!$D$14,$R$3)) -> 255.8278452 | Q93: 0 | R93: 49585.60913 | S93: 0 | T93: =MIN($O93,V92+$H93-MIN('RWH summary'!$D$14,$V$3)) -> 255.8278452 | U93: 0 | V93: 74585.60913 | W93: 0 | X93: =MIN($O93,Z92+$H93-MIN('RWH summary'!$D$14,$Z$3)) -> 255.8278452 | Y93: 0 | Z93: 99585.60913 | AA93: 0 | AB93: 3
A94: 1986-04-01 | B94: 1986 | C94: 91 | D94: =VLOOKUP($A94,'AgClim-Rain'!$D$4:$CH$10960,Hydrology!$D$1,FALSE) -> 0.3999999888 | E94: 0.3999999888 | F94: =MAX((E94-'Farm data entry'!$D$32)*'Farm data entry'!$D$31,0)*10*'Farm data entry'!$D$10*'Farm data entry'!$D$23 -> 0 | G94: =AND(C94>='Farm data entry'!$E$15,Hydrology!C94<='Farm data entry'!$E$16) -> TRUE | H94: 0 | I94: =VLOOKUP($A94,'AgClim-ETo'!$A$4:$CE$10960,Hydrology!$D$1,FALSE) -> 1.4853942 | J94: =(I94*'Farm data entry'!$D$33) -> 1.03977594 | K94: =kc(C94,Kc!$F$16:$I$16,Kc!$N$16:$Q$16) -> 0.4882352941 | L94: 0.5076553119 | M94: =L94*10*'Farm data entry'!$E$22 -> 253.8276559 | N94: =(M94*'Farm data entry'!$D$14) -> 38.07414839 | O94: 291.9018043 | P94: =MIN($O94,R93+$H94-MIN('RWH summary'!$D$14,$R$3)) -> 291.9018043 | Q94: 0 | R94: 49293.70732 | S94: 0 | T94: =MIN($O94,V93+$H94-MIN('RWH summary'!$D$14,$V$3)) -> 291.9018043 | U94: 0 | V94: 74293.70732 | W94: 0 | X94: =MIN($O94,Z93+$H94-MIN('RWH summary'!$D$14,$Z$3)) -> 291.9018043 | Y94: 0 | Z94: 99293.70732 | AA94: 0 | AB94: 4
A95: 1986-04-02 | B95: 1986 | C95: 92 | D95: =VLOOKUP($A95,'AgClim-Rain'!$D$4:$CH$10960,Hydrology!$D$1,FALSE) -> 3.70000008 | E95: 3.70000008 | F95: =MAX((E95-'Farm data entry'!$D$32)*'Farm data entry'!$D$31,0)*10*'Farm data entry'!$D$10*'Farm data entry'!$D$23 -> 765.000036 | G95: =AND(C95>='Farm data entry'!$E$15,Hydrology!C95<='Farm data entry'!$E$16) -> TRUE | H95: 765.000036 | I95: =VLOOKUP($A95,'AgClim-ETo'!$A$4:$CE$10960,Hydrology!$D$1,FALSE) -> 1.1403869 | J95: =(I95*'Farm data entry'!$D$33) -> 0.79827083 | K95: =kc(C95,Kc!$F$16:$I$16,Kc!$N$16:$Q$16) -> 0.4911764706 | L95: 0.3920918489 | M95: =L95*10*'Farm data entry'!$E$22 -> 196.0459244 | N95: =(M95*'Farm data entry'!$D$14) -> 29.40688866 | O95: 225.4528131 | P95: =MIN($O95,R94+$H95-MIN('RWH summary'!$D$14,$R$3)) -> 225.4528131 | Q95: 0 | R95: 49833.25454 | S95: 0 | T95: =MIN($O95,V94+$H95-MIN('RWH summary'!$D$14,$V$3)) -> 225.4528131 | U95: 0 | V95: 74833.25454 | W95: 0 | X95: =MIN($O95,Z94+$H95-MIN('RWH summary'!$D$14,$Z$3)) -> 225.4528131 | Y95: 0 | Z95: 99833.25454 | AA95: 0 | AB95: 4
A96: 1986-04-03 | B96: 1986 | C96: 93 | D96: =VLOOKUP($A96,'AgClim-Rain'!$D$4:$CH$10960,Hydrology!$D$1,FALSE) -> 0.1999999987 | E96: 0.1999999987 | F96: =MAX((E96-'Farm data entry'!$D$32)*'Farm data entry'!$D$31,0)*10*'Farm data entry'!$D$10*'Farm data entry'!$D$23 -> 0 | G96: =AND(C96>='Farm data entry'!$E$15,Hydrology!C96<='Farm data entry'!$E$16) -> TRUE | H96: 0 | I96: =VLOOKUP($A96,'AgClim-ETo'!$A$4:$CE$10960,Hydrology!$D$1,FALSE) -> 1.0302811 | J96: =(I96*'Farm data entry'!$D$33) -> 0.72119677 | K96: =kc(C96,Kc!$F$16:$I$16,Kc!$N$16:$Q$16) -> 0.4941176471 | L96: 0.3563560511 | M96: =L96*10*'Farm data entry'!$E$22 -> 178.1780255 | N96: =(M96*'Farm data entry'!$D$14) -> 26.72670383 | O96: 204.9047294 | P96: =MIN($O96,R95+$H96-MIN('RWH summary'!$D$14,$R$3)) -> 204.9047294 | Q96: 0 | R96: 49628.34982 | S96: 0 | T96: =MIN($O96,V95+$H96-MIN('RWH summary'!$D$14,$V$3)) -> 204.9047294 | U96: 0 | V96: 74628.34982 | W96: 0 | X96: =MIN($O96,Z95+$H96-MIN('RWH summary'!$D$14,$Z$3)) -> 204.9047294 | Y96: 0 | Z96: 99628.34982 | AA96: 0 | AB96: 4
A97: 1986-04-04 | B97: 1986 | C97: 94 | D97: =VLOOKUP($A97,'AgClim-Rain'!$D$4:$CH$10960,Hydrology!$D$1,FALSE) -> 0.3999999888 | E97: 0.3999999888 | F97: =MAX((E97-'Farm data entry'!$D$32)*'Farm data entry'!$D$31,0)*10*'Farm data entry'!$D$10*'Farm data entry'!$D$23 -> 0 | G97: =AND(C97>='Farm data entry'!$E$15,Hydrology!C97<='Farm data entry'!$E$16) -> TRUE | H97: 0 | I97: =VLOOKUP($A97,'AgClim-ETo'!$A$4:$CE$10960,Hydrology!$D$1,FALSE) -> 1.4378386 | J97: =(I97*'Farm data entry'!$D$33) -> 1.00648702 | K97: =kc(C97,Kc!$F$16:$I$16,Kc!$N$16:$Q$16) -> 0.4970588235 | L97: 0.5002832541 | M97: =L97*10*'Farm data entry'!$E$22 -> 250.141627 | N97: =(M97*'Farm data entry'!$D$14) -> 37.52124405 | O97: 287.6628711 | P97: =MIN($O97,R96+$H97-MIN('RWH summary'!$D$14,$R$3)) -> 287.6628711 | Q97: 0 | R97: 49340.68694 | S97: 0 | T97: =MIN($O97,V96+$H97-MIN('RWH summary'!$D$14,$V$3)) -> 287.6628711 | U97: 0 | V97: 74340.68694 | W97: 0 | X97: =MIN($O97,Z96+$H97-MIN('RWH summary'!$D$14,$Z$3)) -> 287.6628711 | Y97: 0 | Z97: 99340.68694 | AA97: 0 | AB97: 4
A98: 1986-04-05 | B98: 1986 | C98: 95 | D98: =VLOOKUP($A98,'AgClim-Rain'!$D$4:$CH$10960,Hydrology!$D$1,FALSE) -> 0.09999999936 | E98: 0.09999999936 | F98: =MAX((E98-'Farm data entry'!$D$32)*'Farm data entry'!$D$31,0)*10*'Farm data entry'!$D$10*'Farm data entry'!$D$23 -> 0 | G98: =AND(C98>='Farm data entry'!$E$15,Hydrology!C98<='Farm data entry'!$E$16) -> TRUE | H98: 0 | I98: =VLOOKUP($A98,'AgClim-ETo'!$A$4:$CE$10960,Hydrology!$D$1,FALSE) -> 1.3942219 | J98: =(I98*'Farm data entry'!$D$33) -> 0.97595533 | K98: =kc(C98,Kc!$F$16:$I$16,Kc!$N$16:$Q$16) -> 0.5 | L98: 0.487977665 | M98: =L98*10*'Farm data entry'!$E$22 -> 243.9888325 | N98: =(M98*'Farm data entry'!$D$14) -> 36.59832487 | O98: 280.5871574 | P98: =MIN($O98,R97+$H98-MIN('RWH summary'!$D$14,$R$3)) -> 280.5871574 | Q98: 0 | R98: 49060.09979 | S98: 0 | T98: =MIN($O98,V97+$H98-MIN('RWH summary'!$D$14,$V$3)) -> 280.5871574 | U98: 0 | V98: 74060.09979 | W98: 0 | X98: =MIN($O98,Z97+$H98-MIN('RWH summary'!$D$14,$Z$3)) -> 280.5871574 | Y98: 0 | Z98: 99060.09979 | AA98: 0 | AB98: 4
A99: 1986-04-06 | B99: 1986 | C99: 96 | D99: =VLOOKUP($A99,'AgClim-Rain'!$D$4:$CH$10960,Hydrology!$D$1,FALSE) -> 3.70000008 | E99: 3.70000008 | F99: =MAX((E99-'Farm data entry'!$D$32)*'Farm data entry'!$D$31,0)*10*'Farm data entry'!$D$10*'Farm data entry'!$D$23 -> 765.000036 | G99: =AND(C99>='Farm data entry'!$E$15,Hydrology!C99<='Farm data entry'!$E$16) -> TRUE | H99: 765.000036 | I99: =VLOOKUP($A99,'AgClim-ETo'!$A$4:$CE$10960,Hydrology!$D$1,FALSE) -> 1.32697 | J99: =(I99*'Farm data entry'!$D$33) -> 0.928879 | K99: =kc(C99,Kc!$F$16:$I$16,Kc!$N$16:$Q$16) -> 0.5029411765 | L99: 0.4671714971 | M99: =L99*10*'Farm data entry'!$E$22 -> 233.5857485 | N99: =(M99*'Farm data entry'!$D$14) -> 35.03786228 | O99: 268.6236108 | P99: =MIN($O99,R98+$H99-MIN('RWH summary'!$D$14,$R$3)) -> 268.6236108 | Q99: 0 | R99: 49556.47621 | S99: 0 | T99: =MIN($O99,V98+$H99-MIN('RWH summary'!$D$14,$V$3)) -> 268.6236108 | U99: 0 | V99: 74556.47621 | W99: 0 | X99: =MIN($O99,Z98+$H99-MIN('RWH summary'!$D$14,$Z$3)) -> 268.6236108 | Y99: 0 | Z99: 99556.47621 | AA99: 0 | AB99: 4
A100: 1986-04-07 | B100: 1986 | C100: 97 | D100: =VLOOKUP($A100,'AgClim-Rain'!$D$4:$CH$10960,Hydrology!$D$1,FALSE) -> 8.200000224 | E100: 8.200000224 | F100: =MAX((E100-'Farm data entry'!$D$32)*'Farm data entry'!$D$31,0)*10*'Farm data entry'!$D$10*'Farm data entry'!$D$23 -> 2790.000101 | G100: =AND(C100>='Farm data entry'!$E$15,Hydrology!C100<='Farm data entry'!$E$16) -> TRUE | H100: 2790.000101 | I100: =VLOOKUP($A100,'AgClim-ETo'!$A$4:$CE$10960,Hydrology!$D$1,FALSE) -> 1.0814077 | J100: =(I100*'Farm data entry'!$D$33) -> 0.75698539 | K100: =kc(C100,Kc!$F$16:$I$16,Kc!$N$16:$Q$16) -> 0.5058823529 | L100: 0.3829455502 | M100: =L100*10*'Farm data entry'!$E$22 -> 191.4727751 | N100: =(M100*'Farm data entry'!$D$14) -> 28.72091627 | O100: 220.1936914 | P100: =MIN($O100,R99+$H100-MIN('RWH summary'!$D$14,$R$3)) -> 220.1936914 | Q100: 2126.282621 | R100: 50000 | S100: 0 | T100: =MIN($O100,V99+$H100-MIN('RWH summary'!$D$14,$V$3)) -> 220.1936914 | U100: 2126.282621 | V100: 75000 | W100: 0 | X100: =MIN($O100,Z99+$H100-MIN('RWH summary'!$D$14,$Z$3)) -> 220.1936914 | Y100: 2126.282621 | Z100: 100000 | AA100: 0 | AB100: 4
A101: 1986-04-08 | B101: 1986 | C101: 98 | D101: =VLOOKUP($A101,'AgClim-Rain'!$D$4:$CH$10960,Hydrology!$D$1,FALSE) -> 0.1999999987 | E101: 0.1999999987 | F101: =MAX((E101-'Farm data entry'!$D$32)*'Farm data entry'!$D$31,0)*10*'Farm data entry'!$D$10*'Farm data entry'!$D$23 -> 0 | G101: =AND(C101>='Farm data entry'!$E$15,Hydrology!C101<='Farm data entry'!$E$16) -> TRUE | H101: 0 | I101: =VLOOKUP($A101,'AgClim-ETo'!$A$4:$CE$10960,Hydrology!$D$1,FALSE) -> 0.37993205 | J101: =(I101*'Farm data entry'!$D$33) -> 0.265952435 | K101: =kc(C101,Kc!$F$16:$I$16,Kc!$N$16:$Q$16) -> 0.5088235294 | L101: 0.1353228566 | M101: =L101*10*'Farm data entry'!$E$22 -> 67.66142832 | N101: =(M101*'Farm data entry'!$D$14) -> 10.14921425 | O101: 77.81064256 | P101: =MIN($O101,R100+$H101-MIN('RWH summary'!$D$14,$R$3)) -> 77.81064256 | Q101: 0 | R101: 49922.18936 | S101: 0 | T101: =MIN($O101,V100+$H101-MIN('RWH summary'!$D$14,$V$3)) -> 77.81064256 | U101: 0 | V101: 74922.18936 | W101: 0 | X101: =MIN($O101,Z100+$H101-MIN('RWH summary'!$D$14,$Z$3)) -> 77.81064256 | Y101: 0 | Z101: 99922.18936 | AA101: 0 | AB101: 4
A102: 1986-04-09 | B102: 1986 | C102: 99 | D102: =VLOOKUP($A102,'AgClim-Rain'!$D$4:$CH$10960,Hydrology!$D$1,FALSE) -> 0 | E102: 0 | F102: =MAX((E102-'Farm data entry'!$D$32)*'Farm data entry'!$D$31,0)*10*'Farm data entry'!$D$10*'Farm data entry'!$D$23 -> 0 | G102: =AND(C102>='Farm data entry'!$E$15,Hydrology!C102<='Farm data entry'!$E$16) -> TRUE | H102: 0 | I102: =VLOOKUP($A102,'AgClim-ETo'!$A$4:$CE$10960,Hydrology!$D$1,FALSE) -> 2.3653145 | J102: =(I102*'Farm data entry'!$D$33) -> 1.65572015 | K102: =kc(C102,Kc!$F$16:$I$16,Kc!$N$16:$Q$16) -> 0.5117647059 | L102: 0.8473391356 | M102: =L102*10*'Farm data entry'!$E$22 -> 423.6695678 | N102: =(M102*'Farm data entry'!$D$14) -> 63.55043517 | O102: 487.220003 | P102: =MIN($O102,R101+$H102-MIN('RWH summary'!$D$14,$R$3)) -> 487.220003 | Q102: 0 | R102: 49434.96935 | S102: 0 | T102: =MIN($O102,V101+$H102-MIN('RWH summary'!$D$14,$V$3)) -> 487.220003 | U102: 0 | V102: 74434.96935 | W102: 0 | X102: =MIN($O102,Z101+$H102-MIN('RWH summary'!$D$14,$Z$3)) -> 487.220003 | Y102: 0 | Z102: 99434.96935 | AA102: 0 | AB102: 4
A103: 1986-04-10 | B103: 1986 | C103: 100 | D103: =VLOOKUP($A103,'AgClim-Rain'!$D$4:$CH$10960,Hydrology!$D$1,FALSE) -> 0 | E103: 0 | F103: =MAX((E103-'Farm data entry'!$D$32)*'Farm data entry'!$D$31,0)*10*'Farm data entry'!$D$10*'Farm data entry'!$D$23 -> 0 | G103: =AND(C103>='Farm data entry'!$E$15,Hydrology!C103<='Farm data entry'!$E$16) -> TRUE | H103: 0 | I103: =VLOOKUP($A103,'AgClim-ETo'!$A$4:$CE$10960,Hydrology!$D$1,FALSE) -> 2.4942636 | J103: =(I103*'Farm data entry'!$D$33) -> 1.74598452 | K103: =kc(C103,Kc!$F$16:$I$16,Kc!$N$16:$Q$16) -> 0.5147058824 | L103: 0.8986685029 | M103: =L103*10*'Farm data entry'!$E$22 -> 449.3342515 | N103: =(M103*'Farm data entry'!$D$14) -> 67.40013772 | O103: 516.7343892 | P103: =MIN($O103,R102+$H103-MIN('RWH summary'!$D$14,$R$3)) -> 516.7343892 | Q103: 0 | R103: 48918.23497 | S103: 0 | T103: =MIN($O103,V102+$H103-MIN('RWH summary'!$D$14,$V$3)) -> 516.7343892 | U103: 0 | V103: 73918.23497 | W103: 0 | X103: =MIN($O103,Z102+$H103-MIN('RWH summary'!$D$14,$Z$3)) -> 516.7343892 | Y103: 0 | Z103: 98918.23497 | AA103: 0 | AB103: 4
A104: 1986-04-11 | B104: 1986 | C104: 101 | D104: =VLOOKUP($A104,'AgClim-Rain'!$D$4:$CH$10960,Hydrology!$D$1,FALSE) -> 0 | E104: 0 | F104: =MAX((E104-'Farm data entry'!$D$32)*'Farm data entry'!$D$31,0)*10*'Farm data entry'!$D$10*'Farm data entry'!$D$23 -> 0 | G104: =AND(C104>='Farm data entry'!$E$15,Hydrology!C104<='Farm data entry'!$E$16) -> TRUE | H104: 0 | I104: =VLOOKUP($A104,'AgClim-ETo'!$A$4:$CE$10960,Hydrology!$D$1,FALSE) -> 1.5458944 | J104: =(I104*'Farm data entry'!$D$33) -> 1.08212608 | K104: =kc(C104,Kc!$F$16:$I$16,Kc!$N$16:$Q$16) -> 0.5176470588 | L104: 0.5601593826 | M104: =L104*10*'Farm data entry'!$E$22 -> 280.0796913 | N104: =(M104*'Farm data entry'!$D$14) -> 42.01195369 | O104: 322.091645 | P104: =MIN($O104,R103+$H104-MIN('RWH summary'!$D$14,$R$3)) -> 322.091645 | Q104: 0 | R104: 48596.14332 | S104: 0 | T104: =MIN($O104,V103+$H104-MIN('RWH summary'!$D$14,$V$3)) -> 322.091645 | U104: 0 | V104: 73596.14332 | W104: 0 | X104: =MIN($O104,Z103+$H104-MIN('RWH summary'!$D$14,$Z$3)) -> 322.091645 | Y104: 0 | Z104: 98596.14332 | AA104: 0 | AB104: 4
A105: 1986-04-12 | B105: 1986 | C105: 102 | D105: =VLOOKUP($A105,'AgClim-Rain'!$D$4:$CH$10960,Hydrology!$D$1,FALSE) -> 0.7999999776 | E105: 0.7999999776 | F105: =MAX((E105-'Farm data entry'!$D$32)*'Farm data entry'!$D$31,0)*10*'Farm data entry'!$D$10*'Farm data entry'!$D$23 -> 0 | G105: =AND(C105>='Farm data entry'!$E$15,Hydrology!C105<='Farm data entry'!$E$16) -> TRUE | H105: 0 | I105: =VLOOKUP($A105,'AgClim-ETo'!$A$4:$CE$10960,Hydrology!$D$1,FALSE) -> 0.9443384 | J105: =(I105*'Farm data entry'!$D$33) -> 0.66103688 | K105: =kc(C105,Kc!$F$16:$I$16,Kc!$N$16:$Q$16) -> 0.5205882353 | L105: 0.3441280228 | M105: =L105*10*'Farm data entry'!$E$22 -> 172.0640114 | N105: =(M105*'Farm data entry'!$D$14) -> 25.80960171 | O105: 197.8736131 | P105: =MIN($O105,R104+$H105-MIN('RWH summary'!$D$14,$R$3)) -> 197.8736131 | Q105: 0 | R105: 48398.26971 | S105: 0 | T105: =MIN($O105,V104+$H105-MIN('RWH summary'!$D$14,$V$3)) -> 197.8736131 | U105: 0 | V105: 73398.26971 | W105: 0 | X105: =MIN($O105,Z104+$H105-MIN('RWH summary'!$D$14,$Z$3)) -> 197.8736131 | Y105: 0 | Z105: 98398.26971 | AA105: 0 | AB105: 4
A106: 1986-04-13 | B106: 1986 | C106: 103 | D106: =VLOOKUP($A106,'AgClim-Rain'!$D$4:$CH$10960,Hydrology!$D$1,FALSE) -> 8.200000224 | E106: 8.200000224 | F106: =MAX((E106-'Farm data entry'!$D$32)*'Farm data entry'!$D$31,0)*10*'Farm data entry'!$D$10*'Farm data entry'!$D$23 -> 2790.000101 | G106: =AND(C106>='Farm data entry'!$E$15,Hydrology!C106<='Farm data entry'!$E$16) -> TRUE | H106: 2790.000101 | I106: =VLOOKUP($A106,'AgClim-ETo'!$A$4:$CE$10960,Hydrology!$D$1,FALSE) -> 0.8592514 | J106: =(I106*'Farm data entry'!$D$33) -> 0.60147598 | K106: =kc(C106,Kc!$F$16:$I$16,Kc!$N$16:$Q$16) -> 0.5235294118 | L106: 0.314890366 | M106: =L106*10*'Farm data entry'!$E$22 -> 157.445183 | N106: =(M106*'Farm data entry'!$D$14) -> 23.61677745 | O106: 181.0619604 | P106: =MIN($O106,R105+$H106-MIN('RWH summary'!$D$14,$R$3)) -> 181.0619604 | Q106: 1007.207848 | R106: 50000 | S106: 0 | T106: =MIN($O106,V105+$H106-MIN('RWH summary'!$D$14,$V$3)) -> 181.0619604 | U106: 1007.207848 | V106: 75000 | W106: 0 | X106: =MIN($O106,Z105+$H106-MIN('RWH summary'!$D$14,$Z$3)) -> 181.0619604 | Y106: 1007.207848 | Z106: 100000 | AA106: 0 | AB106: 4
A107: 1986-04-14 | B107: 1986 | C107: 104 | D107: =VLOOKUP($A107,'AgClim-Rain'!$D$4:$CH$10960,Hydrology!$D$1,FALSE) -> 7.299999936 | E107: 7.299999936 | F107: =MAX((E107-'Farm data entry'!$D$32)*'Farm data entry'!$D$31,0)*10*'Farm data entry'!$D$10*'Farm data entry'!$D$23 -> 2384.999971 | G107: =AND(C107>='Farm data entry'!$E$15,Hydrology!C107<='Farm data entry'!$E$16) -> TRUE | H107: 2384.999971 | I107: =VLOOKUP($A107,'AgClim-ETo'!$A$4:$CE$10960,Hydrology!$D$1,FALSE) -> 1.2621064 | J107: =(I107*'Farm data entry'!$D$33) -> 0.88347448 | K107: =kc(C107,Kc!$F$16:$I$16,Kc!$N$16:$Q$16) -> 0.5264705882 | L107: 0.4651233292 | M107: =L107*10*'Farm data entry'!$E$22 -> 232.5616646 | N107: =(M107*'Farm data entry'!$D$14) -> 34.88424969 | O107: 267.4459143 | P107: =MIN($O107,R106+$H107-MIN('RWH summary'!$D$14,$R$3)) -> 267.4459143 | Q107: 2117.554057 | R107: 50000 | S107: 0 | T107: =MIN($O107,V106+$H107-MIN('RWH summary'!$D$14,$V$3)) -> 267.4459143 | U107: 2117.554057 | V107: 75000 | W107: 0 | X107: =MIN($O107,Z106+$H107-MIN('RWH summary'!$D$14,$Z$3)) -> 267.4459143 | Y107: 2117.554057 | Z107: 100000 | AA107: 0 | AB107: 4
A108: 1986-04-15 | B108: 1986 | C108: 105 | D108: =VLOOKUP($A108,'AgClim-Rain'!$D$4:$CH$10960,Hydrology!$D$1,FALSE) -> 4.199999904 | E108: 4.199999904 | F108: =MAX((E108-'Farm data entry'!$D$32)*'Farm data entry'!$D$31,0)*10*'Farm data entry'!$D$10*'Farm data entry'!$D$23 -> 989.9999568 | G108: =AND(C108>='Farm data entry'!$E$15,Hydrology!C108<='Farm data entry'!$E$16) -> TRUE | H108: 989.9999568 | I108: =VLOOKUP($A108,'AgClim-ETo'!$A$4:$CE$10960,Hydrology!$D$1,FALSE) -> 1.4314666 | J108: =(I108*'Farm data entry'!$D$33) -> 1.00202662 | K108: =kc(C108,Kc!$F$16:$I$16,Kc!$N$16:$Q$16) -> 0.5294117647 | L108: 0.5304846812 | M108: =L108*10*'Farm data entry'!$E$22 -> 265.2423406 | N108: =(M108*'Farm data entry'!$D$14) -> 39.78635109 | O108: 305.0286917 | P108: =MIN($O108,R107+$H108-MIN('RWH summary'!$D$14,$R$3)) -> 305.0286917 | Q108: 684.9712651 | R108: 50000 | S108: 0 | T108: =MIN($O108,V107+$H108-MIN('RWH summary'!$D$14,$V$3)) -> 305.0286917 | U108: 684.9712651 | V108: 75000 | W108: 0 | X108: =MIN($O108,Z107+$H108-MIN('RWH summary'!$D$14,$Z$3)) -> 305.0286917 | Y108: 684.9712651 | Z108: 100000 | AA108: 0 | AB108: 4
A109: 1986-04-16 | B109: 1986 | C109: 106 | D109: =VLOOKUP($A109,'AgClim-Rain'!$D$4:$CH$10960,Hydrology!$D$1,FALSE) -> 3.800000131 | E109: 3.800000131 | F109: =MAX((E109-'Farm data entry'!$D$32)*'Farm data entry'!$D$31,0)*10*'Farm data entry'!$D$10*'Farm data entry'!$D$23 -> 810.000059 | G109: =AND(C109>='Farm data entry'!$E$15,Hydrology!C109<='Farm data entry'!$E$16) -> TRUE | H109: 810.000059 | I109: =VLOOKUP($A109,'AgClim-ETo'!$A$4:$CE$10960,Hydrology!$D$1,FALSE) -> 1.2476506 | J109: =(I109*'Farm data entry'!$D$33) -> 0.87335542 | K109: =kc(C109,Kc!$F$16:$I$16,Kc!$N$16:$Q$16) -> 0.5323529412 | L109: 0.4649333265 | M109: =L109*10*'Farm data entry'!$E$22 -> 232.4666633 | N109: =(M109*'Farm data entry'!$D$14) -> 34.86999949 | O109: 267.3366628 | P109: =MIN($O109,R108+$H109-MIN('RWH summary'!$D$14,$R$3)) -> 267.3366628 | Q109: 542.6633963 | R109: 50000 | S109: 0 | T109: =MIN($O109,V108+$H109-MIN('RWH summary'!$D$14,$V$3)) -> 267.3366628 | U109: 542.6633963 | V109: 75000 | W109: 0 | X109: =MIN($O109,Z108+$H109-MIN('RWH summary'!$D$14,$Z$3)) -> 267.3366628 | Y109: 542.6633963 | Z109: 100000 | AA109: 0 | AB109: 4
A110: 1986-04-17 | B110: 1986 | C110: 107 | D110: =VLOOKUP($A110,'AgClim-Rain'!$D$4:$CH$10960,Hydrology!$D$1,FALSE) -> 0.6000000048 | E110: 0.6000000048 | F110: =MAX((E110-'Farm data entry'!$D$32)*'Farm data entry'!$D$31,0)*10*'Farm data entry'!$D$10*'Farm data entry'!$D$23 -> 0 | G110: =AND(C110>='Farm data entry'!$E$15,Hydrology!C110<='Farm data entry'!$E$16) -> TRUE | H110: 0 | I110: =VLOOKUP($A110,'AgClim-ETo'!$A$4:$CE$10960,Hydrology!$D$1,FALSE) -> 1.0408247 | J110: =(I110*'Farm data entry'!$D$33) -> 0.72857729 | K110: =kc(C110,Kc!$F$16:$I$16,Kc!$N$16:$Q$16) -> 0.5352941176 | L110: 0.3900031376 | M110: =L110*10*'Farm data entry'!$E$22 -> 195.0015688 | N110: =(M110*'Farm data entry'!$D$14) -> 29.25023532 | O110: 224.2518041 | P110: =MIN($O110,R109+$H110-MIN('RWH summary'!$D$14,$R$3)) -> 224.2518041 | Q110: 0 | R110: 49775.7482 | S110: 0 | T110: =MIN($O110,V109+$H110-MIN('RWH summary'!$D$14,$V$3)) -> 224.2518041 | U110: 0 | V110: 74775.7482 | W110: 0 | X110: =MIN($O110,Z109+$H110-MIN('RWH summary'!$D$14,$Z$3)) -> 224.2518041 | Y110: 0 | Z110: 99775.7482 | AA110: 0 | AB110: 4
A111: 1986-04-18 | B111: 1986 | C111: 108 | D111: =VLOOKUP($A111,'AgClim-Rain'!$D$4:$CH$10960,Hydrology!$D$1,FALSE) -> 0.09999999936 | E111: 0.09999999936 | F111: =MAX((E111-'Farm data entry'!$D$32)*'Farm data entry'!$D$31,0)*10*'Farm data entry'!$D$10*'Farm data entry'!$D$23 -> 0 | G111: =AND(C111>='Farm data entry'!$E$15,Hydrology!C111<='Farm data entry'!$E$16) -> TRUE | H111: 0 | I111: =VLOOKUP($A111,'AgClim-ETo'!$A$4:$CE$10960,Hydrology!$D$1,FALSE) -> 1.4282113 | J111: =(I111*'Farm data entry'!$D$33) -> 0.99974791 | K111: =kc(C111,Kc!$F$16:$I$16,Kc!$N$16:$Q$16) -> 0.5382352941 | L111: 0.5380996104 | M111: =L111*10*'Farm data entry'!$E$22 -> 269.0498052 | N111: =(M111*'Farm data entry'!$D$14) -> 40.35747078 | O111: 309.407276 | P111: =MIN($O111,R110+$H111-MIN('RWH summary'!$D$14,$R$3)) -> 309.407276 | Q111: 0 | R111: 49466.34092 | S111: 0 | T111: =MIN($O111,V110+$H111-MIN('RWH summary'!$D$14,$V$3)) -> 309.407276 | U111: 0 | V111: 74466.34092 | W111: 0 | X111: =MIN($O111,Z110+$H111-MIN('RWH summary'!$D$14,$Z$3)) -> 309.407276 | Y111: 0 | Z111: 99466.34092 | AA111: 0 | AB111: 4
A112: 1986-04-19 | B112: 1986 | C112: 109 | D112: =VLOOKUP($A112,'AgClim-Rain'!$D$4:$CH$10960,Hydrology!$D$1,FALSE) -> 4.500000144 | E112: 4.500000144 | F112: =MAX((E112-'Farm data entry'!$D$32)*'Farm data entry'!$D$31,0)*10*'Farm data entry'!$D$10*'Farm data entry'!$D$23 -> 1125.000065 | G112: =AND(C112>='Farm data entry'!$E$15,Hydrology!C112<='Farm data entry'!$E$16) -> TRUE | H112: 1125.000065 | I112: =VLOOKUP($A112,'AgClim-ETo'!$A$4:$CE$10960,Hydrology!$D$1,FALSE) -> 1.2251133 | J112: =(I112*'Farm data entry'!$D$33) -> 0.85757931 | K112: =kc(C112,Kc!$F$16:$I$16,Kc!$N$16:$Q$16) -> 0.5411764706 | L112: 0.4641017442 | M112: =L112*10*'Farm data entry'!$E$22 -> 232.0508721 | N112: =(M112*'Farm data entry'!$D$14) -> 34.80763082 | O112: 266.8585029 | P112: =MIN($O112,R111+$H112-MIN('RWH summary'!$D$14,$R$3)) -> 266.8585029 | Q112: 324.4824818 | R112: 50000 | S112: 0 | T112: =MIN($O112,V111+$H112-MIN('RWH summary'!$D$14,$V$3)) -> 266.8585029 | U112: 324.4824818 | V112: 75000 | W112: 0 | X112: =MIN($O112,Z111+$H112-MIN('RWH summary'!$D$14,$Z$3)) -> 266.8585029 | Y112: 324.4824818 | Z112: 100000 | AA112: 0 | AB112: 4
A113: 1986-04-20 | B113: 1986 | C113: 110 | D113: =VLOOKUP($A113,'AgClim-Rain'!$D$4:$CH$10960,Hydrology!$D$1,FALSE) -> 0.3000000067 | E113: 0.3000000067 | F113: =MAX((E113-'Farm data entry'!$D$32)*'Farm data entry'!$D$31,0)*10*'Farm data entry'!$D$10*'Farm data entry'!$D$23 -> 0 | G113: =AND(C113>='Farm data entry'!$E$15,Hydrology!C113<='Farm data entry'!$E$16) -> TRUE | H113: 0 | I113: =VLOOKUP($A113,'AgClim-ETo'!$A$4:$CE$10960,Hydrology!$D$1,FALSE) -> 1.5824343 | J113: =(I113*'Farm data entry'!$D$33) -> 1.10770401 | K113: =kc(C113,Kc!$F$16:$I$16,Kc!$N$16:$Q$16) -> 0.5441176471 | L113: 0.6027212996 | M113: =L113*10*'Farm data entry'!$E$22 -> 301.3606498 | N113: =(M113*'Farm data entry'!$D$14) -> 45.20409747 | O113: 346.5647472 | P113: =MIN($O113,R112+$H113-MIN('RWH summary'!$D$14,$R$3)) -> 346.5647472 | Q113: 0 | R113: 49653.43525 | S113: 0 | T113: =MIN($O113,V112+$H113-MIN('RWH summary'!$D$14,$V$3)) -> 346.5647472 | U113: 0 | V113: 74653.43525 | W113: 0 | X113: =MIN($O113,Z112+$H113-MIN('RWH summary'!$D$14,$Z$3)) -> 346.5647472 | Y113: 0 | Z113: 99653.43525 | AA113: 0 | AB113: 4
A114: 1986-04-21 | B114: 1986 | C114: 111 | D114: =VLOOKUP($A114,'AgClim-Rain'!$D$4:$CH$10960,Hydrology!$D$1,FALSE) -> 6.499999872 | E114: 6.499999872 | F114: =MAX((E114-'Farm data entry'!$D$32)*'Farm data entry'!$D$31,0)*10*'Farm data entry'!$D$10*'Farm data entry'!$D$23 -> 2024.999942 | G114: =AND(C114>='Farm data entry'!$E$15,Hydrology!C114<='Farm data entry'!$E$16) -> TRUE | H114: 2024.999942 | I114: =VLOOKUP($A114,'AgClim-ETo'!$A$4:$CE$10960,Hydrology!$D$1,FALSE) -> 1.0426364 | J114: =(I114*'Farm data entry'!$D$33) -> 0.72984548 | K114: =kc(C114,Kc!$F$16:$I$16,Kc!$N$16:$Q$16) -> 0.5470588235 | L114: 0.3992684096 | M114: =L114*10*'Farm data entry'!$E$22 -> 199.6342048 | N114: =(M114*'Farm data entry'!$D$14) -> 29.94513072 | O114: 229.5793355 | P114: =MIN($O114,R113+$H114-MIN('RWH summary'!$D$14,$R$3)) -> 229.5793355 | Q114: 1448.85586 | R114: 50000 | S114: 0 | T114: =MIN($O114,V113+$H114-MIN('RWH summary'!$D$14,$V$3)) -> 229.5793355 | U114: 1448.85586 | V114: 75000 | W114: 0 | X114: =MIN($O114,Z113+$H114-MIN('RWH summary'!$D$14,$Z$3)) -> 229.5793355 | Y114: 1448.85586 | Z114: 100000 | AA114: 0 | AB114: 4
A115: 1986-04-22 | B115: 1986 | C115: 112 | D115: =VLOOKUP($A115,'AgClim-Rain'!$D$4:$CH$10960,Hydrology!$D$1,FALSE) -> 2.600000035 | E115: 2.600000035 | F115: =MAX((E115-'Farm data entry'!$D$32)*'Farm data entry'!$D$31,0)*10*'Farm data entry'!$D$10*'Farm data entry'!$D$23 -> 270.0000158 | G115: =AND(C115>='Farm data entry'!$E$15,Hydrology!C115<='Farm data entry'!$E$16) -> TRUE | H115: 270.0000158 | I115: =VLOOKUP($A115,'AgClim-ETo'!$A$4:$CE$10960,Hydrology!$D$1,FALSE) -> 1.864458 | J115: =(I115*'Farm data entry'!$D$33) -> 1.3051206 | K115: =kc(C115,Kc!$F$16:$I$16,Kc!$N$16:$Q$16) -> 0.55 | L115: 0.71781633 | M115: =L115*10*'Farm data entry'!$E$22 -> 358.908165 | N115: =(M115*'Farm data entry'!$D$14) -> 53.83622475 | O115: 412.7443897 | P115: =MIN($O115,R114+$H115-MIN('RWH summary'!$D$14,$R$3)) -> 412.7443897 | Q115: 0 | R115: 49857.25563 | S115: 0 | T115: =MIN($O115,V114+$H115-MIN('RWH summary'!$D$14,$V$3)) -> 412.7443897 | U115: 0 | V115: 74857.25563 | W115: 0 | X115: =MIN($O115,Z114+$H115-MIN('RWH summary'!$D$14,$Z$3)) -> 412.7443897 | Y115: 0 | Z115: 99857.25563 | AA115: 0 | AB115: 4
A116: 1986-04-23 | B116: 1986 | C116: 113 | D116: =VLOOKUP($A116,'AgClim-Rain'!$D$4:$CH$10960,Hydrology!$D$1,FALSE) -> 4.299999955 | E116: 4.299999955 | F116: =MAX((E116-'Farm data entry'!$D$32)*'Farm data entry'!$D$31,0)*10*'Farm data entry'!$D$10*'Farm data entry'!$D$23 -> 1034.99998 | G116: =AND(C116>='Farm data entry'!$E$15,Hydrology!C116<='Farm data entry'!$E$16) -> TRUE | H116: 1034.99998 | I116: =VLOOKUP($A116,'AgClim-ETo'!$A$4:$CE$10960,Hydrology!$D$1,FALSE) -> 1.2963781 | J116: =(I116*'Farm data entry'!$D$33) -> 0.90746467 | K116: =kc(C116,Kc!$F$16:$I$16,Kc!$N$16:$Q$16) -> 0.5529411765 | L116: 0.5017745822 | M116: =L116*10*'Farm data entry'!$E$22 -> 250.8872911 | N116: =(M116*'Farm data entry'!$D$14) -> 37.63309367 | O116: 288.5203848 | P116: =MIN($O116,R115+$H116-MIN('RWH summary'!$D$14,$R$3)) -> 288.5203848 | Q116: 603.7352211 | R116: 50000 | S116: 0 | T116: =MIN($O116,V115+$H116-MIN('RWH summary'!$D$14,$V$3)) -> 288.5203848 | U116: 603.7352211 | V116: 75000 | W116: 0 | X116: =MIN($O116,Z115+$H116-MIN('RWH summary'!$D$14,$Z$3)) -> 288.5203848 | Y116: 603.7352211 | Z116: 100000 | AA116: 0 | AB116: 4
A117: 1986-04-24 | B117: 1986 | C117: 114 | D117: =VLOOKUP($A117,'AgClim-Rain'!$D$4:$CH$10960,Hydrology!$D$1,FALSE) -> 0.09999999936 | E117: 0.09999999936 | F117: =MAX((E117-'Farm data entry'!$D$32)*'Farm data entry'!$D$31,0)*10*'Farm data entry'!$D$10*'Farm data entry'!$D$23 -> 0 | G117: =AND(C117>='Farm data entry'!$E$15,Hydrology!C117<='Farm data entry'!$E$16) -> TRUE | H117: 0 | I117: =VLOOKUP($A117,'AgClim-ETo'!$A$4:$CE$10960,Hydrology!$D$1,FALSE) -> 1.573073 | J117: =(I117*'Farm data entry'!$D$33) -> 1.1011511 | K117: =kc(C117,Kc!$F$16:$I$16,Kc!$N$16:$Q$16) -> 0.5558823529 | L117: 0.6121104644 | M117: =L117*10*'Farm data entry'!$E$22 -> 306.0552322 | N117: =(M117*'Farm data entry'!$D$14) -> 45.90828483 | O117: 351.963517 | P117: =MIN($O117,R116+$H117-MIN('RWH summary'!$D$14,$R$3)) -> 351.963517 | Q117: 0 | R117: 49648.03648 | S117: 0 | T117: =MIN($O117,V116+$H117-MIN('RWH summary'!$D$14,$V$3)) -> 351.963517 | U117: 0 | V117: 74648.03648 | W117: 0 | X117: =MIN($O117,Z116+$H117-MIN('RWH summary'!$D$14,$Z$3)) -> 351.963517 | Y117: 0 | Z117: 99648.03648 | AA117: 0 | AB117: 4
A118: 1986-04-25 | B118: 1986 | C118: 115 | D118: =VLOOKUP($A118,'AgClim-Rain'!$D$4:$CH$10960,Hydrology!$D$1,FALSE) -> 0 | E118: 0 | F118: =MAX((E118-'Farm data entry'!$D$32)*'Farm data entry'!$D$31,0)*10*'Farm data entry'!$D$10*'Farm data entry'!$D$23 -> 0 | G118: =AND(C118>='Farm data entry'!$E$15,Hydrology!C118<='Farm data entry'!$E$16) -> TRUE | H118: 0 | I118: =VLOOKUP($A118,'AgClim-ETo'!$A$4:$CE$10960,Hydrology!$D$1,FALSE) -> 1.7916788 | J118: =(I118*'Farm data entry'!$D$33) -> 1.25417516 | K118: =kc(C118,Kc!$F$16:$I$16,Kc!$N$16:$Q$16) -> 0.5588235294 | L118: 0.7008625894 | M118: =L118*10*'Farm data entry'!$E$22 -> 350.4312947 | N118: =(M118*'Farm data entry'!$D$14) -> 52.56469421 | O118: 402.9959889 | P118: =MIN($O118,R117+$H118-MIN('RWH summary'!$D$14,$R$3)) -> 402.9959889 | Q118: 0 | R118: 49245.04049 | S118: 0 | T118: =MIN($O118,V117+$H118-MIN('RWH summary'!$D$14,$V$3)) -> 402.9959889 | U118: 0 | V118: 74245.04049 | W118: 0 | X118: =MIN($O118,Z117+$H118-MIN('RWH summary'!$D$14,$Z$3)) -> 402.9959889 | Y118: 0 | Z118: 99245.04049 | AA118: 0 | AB118: 4
A119: 1986-04-26 | B119: 1986 | C119: 116 | D119: =VLOOKUP($A119,'AgClim-Rain'!$D$4:$CH$10960,Hydrology!$D$1,FALSE) -> 0 | E119: 0 | F119: =MAX((E119-'Farm data entry'!$D$32)*'Farm data entry'!$D$31,0)*10*'Farm data entry'!$D$10*'Farm data entry'!$D$23 -> 0 | G119: =AND(C119>='Farm data entry'!$E$15,Hydrology!C119<='Farm data entry'!$E$16) -> TRUE | H119: 0 | I119: =VLOOKUP($A119,'AgClim-ETo'!$A$4:$CE$10960,Hydrology!$D$1,FALSE) -> 2.3810942 | J119: =(I119*'Farm data entry'!$D$33) -> 1.66676594 | K119: =kc(C119,Kc!$F$16:$I$16,Kc!$N$16:$Q$16) -> 0.5617647059 | L119: 0.9363302781 | M119: =L119*10*'Farm data entry'!$E$22 -> 468.165139 | N119: =(M119*'Farm data entry'!$D$14) -> 70.22477085 | O119: 538.3899099 | P119: =MIN($O119,R118+$H119-MIN('RWH summary'!$D$14,$R$3)) -> 538.3899099 | Q119: 0 | R119: 48706.65058 | S119: 0 | T119: =MIN($O119,V118+$H119-MIN('RWH summary'!$D$14,$V$3)) -> 538.3899099 | U119: 0 | V119: 73706.65058 | W119: 0 | X119: =MIN($O119,Z118+$H119-MIN('RWH summary'!$D$14,$Z$3)) -> 538.3899099 | Y119: 0 | Z119: 98706.65058 | AA119: 0 | AB119: 4
A120: 1986-04-27 | B120: 1986 | C120: 117 | D120: =VLOOKUP($A120,'AgClim-Rain'!$D$4:$CH$10960,Hydrology!$D$1,FALSE) -> 0.09999999936 | E120: 0.09999999936 | F120: =MAX((E120-'Farm data entry'!$D$32)*'Farm data entry'!$D$31,0)*10*'Farm data entry'!$D$10*'Farm data entry'!$D$23 -> 0 | G120: =AND(C120>='Farm data entry'!$E$15,Hydrology!C120<='Farm data entry'!$E$16) -> TRUE | H120: 0 | I120: =VLOOKUP($A120,'AgClim-ETo'!$A$4:$CE$10960,Hydrology!$D$1,FALSE) -> 2.000327 | J120: =(I120*'Farm data entry'!$D$33) -> 1.4002289 | K120: =kc(C120,Kc!$F$16:$I$16,Kc!$N$16:$Q$16) -> 0.5647058824 | L120: 0.7907174965 | M120: =L120*10*'Farm data entry'!$E$22 -> 395.3587482 | N120: =(M120*'Farm data entry'!$D$14) -> 59.30381224 | O120: 454.6625605 | P120: =MIN($O120,R119+$H120-MIN('RWH summary'!$D$14,$R$3)) -> 454.6625605 | Q120: 0 | R120: 48251.98802 | S120: 0 | T120: =MIN($O120,V119+$H120-MIN('RWH summary'!$D$14,$V$3)) -> 454.6625605 | U120: 0 | V120: 73251.98802 | W120: 0 | X120: =MIN($O120,Z119+$H120-MIN('RWH summary'!$D$14,$Z$3)) -> 454.6625605 | Y120: 0 | Z120: 98251.98802 | AA120: 0 | AB120: 4
A121: 1986-04-28 | B121: 1986 | C121: 118 | D121: =VLOOKUP($A121,'AgClim-Rain'!$D$4:$CH$10960,Hydrology!$D$1,FALSE) -> 0.7000000128 | E121: 0.7000000128 | F121: =MAX((E121-'Farm data entry'!$D$32)*'Farm data entry'!$D$31,0)*10*'Farm data entry'!$D$10*'Farm data entry'!$D$23 -> 0 | G121: =AND(C121>='Farm data entry'!$E$15,Hydrology!C121<='Farm data entry'!$E$16) -> TRUE | H121: 0 | I121: =VLOOKUP($A121,'AgClim-ETo'!$A$4:$CE$10960,Hydrology!$D$1,FALSE) -> 1.2331386 | J121: =(I121*'Farm data entry'!$D$33) -> 0.86319702 | K121: =kc(C121,Kc!$F$16:$I$16,Kc!$N$16:$Q$16) -> 0.5676470588 | L121: 0.4899912496 | M121: =L121*10*'Farm data entry'!$E$22 -> 244.9956248 | N121: =(M121*'Farm data entry'!$D$14) -> 36.74934372 | O121: 281.7449685 | P121: =MIN($O121,R120+$H121-MIN('RWH summary'!$D$14,$R$3)) -> 281.7449685 | Q121: 0 | R121: 47970.24306 | S121: 0 | T121: =MIN($O121,V120+$H121-MIN('RWH summary'!$D$14,$V$3)) -> 281.7449685 | U121: 0 | V121: 72970.24306 | W121: 0 | X121: =MIN($O121,Z120+$H121-MIN('RWH summary'!$D$14,$Z$3)) -> 281.7449685 | Y121: 0 | Z121: 97970.24306 | AA121: 0 | AB121: 4
A122: 1986-04-29 | B122: 1986 | C122: 119 | D122: =VLOOKUP($A122,'AgClim-Rain'!$D$4:$CH$10960,Hydrology!$D$1,FALSE) -> 0 | E122: 0 | F122: =MAX((E122-'Farm data entry'!$D$32)*'Farm data entry'!$D$31,0)*10*'Farm data entry'!$D$10*'Farm data entry'!$D$23 -> 0 | G122: =AND(C122>='Farm data entry'!$E$15,Hydrology!C122<='Farm data entry'!$E$16) -> TRUE | H122: 0 | I122: =VLOOKUP($A122,'AgClim-ETo'!$A$4:$CE$10960,Hydrology!$D$1,FALSE) -> 2.371635 | J122: =(I122*'Farm data entry'!$D$33) -> 1.6601445 | K122: =kc(C122,Kc!$F$16:$I$16,Kc!$N$16:$Q$16) -> 0.5705882353 | L122: 0.9472589206 | M122: =L122*10*'Farm data entry'!$E$22 -> 473.6294603 | N122: =(M122*'Farm data entry'!$D$14) -> 71.04441904 | O122: 544.6738793 | P122: =MIN($O122,R121+$H122-MIN('RWH summary'!$D$14,$R$3)) -> 544.6738793 | Q122: 0 | R122: 47425.56918 | S122: 0 | T122: =MIN($O122,V121+$H122-MIN('RWH summary'!$D$14,$V$3)) -> 544.6738793 | U122: 0 | V122: 72425.56918 | W122: 0 | X122: =MIN($O122,Z121+$H122-MIN('RWH summary'!$D$14,$Z$3)) -> 544.6738793 | Y122: 0 | Z122: 97425.56918 | AA122: 0 | AB122: 4
A123: 1986-04-30 | B123: 1986 | C123: 120 | D123: =VLOOKUP($A123,'AgClim-Rain'!$D$4:$CH$10960,Hydrology!$D$1,FALSE) -> 0 | E123: 0 | F123: =MAX((E123-'Farm data entry'!$D$32)*'Farm data entry'!$D$31,0)*10*'Farm data entry'!$D$10*'Farm data entry'!$D$23 -> 0 | G123: =AND(C123>='Farm data entry'!$E$15,Hydrology!C123<='Farm data entry'!$E$16) -> TRUE | H123: 0 | I123: =VLOOKUP($A123,'AgClim-ETo'!$A$4:$CE$10960,Hydrology!$D$1,FALSE) -> 1.907834 | J123: =(I123*'Farm data entry'!$D$33) -> 1.3354838 | K123: =kc(C123,Kc!$F$16:$I$16,Kc!$N$16:$Q$16) -> 0.5735294118 | L123: 0.7659392382 | M123: =L123*10*'Farm data entry'!$E$22 -> 382.9696191 | N123: =(M123*'Farm data entry'!$D$14) -> 57.44544287 | O123: 440.415062 | P123: =MIN($O123,R122+$H123-MIN('RWH summary'!$D$14,$R$3)) -> 440.415062 | Q123: 0 | R123: 46985.15411 | S123: 0 | T123: =MIN($O123,V122+$H123-MIN('RWH summary'!$D$14,$V$3)) -> 440.415062 | U123: 0 | V123: 71985.15411 | W123: 0 | X123: =MIN($O123,Z122+$H123-MIN('RWH summary'!$D$14,$Z$3)) -> 440.415062 | Y123: 0 | Z123: 96985.15411 | AA123: 0 | AB123: 4
A124: 1986-05-01 | B124: 1986 | C124: 121 | D124: =VLOOKUP($A124,'AgClim-Rain'!$D$4:$CH$10960,Hydrology!$D$1,FALSE) -> 0 | E124: 0 | F124: =MAX((E124-'Farm data entry'!$D$32)*'Farm data entry'!$D$31,0)*10*'Farm data entry'!$D$10*'Farm data entry'!$D$23 -> 0 | G124: =AND(C124>='Farm data entry'!$E$15,Hydrology!C124<='Farm data entry'!$E$16) -> TRUE | H124: 0 | I124: =VLOOKUP($A124,'AgClim-ETo'!$A$4:$CE$10960,Hydrology!$D$1,FALSE) -> 3.1332085 | J124: =(I124*'Farm data entry'!$D$33) -> 2.19324595 | K124: =kc(C124,Kc!$F$16:$I$16,Kc!$N$16:$Q$16) -> 0.5764705882 | L124: 1.264341783 | M124: =L124*10*'Farm data entry'!$E$22 -> 632.1708915 | N124: =(M124*'Farm data entry'!$D$14) -> 94.82563372 | O124: 726.9965252 | P124: =MIN($O124,R123+$H124-MIN('RWH summary'!$D$14,$R$3)) -> 726.9965252 | Q124: 0 | R124: 46258.15759 | S124: 0 | T124: =MIN($O124,V123+$H124-MIN('RWH summary'!$D$14,$V$3)) -> 726.9965252 | U124: 0 | V124: 71258.15759 | W124: 0 | X124: =MIN($O124,Z123+$H124-MIN('RWH summary'!$D$14,$Z$3)) -> 726.9965252 | Y124: 0 | Z124: 96258.15759 | AA124: 0 | AB124: 5
A125: 1986-05-02 | B125: 1986 | C125: 122 | D125: =VLOOKUP($A125,'AgClim-Rain'!$D$4:$CH$10960,Hydrology!$D$1,FALSE) -> 0 | E125: 0 | F125: =MAX((E125-'Farm data entry'!$D$32)*'Farm data entry'!$D$31,0)*10*'Farm data entry'!$D$10*'Farm data entry'!$D$23 -> 0 | G125: =AND(C125>='Farm data entry'!$E$15,Hydrology!C125<='Farm data entry'!$E$16) -> TRUE | H125: 0 | I125: =VLOOKUP($A125,'AgClim-ETo'!$A$4:$CE$10960,Hydrology!$D$1,FALSE) -> 2.3828526 | J125: =(I125*'Farm data entry'!$D$33) -> 1.66799682 | K125: =kc(C125,Kc!$F$16:$I$16,Kc!$N$16:$Q$16) -> 0.5794117647 | L125: 0.966456981 | M125: =L125*10*'Farm data entry'!$E$22 -> 483.2284905 | N125: =(M125*'Farm data entry'!$D$14) -> 72.48427357 | O125: 555.7127641 | P125: =MIN($O125,R124+$H125-MIN('RWH summary'!$D$14,$R$3)) -> 555.7127641 | Q125: 0 | R125: 45702.44482 | S125: 0 | T125: =MIN($O125,V124+$H125-MIN('RWH summary'!$D$14,$V$3)) -> 555.7127641 | U125: 0 | V125: 70702.44482 | W125: 0 | X125: =MIN($O125,Z124+$H125-MIN('RWH summary'!$D$14,$Z$3)) -> 555.7127641 | Y125: 0 | Z125: 95702.44482 | AA125: 0 | AB125: 5
A126: 1986-05-03 | B126: 1986 | C126: 123 | D126: =VLOOKUP($A126,'AgClim-Rain'!$D$4:$CH$10960,Hydrology!$D$1,FALSE) -> 0.1999999987 | E126: 0.1999999987 | F126: =MAX((E126-'Farm data entry'!$D$32)*'Farm data entry'!$D$31,0)*10*'Farm data entry'!$D$10*'Farm data entry'!$D$23 -> 0 | G126: =AND(C126>='Farm data entry'!$E$15,Hydrology!C126<='Farm data entry'!$E$16) -> TRUE | H126: 0 | I126: =VLOOKUP($A126,'AgClim-ETo'!$A$4:$CE$10960,Hydrology!$D$1,FALSE) -> 1.6629858 | J126: =(I126*'Farm data entry'!$D$33) -> 1.16409006 | K126: =kc(C126,Kc!$F$16:$I$16,Kc!$N$16:$Q$16) -> 0.5823529412 | L126: 0.6779112702 | M126: =L126*10*'Farm data entry'!$E$22 -> 338.9556351 | N126: =(M126*'Farm data entry'!$D$14) -> 50.84334527 | O126: 389.7989804 | P126: =MIN($O126,R125+$H126-MIN('RWH summary'!$D$14,$R$3)) -> 389.7989804 | Q126: 0 | R126: 45312.64584 | S126: 0 | T126: =MIN($O126,V125+$H126-MIN('RWH summary'!$D$14,$V$3)) -> 389.7989804 | U126: 0 | V126: 70312.64584 | W126: 0 | X126: =MIN($O126,Z125+$H126-MIN('RWH summary'!$D$14,$Z$3)) -> 389.7989804 | Y126: 0 | Z126: 95312.64584 | AA126: 0 | AB126: 5
A127: 1986-05-04 | B127: 1986 | C127: 124 | D127: =VLOOKUP($A127,'AgClim-Rain'!$D$4:$CH$10960,Hydrology!$D$1,FALSE) -> 6.499999872 | E127: 6.499999872 | F127: =MAX((E127-'Farm data entry'!$D$32)*'Farm data entry'!$D$31,0)*10*'Farm data entry'!$D$10*'Farm data entry'!$D$23 -> 2024.999942 | G127: =AND(C127>='Farm data entry'!$E$15,Hydrology!C127<='Farm data entry'!$E$16) -> TRUE | H127: 2024.999942 | I127: =VLOOKUP($A127,'AgClim-ETo'!$A$4:$CE$10960,Hydrology!$D$1,FALSE) -> 2.1551623 | J127: =(I127*'Farm data entry'!$D$33) -> 1.50861361 | K127: =kc(C127,Kc!$F$16:$I$16,Kc!$N$16:$Q$16) -> 0.5852941176 | L127: 0.8829826717 | M127: =L127*10*'Farm data entry'!$E$22 -> 441.4913359 | N127: =(M127*'Farm data entry'!$D$14) -> 66.22370038 | O127: 507.7150362 | P127: =MIN($O127,R126+$H127-MIN('RWH summary'!$D$14,$R$3)) -> 507.7150362 | Q127: 0 | R127: 46829.93075 | S127: 0 | T127: =MIN($O127,V126+$H127-MIN('RWH summary'!$D$14,$V$3)) -> 507.7150362 | U127: 0 | V127: 71829.93075 | W127: 0 | X127: =MIN($O127,Z126+$H127-MIN('RWH summary'!$D$14,$Z$3)) -> 507.7150362 | Y127: 0 | Z127: 96829.93075 | AA127: 0 | AB127: 5
A128: 1986-05-05 | B128: 1986 | C128: 125 | D128: =VLOOKUP($A128,'AgClim-Rain'!$D$4:$CH$10960,Hydrology!$D$1,FALSE) -> 1.20000001 | E128: 1.20000001 | F128: =MAX((E128-'Farm data entry'!$D$32)*'Farm data entry'!$D$31,0)*10*'Farm data entry'!$D$10*'Farm data entry'!$D$23 -> 0 | G128: =AND(C128>='Farm data entry'!$E$15,Hydrology!C128<='Farm data entry'!$E$16) -> TRUE | H128: 0 | I128: =VLOOKUP($A128,'AgClim-ETo'!$A$4:$CE$10960,Hydrology!$D$1,FALSE) -> 1.9795338 | J128: =(I128*'Farm data entry'!$D$33) -> 1.38567366 | K128: =kc(C128,Kc!$F$16:$I$16,Kc!$N$16:$Q$16) -> 0.5882352941 | L128: 0.8151021529 | M128: =L128*10*'Farm data entry'!$E$22 -> 407.5510765 | N128: =(M128*'Farm data entry'!$D$14) -> 61.13266147 | O128: 468.6837379 | P128: =MIN($O128,R127+$H128-MIN('RWH summary'!$D$14,$R$3)) -> 468.6837379 | Q128: 0 | R128: 46361.24701 | S128: 0 | T128: =MIN($O128,V127+$H128-MIN('RWH summary'!$D$14,$V$3)) -> 468.6837379 | U128: 0 | V128: 71361.24701 | W128: 0 | X128: =MIN($O128,Z127+$H128-MIN('RWH summary'!$D$14,$Z$3)) -> 468.6837379 | Y128: 0 | Z128: 96361.24701 | AA128: 0 | AB128: 5
A129: 1986-05-06 | B129: 1986 | C129: 126 | D129: =VLOOKUP($A129,'AgClim-Rain'!$D$4:$CH$10960,Hydrology!$D$1,FALSE) -> 1.20000001 | E129: 1.20000001 | F129: =MAX((E129-'Farm data entry'!$D$32)*'Farm data entry'!$D$31,0)*10*'Farm data entry'!$D$10*'Farm data entry'!$D$23 -> 0 | G129: =AND(C129>='Farm data entry'!$E$15,Hydrology!C129<='Farm data entry'!$E$16) -> TRUE | H129: 0 | I129: =VLOOKUP($A129,'AgClim-ETo'!$A$4:$CE$10960,Hydrology!$D$1,FALSE) -> 2.2805693 | J129: =(I129*'Farm data entry'!$D$33) -> 1.59639851 | K129: =kc(C129,Kc!$F$16:$I$16,Kc!$N$16:$Q$16) -> 0.5911764706 | L129: 0.9437532368 | M129: =L129*10*'Farm data entry'!$E$22 -> 471.8766184 | N129: =(M129*'Farm data entry'!$D$14) -> 70.78149276 | O129: 542.6581112 | P129: =MIN($O129,R128+$H129-MIN('RWH summary'!$D$14,$R$3)) -> 542.6581112 | Q129: 0 | R129: 45818.5889 | S129: 0 | T129: =MIN($O129,V128+$H129-MIN('RWH summary'!$D$14,$V$3)) -> 542.6581112 | U129: 0 | V129: 70818.5889 | W129: 0 | X129: =MIN($O129,Z128+$H129-MIN('RWH summary'!$D$14,$Z$3)) -> 542.6581112 | Y129: 0 | Z129: 95818.5889 | AA129: 0 | AB129: 5
A130: 1986-05-07 | B130: 1986 | C130: 127 | D130: =VLOOKUP($A130,'AgClim-Rain'!$D$4:$CH$10960,Hydrology!$D$1,FALSE) -> 0.7000000128 | E130: 0.7000000128 | F130: =MAX((E130-'Farm data entry'!$D$32)*'Farm data entry'!$D$31,0)*10*'Farm data entry'!$D$10*'Farm data entry'!$D$23 -> 0 | G130: =AND(C130>='Farm data entry'!$E$15,Hydrology!C130<='Farm data entry'!$E$16) -> TRUE | H130: 0 | I130: =VLOOKUP($A130,'AgClim-ETo'!$A$4:$CE$10960,Hydrology!$D$1,FALSE) -> 2.1920462 | J130: =(I130*'Farm data entry'!$D$33) -> 1.53443234 | K130: =kc(C130,Kc!$F$16:$I$16,Kc!$N$16:$Q$16) -> 0.5941176471 | L130: 0.9116333314 | M130: =L130*10*'Farm data entry'!$E$22 -> 455.8166657 | N130: =(M130*'Farm data entry'!$D$14) -> 68.37249986 | O130: 524.1891656 | P130: =MIN($O130,R129+$H130-MIN('RWH summary'!$D$14,$R$3)) -> 524.1891656 | Q130: 0 | R130: 45294.39974 | S130: 0 | T130: =MIN($O130,V129+$H130-MIN('RWH summary'!$D$14,$V$3)) -> 524.1891656 | U130: 0 | V130: 70294.39974 | W130: 0 | X130: =MIN($O130,Z129+$H130-MIN('RWH summary'!$D$14,$Z$3)) -> 524.1891656 | Y130: 0 | Z130: 95294.39974 | AA130: 0 | AB130: 5
A131: 1986-05-08 | B131: 1986 | C131: 128 | D131: =VLOOKUP($A131,'AgClim-Rain'!$D$4:$CH$10960,Hydrology!$D$1,FALSE) -> 2.299999968 | E131: 2.299999968 | F131: =MAX((E131-'Farm data entry'!$D$32)*'Farm data entry'!$D$31,0)*10*'Farm data entry'!$D$10*'Farm data entry'!$D$23 -> 134.9999856 | G131: =AND(C131>='Farm data entry'!$E$15,Hydrology!C131<='Farm data entry'!$E$16) -> TRUE | H131: 134.9999856 | I131: =VLOOKUP($A131,'AgClim-ETo'!$A$4:$CE$10960,Hydrology!$D$1,FALSE) -> 1.9954116 | J131: =(I131*'Farm data entry'!$D$33) -> 1.39678812 | K131: =kc(C131,Kc!$F$16:$I$16,Kc!$N$16:$Q$16) -> 0.5970588235 | L131: 0.8339646716 | M131: =L131*10*'Farm data entry'!$E$22 -> 416.9823358 | N131: =(M131*'Farm data entry'!$D$14) -> 62.54735037 | O131: 479.5296862 | P131: =MIN($O131,R130+$H131-MIN('RWH summary'!$D$14,$R$3)) -> 479.5296862 | Q131: 0 | R131: 44949.87004 | S131: 0 | T131: =MIN($O131,V130+$H131-MIN('RWH summary'!$D$14,$V$3)) -> 479.5296862 | U131: 0 | V131: 69949.87004 | W131: 0 | X131: =MIN($O131,Z130+$H131-MIN('RWH summary'!$D$14,$Z$3)) -> 479.5296862 | Y131: 0 | Z131: 94949.87004 | AA131: 0 | AB131: 5
A132: 1986-05-09 | B132: 1986 | C132: =A132-DATE(YEAR(A132)-1,12,31) -> 129 | D132: =VLOOKUP($A132,'AgClim-Rain'!$D$4:$CH$10960,Hydrology!$D$1,FALSE) -> 1.20000001 | E132: =D132-(D132*-DeafaultCF) -> 1.20000001 | F132: =MAX((E132-'Farm data entry'!$D$32)*'Farm data entry'!$D$31,0)*10*'Farm data entry'!$D$10*'Farm data entry'!$D$23 -> 0 | G132: =AND(C132>='Farm data entry'!$E$15,Hydrology!C132<='Farm data entry'!$E$16) -> TRUE | H132: =F132*G132 -> 0 | I132: =VLOOKUP($A132,'AgClim-ETo'!$A$4:$CE$10960,Hydrology!$D$1,FALSE) -> 1.1149596 | J132: =(I132*'Farm data entry'!$D$33) -> 0.78047172 | K132: =kc(C132,Kc!$F$16:$I$16,Kc!$N$16:$Q$16) -> 0.6 | L132: =(K132*J132) -> 0.468283032 | M132: =L132*10*'Farm data entry'!$E$22 -> 234.141516 | N132: =(M132*'Farm data entry'!$D$14) -> 35.1212274 | O132: 269.2627434 | P132: =MIN($O132,R131+$H132-MIN('RWH summary'!$D$14,$R$3)) -> 269.2627434 | Q132: =MAX(R131+$H132-$O132-Q$1,0) -> 0 | R132: =MIN(R131-P132+$H132,Q$1) -> 44680.60729 | S132: 0 | T132: =MIN($O132,V131+$H132-MIN('RWH summary'!$D$14,$V$3)) -> 269.2627434 | U132: 0 | V132: 69680.60729 | W132: 0 | X132: =MIN($O132,Z131+$H132-MIN('RWH summary'!$D$14,$Z$3)) -> 269.2627434 | Y132: 0 | Z132: 94680.60729 | AA132: 0 | AB132: 5
A133: 1986-05-10 | B133: =YEAR(A133) -> 1986 | C133: 130 | D133: =VLOOKUP($A133,'AgClim-Rain'!$D$4:$CH$10960,Hydrology!$D$1,FALSE) -> 0.09999999936 | E133: 0.09999999936 | F133: =MAX((E133-'Farm data entry'!$D$32)*'Farm data entry'!$D$31,0)*10*'Farm data entry'!$D$10*'Farm data entry'!$D$23 -> 0 | G133: =AND(C133>='Farm data entry'!$E$15,Hydrology!C133<='Farm data entry'!$E$16) -> TRUE | H133: 0 | I133: =VLOOKUP($A133,'AgClim-ETo'!$A$4:$CE$10960,Hydrology!$D$1,FALSE) -> 1.4271318 | J133: =(I133*'Farm data entry'!$D$33) -> 0.99899226 | K133: =kc(C133,Kc!$F$16:$I$16,Kc!$N$16:$Q$16) -> 0.6029411765 | L133: 0.6023335685 | M133: =L133*10*'Farm data entry'!$E$22 -> 301.1667843 | N133: =(M133*'Farm data entry'!$D$14) -> 45.17501764 | O133: =SUM(M133:N133) -> 346.3418019 | P133: =MIN($O133,R132+$H133-MIN('RWH summary'!$D$14,$R$3)) -> 346.3418019 | Q133: 0 | R133: 44334.26549 | S133: =$O133-P133 -> 0 | T133: =MIN($O133,V132+$H133-MIN('RWH summary'!$D$14,$V$3)) -> 346.3418019 | U133: =MAX(V132+$H133-$O133-U$1,0) -> 0 | V133: =MIN(V132-T133+$H133,U$1) -> 69334.26549 | W133: =$O133-T133 -> 0 | X133: =MIN($O133,Z132+$H133-MIN('RWH summary'!$D$14,$Z$3)) -> 346.3418019 | Y133: =MAX(Z132+$H133-$O133-Y$1,0) -> 0 | Z133: =MIN(Z132-X133+$H133,Y$1) -> 94334.26549 | AA133: =$O133-X133 -> 0 | AB133: =MONTH(A133) -> 5
A134: 1986-05-11 | B134: 1986 | C134: 131 | D134: =VLOOKUP($A134,'AgClim-Rain'!$D$4:$CH$10960,Hydrology!$D$1,FALSE) -> 0.9000000288 | E134: 0.9000000288 | F134: =MAX((E134-'Farm data entry'!$D$32)*'Farm data entry'!$D$31,0)*10*'Farm data entry'!$D$10*'Farm data entry'!$D$23 -> 0 | G134: =AND(C134>='Farm data entry'!$E$15,Hydrology!C134<='Farm data entry'!$E$16) -> TRUE | H134: 0 | I134: =VLOOKUP($A134,'AgClim-ETo'!$A$4:$CE$10960,Hydrology!$D$1,FALSE) -> 2.161287 | J134: =(I134*'Farm data entry'!$D$33) -> 1.5129009 | K134: =kc(C134,Kc!$F$16:$I$16,Kc!$N$16:$Q$16) -> 0.6058823529 | L134: 0.9166399571 | M134: =L134*10*'Farm data entry'!$E$22 -> 458.3199785 | N134: =(M134*'Farm data entry'!$D$14) -> 68.74799678 | O134: 527.0679753 | P134: =MIN($O134,R133+$H134-MIN('RWH summary'!$D$14,$R$3)) -> 527.0679753 | Q134: 0 | R134: 43807.19751 | S134: 0 | T134: =MIN($O134,V133+$H134-MIN('RWH summary'!$D$14,$V$3)) -> 527.0679753 | U134: 0 | V134: 68807.19751 | W134: 0 | X134: =MIN($O134,Z133+$H134-MIN('RWH summary'!$D$14,$Z$3)) -> 527.0679753 | Y134: 0 | Z134: 93807.19751 | AA134: 0 | AB134: 5
A135: 1986-05-12 | B135: 1986 | C135: 132 | D135: =VLOOKUP($A135,'AgClim-Rain'!$D$4:$CH$10960,Hydrology!$D$1,FALSE) -> 0.3999999888 | E135: 0.3999999888 | F135: =MAX((E135-'Farm data entry'!$D$32)*'Farm data entry'!$D$31,0)*10*'Farm data entry'!$D$10*'Farm data entry'!$D$23 -> 0 | G135: =AND(C135>='Farm data entry'!$E$15,Hydrology!C135<='Farm data entry'!$E$16) -> TRUE | H135: 0 | I135: =VLOOKUP($A135,'AgClim-ETo'!$A$4:$CE$10960,Hydrology!$D$1,FALSE) -> 1.9938107 | J135: =(I135*'Farm data entry'!$D$33) -> 1.39566749 | K135: =kc(C135,Kc!$F$16:$I$16,Kc!$N$16:$Q$16) -> 0.6088235294 | L135: 0.8497152071 | M135: =L135*10*'Farm data entry'!$E$22 -> 424.8576036 | N135: =(M135*'Farm data entry'!$D$14) -> 63.72864054 | O135: 488.5862441 | P135: =MIN($O135,R134+$H135-MIN('RWH summary'!$D$14,$R$3)) -> 488.5862441 | Q135: 0 | R135: 43318.61127 | S135: 0 | T135: =MIN($O135,V134+$H135-MIN('RWH summary'!$D$14,$V$3)) -> 488.5862441 | U135: 0 | V135: 68318.61127 | W135: 0 | X135: =MIN($O135,Z134+$H135-MIN('RWH summary'!$D$14,$Z$3)) -> 488.5862441 | Y135: 0 | Z135: 93318.61127 | AA135: 0 | AB135: 5
A136: 1986-05-13 | B136: 1986 | C136: 133 | D136: =VLOOKUP($A136,'AgClim-Rain'!$D$4:$CH$10960,Hydrology!$D$1,FALSE) -> 1.20000001 | E136: 1.20000001 | F136: =MAX((E136-'Farm data entry'!$D$32)*'Farm data entry'!$D$31,0)*10*'Farm data entry'!$D$10*'Farm data entry'!$D$23 -> 0 | G136: =AND(C136>='Farm data entry'!$E$15,Hydrology!C136<='Farm data entry'!$E$16) -> TRUE | H136: 0 | I136: =VLOOKUP($A136,'AgClim-ETo'!$A$4:$CE$10960,Hydrology!$D$1,FALSE) -> 3.1376436 | J136: =(I136*'Farm data entry'!$D$33) -> 2.19635052 | K136: =kc(C136,Kc!$F$16:$I$16,Kc!$N$16:$Q$16) -> 0.6117647059 | L136: 1.34364973 | M136: =L136*10*'Farm data entry'!$E$22 -> 671.8248649 | N136: =(M136*'Farm data entry'!$D$14) -> 100.7737297 | O136: 772.5985947 | P136: =MIN($O136,R135+$H136-MIN('RWH summary'!$D$14,$R$3)) -> 772.5985947 | Q136: 0 | R136: 42546.01268 | S136: 0 | T136: =MIN($O136,V135+$H136-MIN('RWH summary'!$D$14,$V$3)) -> 772.5985947 | U136: 0 | V136: 67546.01268 | W136: 0 | X136: =MIN($O136,Z135+$H136-MIN('RWH summary'!$D$14,$Z$3)) -> 772.5985947 | Y136: 0 | Z136: 92546.01268 | AA136: 0 | AB136: 5
A137: 1986-05-14 | B137: 1986 | C137: 134 | D137: =VLOOKUP($A137,'AgClim-Rain'!$D$4:$CH$10960,Hydrology!$D$1,FALSE) -> 7.999999776 | E137: 7.999999776 | F137: =MAX((E137-'Farm data entry'!$D$32)*'Farm data entry'!$D$31,0)*10*'Farm data entry'!$D$10*'Farm data entry'!$D$23 -> 2699.999899 | G137: =AND(C137>='Farm data entry'!$E$15,Hydrology!C137<='Farm data entry'!$E$16) -> TRUE | H137: 2699.999899 | I137: =VLOOKUP($A137,'AgClim-ETo'!$A$4:$CE$10960,Hydrology!$D$1,FALSE) -> 2.281606 | J137: =(I137*'Farm data entry'!$D$33) -> 1.5971242 | K137: =kc(C137,Kc!$F$16:$I$16,Kc!$N$16:$Q$16) -> 0.6147058824 | L137: 0.9817616406 | M137: =L137*10*'Farm data entry'!$E$22 -> 490.8808203 | N137: =(M137*'Farm data entry'!$D$14) -> 73.63212304 | O137: 564.5129433 | P137: =MIN($O137,R136+$H137-MIN('RWH summary'!$D$14,$R$3)) -> 564.5129433 | Q137: 0 | R137: 44681.49963 | S137: 0 | T137: =MIN($O137,V136+$H137-MIN('RWH summary'!$D$14,$V$3)) -> 564.5129433 | U137: 0 | V137: 69681.49963 | W137: 0 | X137: =MIN($O137,Z136+$H137-MIN('RWH summary'!$D$14,$Z$3)) -> 564.5129433 | Y137: 0 | Z137: 94681.49963 | AA137: 0 | AB137: 5
A138: 1986-05-15 | B138: 1986 | C138: 135 | D138: =VLOOKUP($A138,'AgClim-Rain'!$D$4:$CH$10960,Hydrology!$D$1,FALSE) -> 0.7000000128 | E138: 0.7000000128 | F138: =MAX((E138-'Farm data entry'!$D$32)*'Farm data entry'!$D$31,0)*10*'Farm data entry'!$D$10*'Farm data entry'!$D$23 -> 0 | G138: =AND(C138>='Farm data entry'!$E$15,Hydrology!C138<='Farm data entry'!$E$16) -> TRUE | H138: 0 | I138: =VLOOKUP($A138,'AgClim-ETo'!$A$4:$CE$10960,Hydrology!$D$1,FALSE) -> 2.556925 | J138: =(I138*'Farm data entry'!$D$33) -> 1.7898475 | K138: =kc(C138,Kc!$F$16:$I$16,Kc!$N$16:$Q$16) -> 0.6176470588 | L138: 1.105494044 | M138: =L138*10*'Farm data entry'!$E$22 -> 552.7470221 | N138: =(M138*'Farm data entry'!$D$14) -> 82.91205331 | O138: 635.6590754 | P138: =MIN($O138,R137+$H138-MIN('RWH summary'!$D$14,$R$3)) -> 635.6590754 | Q138: 0 | R138: 44045.84056 | S138: 0 | T138: =MIN($O138,V137+$H138-MIN('RWH summary'!$D$14,$V$3)) -> 635.6590754 | U138: 0 | V138: 69045.84056 | W138: 0 | X138: =MIN($O138,Z137+$H138-MIN('RWH summary'!$D$14,$Z$3)) -> 635.6590754 | Y138: 0 | Z138: 94045.84056 | AA138: 0 | AB138: 5
A139: 1986-05-16 | B139: 1986 | C139: 136 | D139: =VLOOKUP($A139,'AgClim-Rain'!$D$4:$CH$10960,Hydrology!$D$1,FALSE) -> 0.1999999987 | E139: 0.1999999987 | F139: =MAX((E139-'Farm data entry'!$D$32)*'Farm data entry'!$D$31,0)*10*'Farm data entry'!$D$10*'Farm data entry'!$D$23 -> 0 | G139: =AND(C139>='Farm data entry'!$E$15,Hydrology!C139<='Farm data entry'!$E$16) -> TRUE | H139: 0 | I139: =VLOOKUP($A139,'AgClim-ETo'!$A$4:$CE$10960,Hydrology!$D$1,FALSE) -> 3.0356646 | J139: =(I139*'Farm data entry'!$D$33) -> 2.12496522 | K139: =kc(C139,Kc!$F$16:$I$16,Kc!$N$16:$Q$16) -> 0.6205882353 | L139: 1.318728416 | M139: =L139*10*'Farm data entry'!$E$22 -> 659.364208 | N139: =(M139*'Farm data entry'!$D$14) -> 98.9046312 | O139: 758.2688392 | P139: =MIN($O139,R138+$H139-MIN('RWH summary'!$D$14,$R$3)) -> 758.2688392 | Q139: 0 | R139: 43287.57172 | S139: 0 | T139: =MIN($O139,V138+$H139-MIN('RWH summary'!$D$14,$V$3)) -> 758.2688392 | U139: 0 | V139: 68287.57172 | W139: 0 | X139: =MIN($O139,Z138+$H139-MIN('RWH summary'!$D$14,$Z$3)) -> 758.2688392 | Y139: 0 | Z139: 93287.57172 | AA139: 0 | AB139: 5
A140: 1986-05-17 | B140: 1986 | C140: 137 | D140: =VLOOKUP($A140,'AgClim-Rain'!$D$4:$CH$10960,Hydrology!$D$1,FALSE) -> 4.100000112 | E140: 4.100000112 | F140: =MAX((E140-'Farm data entry'!$D$32)*'Farm data entry'!$D$31,0)*10*'Farm data entry'!$D$10*'Farm data entry'!$D$23 -> 945.0000504 | G140: =AND(C140>='Farm data entry'!$E$15,Hydrology!C140<='Farm data entry'!$E$16) -> TRUE | H140: 945.0000504 | I140: =VLOOKUP($A140,'AgClim-ETo'!$A$4:$CE$10960,Hydrology!$D$1,FALSE) -> 1.4891424 | J140: =(I140*'Farm data entry'!$D$33) -> 1.04239968 | K140: =kc(C140,Kc!$F$16:$I$16,Kc!$N$16:$Q$16) -> 0.6235294118 | L140: 0.6499668593 | M140: =L140*10*'Farm data entry'!$E$22 -> 324.9834296 | N140: =(M140*'Farm data entry'!$D$14) -> 48.74751445 | O140: 373.7309441 | P140: =MIN($O140,R139+$H140-MIN('RWH summary'!$D$14,$R$3)) -> 373.7309441 | Q140: 0 | R140: 43858.84082 | S140: 0 | T140: =MIN($O140,V139+$H140-MIN('RWH summary'!$D$14,$V$3)) -> 373.7309441 | U140: 0 | V140: 68858.84082 | W140: 0 | X140: =MIN($O140,Z139+$H140-MIN('RWH summary'!$D$14,$Z$3)) -> 373.7309441 | Y140: 0 | Z140: 93858.84082 | AA140: 0 | AB140: 5
A141: 1986-05-18 | B141: 1986 | C141: 138 | D141: =VLOOKUP($A141,'AgClim-Rain'!$D$4:$CH$10960,Hydrology!$D$1,FALSE) -> 0 | E141: 0 | F141: =MAX((E141-'Farm data entry'!$D$32)*'Farm data entry'!$D$31,0)*10*'Farm data entry'!$D$10*'Farm data entry'!$D$23 -> 0 | G141: =AND(C141>='Farm data entry'!$E$15,Hydrology!C141<='Farm data entry'!$E$16) -> TRUE | H141: 0 | I141: =VLOOKUP($A141,'AgClim-ETo'!$A$4:$CE$10960,Hydrology!$D$1,FALSE) -> 3.2352402 | J141: =(I141*'Farm data entry'!$D$33) -> 2.26466814 | K141: =kc(C141,Kc!$F$16:$I$16,Kc!$N$16:$Q$16) -> 0.6264705882 | L141: 1.418747982 | M141: =L141*10*'Farm data entry'!$E$22 -> 709.3739909 | N141: =(M141*'Farm data entry'!$D$14) -> 106.4060986 | O141: 815.7800895 | P141: =MIN($O141,R140+$H141-MIN('RWH summary'!$D$14,$R$3)) -> 815.7800895 | Q141: 0 | R141: 43043.06073 | S141: 0 | T141: =MIN($O141,V140+$H141-MIN('RWH summary'!$D$14,$V$3)) -> 815.7800895 | U141: 0 | V141: 68043.06073 | W141: 0 | X141: =MIN($O141,Z140+$H141-MIN('RWH summary'!$D$14,$Z$3)) -> 815.7800895 | Y141: 0 | Z141: 93043.06073 | AA141: 0 | AB141: 5
A142: 1986-05-19 | B142: 1986 | C142: 139 | D142: =VLOOKUP($A142,'AgClim-Rain'!$D$4:$CH$10960,Hydrology!$D$1,FALSE) -> 15.39999907 | E142: 15.39999907 | F142: =MAX((E142-'Farm data entry'!$D$32)*'Farm data entry'!$D$31,0)*10*'Farm data entry'!$D$10*'Farm data entry'!$D$23 -> 6029.999582 | G142: =AND(C142>='Farm data entry'!$E$15,Hydrology!C142<='Farm data entry'!$E$16) -> TRUE | H142: 6029.999582 | I142: =VLOOKUP($A142,'AgClim-ETo'!$A$4:$CE$10960,Hydrology!$D$1,FALSE) -> 2.9687376 | J142: =(I142*'Farm data entry'!$D$33) -> 2.07811632 | K142: =kc(C142,Kc!$F$16:$I$16,Kc!$N$16:$Q$16) -> 0.6294117647 | L142: 1.30799086 | M142: =L142*10*'Farm data entry'!$E$22 -> 653.9954301 | N142: =(M142*'Farm data entry'!$D$14) -> 98.09931452 | O142: 752.0947446 | P142: =MIN($O142,R141+$H142-MIN('RWH summary'!$D$14,$R$3)) -> 752.0947446 | Q142: 0 | R142: 48320.96557 | S142: 0 | T142: =MIN($O142,V141+$H142-MIN('RWH summary'!$D$14,$V$3)) -> 752.0947446 | U142: 0 | V142: 73320.96557 | W142: 0 | X142: =MIN($O142,Z141+$H142-MIN('RWH summary'!$D$14,$Z$3)) -> 752.0947446 | Y142: 0 | Z142: 98320.96557 | AA142: 0 | AB142: 5
A143: 1986-05-20 | B143: 1986 | C143: 140 | D143: =VLOOKUP($A143,'AgClim-Rain'!$D$4:$CH$10960,Hydrology!$D$1,FALSE) -> 1.900000109 | E143: 1.900000109 | F143: =MAX((E143-'Farm data entry'!$D$32)*'Farm data entry'!$D$31,0)*10*'Farm data entry'!$D$10*'Farm data entry'!$D$23 -> 0 | G143: =AND(C143>='Farm data entry'!$E$15,Hydrology!C143<='Farm data entry'!$E$16) -> TRUE | H143: 0 | I143: =VLOOKUP($A143,'AgClim-ETo'!$A$4:$CE$10960,Hydrology!$D$1,FALSE) -> 1.571157 | J143: =(I143*'Farm data entry'!$D$33) -> 1.0998099 | K143: =kc(C143,Kc!$F$16:$I$16,Kc!$N$16:$Q$16) -> 0.6323529412 | L143: 0.695468025 | M143: =L143*10*'Farm data entry'!$E$22 -> 347.7340125 | N143: =(M143*'Farm data entry'!$D$14) -> 52.16010187 | O143: 399.8941144 | P143: =MIN($O143,R142+$H143-MIN('RWH summary'!$D$14,$R$3)) -> 399.8941144 | Q143: 0 | R143: 47921.07146 | S143: 0 | T143: =MIN($O143,V142+$H143-MIN('RWH summary'!$D$14,$V$3)) -> 399.8941144 | U143: 0 | V143: 72921.07146 | W143: 0 | X143: =MIN($O143,Z142+$H143-MIN('RWH summary'!$D$14,$Z$3)) -> 399.8941144 | Y143: 0 | Z143: 97921.07146 | AA143: 0 | AB143: 5
A144: 1986-05-21 | B144: 1986 | C144: 141 | D144: =VLOOKUP($A144,'AgClim-Rain'!$D$4:$CH$10960,Hydrology!$D$1,FALSE) -> 4.500000144 | E144: 4.500000144 | F144: =MAX((E144-'Farm data entry'!$D$32)*'Farm data entry'!$D$31,0)*10*'Farm data entry'!$D$10*'Farm data entry'!$D$23 -> 1125.000065 | G144: =AND(C144>='Farm data entry'!$E$15,Hydrology!C144<='Farm data entry'!$E$16) -> TRUE | H144: 1125.000065 | I144: =VLOOKUP($A144,'AgClim-ETo'!$A$4:$CE$10960,Hydrology!$D$1,FALSE) -> 1.7917354 | J144: =(I144*'Farm data entry'!$D$33) -> 1.25421478 | K144: =kc(C144,Kc!$F$16:$I$16,Kc!$N$16:$Q$16) -> 0.6352941176 | L144: 0.796795272 | M144: =L144*10*'Farm data entry'!$E$22 -> 398.397636 | N144: =(M144*'Farm data entry'!$D$14) -> 59.7596454 | O144: 458.1572814 | P144: =MIN($O144,R143+$H144-MIN('RWH summary'!$D$14,$R$3)) -> 458.1572814 | Q144: 0 | R144: 48587.91424 | S144: 0 | T144: =MIN($O144,V143+$H144-MIN('RWH summary'!$D$14,$V$3)) -> 458.1572814 | U144: 0 | V144: 73587.91424 | W144: 0 | X144: =MIN($O144,Z143+$H144-MIN('RWH summary'!$D$14,$Z$3)) -> 458.1572814 | Y144: 0 | Z144: 98587.91424 | AA144: 0 | AB144: 5
A145: 1986-05-22 | B145: 1986 | C145: 142 | D145: =VLOOKUP($A145,'AgClim-Rain'!$D$4:$CH$10960,Hydrology!$D$1,FALSE) -> 0.09999999936 | E145: 0.09999999936 | F145: =MAX((E145-'Farm data entry'!$D$32)*'Farm data entry'!$D$31,0)*10*'Farm data entry'!$D$10*'Farm data entry'!$D$23 -> 0 | G145: =AND(C145>='Farm data entry'!$E$15,Hydrology!C145<='Farm data entry'!$E$16) -> TRUE | H145: 0 | I145: =VLOOKUP($A145,'AgClim-ETo'!$A$4:$CE$10960,Hydrology!$D$1,FALSE) -> 2.700635 | J145: =(I145*'Farm data entry'!$D$33) -> 1.8904445 | K145: =kc(C145,Kc!$F$16:$I$16,Kc!$N$16:$Q$16) -> 0.6382352941 | L145: 1.206548401 | M145: =L145*10*'Farm data entry'!$E$22 -> 603.2742007 | N145: =(M145*'Farm data entry'!$D$14) -> 90.49113011 | O145: 693.7653308 | P145: =MIN($O145,R144+$H145-MIN('RWH summary'!$D$14,$R$3)) -> 693.7653308 | Q145: 0 | R145: 47894.14891 | S145: 0 | T145: =MIN($O145,V144+$H145-MIN('RWH summary'!$D$14,$V$3)) -> 693.7653308 | U145: 0 | V145: 72894.14891 | W145: 0 | X145: =MIN($O145,Z144+$H145-MIN('RWH summary'!$D$14,$Z$3)) -> 693.7653308 | Y145: 0 | Z145: 97894.14891 | AA145: 0 | AB145: 5
A146: 1986-05-23 | B146: 1986 | C146: 143 | D146: =VLOOKUP($A146,'AgClim-Rain'!$D$4:$CH$10960,Hydrology!$D$1,FALSE) -> 0 | E146: 0 | F146: =MAX((E146-'Farm data entry'!$D$32)*'Farm data entry'!$D$31,0)*10*'Farm data entry'!$D$10*'Farm data entry'!$D$23 -> 0 | G146: =AND(C146>='Farm data entry'!$E$15,Hydrology!C146<='Farm data entry'!$E$16) -> TRUE | H146: 0 | I146: =VLOOKUP($A146,'AgClim-ETo'!$A$4:$CE$10960,Hydrology!$D$1,FALSE) -> 2.9166665 | J146: =(I146*'Farm data entry'!$D$33) -> 2.04166655 | K146: =kc(C146,Kc!$F$16:$I$16,Kc!$N$16:$Q$16) -> 0.6411764706 | L146: 1.309068553 | M146: =L146*10*'Farm data entry'!$E$22 -> 654.5342763 | N146: =(M146*'Farm data entry'!$D$14) -> 98.18014145 | O146: 752.7144178 | P146: =MIN($O146,R145+$H146-MIN('RWH summary'!$D$14,$R$3)) -> 752.7144178 | Q146: 0 | R146: 47141.43449 | S146: 0 | T146: =MIN($O146,V145+$H146-MIN('RWH summary'!$D$14,$V$3)) -> 752.7144178 | U146: 0 | V146: 72141.43449 | W146: 0 | X146: =MIN($O146,Z145+$H146-MIN('RWH summary'!$D$14,$Z$3)) -> 752.7144178 | Y146: 0 | Z146: 97141.43449 | AA146: 0 | AB146: 5
A147: 1986-05-24 | B147: 1986 | C147: 144 | D147: =VLOOKUP($A147,'AgClim-Rain'!$D$4:$CH$10960,Hydrology!$D$1,FALSE) -> 0 | E147: 0 | F147: =MAX((E147-'Farm data entry'!$D$32)*'Farm data entry'!$D$31,0)*10*'Farm data entry'!$D$10*'Farm data entry'!$D$23 -> 0 | G147: =AND(C147>='Farm data entry'!$E$15,Hydrology!C147<='Farm data entry'!$E$16) -> TRUE | H147: 0 | I147: =VLOOKUP($A147,'AgClim-ETo'!$A$4:$CE$10960,Hydrology!$D$1,FALSE) -> 2.6485891 | J147: =(I147*'Farm data entry'!$D$33) -> 1.85401237 | K147: =kc(C147,Kc!$F$16:$I$16,Kc!$N$16:$Q$16) -> 0.6441176471 | L147: 1.194202085 | M147: =L147*10*'Farm data entry'!$E$22 -> 597.1010427 | N147: =(M147*'Farm data entry'!$D$14) -> 89.5651564 | O147: 686.6661991 | P147: =MIN($O147,R146+$H147-MIN('RWH summary'!$D$14,$R$3)) -> 686.6661991 | Q147: 0 | R147: 46454.76829 | S147: 0 | T147: =MIN($O147,V146+$H147-MIN('RWH summary'!$D$14,$V$3)) -> 686.6661991 | U147: 0 | V147: 71454.76829 | W147: 0 | X147: =MIN($O147,Z146+$H147-MIN('RWH summary'!$D$14,$Z$3)) -> 686.6661991 | Y147: 0 | Z147: 96454.76829 | AA147: 0 | AB147: 5
A148: 1986-05-25 | B148: 1986 | C148: 145 | D148: =VLOOKUP($A148,'AgClim-Rain'!$D$4:$CH$10960,Hydrology!$D$1,FALSE) -> 0 | E148: 0 | F148: =MAX((E148-'Farm data entry'!$D$32)*'Farm data entry'!$D$31,0)*10*'Farm data entry'!$D$10*'Farm data entry'!$D$23 -> 0 | G148: =AND(C148>='Farm data entry'!$E$15,Hydrology!C148<='Farm data entry'!$E$16) -> TRUE | H148: 0 | I148: =VLOOKUP($A148,'AgClim-ETo'!$A$4:$CE$10960,Hydrology!$D$1,FALSE) -> 1.4730592 | J148: =(I148*'Farm data entry'!$D$33) -> 1.03114144 | K148: =kc(C148,Kc!$F$16:$I$16,Kc!$N$16:$Q$16) -> 0.6470588235 | L148: 0.6672091671 | M148: =L148*10*'Farm data entry'!$E$22 -> 333.6045835 | N148: =(M148*'Farm data entry'!$D$14) -> 50.04068753 | O148: 383.6452711 | P148: =MIN($O148,R147+$H148-MIN('RWH summary'!$D$14,$R$3)) -> 383.6452711 | Q148: 0 | R148: 46071.12302 | S148: 0 | T148: =MIN($O148,V147+$H148-MIN('RWH summary'!$D$14,$V$3)) -> 383.6452711 | U148: 0 | V148: 71071.12302 | W148: 0 | X148: =MIN($O148,Z147+$H148-MIN('RWH summary'!$D$14,$Z$3)) -> 383.6452711 | Y148: 0 | Z148: 96071.12302 | AA148: 0 | AB148: 5
A149: 1986-05-26 | B149: 1986 | C149: 146 | D149: =VLOOKUP($A149,'AgClim-Rain'!$D$4:$CH$10960,Hydrology!$D$1,FALSE) -> 0.4999999968 | E149: 0.4999999968 | F149: =MAX((E149-'Farm data entry'!$D$32)*'Farm data entry'!$D$31,0)*10*'Farm data entry'!$D$10*'Farm data entry'!$D$23 -> 0 | G149: =AND(C149>='Farm data entry'!$E$15,Hydrology!C149<='Farm data entry'!$E$16) -> TRUE | H149: 0 | I149: =VLOOKUP($A149,'AgClim-ETo'!$A$4:$CE$10960,Hydrology!$D$1,FALSE) -> 2.97692 | J149: =(I149*'Farm data entry'!$D$33) -> 2.083844 | K149: =kc(C149,Kc!$F$16:$I$16,Kc!$N$16:$Q$16) -> 0.65 | L149: 1.3544986 | M149: =L149*10*'Farm data entry'!$E$22 -> 677.2493 | N149: =(M149*'Farm data entry'!$D$14) -> 101.587395 | O149: 778.836695 | P149: =MIN($O149,R148+$H149-MIN('RWH summary'!$D$14,$R$3)) -> 778.836695 | Q149: 0 | R149: 45292.28633 | S149: 0 | T149: =MIN($O149,V148+$H149-MIN('RWH summary'!$D$14,$V$3)) -> 778.836695 | U149: 0 | V149: 70292.28633 | W149: 0 | X149: =MIN($O149,Z148+$H149-MIN('RWH summary'!$D$14,$Z$3)) -> 778.836695 | Y149: 0 | Z149: 95292.28633 | AA149: 0 | AB149: 5
A150: 1986-05-27 | B150: 1986 | C150: 147 | D150: =VLOOKUP($A150,'AgClim-Rain'!$D$4:$CH$10960,Hydrology!$D$1,FALSE) -> 0.1999999987 | E150: 0.1999999987 | F150: =MAX((E150-'Farm data entry'!$D$32)*'Farm data entry'!$D$31,0)*10*'Farm data entry'!$D$10*'Farm data entry'!$D$23 -> 0 | G150: =AND(C150>='Farm data entry'!$E$15,Hydrology!C150<='Farm data entry'!$E$16) -> TRUE | H150: 0 | I150: =VLOOKUP($A150,'AgClim-ETo'!$A$4:$CE$10960,Hydrology!$D$1,FALSE) -> 3.0673413 | J150: =(I150*'Farm data entry'!$D$33) -> 2.14713891 | K150: =kc(C150,Kc!$F$16:$I$16,Kc!$N$16:$Q$16) -> 0.6529411765 | L150: 1.401955406 | M150: =L150*10*'Farm data entry'!$E$22 -> 700.977703 | N150: =(M150*'Farm data entry'!$D$14) -> 105.1466554 | O150: 806.1243584 | P150: =MIN($O150,R149+$H150-MIN('RWH summary'!$D$14,$R$3)) -> 806.1243584 | Q150: 0 | R150: 44486.16197 | S150: 0 | T150: =MIN($O150,V149+$H150-MIN('RWH summary'!$D$14,$V$3)) -> 806.1243584 | U150: 0 | V150: 69486.16197 | W150: 0 | X150: =MIN($O150,Z149+$H150-MIN('RWH summary'!$D$14,$Z$3)) -> 806.1243584 | Y150: 0 | Z150: 94486.16197 | AA150: 0 | AB150: 5
A151: 1986-05-28 | B151: 1986 | C151: 148 | D151: =VLOOKUP($A151,'AgClim-Rain'!$D$4:$CH$10960,Hydrology!$D$1,FALSE) -> 0 | E151: 0 | F151: =MAX((E151-'Farm data entry'!$D$32)*'Farm data entry'!$D$31,0)*10*'Farm data entry'!$D$10*'Farm data entry'!$D$23 -> 0 | G151: =AND(C151>='Farm data entry'!$E$15,Hydrology!C151<='Farm data entry'!$E$16) -> TRUE | H151: 0 | I151: =VLOOKUP($A151,'AgClim-ETo'!$A$4:$CE$10960,Hydrology!$D$1,FALSE) -> 3.055726 | J151: =(I151*'Farm data entry'!$D$33) -> 2.1390082 | K151: =kc(C151,Kc!$F$16:$I$16,Kc!$N$16:$Q$16) -> 0.6558823529 | L151: 1.402937731 | M151: =L151*10*'Farm data entry'!$E$22 -> 701.4688656 | N151: =(M151*'Farm data entry'!$D$14) -> 105.2203298 | O151: 806.6891954 | P151: =MIN($O151,R150+$H151-MIN('RWH summary'!$D$14,$R$3)) -> 806.6891954 | Q151: 0 | R151: 43679.47277 | S151: 0 | T151: =MIN($O151,V150+$H151-MIN('RWH summary'!$D$14,$V$3)) -> 806.6891954 | U151: 0 | V151: 68679.47277 | W151: 0 | X151: =MIN($O151,Z150+$H151-MIN('RWH summary'!$D$14,$Z$3)) -> 806.6891954 | Y151: 0 | Z151: 93679.47277 | AA151: 0 | AB151: 5
A152: 1986-05-29 | B152: 1986 | C152: 149 | D152: =VLOOKUP($A152,'AgClim-Rain'!$D$4:$CH$10960,Hydrology!$D$1,FALSE) -> 0 | E152: 0 | F152: =MAX((E152-'Farm data entry'!$D$32)*'Farm data entry'!$D$31,0)*10*'Farm data entry'!$D$10*'Farm data entry'!$D$23 -> 0 | G152: =AND(C152>='Farm data entry'!$E$15,Hydrology!C152<='Farm data entry'!$E$16) -> TRUE | H152: 0 | I152: =VLOOKUP($A152,'AgClim-ETo'!$A$4:$CE$10960,Hydrology!$D$1,FALSE) -> 3.050895 | J152: =(I152*'Farm data entry'!$D$33) -> 2.1356265 | K152: =kc(C152,Kc!$F$16:$I$16,Kc!$N$16:$Q$16) -> 0.6588235294 | L152: 1.407000988 | M152: =L152*10*'Farm data entry'!$E$22 -> 703.5004941 | N152: =(M152*'Farm data entry'!$D$14) -> 105.5250741 | O152: 809.0255682 | P152: =MIN($O152,R151+$H152-MIN('RWH summary'!$D$14,$R$3)) -> 809.0255682 | Q152: 0 | R152: 42870.4472 | S152: 0 | T152: =MIN($O152,V151+$H152-MIN('RWH summary'!$D$14,$V$3)) -> 809.0255682 | U152: 0 | V152: 67870.4472 | W152: 0 | X152: =MIN($O152,Z151+$H152-MIN('RWH summary'!$D$14,$Z$3)) -> 809.0255682 | Y152: 0 | Z152: 92870.4472 | AA152: 0 | AB152: 5
A153: 1986-05-30 | B153: 1986 | C153: 150 | D153: =VLOOKUP($A153,'AgClim-Rain'!$D$4:$CH$10960,Hydrology!$D$1,FALSE) -> 5.300000208 | E153: 5.300000208 | F153: =MAX((E153-'Farm data entry'!$D$32)*'Farm data entry'!$D$31,0)*10*'Farm data entry'!$D$10*'Farm data entry'!$D$23 -> 1485.000094 | G153: =AND(C153>='Farm data entry'!$E$15,Hydrology!C153<='Farm data entry'!$E$16) -> TRUE | H153: 1485.000094 | I153: =VLOOKUP($A153,'AgClim-ETo'!$A$4:$CE$10960,Hydrology!$D$1,FALSE) -> 2.0376468 | J153: =(I153*'Farm data entry'!$D$33) -> 1.42635276 | K153: =kc(C153,Kc!$F$16:$I$16,Kc!$N$16:$Q$16) -> 0.6617647059 | L153: 0.9439099147 | M153: =L153*10*'Farm data entry'!$E$22 -> 471.9549574 | N153: =(M153*'Farm data entry'!$D$14) -> 70.7932436 | O153: 542.748201 | P153: =MIN($O153,R152+$H153-MIN('RWH summary'!$D$14,$R$3)) -> 542.748201 | Q153: 0 | R153: 43812.6991 | S153: 0 | T153: =MIN($O153,V152+$H153-MIN('RWH summary'!$D$14,$V$3)) -> 542.748201 | U153: 0 | V153: 68812.6991 | W153: 0 | X153: =MIN($O153,Z152+$H153-MIN('RWH summary'!$D$14,$Z$3)) -> 542.748201 | Y153: 0 | Z153: 93812.6991 | AA153: 0 | AB153: 5
A154: 1986-05-31 | B154: 1986 | C154: 151 | D154: =VLOOKUP($A154,'AgClim-Rain'!$D$4:$CH$10960,Hydrology!$D$1,FALSE) -> 0 | E154: 0 | F154: =MAX((E154-'Farm data entry'!$D$32)*'Farm data entry'!$D$31,0)*10*'Farm data entry'!$D$10*'Farm data entry'!$D$23 -> 0 | G154: =AND(C154>='Farm data entry'!$E$15,Hydrology!C154<='Farm data entry'!$E$16) -> TRUE | H154: 0 | I154: =VLOOKUP($A154,'AgClim-ETo'!$A$4:$CE$10960,Hydrology!$D$1,FALSE) -> 0.8388817 | J154: =(I154*'Farm data entry'!$D$33) -> 0.58721719 | K154: =kc(C154,Kc!$F$16:$I$16,Kc!$N$16:$Q$16) -> 0.6647058824 | L154: 0.3903267204 | M154: =L154*10*'Farm data entry'!$E$22 -> 195.1633602 | N154: =(M154*'Farm data entry'!$D$14) -> 29.27450403 | O154: 224.4378642 | P154: =MIN($O154,R153+$H154-MIN('RWH summary'!$D$14,$R$3)) -> 224.4378642 | Q154: 0 | R154: 43588.26123 | S154: 0 | T154: =MIN($O154,V153+$H154-MIN('RWH summary'!$D$14,$V$3)) -> 224.4378642 | U154: 0 | V154: 68588.26123 | W154: 0 | X154: =MIN($O154,Z153+$H154-MIN('RWH summary'!$D$14,$Z$3)) -> 224.4378642 | Y154: 0 | Z154: 93588.26123 | AA154: 0 | AB154: 5
A155: 1986-06-01 | B155: 1986 | C155: 152 | D155: =VLOOKUP($A155,'AgClim-Rain'!$D$4:$CH$10960,Hydrology!$D$1,FALSE) -> 1.300000018 | E155: 1.300000018 | F155: =MAX((E155-'Farm data entry'!$D$32)*'Farm data entry'!$D$31,0)*10*'Farm data entry'!$D$10*'Farm data entry'!$D$23 -> 0 | G155: =AND(C155>='Farm data entry'!$E$15,Hydrology!C155<='Farm data entry'!$E$16) -> TRUE | H155: 0 | I155: =VLOOKUP($A155,'AgClim-ETo'!$A$4:$CE$10960,Hydrology!$D$1,FALSE) -> 1.5413806 | J155: =(I155*'Farm data entry'!$D$33) -> 1.07896642 | K155: =kc(C155,Kc!$F$16:$I$16,Kc!$N$16:$Q$16) -> 0.6676470588 | L155: 0.7203687569 | M155: =L155*10*'Farm data entry'!$E$22 -> 360.1843784 | N155: =(M155*'Farm data entry'!$D$14) -> 54.02765677 | O155: 414.2120352 | P155: =MIN($O155,R154+$H155-MIN('RWH summary'!$D$14,$R$3)) -> 414.2120352 | Q155: 0 | R155: 43174.0492 | S155: 0 | T155: =MIN($O155,V154+$H155-MIN('RWH summary'!$D$14,$V$3)) -> 414.2120352 | U155: 0 | V155: 68174.0492 | W155: 0 | X155: =MIN($O155,Z154+$H155-MIN('RWH summary'!$D$14,$Z$3)) -> 414.2120352 | Y155: 0 | Z155: 93174.0492 | AA155: 0 | AB155: 6
A156: 1986-06-02 | B156: 1986 | C156: 153 | D156: =VLOOKUP($A156,'AgClim-Rain'!$D$4:$CH$10960,Hydrology!$D$1,FALSE) -> 1.500000077 | E156: 1.500000077 | F156: =MAX((E156-'Farm data entry'!$D$32)*'Farm data entry'!$D$31,0)*10*'Farm data entry'!$D$10*'Farm data entry'!$D$23 -> 0 | G156: =AND(C156>='Farm data entry'!$E$15,Hydrology!C156<='Farm data entry'!$E$16) -> TRUE | H156: 0 | I156: =VLOOKUP($A156,'AgClim-ETo'!$A$4:$CE$10960,Hydrology!$D$1,FALSE) -> 2.1623468 | J156: =(I156*'Farm data entry'!$D$33) -> 1.51364276 | K156: =kc(C156,Kc!$F$16:$I$16,Kc!$N$16:$Q$16) -> 0.6705882353 | L156: 1.015031027 | M156: =L156*10*'Farm data entry'!$E$22 -> 507.5155136 | N156: =(M156*'Farm data entry'!$D$14) -> 76.12732705 | O156: 583.6428407 | P156: =MIN($O156,R155+$H156-MIN('RWH summary'!$D$14,$R$3)) -> 583.6428407 | Q156: 0 | R156: 42590.40636 | S156: 0 | T156: =MIN($O156,V155+$H156-MIN('RWH summary'!$D$14,$V$3)) -> 583.6428407 | U156: 0 | V156: 67590.40636 | W156: 0 | X156: =MIN($O156,Z155+$H156-MIN('RWH summary'!$D$14,$Z$3)) -> 583.6428407 | Y156: 0 | Z156: 92590.40636 | AA156: 0 | AB156: 6
A157: 1986-06-03 | B157: 1986 | C157: 154 | D157: =VLOOKUP($A157,'AgClim-Rain'!$D$4:$CH$10960,Hydrology!$D$1,FALSE) -> 0.3999999888 | E157: 0.3999999888 | F157: =MAX((E157-'Farm data entry'!$D$32)*'Farm data entry'!$D$31,0)*10*'Farm data entry'!$D$10*'Farm data entry'!$D$23 -> 0 | G157: =AND(C157>='Farm data entry'!$E$15,Hydrology!C157<='Farm data entry'!$E$16) -> TRUE | H157: 0 | I157: =VLOOKUP($A157,'AgClim-ETo'!$A$4:$CE$10960,Hydrology!$D$1,FALSE) -> 1.6598963 | J157: =(I157*'Farm data entry'!$D$33) -> 1.16192741 | K157: =kc(C157,Kc!$F$16:$I$16,Kc!$N$16:$Q$16) -> 0.6735294118 | L157: 0.782592285 | M157: =L157*10*'Farm data entry'!$E$22 -> 391.2961425 | N157: =(M157*'Farm data entry'!$D$14) -> 58.69442137 | O157: 449.9905639 | P157: =MIN($O157,R156+$H157-MIN('RWH summary'!$D$14,$R$3)) -> 449.9905639 | Q157: 0 | R157: 42140.41579 | S157: 0 | T157: =MIN($O157,V156+$H157-MIN('RWH summary'!$D$14,$V$3)) -> 449.9905639 | U157: 0 | V157: 67140.41579 | W157: 0 | X157: =MIN($O157,Z156+$H157-MIN('RWH summary'!$D$14,$Z$3)) -> 449.9905639 | Y157: 0 | Z157: 92140.41579 | AA157: 0 | AB157: 6
A158: 1986-06-04 | B158: 1986 | C158: 155 | D158: =VLOOKUP($A158,'AgClim-Rain'!$D$4:$CH$10960,Hydrology!$D$1,FALSE) -> 0.4999999968 | E158: 0.4999999968 | F158: =MAX((E158-'Farm data entry'!$D$32)*'Farm data entry'!$D$31,0)*10*'Farm data entry'!$D$10*'Farm data entry'!$D$23 -> 0 | G158: =AND(C158>='Farm data entry'!$E$15,Hydrology!C158<='Farm data entry'!$E$16) -> TRUE | H158: 0 | I158: =VLOOKUP($A158,'AgClim-ETo'!$A$4:$CE$10960,Hydrology!$D$1,FALSE) -> 2.8249571 | J158: =(I158*'Farm data entry'!$D$33) -> 1.97746997 | K158: =kc(C158,Kc!$F$16:$I$16,Kc!$N$16:$Q$16) -> 0.6764705882 | L158: 1.337700274 | M158: =L158*10*'Farm data entry'!$E$22 -> 668.8501369 | N158: =(M158*'Farm data entry'!$D$14) -> 100.3275205 | O158: 769.1776574 | P158: =MIN($O158,R157+$H158-MIN('RWH summary'!$D$14,$R$3)) -> 769.1776574 | Q158: 0 | R158: 41371.23814 | S158: 0 | T158: =MIN($O158,V157+$H158-MIN('RWH summary'!$D$14,$V$3)) -> 769.1776574 | U158: 0 | V158: 66371.23814 | W158: 0 | X158: =MIN($O158,Z157+$H158-MIN('RWH summary'!$D$14,$Z$3)) -> 769.1776574 | Y158: 0 | Z158: 91371.23814 | AA158: 0 | AB158: 6
A159: 1986-06-05 | B159: 1986 | C159: 156 | D159: =VLOOKUP($A159,'AgClim-Rain'!$D$4:$CH$10960,Hydrology!$D$1,FALSE) -> 0.09999999936 | E159: 0.09999999936 | F159: =MAX((E159-'Farm data entry'!$D$32)*'Farm data entry'!$D$31,0)*10*'Farm data entry'!$D$10*'Farm data entry'!$D$23 -> 0 | G159: =AND(C159>='Farm data entry'!$E$15,Hydrology!C159<='Farm data entry'!$E$16) -> TRUE | H159: 0 | I159: =VLOOKUP($A159,'AgClim-ETo'!$A$4:$CE$10960,Hydrology!$D$1,FALSE) -> 2.8220484 | J159: =(I159*'Farm data entry'!$D$33) -> 1.97543388 | K159: =kc(C159,Kc!$F$16:$I$16,Kc!$N$16:$Q$16) -> 0.6794117647 | L159: 1.342133018 | M159: =L159*10*'Farm data entry'!$E$22 -> 671.0665092 | N159: =(M159*'Farm data entry'!$D$14) -> 100.6599764 | O159: 771.7264856 | P159: =MIN($O159,R158+$H159-MIN('RWH summary'!$D$14,$R$3)) -> 771.7264856 | Q159: 0 | R159: 40599.51165 | S159: 0 | T159: =MIN($O159,V158+$H159-MIN('RWH summary'!$D$14,$V$3)) -> 771.7264856 | U159: 0 | V159: 65599.51165 | W159: 0 | X159: =MIN($O159,Z158+$H159-MIN('RWH summary'!$D$14,$Z$3)) -> 771.7264856 | Y159: 0 | Z159: 90599.51165 | AA159: 0 | AB159: 6
A160: 1986-06-06 | B160: 1986 | C160: 157 | D160: =VLOOKUP($A160,'AgClim-Rain'!$D$4:$CH$10960,Hydrology!$D$1,FALSE) -> 0 | E160: 0 | F160: =MAX((E160-'Farm data entry'!$D$32)*'Farm data entry'!$D$31,0)*10*'Farm data entry'!$D$10*'Farm data entry'!$D$23 -> 0 | G160: =AND(C160>='Farm data entry'!$E$15,Hydrology!C160<='Farm data entry'!$E$16) -> TRUE | H160: 0 | I160: =VLOOKUP($A160,'AgClim-ETo'!$A$4:$CE$10960,Hydrology!$D$1,FALSE) -> 2.561845 | J160: =(I160*'Farm data entry'!$D$33) -> 1.7932915 | K160: =kc(C160,Kc!$F$16:$I$16,Kc!$N$16:$Q$16) -> 0.6823529412 | L160: 1.223657729 | M160: =L160*10*'Farm data entry'!$E$22 -> 611.8288647 | N160: =(M160*'Farm data entry'!$D$14) -> 91.77432971 | O160: 703.6031944 | P160: =MIN($O160,R159+$H160-MIN('RWH summary'!$D$14,$R$3)) -> 703.6031944 | Q160: 0 | R160: 39895.90846 | S160: 0 | T160: =MIN($O160,V159+$H160-MIN('RWH summary'!$D$14,$V$3)) -> 703.6031944 | U160: 0 | V160: 64895.90846 | W160: 0 | X160: =MIN($O160,Z159+$H160-MIN('RWH summary'!$D$14,$Z$3)) -> 703.6031944 | Y160: 0 | Z160: 89895.90846 | AA160: 0 | AB160: 6
A161: 1986-06-07 | B161: 1986 | C161: 158 | D161: =VLOOKUP($A161,'AgClim-Rain'!$D$4:$CH$10960,Hydrology!$D$1,FALSE) -> 0 | E161: 0 | F161: =MAX((E161-'Farm data entry'!$D$32)*'Farm data entry'!$D$31,0)*10*'Farm data entry'!$D$10*'Farm data entry'!$D$23 -> 0 | G161: =AND(C161>='Farm data entry'!$E$15,Hydrology!C161<='Farm data entry'!$E$16) -> TRUE | H161: 0 | I161: =VLOOKUP($A161,'AgClim-ETo'!$A$4:$CE$10960,Hydrology!$D$1,FALSE) -> 2.1076741 | J161: =(I161*'Farm data entry'!$D$33) -> 1.47537187 | K161: =kc(C161,Kc!$F$16:$I$16,Kc!$N$16:$Q$16) -> 0.6852941176 | L161: 1.011063664 | M161: =L161*10*'Farm data entry'!$E$22 -> 505.5318319 | N161: =(M161*'Farm data entry'!$D$14) -> 75.82977479 | O161: 581.3616067 | P161: =MIN($O161,R160+$H161-MIN('RWH summary'!$D$14,$R$3)) -> 581.3616067 | Q161: 0 | R161: 39314.54685 | S161: 0 | T161: =MIN($O161,V160+$H161-MIN('RWH summary'!$D$14,$V$3)) -> 581.3616067 | U161: 0 | V161: 64314.54685 | W161: 0 | X161: =MIN($O161,Z160+$H161-MIN('RWH summary'!$D$14,$Z$3)) -> 581.3616067 | Y161: 0 | Z161: 89314.54685 | AA161: 0 | AB161: 6
A162: 1986-06-08 | B162: 1986 | C162: 159 | D162: =VLOOKUP($A162,'AgClim-Rain'!$D$4:$CH$10960,Hydrology!$D$1,FALSE) -> 0 | E162: 0 | F162: =MAX((E162-'Farm data entry'!$D$32)*'Farm data entry'!$D$31,0)*10*'Farm data entry'!$D$10*'Farm data entry'!$D$23 -> 0 | G162: =AND(C162>='Farm data entry'!$E$15,Hydrology!C162<='Farm data entry'!$E$16) -> TRUE | H162: 0 | I162: =VLOOKUP($A162,'AgClim-ETo'!$A$4:$CE$10960,Hydrology!$D$1,FALSE) -> 2.8858836 | J162: =(I162*'Farm data entry'!$D$33) -> 2.02011852 | K162: =kc(C162,Kc!$F$16:$I$16,Kc!$N$16:$Q$16) -> 0.6882352941 | L162: 1.390316864 | M162: =L162*10*'Farm data entry'!$E$22 -> 695.1584319 | N162: =(M162*'Farm data entry'!$D$14) -> 104.2737648 | O162: 799.4321967 | P162: =MIN($O162,R161+$H162-MIN('RWH summary'!$D$14,$R$3)) -> 799.4321967 | Q162: 0 | R162: 38515.11465 | S162: 0 | T162: =MIN($O162,V161+$H162-MIN('RWH summary'!$D$14,$V$3)) -> 799.4321967 | U162: 0 | V162: 63515.11465 | W162: 0 | X162: =MIN($O162,Z161+$H162-MIN('RWH summary'!$D$14,$Z$3)) -> 799.4321967 | Y162: 0 | Z162: 88515.11465 | AA162: 0 | AB162: 6
A163: 1986-06-09 | B163: 1986 | C163: 160 | D163: =VLOOKUP($A163,'AgClim-Rain'!$D$4:$CH$10960,Hydrology!$D$1,FALSE) -> 26.80000128 | E163: 26.80000128 | F163: =MAX((E163-'Farm data entry'!$D$32)*'Farm data entry'!$D$31,0)*10*'Farm data entry'!$D$10*'Farm data entry'!$D$23 -> 11160.00058 | G163: =AND(C163>='Farm data entry'!$E$15,Hydrology!C163<='Farm data entry'!$E$16) -> TRUE | H163: 11160.00058 | I163: =VLOOKUP($A163,'AgClim-ETo'!$A$4:$CE$10960,Hydrology!$D$1,FALSE) -> 1.2870543 | J163: =(I163*'Farm data entry'!$D$33) -> 0.90093801 | K163: =kc(C163,Kc!$F$16:$I$16,Kc!$N$16:$Q$16) -> 0.6911764706 | L163: 0.622707154 | M163: =L163*10*'Farm data entry'!$E$22 -> 311.353577 | N163: =(M163*'Farm data entry'!$D$14) -> 46.70303655 | O163: 358.0566135 | P163: =MIN($O163,R162+$H163-MIN('RWH summary'!$D$14,$R$3)) -> 358.0566135 | Q163: 0 | R163: 49317.05861 | S163: 0 | T163: =MIN($O163,V162+$H163-MIN('RWH summary'!$D$14,$V$3)) -> 358.0566135 | U163: 0 | V163: 74317.05861 | W163: 0 | X163: =MIN($O163,Z162+$H163-MIN('RWH summary'!$D$14,$Z$3)) -> 358.0566135 | Y163: 0 | Z163: 99317.05861 | AA163: 0 | AB163: 6
A164: 1986-06-10 | B164: 1986 | C164: 161 | D164: =VLOOKUP($A164,'AgClim-Rain'!$D$4:$CH$10960,Hydrology!$D$1,FALSE) -> 4.500000144 | E164: 4.500000144 | F164: =MAX((E164-'Farm data entry'!$D$32)*'Farm data entry'!$D$31,0)*10*'Farm data entry'!$D$10*'Farm data entry'!$D$23 -> 1125.000065 | G164: =AND(C164>='Farm data entry'!$E$15,Hydrology!C164<='Farm data entry'!$E$16) -> TRUE | H164: 1125.000065 | I164: =VLOOKUP($A164,'AgClim-ETo'!$A$4:$CE$10960,Hydrology!$D$1,FALSE) -> 2.6441362 | J164: =(I164*'Farm data entry'!$D$33) -> 1.85089534 | K164: =kc(C164,Kc!$F$16:$I$16,Kc!$N$16:$Q$16) -> 0.6941176471 | L164: 1.284739118 | M164: =L164*10*'Farm data entry'!$E$22 -> 642.3695592 | N164: =(M164*'Farm data entry'!$D$14) -> 96.35543388 | O164: 738.7249931 | P164: =MIN($O164,R163+$H164-MIN('RWH summary'!$D$14,$R$3)) -> 738.7249931 | Q164: 0 | R164: 49703.33369 | S164: 0 | T164: =MIN($O164,V163+$H164-MIN('RWH summary'!$D$14,$V$3)) -> 738.7249931 | U164: 0 | V164: 74703.33369 | W164: 0 | X164: =MIN($O164,Z163+$H164-MIN('RWH summary'!$D$14,$Z$3)) -> 738.7249931 | Y164: 0 | Z164: 99703.33369 | AA164: 0 | AB164: 6
A165: 1986-06-11 | B165: 1986 | C165: 162 | D165: =VLOOKUP($A165,'AgClim-Rain'!$D$4:$CH$10960,Hydrology!$D$1,FALSE) -> 0 | E165: 0 | F165: =MAX((E165-'Farm data entry'!$D$32)*'Farm data entry'!$D$31,0)*10*'Farm data entry'!$D$10*'Farm data entry'!$D$23 -> 0 | G165: =AND(C165>='Farm data entry'!$E$15,Hydrology!C165<='Farm data entry'!$E$16) -> TRUE | H165: 0 | I165: =VLOOKUP($A165,'AgClim-ETo'!$A$4:$CE$10960,Hydrology!$D$1,FALSE) -> 3.3834329 | J165: =(I165*'Farm data entry'!$D$33) -> 2.36840303 | K165: =kc(C165,Kc!$F$16:$I$16,Kc!$N$16:$Q$16) -> 0.6970588235 | L165: 1.65091623 | M165: =L165*10*'Farm data entry'!$E$22 -> 825.4581149 | N165: =(M165*'Farm data entry'!$D$14) -> 123.8187172 | O165: 949.2768321 | P165: =MIN($O165,R164+$H165-MIN('RWH summary'!$D$14,$R$3)) -> 949.2768321 | Q165: 0 | R165: 48754.05685 | S165: 0 | T165: =MIN($O165,V164+$H165-MIN('RWH summary'!$D$14,$V$3)) -> 949.2768321 | U165: 0 | V165: 73754.05685 | W165: 0 | X165: =MIN($O165,Z164+$H165-MIN('RWH summary'!$D$14,$Z$3)) -> 949.2768321 | Y165: 0 | Z165: 98754.05685 | AA165: 0 | AB165: 6
A166: 1986-06-12 | B166: 1986 | C166: 163 | D166: =VLOOKUP($A166,'AgClim-Rain'!$D$4:$CH$10960,Hydrology!$D$1,FALSE) -> 0 | E166: 0 | F166: =MAX((E166-'Farm data entry'!$D$32)*'Farm data entry'!$D$31,0)*10*'Farm data entry'!$D$10*'Farm data entry'!$D$23 -> 0 | G166: =AND(C166>='Farm data entry'!$E$15,Hydrology!C166<='Farm data entry'!$E$16) -> TRUE | H166: 0 | I166: =VLOOKUP($A166,'AgClim-ETo'!$A$4:$CE$10960,Hydrology!$D$1,FALSE) -> 2.648044 | J166: =(I166*'Farm data entry'!$D$33) -> 1.8536308 | K166: =kc(C166,Kc!$F$16:$I$16,Kc!$N$16:$Q$16) -> 0.7 | L166: 1.29754156 | M166: =L166*10*'Farm data entry'!$E$22 -> 648.77078 | N166: =(M166*'Farm data entry'!$D$14) -> 97.315617 | O166: 746.086397 | P166: =MIN($O166,R165+$H166-MIN('RWH summary'!$D$14,$R$3)) -> 746.086397 | Q166: 0 | R166: 48007.97046 | S166: 0 | T166: =MIN($O166,V165+$H166-MIN('RWH summary'!$D$14,$V$3)) -> 746.086397 | U166: 0 | V166: 73007.97046 | W166: 0 | X166: =MIN($O166,Z165+$H166-MIN('RWH summary'!$D$14,$Z$3)) -> 746.086397 | Y166: 0 | Z166: 98007.97046 | AA166: 0 | AB166: 6
A167: 1986-06-13 | B167: 1986 | C167: 164 | D167: =VLOOKUP($A167,'AgClim-Rain'!$D$4:$CH$10960,Hydrology!$D$1,FALSE) -> 0 | E167: 0 | F167: =MAX((E167-'Farm data entry'!$D$32)*'Farm data entry'!$D$31,0)*10*'Farm data entry'!$D$10*'Farm data entry'!$D$23 -> 0 | G167: =AND(C167>='Farm data entry'!$E$15,Hydrology!C167<='Farm data entry'!$E$16) -> TRUE | H167: 0 | I167: =VLOOKUP($A167,'AgClim-ETo'!$A$4:$CE$10960,Hydrology!$D$1,FALSE) -> 2.7539563 | J167: =(I167*'Farm data entry'!$D$33) -> 1.92776941 | K167: =kc(C167,Kc!$F$16:$I$16,Kc!$N$16:$Q$16) -> 0.7029411765 | L167: 1.355108497 | M167: =L167*10*'Farm data entry'!$E$22 -> 677.5542485 | N167: =(M167*'Farm data entry'!$D$14) -> 101.6331373 | O167: 779.1873858 | P167: =MIN($O167,R166+$H167-MIN('RWH summary'!$D$14,$R$3)) -> 779.1873858 | Q167: 0 | R167: 47228.78307 | S167: 0 | T167: =MIN($O167,V166+$H167-MIN('RWH summary'!$D$14,$V$3)) -> 779.1873858 | U167: 0 | V167: 72228.78307 | W167: 0 | X167: =MIN($O167,Z166+$H167-MIN('RWH summary'!$D$14,$Z$3)) -> 779.1873858 | Y167: 0 | Z167: 97228.78307 | AA167: 0 | AB167: 6
A168: 1986-06-14 | B168: 1986 | C168: 165 | D168: =VLOOKUP($A168,'AgClim-Rain'!$D$4:$CH$10960,Hydrology!$D$1,FALSE) -> 0 | E168: 0 | F168: =MAX((E168-'Farm data entry'!$D$32)*'Farm data entry'!$D$31,0)*10*'Farm data entry'!$D$10*'Farm data entry'!$D$23 -> 0 | G168: =AND(C168>='Farm data entry'!$E$15,Hydrology!C168<='Farm data entry'!$E$16) -> TRUE | H168: 0 | I168: =VLOOKUP($A168,'AgClim-ETo'!$A$4:$CE$10960,Hydrology!$D$1,FALSE) -> 3.4678364 | J168: =(I168*'Farm data entry'!$D$33) -> 2.42748548 | K168: =kc(C168,Kc!$F$16:$I$16,Kc!$N$16:$Q$16) -> 0.7058823529 | L168: 1.713519162 | M168: =L168*10*'Farm data entry'!$E$22 -> 856.7595812 | N168: =(M168*'Farm data entry'!$D$14) -> 128.5139372 | O168: 985.2735184 | P168: =MIN($O168,R167+$H168-MIN('RWH summary'!$D$14,$R$3)) -> 985.2735184 | Q168: 0 | R168: 46243.50955 | S168: 0 | T168: =MIN($O168,V167+$H168-MIN('RWH summary'!$D$14,$V$3)) -> 985.2735184 | U168: 0 | V168: 71243.50955 | W168: 0 | X168: =MIN($O168,Z167+$H168-MIN('RWH summary'!$D$14,$Z$3)) -> 985.2735184 | Y168: 0 | Z168: 96243.50955 | AA168: 0 | AB168: 6
A169: 1986-06-15 | B169: 1986 | C169: 166 | D169: =VLOOKUP($A169,'AgClim-Rain'!$D$4:$CH$10960,Hydrology!$D$1,FALSE) -> 0 | E169: 0 | F169: =MAX((E169-'Farm data entry'!$D$32)*'Farm data entry'!$D$31,0)*10*'Farm data entry'!$D$10*'Farm data entry'!$D$23 -> 0 | G169: =AND(C169>='Farm data entry'!$E$15,Hydrology!C169<='Farm data entry'!$E$16) -> TRUE | H169: 0 | I169: =VLOOKUP($A169,'AgClim-ETo'!$A$4:$CE$10960,Hydrology!$D$1,FALSE) -> 5.0876145 | J169: =(I169*'Farm data entry'!$D$33) -> 3.56133015 | K169: =kc(C169,Kc!$F$16:$I$16,Kc!$N$16:$Q$16) -> 0.7088235294 | L169: 2.524354606 | M169: =L169*10*'Farm data entry'!$E$22 -> 1262.177303 | N169: =(M169*'Farm data entry'!$D$14) -> 189.3265955 | O169: 1451.503899 | P169: =MIN($O169,R168+$H169-MIN('RWH summary'!$D$14,$R$3)) -> 1451.503899 | Q169: 0 | R169: 44792.00565 | S169: 0 | T169: =MIN($O169,V168+$H169-MIN('RWH summary'!$D$14,$V$3)) -> 1451.503899 | U169: 0 | V169: 69792.00565 | W169: 0 | X169: =MIN($O169,Z168+$H169-MIN('RWH summary'!$D$14,$Z$3)) -> 1451.503899 | Y169: 0 | Z169: 94792.00565 | AA169: 0 | AB169: 6
A170: 1986-06-16 | B170: 1986 | C170: 167 | D170: =VLOOKUP($A170,'AgClim-Rain'!$D$4:$CH$10960,Hydrology!$D$1,FALSE) -> 0 | E170: 0 | F170: =MAX((E170-'Farm data entry'!$D$32)*'Farm data entry'!$D$31,0)*10*'Farm data entry'!$D$10*'Farm data entry'!$D$23 -> 0 | G170: =AND(C170>='Farm data entry'!$E$15,Hydrology!C170<='Farm data entry'!$E$16) -> TRUE | H170: 0 | I170: =VLOOKUP($A170,'AgClim-ETo'!$A$4:$CE$10960,Hydrology!$D$1,FALSE) -> 4.2601423 | J170: =(I170*'Farm data entry'!$D$33) -> 2.98209961 | K170: =kc(C170,Kc!$F$16:$I$16,Kc!$N$16:$Q$16) -> 0.7117647059 | L170: 2.122553252 | M170: =L170*10*'Farm data entry'!$E$22 -> 1061.276626 | N170: =(M170*'Farm data entry'!$D$14) -> 159.1914939 | O170: 1220.46812 | P170: =MIN($O170,R169+$H170-MIN('RWH summary'!$D$14,$R$3)) -> 1220.46812 | Q170: 0 | R170: 43571.53754 | S170: 0 | T170: =MIN($O170,V169+$H170-MIN('RWH summary'!$D$14,$V$3)) -> 1220.46812 | U170: 0 | V170: 68571.53754 | W170: 0 | X170: =MIN($O170,Z169+$H170-MIN('RWH summary'!$D$14,$Z$3)) -> 1220.46812 | Y170: 0 | Z170: 93571.53754 | AA170: 0 | AB170: 6
A171: 1986-06-17 | B171: 1986 | C171: 168 | D171: =VLOOKUP($A171,'AgClim-Rain'!$D$4:$CH$10960,Hydrology!$D$1,FALSE) -> 0 | E171: 0 | F171: =MAX((E171-'Farm data entry'!$D$32)*'Farm data entry'!$D$31,0)*10*'Farm data entry'!$D$10*'Farm data entry'!$D$23 -> 0 | G171: =AND(C171>='Farm data entry'!$E$15,Hydrology!C171<='Farm data entry'!$E$16) -> TRUE | H171: 0 | I171: =VLOOKUP($A171,'AgClim-ETo'!$A$4:$CE$10960,Hydrology!$D$1,FALSE) -> 2.2665534 | J171: =(I171*'Farm data entry'!$D$33) -> 1.58658738 | K171: =kc(C171,Kc!$F$16:$I$16,Kc!$N$16:$Q$16) -> 0.7147058824 | L171: 1.133943333 | M171: =L171*10*'Farm data entry'!$E$22 -> 566.9716667 | N171: =(M171*'Farm data entry'!$D$14) -> 85.04575 | O171: 652.0174167 | P171: =MIN($O171,R170+$H171-MIN('RWH summary'!$D$14,$R$3)) -> 652.0174167 | Q171: 0 | R171: 42919.52012 | S171: 0 | T171: =MIN($O171,V170+$H171-MIN('RWH summary'!$D$14,$V$3)) -> 652.0174167 | U171: 0 | V171: 67919.52012 | W171: 0 | X171: =MIN($O171,Z170+$H171-MIN('RWH summary'!$D$14,$Z$3)) -> 652.0174167 | Y171: 0 | Z171: 92919.52012 | AA171: 0 | AB171: 6
A172: 1986-06-18 | B172: 1986 | C172: 169 | D172: =VLOOKUP($A172,'AgClim-Rain'!$D$4:$CH$10960,Hydrology!$D$1,FALSE) -> 0 | E172: 0 | F172: =MAX((E172-'Farm data entry'!$D$32)*'Farm data entry'!$D$31,0)*10*'Farm data entry'!$D$10*'Farm data entry'!$D$23 -> 0 | G172: =AND(C172>='Farm data entry'!$E$15,Hydrology!C172<='Farm data entry'!$E$16) -> TRUE | H172: 0 | I172: =VLOOKUP($A172,'AgClim-ETo'!$A$4:$CE$10960,Hydrology!$D$1,FALSE) -> 3.9672637 | J172: =(I172*'Farm data entry'!$D$33) -> 2.77708459 | K172: =kc(C172,Kc!$F$16:$I$16,Kc!$N$16:$Q$16) -> 0.7176470588 | L172: 1.992966588 | M172: =L172*10*'Farm data entry'!$E$22 -> 996.4832941 | N172: =(M172*'Farm data entry'!$D$14) -> 149.4724941 | O172: 1145.955788 | P172: =MIN($O172,R171+$H172-MIN('RWH summary'!$D$14,$R$3)) -> 1145.955788 | Q172: 0 | R172: 41773.56433 | S172: 0 | T172: =MIN($O172,V171+$H172-MIN('RWH summary'!$D$14,$V$3)) -> 1145.955788 | U172: 0 | V172: 66773.56433 | W172: 0 | X172: =MIN($O172,Z171+$H172-MIN('RWH summary'!$D$14,$Z$3)) -> 1145.955788 | Y172: 0 | Z172: 91773.56433 | AA172: 0 | AB172: 6
A173: 1986-06-19 | B173: 1986 | C173: 170 | D173: =VLOOKUP($A173,'AgClim-Rain'!$D$4:$CH$10960,Hydrology!$D$1,FALSE) -> 0 | E173: 0 | F173: =MAX((E173-'Farm data entry'!$D$32)*'Farm data entry'!$D$31,0)*10*'Farm data entry'!$D$10*'Farm data entry'!$D$23 -> 0 | G173: =AND(C173>='Farm data entry'!$E$15,Hydrology!C173<='Farm data entry'!$E$16) -> TRUE | H173: 0 | I173: =VLOOKUP($A173,'AgClim-ETo'!$A$4:$CE$10960,Hydrology!$D$1,FALSE) -> 3.4529052 | J173: =(I173*'Farm data entry'!$D$33) -> 2.41703364 | K173: =kc(C173,Kc!$F$16:$I$16,Kc!$N$16:$Q$16) -> 0.7205882353 | L173: 1.741686005 | M173: =L173*10*'Farm data entry'!$E$22 -> 870.8430026 | N173: =(M173*'Farm data entry'!$D$14) -> 130.6264504 | O173: 1001.469453 | P173: =MIN($O173,R172+$H173-MIN('RWH summary'!$D$14,$R$3)) -> 1001.469453 | Q173: 0 | R173: 40772.09488 | S173: 0 | T173: =MIN($O173,V172+$H173-MIN('RWH summary'!$D$14,$V$3)) -> 1001.469453 | U173: 0 | V173: 65772.09488 | W173: 0 | X173: =MIN($O173,Z172+$H173-MIN('RWH summary'!$D$14,$Z$3)) -> 1001.469453 | Y173: 0 | Z173: 90772.09488 | AA173: 0 | AB173: 6
A174: 1986-06-20 | B174: 1986 | C174: 171 | D174: =VLOOKUP($A174,'AgClim-Rain'!$D$4:$CH$10960,Hydrology!$D$1,FALSE) -> 0 | E174: 0 | F174: =MAX((E174-'Farm data entry'!$D$32)*'Farm data entry'!$D$31,0)*10*'Farm data entry'!$D$10*'Farm data entry'!$D$23 -> 0 | G174: =AND(C174>='Farm data entry'!$E$15,Hydrology!C174<='Farm data entry'!$E$16) -> TRUE | H174: 0 | I174: =VLOOKUP($A174,'AgClim-ETo'!$A$4:$CE$10960,Hydrology!$D$1,FALSE) -> 3.3209014 | J174: =(I174*'Farm data entry'!$D$33) -> 2.32463098 | K174: =kc(C174,Kc!$F$16:$I$16,Kc!$N$16:$Q$16) -> 0.7235294118 | L174: 1.681938886 | M174: =L174*10*'Farm data entry'!$E$22 -> 840.9694428 | N174: =(M174*'Farm data entry'!$D$14) -> 126.1454164 | O174: 967.1148592 | P174: =MIN($O174,R173+$H174-MIN('RWH summary'!$D$14,$R$3)) -> 967.1148592 | Q174: 0 | R174: 39804.98002 | S174: 0 | T174: =MIN($O174,V173+$H174-MIN('RWH summary'!$D$14,$V$3)) -> 967.1148592 | U174: 0 | V174: 64804.98002 | W174: 0 | X174: =MIN($O174,Z173+$H174-MIN('RWH summary'!$D$14,$Z$3)) -> 967.1148592 | Y174: 0 | Z174: 89804.98002 | AA174: 0 | AB174: 6
A175: 1986-06-21 | B175: 1986 | C175: 172 | D175: =VLOOKUP($A175,'AgClim-Rain'!$D$4:$CH$10960,Hydrology!$D$1,FALSE) -> 0.9000000288 | E175: 0.9000000288 | F175: =MAX((E175-'Farm data entry'!$D$32)*'Farm data entry'!$D$31,0)*10*'Farm data entry'!$D$10*'Farm data entry'!$D$23 -> 0 | G175: =AND(C175>='Farm data entry'!$E$15,Hydrology!C175<='Farm data entry'!$E$16) -> TRUE | H175: 0 | I175: =VLOOKUP($A175,'AgClim-ETo'!$A$4:$CE$10960,Hydrology!$D$1,FALSE) -> 4.0365252 | J175: =(I175*'Farm data entry'!$D$33) -> 2.82556764 | K175: =kc(C175,Kc!$F$16:$I$16,Kc!$N$16:$Q$16) -> 0.7264705882 | L175: 2.052691786 | M175: =L175*10*'Farm data entry'!$E$22 -> 1026.345893 | N175: =(M175*'Farm data entry'!$D$14) -> 153.9518839 | O175: 1180.297777 | P175: =MIN($O175,R174+$H175-MIN('RWH summary'!$D$14,$R$3)) -> 1180.297777 | Q175: 0 | R175: 38624.68224 | S175: 0 | T175: =MIN($O175,V174+$H175-MIN('RWH summary'!$D$14,$V$3)) -> 1180.297777 | U175: 0 | V175: 63624.68224 | W175: 0 | X175: =MIN($O175,Z174+$H175-MIN('RWH summary'!$D$14,$Z$3)) -> 1180.297777 | Y175: 0 | Z175: 88624.68224 | AA175: 0 | AB175: 6
A176: 1986-06-22 | B176: 1986 | C176: 173 | D176: =VLOOKUP($A176,'AgClim-Rain'!$D$4:$CH$10960,Hydrology!$D$1,FALSE) -> 0.7000000128 | E176: 0.7000000128 | F176: =MAX((E176-'Farm data entry'!$D$32)*'Farm data entry'!$D$31,0)*10*'Farm data entry'!$D$10*'Farm data entry'!$D$23 -> 0 | G176: =AND(C176>='Farm data entry'!$E$15,Hydrology!C176<='Farm data entry'!$E$16) -> TRUE | H176: 0 | I176: =VLOOKUP($A176,'AgClim-ETo'!$A$4:$CE$10960,Hydrology!$D$1,FALSE) -> 1.6402681 | J176: =(I176*'Farm data entry'!$D$33) -> 1.14818767 | K176: =kc(C176,Kc!$F$16:$I$16,Kc!$N$16:$Q$16) -> 0.7294117647 | L176: 0.8375015946 | M176: =L176*10*'Farm data entry'!$E$22 -> 418.7507973 | N176: =(M176*'Farm data entry'!$D$14) -> 62.81261959 | O176: 481.5634169 | P176: =MIN($O176,R175+$H176-MIN('RWH summary'!$D$14,$R$3)) -> 481.5634169 | Q176: 0 | R176: 38143.11882 | S176: 0 | T176: =MIN($O176,V175+$H176-MIN('RWH summary'!$D$14,$V$3)) -> 481.5634169 | U176: 0 | V176: 63143.11882 | W176: 0 | X176: =MIN($O176,Z175+$H176-MIN('RWH summary'!$D$14,$Z$3)) -> 481.5634169 | Y176: 0 | Z176: 88143.11882 | AA176: 0 | AB176: 6
A177: 1986-06-23 | B177: 1986 | C177: 174 | D177: =VLOOKUP($A177,'AgClim-Rain'!$D$4:$CH$10960,Hydrology!$D$1,FALSE) -> 2.400000019 | E177: 2.400000019 | F177: =MAX((E177-'Farm data entry'!$D$32)*'Farm data entry'!$D$31,0)*10*'Farm data entry'!$D$10*'Farm data entry'!$D$23 -> 180.0000086 | G177: =AND(C177>='Farm data entry'!$E$15,Hydrology!C177<='Farm data entry'!$E$16) -> TRUE | H177: 180.0000086 | I177: =VLOOKUP($A177,'AgClim-ETo'!$A$4:$CE$10960,Hydrology!$D$1,FALSE) -> 1.852254 | J177: =(I177*'Farm data entry'!$D$33) -> 1.2965778 | K177: =kc(C177,Kc!$F$16:$I$16,Kc!$N$16:$Q$16) -> 0.7323529412 | L177: 0.9495525653 | M177: =L177*10*'Farm data entry'!$E$22 -> 474.7762826 | N177: =(M177*'Farm data entry'!$D$14) -> 71.2164424 | O177: 545.992725 | P177: =MIN($O177,R176+$H177-MIN('RWH summary'!$D$14,$R$3)) -> 545.992725 | Q177: 0 | R177: 37777.12611 | S177: 0 | T177: =MIN($O177,V176+$H177-MIN('RWH summary'!$D$14,$V$3)) -> 545.992725 | U177: 0 | V177: 62777.12611 | W177: 0 | X177: =MIN($O177,Z176+$H177-MIN('RWH summary'!$D$14,$Z$3)) -> 545.992725 | Y177: 0 | Z177: 87777.12611 | AA177: 0 | AB177: 6
A178: 1986-06-24 | B178: 1986 | C178: 175 | D178: =VLOOKUP($A178,'AgClim-Rain'!$D$4:$CH$10960,Hydrology!$D$1,FALSE) -> 1.100000045 | E178: 1.100000045 | F178: =MAX((E178-'Farm data entry'!$D$32)*'Farm data entry'!$D$31,0)*10*'Farm data entry'!$D$10*'Farm data entry'!$D$23 -> 0 | G178: =AND(C178>='Farm data entry'!$E$15,Hydrology!C178<='Farm data entry'!$E$16) -> TRUE | H178: 0 | I178: =VLOOKUP($A178,'AgClim-ETo'!$A$4:$CE$10960,Hydrology!$D$1,FALSE) -> 2.2683547 | J178: =(I178*'Farm data entry'!$D$33) -> 1.58784829 | K178: =kc(C178,Kc!$F$16:$I$16,Kc!$N$16:$Q$16) -> 0.7352941176 | L178: 1.167535507 | M178: =L178*10*'Farm data entry'!$E$22 -> 583.7677537 | N178: =(M178*'Farm data entry'!$D$14) -> 87.56516305 | O178: 671.3329167 | P178: =MIN($O178,R177+$H178-MIN('RWH summary'!$D$14,$R$3)) -> 671.3329167 | Q178: 0 | R178: 37105.79319 | S178: 0 | T178: =MIN($O178,V177+$H178-MIN('RWH summary'!$D$14,$V$3)) -> 671.3329167 | U178: 0 | V178: 62105.79319 | W178: 0 | X178: =MIN($O178,Z177+$H178-MIN('RWH summary'!$D$14,$Z$3)) -> 671.3329167 | Y178: 0 | Z178: 87105.79319 | AA178: 0 | AB178: 6
A179: 1986-06-25 | B179: 1986 | C179: 176 | D179: =VLOOKUP($A179,'AgClim-Rain'!$D$4:$CH$10960,Hydrology!$D$1,FALSE) -> 0 | E179: 0 | F179: =MAX((E179-'Farm data entry'!$D$32)*'Farm data entry'!$D$31,0)*10*'Farm data entry'!$D$10*'Farm data entry'!$D$23 -> 0 | G179: =AND(C179>='Farm data entry'!$E$15,Hydrology!C179<='Farm data entry'!$E$16) -> TRUE | H179: 0 | I179: =VLOOKUP($A179,'AgClim-ETo'!$A$4:$CE$10960,Hydrology!$D$1,FALSE) -> 3.1525111 | J179: =(I179*'Farm data entry'!$D$33) -> 2.20675777 | K179: =kc(C179,Kc!$F$16:$I$16,Kc!$N$16:$Q$16) -> 0.7382352941 | L179: 1.629106471 | M179: =L179*10*'Farm data entry'!$E$22 -> 814.5532357 | N179: =(M179*'Farm data entry'!$D$14) -> 122.1829854 | O179: 936.736221 | P179: =MIN($O179,R178+$H179-MIN('RWH summary'!$D$14,$R$3)) -> 936.736221 | Q179: 0 | R179: 36169.05697 | S179: 0 | T179: =MIN($O179,V178+$H179-MIN('RWH summary'!$D$14,$V$3)) -> 936.736221 | U179: 0 | V179: 61169.05697 | W179: 0 | X179: =MIN($O179,Z178+$H179-MIN('RWH summary'!$D$14,$Z$3)) -> 936.736221 | Y179: 0 | Z179: 86169.05697 | AA179: 0 | AB179: 6
A180: 1986-06-26 | B180: 1986 | C180: 177 | D180: =VLOOKUP($A180,'AgClim-Rain'!$D$4:$CH$10960,Hydrology!$D$1,FALSE) -> 0 | E180: 0 | F180: =MAX((E180-'Farm data entry'!$D$32)*'Farm data entry'!$D$31,0)*10*'Farm data entry'!$D$10*'Farm data entry'!$D$23 -> 0 | G180: =AND(C180>='Farm data entry'!$E$15,Hydrology!C180<='Farm data entry'!$E$16) -> TRUE | H180: 0 | I180: =VLOOKUP($A180,'AgClim-ETo'!$A$4:$CE$10960,Hydrology!$D$1,FALSE) -> 4.392531 | J180: =(I180*'Farm data entry'!$D$33) -> 3.0747717 | K180: =kc(C180,Kc!$F$16:$I$16,Kc!$N$16:$Q$16) -> 0.7411764706 | L180: 2.278948436 | M180: =L180*10*'Farm data entry'!$E$22 -> 1139.474218 | N180: =(M180*'Farm data entry'!$D$14) -> 170.9211327 | O180: 1310.395351 | P180: =MIN($O180,R179+$H180-MIN('RWH summary'!$D$14,$R$3)) -> 1310.395351 | Q180: 0 | R180: 34858.66162 | S180: 0 | T180: =MIN($O180,V179+$H180-MIN('RWH summary'!$D$14,$V$3)) -> 1310.395351 | U180: 0 | V180: 59858.66162 | W180: 0 | X180: =MIN($O180,Z179+$H180-MIN('RWH summary'!$D$14,$Z$3)) -> 1310.395351 | Y180: 0 | Z180: 84858.66162 | AA180: 0 | AB180: 6
A181: 1986-06-27 | B181: 1986 | C181: 178 | D181: =VLOOKUP($A181,'AgClim-Rain'!$D$4:$CH$10960,Hydrology!$D$1,FALSE) -> 0 | E181: 0 | F181: =MAX((E181-'Farm data entry'!$D$32)*'Farm data entry'!$D$31,0)*10*'Farm data entry'!$D$10*'Farm data entry'!$D$23 -> 0 | G181: =AND(C181>='Farm data entry'!$E$15,Hydrology!C181<='Farm data entry'!$E$16) -> TRUE | H181: 0 | I181: =VLOOKUP($A181,'AgClim-ETo'!$A$4:$CE$10960,Hydrology!$D$1,FALSE) -> 4.275973 | J181: =(I181*'Farm data entry'!$D$33) -> 2.9931811 | K181: =kc(C181,Kc!$F$16:$I$16,Kc!$N$16:$Q$16) -> 0.7441176471 | L181: 2.227278877 | M181: =L181*10*'Farm data entry'!$E$22 -> 1113.639439 | N181: =(M181*'Farm data entry'!$D$14) -> 167.0459158 | O181: 1280.685354 | P181: =MIN($O181,R180+$H181-MIN('RWH summary'!$D$14,$R$3)) -> 1280.685354 | Q181: 0 | R181: 33577.97626 | S181: 0 | T181: =MIN($O181,V180+$H181-MIN('RWH summary'!$D$14,$V$3)) -> 1280.685354 | U181: 0 | V181: 58577.97626 | W181: 0 | X181: =MIN($O181,Z180+$H181-MIN('RWH summary'!$D$14,$Z$3)) -> 1280.685354 | Y181: 0 | Z181: 83577.97626 | AA181: 0 | AB181: 6
A182: 1986-06-28 | B182: 1986 | C182: 179 | D182: =VLOOKUP($A182,'AgClim-Rain'!$D$4:$CH$10960,Hydrology!$D$1,FALSE) -> 0 | E182: 0 | F182: =MAX((E182-'Farm data entry'!$D$32)*'Farm data entry'!$D$31,0)*10*'Farm data entry'!$D$10*'Farm data entry'!$D$23 -> 0 | G182: =AND(C182>='Farm data entry'!$E$15,Hydrology!C182<='Farm data entry'!$E$16) -> TRUE | H182: 0 | I182: =VLOOKUP($A182,'AgClim-ETo'!$A$4:$CE$10960,Hydrology!$D$1,FALSE) -> 3.776642 | J182: =(I182*'Farm data entry'!$D$33) -> 2.6436494 | K182: =kc(C182,Kc!$F$16:$I$16,Kc!$N$16:$Q$16) -> 0.7470588235 | L182: 1.974961611 | M182: =L182*10*'Farm data entry'!$E$22 -> 987.4808053 | N182: =(M182*'Farm data entry'!$D$14) -> 148.1221208 | O182: 1135.602926 | P182: =MIN($O182,R181+$H182-MIN('RWH summary'!$D$14,$R$3)) -> 1135.602926 | Q182: 0 | R182: 32442.37334 | S182: 0 | T182: =MIN($O182,V181+$H182-MIN('RWH summary'!$D$14,$V$3)) -> 1135.602926 | U182: 0 | V182: 57442.37334 | W182: 0 | X182: =MIN($O182,Z181+$H182-MIN('RWH summary'!$D$14,$Z$3)) -> 1135.602926 | Y182: 0 | Z182: 82442.37334 | AA182: 0 | AB182: 6
A183: 1986-06-29 | B183: 1986 | C183: 180 | D183: =VLOOKUP($A183,'AgClim-Rain'!$D$4:$CH$10960,Hydrology!$D$1,FALSE) -> 0 | E183: 0 | F183: =MAX((E183-'Farm data entry'!$D$32)*'Farm data entry'!$D$31,0)*10*'Farm data entry'!$D$10*'Farm data entry'!$D$23 -> 0 | G183: =AND(C183>='Farm data entry'!$E$15,Hydrology!C183<='Farm data entry'!$E$16) -> TRUE | H183: 0 | I183: =VLOOKUP($A183,'AgClim-ETo'!$A$4:$CE$10960,Hydrology!$D$1,FALSE) -> 3.6590233 | J183: =(I183*'Farm data entry'!$D$33) -> 2.56131631 | K183: =kc(C183,Kc!$F$16:$I$16,Kc!$N$16:$Q$16) -> 0.75 | L183: 1.920987232 | M183: =L183*10*'Farm data entry'!$E$22 -> 960.4936162 | N183: =(M183*'Farm data entry'!$D$14) -> 144.0740424 | O183: 1104.567659 | P183: =MIN($O183,R182+$H183-MIN('RWH summary'!$D$14,$R$3)) -> 1104.567659 | Q183: 0 | R183: 31337.80568 | S183: 0 | T183: =MIN($O183,V182+$H183-MIN('RWH summary'!$D$14,$V$3)) -> 1104.567659 | U183: 0 | V183: 56337.80568 | W183: 0 | X183: =MIN($O183,Z182+$H183-MIN('RWH summary'!$D$14,$Z$3)) -> 1104.567659 | Y183: 0 | Z183: 81337.80568 | AA183: 0 | AB183: 6
A184: 1986-06-30 | B184: 1986 | C184: 181 | D184: =VLOOKUP($A184,'AgClim-Rain'!$D$4:$CH$10960,Hydrology!$D$1,FALSE) -> 0.3000000067 | E184: 0.3000000067 | F184: =MAX((E184-'Farm data entry'!$D$32)*'Farm data entry'!$D$31,0)*10*'Farm data entry'!$D$10*'Farm data entry'!$D$23 -> 0 | G184: =AND(C184>='Farm data entry'!$E$15,Hydrology!C184<='Farm data entry'!$E$16) -> TRUE | H184: 0 | I184: =VLOOKUP($A184,'AgClim-ETo'!$A$4:$CE$10960,Hydrology!$D$1,FALSE) -> 3.365274 | J184: =(I184*'Farm data entry'!$D$33) -> 2.3556918 | K184: =kc(C184,Kc!$F$16:$I$16,Kc!$N$16:$Q$16) -> 0.7529411765 | L184: 1.773697355 | M184: =L184*10*'Farm data entry'!$E$22 -> 886.8486776 | N184: =(M184*'Farm data entry'!$D$14) -> 133.0273016 | O184: 1019.875979 | P184: =MIN($O184,R183+$H184-MIN('RWH summary'!$D$14,$R$3)) -> 1019.875979 | Q184: 0 | R184: 30317.9297 | S184: 0 | T184: =MIN($O184,V183+$H184-MIN('RWH summary'!$D$14,$V$3)) -> 1019.875979 | U184: 0 | V184: 55317.9297 | W184: 0 | X184: =MIN($O184,Z183+$H184-MIN('RWH summary'!$D$14,$Z$3)) -> 1019.875979 | Y184: 0 | Z184: 80317.9297 | AA184: 0 | AB184: 6
A185: 1986-07-01 | B185: 1986 | C185: 182 | D185: =VLOOKUP($A185,'AgClim-Rain'!$D$4:$CH$10960,Hydrology!$D$1,FALSE) -> 0 | E185: 0 | F185: =MAX((E185-'Farm data entry'!$D$32)*'Farm data entry'!$D$31,0)*10*'Farm data entry'!$D$10*'Farm data entry'!$D$23 -> 0 | G185: =AND(C185>='Farm data entry'!$E$15,Hydrology!C185<='Farm data entry'!$E$16) -> TRUE | H185: 0 | I185: =VLOOKUP($A185,'AgClim-ETo'!$A$4:$CE$10960,Hydrology!$D$1,FALSE) -> 3.7036903 | J185: =(I185*'Farm data entry'!$D$33) -> 2.59258321 | K185: =kc(C185,Kc!$F$16:$I$16,Kc!$N$16:$Q$16) -> 0.7558823529 | L185: 1.959687897 | M185: =L185*10*'Farm data entry'!$E$22 -> 979.8439485 | N185: =(M185*'Farm data entry'!$D$14) -> 146.9765923 | O185: 1126.820541 | P185: =MIN($O185,R184+$H185-MIN('RWH summary'!$D$14,$R$3)) -> 1126.820541 | Q185: 0 | R185: 29191.10916 | S185: 0 | T185: =MIN($O185,V184+$H185-MIN('RWH summary'!$D$14,$V$3)) -> 1126.820541 | U185: 0 | V185: 54191.10916 | W185: 0 | X185: =MIN($O185,Z184+$H185-MIN('RWH summary'!$D$14,$Z$3)) -> 1126.820541 | Y185: 0 | Z185: 79191.10916 | AA185: 0 | AB185: 7
A186: 1986-07-02 | B186: 1986 | C186: 183 | D186: =VLOOKUP($A186,'AgClim-Rain'!$D$4:$CH$10960,Hydrology!$D$1,FALSE) -> 0 | E186: 0 | F186: =MAX((E186-'Farm data entry'!$D$32)*'Farm data entry'!$D$31,0)*10*'Farm data entry'!$D$10*'Farm data entry'!$D$23 -> 0 | G186: =AND(C186>='Farm data entry'!$E$15,Hydrology!C186<='Farm data entry'!$E$16) -> TRUE | H186: 0 | I186: =VLOOKUP($A186,'AgClim-ETo'!$A$4:$CE$10960,Hydrology!$D$1,FALSE) -> 3.1123176 | J186: =(I186*'Farm data entry'!$D$33) -> 2.17862232 | K186: =kc(C186,Kc!$F$16:$I$16,Kc!$N$16:$Q$16) -> 0.7588235294 | L186: 1.653189878 | M186: =L186*10*'Farm data entry'!$E$22 -> 826.5949391 | N186: =(M186*'Farm data entry'!$D$14) -> 123.9892409 | O186: 950.5841799 | P186: =MIN($O186,R185+$H186-MIN('RWH summary'!$D$14,$R$3)) -> 950.5841799 | Q186: 0 | R186: 28240.52498 | S186: 0 | T186: =MIN($O186,V185+$H186-MIN('RWH summary'!$D$14,$V$3)) -> 950.5841799 | U186: 0 | V186: 53240.52498 | W186: 0 | X186: =MIN($O186,Z185+$H186-MIN('RWH summary'!$D$14,$Z$3)) -> 950.5841799 | Y186: 0 | Z186: 78240.52498 | AA186: 0 | AB186: 7
A187: 1986-07-03 | B187: 1986 | C187: 184 | D187: =VLOOKUP($A187,'AgClim-Rain'!$D$4:$CH$10960,Hydrology!$D$1,FALSE) -> 0 | E187: 0 | F187: =MAX((E187-'Farm data entry'!$D$32)*'Farm data entry'!$D$31,0)*10*'Farm data entry'!$D$10*'Farm data entry'!$D$23 -> 0 | G187: =AND(C187>='Farm data entry'!$E$15,Hydrology!C187<='Farm data entry'!$E$16) -> TRUE | H187: 0 | I187: =VLOOKUP($A187,'AgClim-ETo'!$A$4:$CE$10960,Hydrology!$D$1,FALSE) -> 3.564552 | J187: =(I187*'Farm data entry'!$D$33) -> 2.4951864 | K187: =kc(C187,Kc!$F$16:$I$16,Kc!$N$16:$Q$16) -> 0.7617647059 | L187: 1.900744934 | M187: =L187*10*'Farm data entry'!$E$22 -> 950.3724671 | N187: =(M187*'Farm data entry'!$D$14) -> 142.5558701 | O187: 1092.928337 | P187: =MIN($O187,R186+$H187-MIN('RWH summary'!$D$14,$R$3)) -> 1092.928337 | Q187: 0 | R187: 27147.59664 | S187: 0 | T187: =MIN($O187,V186+$H187-MIN('RWH summary'!$D$14,$V$3)) -> 1092.928337 | U187: 0 | V187: 52147.59664 | W187: 0 | X187: =MIN($O187,Z186+$H187-MIN('RWH summary'!$D$14,$Z$3)) -> 1092.928337 | Y187: 0 | Z187: 77147.59664 | AA187: 0 | AB187: 7
A188: 1986-07-04 | B188: 1986 | C188: 185 | D188: =VLOOKUP($A188,'AgClim-Rain'!$D$4:$CH$10960,Hydrology!$D$1,FALSE) -> 0 | E188: 0 | F188: =MAX((E188-'Farm data entry'!$D$32)*'Farm data entry'!$D$31,0)*10*'Farm data entry'!$D$10*'Farm data entry'!$D$23 -> 0 | G188: =AND(C188>='Farm data entry'!$E$15,Hydrology!C188<='Farm data entry'!$E$16) -> TRUE | H188: 0 | I188: =VLOOKUP($A188,'AgClim-ETo'!$A$4:$CE$10960,Hydrology!$D$1,FALSE) -> 1.9260592 | J188: =(I188*'Farm data entry'!$D$33) -> 1.34824144 | K188: =kc(C188,Kc!$F$16:$I$16,Kc!$N$16:$Q$16) -> 0.7647058824 | L188: 1.03100816 | M188: =L188*10*'Farm data entry'!$E$22 -> 515.50408 | N188: =(M188*'Farm data entry'!$D$14) -> 77.325612 | O188: 592.829692 | P188: =MIN($O188,R187+$H188-MIN('RWH summary'!$D$14,$R$3)) -> 592.829692 | Q188: 0 | R188: 26554.76695 | S188: 0 | T188: =MIN($O188,V187+$H188-MIN('RWH summary'!$D$14,$V$3)) -> 592.829692 | U188: 0 | V188: 51554.76695 | W188: 0 | X188: =MIN($O188,Z187+$H188-MIN('RWH summary'!$D$14,$Z$3)) -> 592.829692 | Y188: 0 | Z188: 76554.76695 | AA188: 0 | AB188: 7
A189: 1986-07-05 | B189: 1986 | C189: 186 | D189: =VLOOKUP($A189,'AgClim-Rain'!$D$4:$CH$10960,Hydrology!$D$1,FALSE) -> 0.3000000067 | E189: 0.3000000067 | F189: =MAX((E189-'Farm data entry'!$D$32)*'Farm data entry'!$D$31,0)*10*'Farm data entry'!$D$10*'Farm data entry'!$D$23 -> 0 | G189: =AND(C189>='Farm data entry'!$E$15,Hydrology!C189<='Farm data entry'!$E$16) -> TRUE | H189: 0 | I189: =VLOOKUP($A189,'AgClim-ETo'!$A$4:$CE$10960,Hydrology!$D$1,FALSE) -> 1.0471475 | J189: =(I189*'Farm data entry'!$D$33) -> 0.73300325 | K189: =kc(C189,Kc!$F$16:$I$16,Kc!$N$16:$Q$16) -> 0.7676470588 | L189: 0.562687789 | M189: =L189*10*'Farm data entry'!$E$22 -> 281.3438945 | N189: =(M189*'Farm data entry'!$D$14) -> 42.20158417 | O189: 323.5454787 | P189: =MIN($O189,R188+$H189-MIN('RWH summary'!$D$14,$R$3)) -> 323.5454787 | Q189: 0 | R189: 26231.22147 | S189: 0 | T189: =MIN($O189,V188+$H189-MIN('RWH summary'!$D$14,$V$3)) -> 323.5454787 | U189: 0 | V189: 51231.22147 | W189: 0 | X189: =MIN($O189,Z188+$H189-MIN('RWH summary'!$D$14,$Z$3)) -> 323.5454787 | Y189: 0 | Z189: 76231.22147 | AA189: 0 | AB189: 7
A190: 1986-07-06 | B190: 1986 | C190: 187 | D190: =VLOOKUP($A190,'AgClim-Rain'!$D$4:$CH$10960,Hydrology!$D$1,FALSE) -> 0 | E190: 0 | F190: =MAX((E190-'Farm data entry'!$D$32)*'Farm data entry'!$D$31,0)*10*'Farm data entry'!$D$10*'Farm data entry'!$D$23 -> 0 | G190: =AND(C190>='Farm data entry'!$E$15,Hydrology!C190<='Farm data entry'!$E$16) -> TRUE | H190: 0 | I190: =VLOOKUP($A190,'AgClim-ETo'!$A$4:$CE$10960,Hydrology!$D$1,FALSE) -> 2.5185354 | J190: =(I190*'Farm data entry'!$D$33) -> 1.76297478 | K190: =kc(C190,Kc!$F$16:$I$16,Kc!$N$16:$Q$16) -> 0.7705882353 | L190: 1.358527625 | M190: =L190*10*'Farm data entry'!$E$22 -> 679.2638123 | N190: =(M190*'Farm data entry'!$D$14) -> 101.8895718 | O190: 781.1533841 | P190: =MIN($O190,R189+$H190-MIN('RWH summary'!$D$14,$R$3)) -> 781.1533841 | Q190: 0 | R190: 25450.06809 | S190: 0 | T190: =MIN($O190,V189+$H190-MIN('RWH summary'!$D$14,$V$3)) -> 781.1533841 | U190: 0 | V190: 50450.06809 | W190: 0 | X190: =MIN($O190,Z189+$H190-MIN('RWH summary'!$D$14,$Z$3)) -> 781.1533841 | Y190: 0 | Z190: 75450.06809 | AA190: 0 | AB190: 7
A191: 1986-07-07 | B191: 1986 | C191: 188 | D191: =VLOOKUP($A191,'AgClim-Rain'!$D$4:$CH$10960,Hydrology!$D$1,FALSE) -> 0.09999999936 | E191: 0.09999999936 | F191: =MAX((E191-'Farm data entry'!$D$32)*'Farm data entry'!$D$31,0)*10*'Farm data entry'!$D$10*'Farm data entry'!$D$23 -> 0 | G191: =AND(C191>='Farm data entry'!$E$15,Hydrology!C191<='Farm data entry'!$E$16) -> TRUE | H191: 0 | I191: =VLOOKUP($A191,'AgClim-ETo'!$A$4:$CE$10960,Hydrology!$D$1,FALSE) -> 3.3508 | J191: =(I191*'Farm data entry'!$D$33) -> 2.34556 | K191: =kc(C191,Kc!$F$16:$I$16,Kc!$N$16:$Q$16) -> 0.7735294118 | L191: 1.814359647 | M191: =L191*10*'Farm data entry'!$E$22 -> 907.1798235 | N191: =(M191*'Farm data entry'!$D$14) -> 136.0769735 | O191: 1043.256797 | P191: =MIN($O191,R190+$H191-MIN('RWH summary'!$D$14,$R$3)) -> 1043.256797 | Q191: 0 | R191: 24406.81129 | S191: 0 | T191: =MIN($O191,V190+$H191-MIN('RWH summary'!$D$14,$V$3)) -> 1043.256797 | U191: 0 | V191: 49406.81129 | W191: 0 | X191: =MIN($O191,Z190+$H191-MIN('RWH summary'!$D$14,$Z$3)) -> 1043.256797 | Y191: 0 | Z191: 74406.81129 | AA191: 0 | AB191: 7
A192: 1986-07-08 | B192: 1986 | C192: 189 | D192: =VLOOKUP($A192,'AgClim-Rain'!$D$4:$CH$10960,Hydrology!$D$1,FALSE) -> 0 | E192: 0 | F192: =MAX((E192-'Farm data entry'!$D$32)*'Farm data entry'!$D$31,0)*10*'Farm data entry'!$D$10*'Farm data entry'!$D$23 -> 0 | G192: =AND(C192>='Farm data entry'!$E$15,Hydrology!C192<='Farm data entry'!$E$16) -> TRUE | H192: 0 | I192: =VLOOKUP($A192,'AgClim-ETo'!$A$4:$CE$10960,Hydrology!$D$1,FALSE) -> 2.5407624 | J192: =(I192*'Farm data entry'!$D$33) -> 1.77853368 | K192: =kc(C192,Kc!$F$16:$I$16,Kc!$N$16:$Q$16) -> 0.7764705882 | L192: 1.380979093 | M192: =L192*10*'Farm data entry'!$E$22 -> 690.4895464 | N192: =(M192*'Farm data entry'!$D$14) -> 103.573432 | O192: 794.0629783 | P192: =MIN($O192,R191+$H192-MIN('RWH summary'!$D$14,$R$3)) -> 794.0629783 | Q192: 0 | R192: 23612.74831 | S192: 0 | T192: =MIN($O192,V191+$H192-MIN('RWH summary'!$D$14,$V$3)) -> 794.0629783 | U192: 0 | V192: 48612.74831 | W192: 0 | X192: =MIN($O192,Z191+$H192-MIN('RWH summary'!$D$14,$Z$3)) -> 794.0629783 | Y192: 0 | Z192: 73612.74831 | AA192: 0 | AB192: 7
A193: 1986-07-09 | B193: 1986 | C193: 190 | D193: =VLOOKUP($A193,'AgClim-Rain'!$D$4:$CH$10960,Hydrology!$D$1,FALSE) -> 0 | E193: 0 | F193: =MAX((E193-'Farm data entry'!$D$32)*'Farm data entry'!$D$31,0)*10*'Farm data entry'!$D$10*'Farm data entry'!$D$23 -> 0 | G193: =AND(C193>='Farm data entry'!$E$15,Hydrology!C193<='Farm data entry'!$E$16) -> TRUE | H193: 0 | I193: =VLOOKUP($A193,'AgClim-ETo'!$A$4:$CE$10960,Hydrology!$D$1,FALSE) -> 2.6187117 | J193: =(I193*'Farm data entry'!$D$33) -> 1.83309819 | K193: =kc(C193,Kc!$F$16:$I$16,Kc!$N$16:$Q$16) -> 0.7794117647 | L193: 1.428738295 | M193: =L193*10*'Farm data entry'!$E$22 -> 714.3691476 | N193: =(M193*'Farm data entry'!$D$14) -> 107.1553721 | O193: 821.5245197 | P193: =MIN($O193,R192+$H193-MIN('RWH summary'!$D$14,$R$3)) -> 821.5245197 | Q193: 0 | R193: 22791.22379 | S193: 0 | T193: =MIN($O193,V192+$H193-MIN('RWH summary'!$D$14,$V$3)) -> 821.5245197 | U193: 0 | V193: 47791.22379 | W193: 0 | X193: =MIN($O193,Z192+$H193-MIN('RWH summary'!$D$14,$Z$3)) -> 821.5245197 | Y193: 0 | Z193: 72791.22379 | AA193: 0 | AB193: 7
A194: 1986-07-10 | B194: 1986 | C194: 191 | D194: =VLOOKUP($A194,'AgClim-Rain'!$D$4:$CH$10960,Hydrology!$D$1,FALSE) -> 5.4 | E194: 5.4 | F194: =MAX((E194-'Farm data entry'!$D$32)*'Farm data entry'!$D$31,0)*10*'Farm data entry'!$D$10*'Farm data entry'!$D$23 -> 1530 | G194: =AND(C194>='Farm data entry'!$E$15,Hydrology!C194<='Farm data entry'!$E$16) -> TRUE | H194: 1530 | I194: =VLOOKUP($A194,'AgClim-ETo'!$A$4:$CE$10960,Hydrology!$D$1,FALSE) -> 2.3973591 | J194: =(I194*'Farm data entry'!$D$33) -> 1.67815137 | K194: =kc(C194,Kc!$F$16:$I$16,Kc!$N$16:$Q$16) -> 0.7823529412 | L194: 1.31290666 | M194: =L194*10*'Farm data entry'!$E$22 -> 656.45333 | N194: =(M194*'Farm data entry'!$D$14) -> 98.4679995 | O194: 754.9213295 | P194: =MIN($O194,R193+$H194-MIN('RWH summary'!$D$14,$R$3)) -> 754.9213295 | Q194: 0 | R194: 23566.30246 | S194: 0 | T194: =MIN($O194,V193+$H194-MIN('RWH summary'!$D$14,$V$3)) -> 754.9213295 | U194: 0 | V194: 48566.30246 | W194: 0 | X194: =MIN($O194,Z193+$H194-MIN('RWH summary'!$D$14,$Z$3)) -> 754.9213295 | Y194: 0 | Z194: 73566.30246 | AA194: 0 | AB194: 7
A195: 1986-07-11 | B195: 1986 | C195: 192 | D195: =VLOOKUP($A195,'AgClim-Rain'!$D$4:$CH$10960,Hydrology!$D$1,FALSE) -> 1.100000045 | E195: 1.100000045 | F195: =MAX((E195-'Farm data entry'!$D$32)*'Farm data entry'!$D$31,0)*10*'Farm data entry'!$D$10*'Farm data entry'!$D$23 -> 0 | G195: =AND(C195>='Farm data entry'!$E$15,Hydrology!C195<='Farm data entry'!$E$16) -> TRUE | H195: 0 | I195: =VLOOKUP($A195,'AgClim-ETo'!$A$4:$CE$10960,Hydrology!$D$1,FALSE) -> 2.068724 | J195: =(I195*'Farm data entry'!$D$33) -> 1.4481068 | K195: =kc(C195,Kc!$F$16:$I$16,Kc!$N$16:$Q$16) -> 0.7852941176 | L195: 1.137189752 | M195: =L195*10*'Farm data entry'!$E$22 -> 568.5948759 | N195: =(M195*'Farm data entry'!$D$14) -> 85.28923138 | O195: 653.8841073 | P195: =MIN($O195,R194+$H195-MIN('RWH summary'!$D$14,$R$3)) -> 653.8841073 | Q195: 0 | R195: 22912.41836 | S195: 0 | T195: =MIN($O195,V194+$H195-MIN('RWH summary'!$D$14,$V$3)) -> 653.8841073 | U195: 0 | V195: 47912.41836 | W195: 0 | X195: =MIN($O195,Z194+$H195-MIN('RWH summary'!$D$14,$Z$3)) -> 653.8841073 | Y195: 0 | Z195: 72912.41836 | AA195: 0 | AB195: 7
A196: 1986-07-12 | B196: 1986 | C196: =A196-DATE(YEAR(A196)-1,12,31) -> 193 | D196: =VLOOKUP($A196,'AgClim-Rain'!$D$4:$CH$10960,Hydrology!$D$1,FALSE) -> 0.1999999987 | E196: =D196-(D196*-DeafaultCF) -> 0.1999999987 | F196: =MAX((E196-'Farm data entry'!$D$32)*'Farm data entry'!$D$31,0)*10*'Farm data entry'!$D$10*'Farm data entry'!$D$23 -> 0 | G196: =AND(C196>='Farm data entry'!$E$15,Hydrology!C196<='Farm data entry'!$E$16) -> TRUE | H196: =F196*G196 -> 0 | I196: =VLOOKUP($A196,'AgClim-ETo'!$A$4:$CE$10960,Hydrology!$D$1,FALSE) -> 1.7918944 | J196: =(I196*'Farm data entry'!$D$33) -> 1.25432608 | K196: =kc(C196,Kc!$F$16:$I$16,Kc!$N$16:$Q$16) -> 0.7882352941 | L196: =(K196*J196) -> 0.9887040866 | M196: =L196*10*'Farm data entry'!$E$22 -> 494.3520433 | N196: =(M196*'Farm data entry'!$D$14) -> 74.15280649 | O196: 568.5048498 | P196: =MIN($O196,R195+$H196-MIN('RWH summary'!$D$14,$R$3)) -> 568.5048498 | Q196: =MAX(R195+$H196-$O196-Q$1,0) -> 0 | R196: =MIN(R195-P196+$H196,Q$1) -> 22343.91351 | S196: 0 | T196: =MIN($O196,V195+$H196-MIN('RWH summary'!$D$14,$V$3)) -> 568.5048498 | U196: 0 | V196: 47343.91351 | W196: 0 | X196: =MIN($O196,Z195+$H196-MIN('RWH summary'!$D$14,$Z$3)) -> 568.5048498 | Y196: 0 | Z196: 72343.91351 | AA196: 0 | AB196: 7
A197: 1986-07-13 | B197: =YEAR(A197) -> 1986 | C197: 194 | D197: =VLOOKUP($A197,'AgClim-Rain'!$D$4:$CH$10960,Hydrology!$D$1,FALSE) -> 0 | E197: 0 | F197: =MAX((E197-'Farm data entry'!$D$32)*'Farm data entry'!$D$31,0)*10*'Farm data entry'!$D$10*'Farm data entry'!$D$23 -> 0 | G197: =AND(C197>='Farm data entry'!$E$15,Hydrology!C197<='Farm data entry'!$E$16) -> TRUE | H197: 0 | I197: =VLOOKUP($A197,'AgClim-ETo'!$A$4:$CE$10960,Hydrology!$D$1,FALSE) -> 2.0716274 | J197: =(I197*'Farm data entry'!$D$33) -> 1.45013918 | K197: =kc(C197,Kc!$F$16:$I$16,Kc!$N$16:$Q$16) -> 0.7911764706 | L197: 1.147315998 | M197: =L197*10*'Farm data entry'!$E$22 -> 573.6579991 | N197: =(M197*'Farm data entry'!$D$14) -> 86.04869987 | O197: =SUM(M197:N197) -> 659.706699 | P197: =MIN($O197,R196+$H197-MIN('RWH summary'!$D$14,$R$3)) -> 659.706699 | Q197: 0 | R197: 21684.20681 | S197: =$O197-P197 -> 0 | T197: =MIN($O197,V196+$H197-MIN('RWH summary'!$D$14,$V$3)) -> 659.706699 | U197: =MAX(V196+$H197-$O197-U$1,0) -> 0 | V197: =MIN(V196-T197+$H197,U$1) -> 46684.20681 | W197: =$O197-T197 -> 0 | X197: =MIN($O197,Z196+$H197-MIN('RWH summary'!$D$14,$Z$3)) -> 659.706699 | Y197: =MAX(Z196+$H197-$O197-Y$1,0) -> 0 | Z197: =MIN(Z196-X197+$H197,Y$1) -> 71684.20681 | AA197: =$O197-X197 -> 0 | AB197: =MONTH(A197) -> 7
A198: 1986-07-14 | B198: 1986 | C198: 195 | D198: =VLOOKUP($A198,'AgClim-Rain'!$D$4:$CH$10960,Hydrology!$D$1,FALSE) -> 0 | E198: 0 | F198: =MAX((E198-'Farm data entry'!$D$32)*'Farm data entry'!$D$31,0)*10*'Farm data entry'!$D$10*'Farm data entry'!$D$23 -> 0 | G198: =AND(C198>='Farm data entry'!$E$15,Hydrology!C198<='Farm data entry'!$E$16) -> TRUE | H198: 0 | I198: =VLOOKUP($A198,'AgClim-ETo'!$A$4:$CE$10960,Hydrology!$D$1,FALSE) -> 1.915189 | J198: =(I198*'Farm data entry'!$D$33) -> 1.3406323 | K198: =kc(C198,Kc!$F$16:$I$16,Kc!$N$16:$Q$16) -> 0.7941176471 | L198: 1.064619768 | M198: =L198*10*'Farm data entry'!$E$22 -> 532.3098838 | N198: =(M198*'Farm data entry'!$D$14) -> 79.84648257 | O198: 612.1563664 | P198: =MIN($O198,R197+$H198-MIN('RWH summary'!$D$14,$R$3)) -> 612.1563664 | Q198: 0 | R198: 21072.05044 | S198: 0 | T198: =MIN($O198,V197+$H198-MIN('RWH summary'!$D$14,$V$3)) -> 612.1563664 | U198: 0 | V198: 46072.05044 | W198: 0 | X198: =MIN($O198,Z197+$H198-MIN('RWH summary'!$D$14,$Z$3)) -> 612.1563664 | Y198: 0 | Z198: 71072.05044 | AA198: 0 | AB198: 7
A199: 1986-07-15 | B199: 1986 | C199: 196 | D199: =VLOOKUP($A199,'AgClim-Rain'!$D$4:$CH$10960,Hydrology!$D$1,FALSE) -> 0 | E199: 0 | F199: =MAX((E199-'Farm data entry'!$D$32)*'Farm data entry'!$D$31,0)*10*'Farm data entry'!$D$10*'Farm data entry'!$D$23 -> 0 | G199: =AND(C199>='Farm data entry'!$E$15,Hydrology!C199<='Farm data entry'!$E$16) -> TRUE | H199: 0 | I199: =VLOOKUP($A199,'AgClim-ETo'!$A$4:$CE$10960,Hydrology!$D$1,FALSE) -> 3.04979 | J199: =(I199*'Farm data entry'!$D$33) -> 2.134853 | K199: =kc(C199,Kc!$F$16:$I$16,Kc!$N$16:$Q$16) -> 0.7970588235 | L199: 1.701603421 | M199: =L199*10*'Farm data entry'!$E$22 -> 850.8017103 | N199: =(M199*'Farm data entry'!$D$14) -> 127.6202565 | O199: 978.4219668 | P199: =MIN($O199,R198+$H199-MIN('RWH summary'!$D$14,$R$3)) -> 978.4219668 | Q199: 0 | R199: 20093.62847 | S199: 0 | T199: =MIN($O199,V198+$H199-MIN('RWH summary'!$D$14,$V$3)) -> 978.4219668 | U199: 0 | V199: 45093.62847 | W199: 0 | X199: =MIN($O199,Z198+$H199-MIN('RWH summary'!$D$14,$Z$3)) -> 978.4219668 | Y199: 0 | Z199: 70093.62847 | AA199: 0 | AB199: 7
A200: 1986-07-16 | B200: 1986 | C200: 197 | D200: =VLOOKUP($A200,'AgClim-Rain'!$D$4:$CH$10960,Hydrology!$D$1,FALSE) -> 0 | E200: 0 | F200: =MAX((E200-'Farm data entry'!$D$32)*'Farm data entry'!$D$31,0)*10*'Farm data entry'!$D$10*'Farm data entry'!$D$23 -> 0 | G200: =AND(C200>='Farm data entry'!$E$15,Hydrology!C200<='Farm data entry'!$E$16) -> TRUE | H200: 0 | I200: =VLOOKUP($A200,'AgClim-ETo'!$A$4:$CE$10960,Hydrology!$D$1,FALSE) -> 3.1979554 | J200: =(I200*'Farm data entry'!$D$33) -> 2.23856878 | K200: =kc(C200,Kc!$F$16:$I$16,Kc!$N$16:$Q$16) -> 0.8 | L200: 1.790855024 | M200: =L200*10*'Farm data entry'!$E$22 -> 895.427512 | N200: =(M200*'Farm data entry'!$D$14) -> 134.3141268 | O200: 1029.741639 | P200: =MIN($O200,R199+$H200-MIN('RWH summary'!$D$14,$R$3)) -> 1029.741639 | Q200: 0 | R200: 19063.88684 | S200: 0 | T200: =MIN($O200,V199+$H200-MIN('RWH summary'!$D$14,$V$3)) -> 1029.741639 | U200: 0 | V200: 44063.88684 | W200: 0 | X200: =MIN($O200,Z199+$H200-MIN('RWH summary'!$D$14,$Z$3)) -> 1029.741639 | Y200: 0 | Z200: 69063.88684 | AA200: 0 | AB200: 7
... 2050 more rows

Sheet DefaultValues (hidden)
B1: Values
A2: Variable | B2: Polytunnel | C2: Glasshouse
A3: Protected cropping evapotranspiration as % of outdoor evapotranspiration | B3: 0.7 | C3: 0.9 | D3: =INDEX(DefaultValues!$A$2:$C$8,MATCH('Farm data entry'!D9,DefaultValues!$A$2:$C$2, FALSE),MATCH('Farm data entry'!B33,DefaultValues!$A$2:$A$8,FALSE)) -> 0.7
A4: Polytunnel or glasshouse runoff efficiency (%) | B4: 0.9 | C4: 0.9
A5: Rainfall threshold: minimum amount before runoff occurs (mm) | B5: 2 | C5: 2
A6: Required emergency reservoir storage (hours) | B6: 48 | C6: 48
A7: Site rainfall correction factor (%) | B7: =-('Farm data entry'!D24-'Farm data entry'!D25)/'Farm data entry'!D24 -> 0 | C7: =-('Farm data entry'!D24-'Farm data entry'!D25)/'Farm data entry'!D24 -> 0
A8: Irrigation (Kc) adjustment factor | B8: 1 | C8: 1

Sheet Kc (hidden)
A1: DoY | B1: Kc | D1: Crop type (general) | E1: Crop type (specific) | F1: Cropping | J1: Crop coefficient (Kc) | N1: Kc adjust | R1: Source
A2: 1 | B2: =kc(A2,$F$16:$I$16,$N$16:$Q$16) -> 0 | F2: Planting out | G2: Full cover | H2: Start of senescence | I2: End | J2: Kc ini | K2: Kc dev | L2: Kc mid | M2: Kc end | N2: Kc ini | O2: Kc mid | P2: Kc dev | Q2: Kc mid
A3: 2 | B3: =kc(A3,$F$16:$I$16,$N$16:$Q$16) -> 0 | D3: Soft fruits | E3: Strawberry(JB) | F3: ='Farm data entry'!D12 -> 2020-03-01 | G3: =F3+122 -> 2020-07-01 | H3: =I3 -> 2020-11-25 | I3: ='Farm data entry'!D13 -> 2020-11-25 | J3: 0.4 | K3: 0.85 | L3: 0.85 | M3: 0.75 | N3: =ABS((J3*'Farm data entry'!$D$27)) -> 0.4 | O3: =ABS((K3*'Farm data entry'!$D$27)) -> 0.85 | P3: =ABS((L3*'Farm data entry'!$D$27)) -> 0.85 | Q3: =ABS((M3*'Farm data entry'!$D$27)) -> 0.75 | R3: FAO56
A4: 3 | B4: =kc(A4,$F$16:$I$16,$N$16:$Q$16) -> 0 | D4: Soft fruits | E4: Strawberry(EB) | F4: ='Farm data entry'!D12 -> 2020-03-01 | G4: =F4+153 -> 2020-08-01 | H4: =I4-30 -> 2020-10-26 | I4: ='Farm data entry'!D13 -> 2020-11-25 | J4: 0.4 | K4: 0.85 | L4: 0.85 | M4: 0.75 | N4: =ABS((J4*'Farm data entry'!$D$27)) -> 0.4 | O4: =ABS((K4*'Farm data entry'!$D$27)) -> 0.85 | P4: =ABS((L4*'Farm data entry'!$D$27)) -> 0.85 | Q4: =ABS((M4*'Farm data entry'!$D$27)) -> 0.75 | R4: FAO57
A5: 4 | B5: =kc(A5,$F$16:$I$16,$N$16:$Q$16) -> 0 | D5: Soft fruits | E5: Raspberry | F5: ='Farm data entry'!D12 -> 2020-03-01 | G5: =F5+122 -> 2020-07-01 | H5: 2020-10-26 | I5: ='Farm data entry'!D13 -> 2020-11-25 | J5: 0.4 | K5: 1.2 | L5: 1.2 | M5: 0.75 | N5: =ABS((J5*'Farm data entry'!$D$27)) -> 0.4 | O5: =ABS((K5*'Farm data entry'!$D$27)) -> 1.2 | P5: =ABS((L5*'Farm data entry'!$D$27)) -> 1.2 | Q5: =ABS((M5*'Farm data entry'!$D$27)) -> 0.75 | R5: http://irrigationtoolbox.com/ReferenceDocuments/Extension/BCExtension/577100-5.pdf
A6: 5 | B6: =kc(A6,$F$16:$I$16,$N$16:$Q$16) -> 0 | D6: Vegetables | E6: Tomato | F6: ='Farm data entry'!D12 -> 2020-03-01 | G6: =F6+62 -> 2020-05-02 | H6: 2020-10-26 | I6: ='Farm data entry'!D13 -> 2020-11-25 | J6: 0.6 | K6: 1.15 | L6: 1.15 | M6: 0.8 | N6: =ABS((J6*'Farm data entry'!$D$27)) -> 0.6 | O6: =ABS((K6*'Farm data entry'!$D$27)) -> 1.15 | P6: =ABS((L6*'Farm data entry'!$D$27)) -> 1.15 | Q6: =ABS((M6*'Farm data entry'!$D$27)) -> 0.8 | R6: Allen et al. 1998
A7: 6 | B7: =kc(A7,$F$16:$I$16,$N$16:$Q$16) -> 0 | D7: Vegetables | E7: Cucumber | F7: ='Farm data entry'!D12 -> 2020-03-01 | G7: 2020-05-02 | H7: 2020-10-26 | I7: ='Farm data entry'!D13 -> 2020-11-25 | J7: 0.6 | K7: 1 | L7: 1 | M7: 0.75 | N7: =ABS((J7*'Farm data entry'!$D$27)) -> 0.6 | O7: =ABS((K7*'Farm data entry'!$D$27)) -> 1 | P7: =ABS((L7*'Farm data entry'!$D$27)) -> 1 | Q7: =ABS((M7*'Farm data entry'!$D$27)) -> 0.75 | R7: Allen et al. 1998
A8: 7 | B8: =kc(A8,$F$16:$I$16,$N$16:$Q$16) -> 0 | D8: Vegetables | E8: Lettuce | F8: ='Farm data entry'!D12 -> 2020-03-01 | G8: 2020-05-02 | H8: 2020-10-26 | I8: ='Farm data entry'!D13 -> 2020-11-25 | J8: 0.7 | K8: 1 | L8: 1 | M8: 0.95 | N8: =ABS((J8*'Farm data entry'!$D$27)) -> 0.7 | O8: =ABS((K8*'Farm data entry'!$D$27)) -> 1 | P8: =ABS((L8*'Farm data entry'!$D$27)) -> 1 | Q8: =ABS((M8*'Farm data entry'!$D$27)) -> 0.95 | R8: Allen et al., 2006
A9: 8 | B9: =kc(A9,$F$16:$I$16,$N$16:$Q$16) -> 0 | D9: Vegetables | E9: Other veg | F9: ='Farm data entry'!D12 -> 2020-03-01 | G9: 2020-05-02 | H9: 2020-10-26 | I9: ='Farm data entry'!D13 -> 2020-11-25 | J9: 0.4 | K9: 0.7 | L9: 0.7 | M9: 0.6 | N9: =ABS((J9*'Farm data entry'!$D$27)) -> 0.4 | O9: =ABS((K9*'Farm data entry'!$D$27)) -> 0.7 | P9: =ABS((L9*'Farm data entry'!$D$27)) -> 0.7 | Q9: =ABS((M9*'Farm data entry'!$D$27)) -> 0.6
A10: 9 | B10: =kc(A10,$F$16:$I$16,$N$16:$Q$16) -> 0 | D10: Ornamentals and woody perenials | E10: Nursery stock | F10: ='Farm data entry'!D12 -> 2020-03-01 | G10: 2022-05-01 | H10: 2022-09-30 | I10: ='Farm data entry'!D13 -> 2020-11-25 | J10: 1.15 | K10: 1.3 | L10: 1.3 | M10: 0.8 | N10: =ABS((J10*'Farm data entry'!$D$27)) -> 1.15 | O10: =ABS((K10*'Farm data entry'!$D$27)) -> 1.3 | P10: =ABS((L10*'Farm data entry'!$D$27)) -> 1.3 | Q10: =ABS((M10*'Farm data entry'!$D$27)) -> 0.8
A11: 10 | B11: =kc(A11,$F$16:$I$16,$N$16:$Q$16) -> 0 | D11: Ornamentals and woody perenials | E11: Pot plants | F11: ='Farm data entry'!D12 -> 2020-03-01 | G11: 2022-03-01 | H11: 2022-09-30 | I11: ='Farm data entry'!D13 -> 2020-11-25 | J11: 1.15 | K11: 1.3 | L11: 1.3 | M11: 0.8 | N11: =ABS((J11*'Farm data entry'!$D$27)) -> 1.15 | O11: =ABS((K11*'Farm data entry'!$D$27)) -> 1.3 | P11: =ABS((L11*'Farm data entry'!$D$27)) -> 1.3 | Q11: =ABS((M11*'Farm data entry'!$D$27)) -> 0.8
A12: 11 | B12: =kc(A12,$F$16:$I$16,$N$16:$Q$16) -> 0 | D12: Ornamentals and woody perenials | E12: Bedding plant | F12: ='Farm data entry'!D12 -> 2020-03-01 | G12: 2022-03-01 | H12: 2022-06-30 | I12: ='Farm data entry'!D13 -> 2020-11-25 | J12: 1.15 | K12: 1.05 | L12: 1.05 | M12: 0.9 | N12: =ABS((J12*'Farm data entry'!$D$27)) -> 1.15 | O12: =ABS((K12*'Farm data entry'!$D$27)) -> 1.05 | P12: =ABS((L12*'Farm data entry'!$D$27)) -> 1.05 | Q12: =ABS((M12*'Farm data entry'!$D$27)) -> 0.9
A13: 12 | B13: =kc(A13,$F$16:$I$16,$N$16:$Q$16) -> 0 | D13: Custom | E13: custom | F13: ='Farm data entry'!D12 -> 2020-03-01 | G13: =F13+122 -> 2020-07-01 | H13: =I13-30 -> 2020-10-26 | I13: ='Farm data entry'!D13 -> 2020-11-25 | J13: 0.4 | K13: 0.7 | L13: 0.7 | M13: 0.6 | N13: =ABS((J13*'Farm data entry'!$D$27)) -> 0.4 | O13: =ABS((K13*'Farm data entry'!$D$27)) -> 0.7 | P13: =ABS((L13*'Farm data entry'!$D$27)) -> 0.7 | Q13: =ABS((M13*'Farm data entry'!$D$27)) -> 0.6
A14: 13 | B14: =kc(A14,$F$16:$I$16,$N$16:$Q$16) -> 0
A15: 14 | B15: =kc(A15,$F$16:$I$16,$N$16:$Q$16) -> 0 | E15: Selected crop
A16: 15 | B16: =kc(A16,$F$16:$I$16,$N$16:$Q$16) -> 0 | E16: ='Farm data entry'!D11 -> Strawberry(EB) | F16: =jdate(VLOOKUP($E$16,$E$3:$I$13,2,FALSE)) -> 61 | G16: =jdate(VLOOKUP($E$16,$E$3:$I$13,3,FALSE)) -> 214 | H16: =jdate(VLOOKUP($E$16,$E$3:$I$13,4,FALSE)) -> 300 | I16: =jdate(VLOOKUP($E$16,$E$3:$I$13,5,FALSE)) -> 330 | J16: =VLOOKUP($E$16,$E$3:$R$13,6,FALSE) -> 0.4 | K16: =VLOOKUP($E$16,$E$3:$R$13,7,FALSE) -> 0.85 | L16: =VLOOKUP($E$16,$E$3:$R$13,8,FALSE) -> 0.85 | M16: =VLOOKUP($E$16,$E$3:$R$13,9,FALSE) -> 0.75 | N16: =VLOOKUP($E$16,$E$3:$R$13,10,FALSE) -> 0.4 | O16: =VLOOKUP($E$16,$E$3:$R$13,11,FALSE) -> 0.85 | P16: =VLOOKUP($E$16,$E$3:$R$13,12,FALSE) -> 0.85 | Q16: =VLOOKUP($E$16,$E$3:$R$13,13,FALSE) -> 0.75
A17: 16 | B17: =kc(A17,$F$16:$I$16,$N$16:$Q$16) -> 0
A18: 17 | B18: =kc(A18,$F$16:$I$16,$N$16:$Q$16) -> 0
A19: 18 | B19: =kc(A19,$F$16:$I$16,$N$16:$Q$16) -> 0
A20: 19 | B20: =kc(A20,$F$16:$I$16,$N$16:$Q$16) -> 0
A21: 20 | B21: =kc(A21,$F$16:$I$16,$N$16:$Q$16) -> 0
A22: 21 | B22: =kc(A22,$F$16:$I$16,$N$16:$Q$16) -> 0
A23: 22 | B23: =kc(A23,$F$16:$I$16,$N$16:$Q$16) -> 0
A24: 23 | B24: =kc(A24,$F$16:$I$16,$N$16:$Q$16) -> 0
A25: 24 | B25: =kc(A25,$F$16:$I$16,$N$16:$Q$16) -> 0
A26: 25 | B26: =kc(A26,$F$16:$I$16,$N$16:$Q$16) -> 0
A27: 26 | B27: =kc(A27,$F$16:$I$16,$N$16:$Q$16) -> 0
A28: 27 | B28: =kc(A28,$F$16:$I$16,$N$16:$Q$16) -> 0
A29: 28 | B29: =kc(A29,$F$16:$I$16,$N$16:$Q$16) -> 0
A30: 29 | B30: =kc(A30,$F$16:$I$16,$N$16:$Q$16) -> 0
A31: 30 | B31: =kc(A31,$F$16:$I$16,$N$16:$Q$16) -> 0
A32: 31 | B32: =kc(A32,$F$16:$I$16,$N$16:$Q$16) -> 0
A33: 32 | B33: =kc(A33,$F$16:$I$16,$N$16:$Q$16) -> 0
A34: 33 | B34: =kc(A34,$F$16:$I$16,$N$16:$Q$16) -> 0
A35: 34 | B35: =kc(A35,$F$16:$I$16,$N$16:$Q$16) -> 0
A36: 35 | B36: =kc(A36,$F$16:$I$16,$N$16:$Q$16) -> 0
A37: 36 | B37: =kc(A37,$F$16:$I$16,$N$16:$Q$16) -> 0
A38: 37 | B38: =kc(A38,$F$16:$I$16,$N$16:$Q$16) -> 0
A39: 38 | B39: =kc(A39,$F$16:$I$16,$N$16:$Q$16) -> 0
A40: 39 | B40: =kc(A40,$F$16:$I$16,$N$16:$Q$16) -> 0
A41: 40 | B41: =kc(A41,$F$16:$I$16,$N$16:$Q$16) -> 0
A42: 41 | B42: =kc(A42,$F$16:$I$16,$N$16:$Q$16) -> 0
A43: 42 | B43: =kc(A43,$F$16:$I$16,$N$16:$Q$16) -> 0
A44: 43 | B44: =kc(A44,$F$16:$I$16,$N$16:$Q$16) -> 0
A45: 44 | B45: =kc(A45,$F$16:$I$16,$N$16:$Q$16) -> 0
A46: 45 | B46: =kc(A46,$F$16:$I$16,$N$16:$Q$16) -> 0
A47: 46 | B47: =kc(A47,$F$16:$I$16,$N$16:$Q$16) -> 0
A48: 47 | B48: =kc(A48,$F$16:$I$16,$N$16:$Q$16) -> 0
A49: 48 | B49: =kc(A49,$F$16:$I$16,$N$16:$Q$16) -> 0
A50: 49 | B50: =kc(A50,$F$16:$I$16,$N$16:$Q$16) -> 0
A51: 50 | B51: =kc(A51,$F$16:$I$16,$N$16:$Q$16) -> 0
A52: 51 | B52: =kc(A52,$F$16:$I$16,$N$16:$Q$16) -> 0
A53: 52 | B53: =kc(A53,$F$16:$I$16,$N$16:$Q$16) -> 0
A54: 53 | B54: =kc(A54,$F$16:$I$16,$N$16:$Q$16) -> 0
A55: 54 | B55: =kc(A55,$F$16:$I$16,$N$16:$Q$16) -> 0
A56: 55 | B56: =kc(A56,$F$16:$I$16,$N$16:$Q$16) -> 0
A57: 56 | B57: =kc(A57,$F$16:$I$16,$N$16:$Q$16) -> 0
A58: 57 | B58: =kc(A58,$F$16:$I$16,$N$16:$Q$16) -> 0
A59: 58 | B59: =kc(A59,$F$16:$I$16,$N$16:$Q$16) -> 0
A60: 59 | B60: =kc(A60,$F$16:$I$16,$N$16:$Q$16) -> 0
A61: 60 | B61: =kc(A61,$F$16:$I$16,$N$16:$Q$16) -> 0
A62: 61 | B62: =kc(A62,$F$16:$I$16,$N$16:$Q$16) -> 0.4
A63: 62 | B63: =kc(A63,$F$16:$I$16,$N$16:$Q$16) -> 0.4029411765
A64: 63 | B64: =kc(A64,$F$16:$I$16,$N$16:$Q$16) -> 0.4058823529
A65: 64 | B65: =kc(A65,$F$16:$I$16,$N$16:$Q$16) -> 0.4088235294
A66: 65 | B66: =kc(A66,$F$16:$I$16,$N$16:$Q$16) -> 0.4117647059
A67: 66 | B67: =kc(A67,$F$16:$I$16,$N$16:$Q$16) -> 0.4147058824
A68: 67 | B68: =kc(A68,$F$16:$I$16,$N$16:$Q$16) -> 0.4176470588
A69: 68 | B69: =kc(A69,$F$16:$I$16,$N$16:$Q$16) -> 0.4205882353
A70: 69 | B70: =kc(A70,$F$16:$I$16,$N$16:$Q$16) -> 0.4235294118
A71: 70 | B71: =kc(A71,$F$16:$I$16,$N$16:$Q$16) -> 0.4264705882
A72: 71 | B72: =kc(A72,$F$16:$I$16,$N$16:$Q$16) -> 0.4294117647
A73: 72 | B73: =kc(A73,$F$16:$I$16,$N$16:$Q$16) -> 0.4323529412
A74: 73 | B74: =kc(A74,$F$16:$I$16,$N$16:$Q$16) -> 0.4352941176
A75: 74 | B75: =kc(A75,$F$16:$I$16,$N$16:$Q$16) -> 0.4382352941
A76: 75 | B76: =kc(A76,$F$16:$I$16,$N$16:$Q$16) -> 0.4411764706
A77: 76 | B77: =kc(A77,$F$16:$I$16,$N$16:$Q$16) -> 0.4441176471
A78: 77 | B78: =kc(A78,$F$16:$I$16,$N$16:$Q$16) -> 0.4470588235
A79: 78 | B79: =kc(A79,$F$16:$I$16,$N$16:$Q$16) -> 0.45
A80: 79 | B80: =kc(A80,$F$16:$I$16,$N$16:$Q$16) -> 0.4529411765
A81: 80 | B81: =kc(A81,$F$16:$I$16,$N$16:$Q$16) -> 0.4558823529
A82: 81 | B82: =kc(A82,$F$16:$I$16,$N$16:$Q$16) -> 0.4588235294
A83: 82 | B83: =kc(A83,$F$16:$I$16,$N$16:$Q$16) -> 0.4617647059
A84: 83 | B84: =kc(A84,$F$16:$I$16,$N$16:$Q$16) -> 0.4647058824
A85: 84 | B85: =kc(A85,$F$16:$I$16,$N$16:$Q$16) -> 0.4676470588
A86: 85 | B86: =kc(A86,$F$16:$I$16,$N$16:$Q$16) -> 0.4705882353
A87: 86 | B87: =kc(A87,$F$16:$I$16,$N$16:$Q$16) -> 0.4735294118
A88: 87 | B88: =kc(A88,$F$16:$I$16,$N$16:$Q$16) -> 0.4764705882
A89: 88 | B89: =kc(A89,$F$16:$I$16,$N$16:$Q$16) -> 0.4794117647
A90: 89 | B90: =kc(A90,$F$16:$I$16,$N$16:$Q$16) -> 0.4823529412
A91: 90 | B91: =kc(A91,$F$16:$I$16,$N$16:$Q$16) -> 0.4852941176
A92: 91 | B92: =kc(A92,$F$16:$I$16,$N$16:$Q$16) -> 0.4882352941
A93: 92 | B93: =kc(A93,$F$16:$I$16,$N$16:$Q$16) -> 0.4911764706
A94: 93 | B94: =kc(A94,$F$16:$I$16,$N$16:$Q$16) -> 0.4941176471
A95: 94 | B95: =kc(A95,$F$16:$I$16,$N$16:$Q$16) -> 0.4970588235
A96: 95 | B96: =kc(A96,$F$16:$I$16,$N$16:$Q$16) -> 0.5
A97: 96 | B97: =kc(A97,$F$16:$I$16,$N$16:$Q$16) -> 0.5029411765
A98: 97 | B98: =kc(A98,$F$16:$I$16,$N$16:$Q$16) -> 0.5058823529
A99: 98 | B99: =kc(A99,$F$16:$I$16,$N$16:$Q$16) -> 0.5088235294
A100: 99 | B100: =kc(A100,$F$16:$I$16,$N$16:$Q$16) -> 0.5117647059
A101: 100 | B101: =kc(A101,$F$16:$I$16,$N$16:$Q$16) -> 0.5147058824
A102: 101 | B102: =kc(A102,$F$16:$I$16,$N$16:$Q$16) -> 0.5176470588
A103: 102 | B103: =kc(A103,$F$16:$I$16,$N$16:$Q$16) -> 0.5205882353
A104: 103 | B104: =kc(A104,$F$16:$I$16,$N$16:$Q$16) -> 0.5235294118
A105: 104 | B105: =kc(A105,$F$16:$I$16,$N$16:$Q$16) -> 0.5264705882
A106: 105 | B106: =kc(A106,$F$16:$I$16,$N$16:$Q$16) -> 0.5294117647
A107: 106 | B107: =kc(A107,$F$16:$I$16,$N$16:$Q$16) -> 0.5323529412
A108: 107 | B108: =kc(A108,$F$16:$I$16,$N$16:$Q$16) -> 0.5352941176
A109: 108 | B109: =kc(A109,$F$16:$I$16,$N$16:$Q$16) -> 0.5382352941
A110: 109 | B110: =kc(A110,$F$16:$I$16,$N$16:$Q$16) -> 0.5411764706
A111: 110 | B111: =kc(A111,$F$16:$I$16,$N$16:$Q$16) -> 0.5441176471
A112: 111 | B112: =kc(A112,$F$16:$I$16,$N$16:$Q$16) -> 0.5470588235
A113: 112 | B113: =kc(A113,$F$16:$I$16,$N$16:$Q$16) -> 0.55
A114: 113 | B114: =kc(A114,$F$16:$I$16,$N$16:$Q$16) -> 0.5529411765
A115: 114 | B115: =kc(A115,$F$16:$I$16,$N$16:$Q$16) -> 0.5558823529
A116: 115 | B116: =kc(A116,$F$16:$I$16,$N$16:$Q$16) -> 0.5588235294
A117: 116 | B117: =kc(A117,$F$16:$I$16,$N$16:$Q$16) -> 0.5617647059
A118: 117 | B118: =kc(A118,$F$16:$I$16,$N$16:$Q$16) -> 0.5647058824
A119: 118 | B119: =kc(A119,$F$16:$I$16,$N$16:$Q$16) -> 0.5676470588
A120: 119 | B120: =kc(A120,$F$16:$I$16,$N$16:$Q$16) -> 0.5705882353
A121: 120 | B121: =kc(A121,$F$16:$I$16,$N$16:$Q$16) -> 0.5735294118
A122: 121 | B122: =kc(A122,$F$16:$I$16,$N$16:$Q$16) -> 0.5764705882
A123: 122 | B123: =kc(A123,$F$16:$I$16,$N$16:$Q$16) -> 0.5794117647
A124: 123 | B124: =kc(A124,$F$16:$I$16,$N$16:$Q$16) -> 0.5823529412
A125: 124 | B125: =kc(A125,$F$16:$I$16,$N$16:$Q$16) -> 0.5852941176
A126: 125 | B126: =kc(A126,$F$16:$I$16,$N$16:$Q$16) -> 0.5882352941
A127: 126 | B127: =kc(A127,$F$16:$I$16,$N$16:$Q$16) -> 0.5911764706
A128: 127 | B128: =kc(A128,$F$16:$I$16,$N$16:$Q$16) -> 0.5941176471
A129: 128 | B129: =kc(A129,$F$16:$I$16,$N$16:$Q$16) -> 0.5970588235
A130: 129 | B130: =kc(A130,$F$16:$I$16,$N$16:$Q$16) -> 0.6
A131: 130 | B131: =kc(A131,$F$16:$I$16,$N$16:$Q$16) -> 0.6029411765
A132: 131 | B132: =kc(A132,$F$16:$I$16,$N$16:$Q$16) -> 0.6058823529
A133: 132 | B133: =kc(A133,$F$16:$I$16,$N$16:$Q$16) -> 0.6088235294
A134: 133 | B134: =kc(A134,$F$16:$I$16,$N$16:$Q$16) -> 0.6117647059
A135: 134 | B135: =kc(A135,$F$16:$I$16,$N$16:$Q$16) -> 0.6147058824
A136: 135 | B136: =kc(A136,$F$16:$I$16,$N$16:$Q$16) -> 0.6176470588
A137: 136 | B137: =kc(A137,$F$16:$I$16,$N$16:$Q$16) -> 0.6205882353
A138: 137 | B138: =kc(A138,$F$16:$I$16,$N$16:$Q$16) -> 0.6235294118
A139: 138 | B139: =kc(A139,$F$16:$I$16,$N$16:$Q$16) -> 0.6264705882
A140: 139 | B140: =kc(A140,$F$16:$I$16,$N$16:$Q$16) -> 0.6294117647
A141: 140 | B141: =kc(A141,$F$16:$I$16,$N$16:$Q$16) -> 0.6323529412
A142: 141 | B142: =kc(A142,$F$16:$I$16,$N$16:$Q$16) -> 0.6352941176
A143: 142 | B143: =kc(A143,$F$16:$I$16,$N$16:$Q$16) -> 0.6382352941
A144: 143 | B144: =kc(A144,$F$16:$I$16,$N$16:$Q$16) -> 0.6411764706
A145: 144 | B145: =kc(A145,$F$16:$I$16,$N$16:$Q$16) -> 0.6441176471
A146: 145 | B146: =kc(A146,$F$16:$I$16,$N$16:$Q$16) -> 0.6470588235
A147: 146 | B147: =kc(A147,$F$16:$I$16,$N$16:$Q$16) -> 0.65
A148: 147 | B148: =kc(A148,$F$16:$I$16,$N$16:$Q$16) -> 0.6529411765
A149: 148 | B149: =kc(A149,$F$16:$I$16,$N$16:$Q$16) -> 0.6558823529
A150: 149 | B150: =kc(A150,$F$16:$I$16,$N$16:$Q$16) -> 0.6588235294
A151: 150 | B151: =kc(A151,$F$16:$I$16,$N$16:$Q$16) -> 0.6617647059
A152: 151 | B152: =kc(A152,$F$16:$I$16,$N$16:$Q$16) -> 0.6647058824
A153: 152 | B153: =kc(A153,$F$16:$I$16,$N$16:$Q$16) -> 0.6676470588
A154: 153 | B154: =kc(A154,$F$16:$I$16,$N$16:$Q$16) -> 0.6705882353
A155: 154 | B155: =kc(A155,$F$16:$I$16,$N$16:$Q$16) -> 0.6735294118
A156: 155 | B156: =kc(A156,$F$16:$I$16,$N$16:$Q$16) -> 0.6764705882
A157: 156 | B157: =kc(A157,$F$16:$I$16,$N$16:$Q$16) -> 0.6794117647
A158: 157 | B158: =kc(A158,$F$16:$I$16,$N$16:$Q$16) -> 0.6823529412
A159: 158 | B159: =kc(A159,$F$16:$I$16,$N$16:$Q$16) -> 0.6852941176
A160: 159 | B160: =kc(A160,$F$16:$I$16,$N$16:$Q$16) -> 0.6882352941
A161: 160 | B161: =kc(A161,$F$16:$I$16,$N$16:$Q$16) -> 0.6911764706
A162: 161 | B162: =kc(A162,$F$16:$I$16,$N$16:$Q$16) -> 0.6941176471
A163: 162 | B163: =kc(A163,$F$16:$I$16,$N$16:$Q$16) -> 0.6970588235
A164: 163 | B164: =kc(A164,$F$16:$I$16,$N$16:$Q$16) -> 0.7
A165: 164 | B165: =kc(A165,$F$16:$I$16,$N$16:$Q$16) -> 0.7029411765
A166: 165 | B166: =kc(A166,$F$16:$I$16,$N$16:$Q$16) -> 0.7058823529
A167: 166 | B167: =kc(A167,$F$16:$I$16,$N$16:$Q$16) -> 0.7088235294
A168: 167 | B168: =kc(A168,$F$16:$I$16,$N$16:$Q$16) -> 0.7117647059
A169: 168 | B169: =kc(A169,$F$16:$I$16,$N$16:$Q$16) -> 0.7147058824
A170: 169 | B170: =kc(A170,$F$16:$I$16,$N$16:$Q$16) -> 0.7176470588
A171: 170 | B171: =kc(A171,$F$16:$I$16,$N$16:$Q$16) -> 0.7205882353
A172: 171 | B172: =kc(A172,$F$16:$I$16,$N$16:$Q$16) -> 0.7235294118
A173: 172 | B173: =kc(A173,$F$16:$I$16,$N$16:$Q$16) -> 0.7264705882
A174: 173 | B174: =kc(A174,$F$16:$I$16,$N$16:$Q$16) -> 0.7294117647
A175: 174 | B175: =kc(A175,$F$16:$I$16,$N$16:$Q$16) -> 0.7323529412
A176: 175 | B176: =kc(A176,$F$16:$I$16,$N$16:$Q$16) -> 0.7352941176
A177: 176 | B177: =kc(A177,$F$16:$I$16,$N$16:$Q$16) -> 0.7382352941
A178: 177 | B178: =kc(A178,$F$16:$I$16,$N$16:$Q$16) -> 0.7411764706
A179: 178 | B179: =kc(A179,$F$16:$I$16,$N$16:$Q$16) -> 0.7441176471
A180: 179 | B180: =kc(A180,$F$16:$I$16,$N$16:$Q$16) -> 0.7470588235
A181: 180 | B181: =kc(A181,$F$16:$I$16,$N$16:$Q$16) -> 0.75
A182: 181 | B182: =kc(A182,$F$16:$I$16,$N$16:$Q$16) -> 0.7529411765
A183: 182 | B183: =kc(A183,$F$16:$I$16,$N$16:$Q$16) -> 0.7558823529
A184: 183 | B184: =kc(A184,$F$16:$I$16,$N$16:$Q$16) -> 0.7588235294
A185: 184 | B185: =kc(A185,$F$16:$I$16,$N$16:$Q$16) -> 0.7617647059
A186: 185 | B186: =kc(A186,$F$16:$I$16,$N$16:$Q$16) -> 0.7647058824
A187: 186 | B187: =kc(A187,$F$16:$I$16,$N$16:$Q$16) -> 0.7676470588
A188: 187 | B188: =kc(A188,$F$16:$I$16,$N$16:$Q$16) -> 0.7705882353
A189: 188 | B189: =kc(A189,$F$16:$I$16,$N$16:$Q$16) -> 0.7735294118
A190: 189 | B190: =kc(A190,$F$16:$I$16,$N$16:$Q$16) -> 0.7764705882
A191: 190 | B191: =kc(A191,$F$16:$I$16,$N$16:$Q$16) -> 0.7794117647
A192: 191 | B192: =kc(A192,$F$16:$I$16,$N$16:$Q$16) -> 0.7823529412
A193: 192 | B193: =kc(A193,$F$16:$I$16,$N$16:$Q$16) -> 0.7852941176
A194: 193 | B194: =kc(A194,$F$16:$I$16,$N$16:$Q$16) -> 0.7882352941
A195: 194 | B195: =kc(A195,$F$16:$I$16,$N$16:$Q$16) -> 0.7911764706
A196: 195 | B196: =kc(A196,$F$16:$I$16,$N$16:$Q$16) -> 0.7941176471
A197: 196 | B197: =kc(A197,$F$16:$I$16,$N$16:$Q$16) -> 0.7970588235
A198: 197 | B198: =kc(A198,$F$16:$I$16,$N$16:$Q$16) -> 0.8
A199: 198 | B199: =kc(A199,$F$16:$I$16,$N$16:$Q$16) -> 0.8029411765
A200: 199 | B200: =kc(A200,$F$16:$I$16,$N$16:$Q$16) -> 0.8058823529
... 167 more rows

Sheet PivotTable (hidden)
B1: Sum of Harvestable rainfall from polytunnels (m3) | C1: Sum of Rainfall (mm) | D1: Sum of ETo (mm) | E1: Sum of ETc of polytunnel crops (mm) | F1: Sum of Gross irrigation water demand (m3) | G1: Sum of Actual rainwater used from reservoir (m3) | H1: Sum of Overflow from reservoir (m3) | I1: Sum of Actual rainwater used from reservoir (m3)2 | J1: Sum of Overflow from reservoir (m3)2 | K1: Sum of Actual rainwater used from reservoir (m3)3 | L1: Sum of Overflow from reservoir (m3)3 | M1: Sum of Irrigation deficit_T1 | N1: Sum of Irrigation deficit_T2 | O1: Sum of Irrigation deficit_T3 | R1: Year | S1: Gross irrigation demand | T1: Potential annual harvestable rainwater | U1: =Hydrology!S1 -> Irrigation used from minimum storage = 50,000 m3 | V1: =Hydrology!W1 -> Irrigation used from average storage = 75,000 m3 | W1: =Hydrology!AA1 -> Irrigation used from maximum storage = 100,000 m3 | X1: ="Alternative water source use = "& FIXED(Hydrology!$Q$1,0,FALSE) &" m3" -> Alternative water source use = 50,000 m3 | Y1: ="Alternative water source use = "& FIXED(Hydrology!$U$1,0,FALSE) &" m3" -> Alternative water source use = 75,000 m3 | Z1: ="Alternative water source use = "& FIXED(Hydrology!$Y$1,0,FALSE) &" m3" -> Alternative water source use = 100,000 m3 | AA1: Min | AB1: Avg | AC1: Max
A2: 1986 | B2: 138239.999 | C2: 658.0999991 | D2: 481.4501412 | E2: 221.9756078 | F2: 127635.9745 | G2: 127635.9745 | H2: 13384.96359 | I2: 127635.9745 | J2: 13384.96359 | K2: 127635.9745 | L2: 13384.96359 | M2: 0 | N2: 0 | O2: 0 | R2: =A2 -> 1986 | S2: =GETPIVOTDATA("Sum of Gross irrigation water demand (m3)",$A$1,"Year",A2) -> 127635.9745 | T2: =GETPIVOTDATA("Sum of Harvestable rainfall from polytunnels (m3)",$A$1,"Year",A2) -> 138239.999 | U2: =GETPIVOTDATA("Sum of Actual rainwater used from reservoir (m3)",$A$1,"Year",A2) -> 127635.9745 | V2: =GETPIVOTDATA("Sum of Actual rainwater used from reservoir (m3)2",$A$1,"Year",A2) -> 127635.9745 | W2: =GETPIVOTDATA("Sum of Actual rainwater used from reservoir (m3)3",$A$1,"Year",A2) -> 127635.9745 | X2: =GETPIVOTDATA("Sum of Overflow from reservoir (m3)",$A$1,"Year",A2) -> 13384.96359 | Y2: =GETPIVOTDATA("Sum of Overflow from reservoir (m3)2",$A$1,"Year",A2) -> 13384.96359 | Z2: =GETPIVOTDATA("Sum of Overflow from reservoir (m3)3",$A$1,"Year",A2) -> 13384.96359 | AA2: =GETPIVOTDATA("Sum of Irrigation deficit_T1",$A$1,"Year",A2) -> 0 | AB2: =GETPIVOTDATA("Sum of Irrigation deficit_T2",$A$1,"Year",A2) -> 0 | AC2: =GETPIVOTDATA("Sum of Irrigation deficit_T3",$A$1,"Year",A2) -> 0
A3: 1987 | B3: 156465.0005 | C3: 608.1000016 | D3: 471.3713541 | E3: 222.9699731 | F3: 128207.7345 | G3: 118883.2437 | H3: 35261.81031 | I3: 128207.7345 | J3: 35261.81031 | K3: 128207.7345 | L3: 35261.81031 | M3: 9324.490839 | N3: 0 | O3: 0 | R3: =A3 -> 1987 | S3: =GETPIVOTDATA("Sum of Gross irrigation water demand (m3)",$A$1,"Year",A3) -> 128207.7345 | T3: =GETPIVOTDATA("Sum of Harvestable rainfall from polytunnels (m3)",$A$1,"Year",A3) -> 156465.0005 | U3: 118883.2437 | V3: 128207.7345 | W3: 128207.7345 | X3: 35261.81031 | Y3: 35261.81031 | Z3: 35261.81031 | AA3: 9324.490839 | AB3: 0 | AC3: 0
A4: 1988 | B4: 116280.0007 | C4: 582.3000027 | D4: 495.7580459 | E4: 228.0477212 | F4: 131127.4397 | G4: 131127.4397 | H4: 13924.95754 | I4: 131127.4397 | J4: 4600.466699 | K4: 131127.4397 | L4: 4600.466699 | M4: 0 | N4: 0 | O4: 0 | R4: 1988 | S4: 131127.4397 | T4: 116280.0007 | U4: 131127.4397 | V4: 131127.4397 | W4: 131127.4397 | X4: 13924.95754 | Y4: 4600.466699 | Z4: 4600.466699 | AA4: 0 | AB4: 0 | AC4: 0
A5: 1989 | B5: 136890.0014 | C5: 658.3000028 | D5: 574.0518927 | E5: 272.0068462 | F5: 156403.9366 | G5: 115341.3298 | H5: 0 | I5: 140341.3298 | J5: 0 | K5: 156403.9366 | L5: 0 | M5: 41062.60681 | N5: 16062.60681 | O5: 0 | R5: 1989 | S5: 156403.9366 | T5: 136890.0014 | U5: 115341.3298 | V5: 140341.3298 | W5: 156403.9366 | X5: 0 | Y5: 0 | Z5: 0 | AA5: 41062.60681 | AB5: 16062.60681 | AC5: 0
A6: 1990 | B6: 105210.0007 | C6: 576.9000027 | D6: 586.8075354 | E6: 270.573857 | F6: 155579.9678 | G6: 88501.86047 | H6: 28000.28242 | I6: 113501.8605 | J6: 3000.282425 | K6: 125439.5361 | L6: 0 | M6: 67078.1073 | N6: 42078.1073 | O6: 30140.43168 | R6: 1990 | S6: 155579.9678 | T6: 105210.0007 | U6: 88501.86047 | V6: 113501.8605 | W6: 125439.5361 | X6: 28000.28242 | Y6: 3000.282425 | Z6: 0 | AA6: 67078.1073 | AB6: 42078.1073 | AC6: 30140.43168
A7: 1991 | B7: 142425.0005 | C7: 610.1000018 | D7: 500.4791451 | E7: 239.0539406 | F7: 137456.0158 | G7: 122811.4117 | H7: 14624.1666 | I7: 137435.5783 | J7: 0 | K7: 137435.5783 | L7: 0 | M7: 14644.60413 | N7: 20.43752156 | O7: 20.43752156 | R7: 1991 | S7: 137456.0158 | T7: 142425.0005 | U7: 122811.4117 | V7: 137435.5783 | W7: 137435.5783 | X7: 14624.1666 | Y7: 0 | Z7: 0 | AA7: 14644.60413 | AB7: 20.43752156 | AC7: 20.43752156
A8: 1992 | B8: 157364.9996 | C8: 726.0000026 | D8: 518.0023083 | E8: 243.9269455 | F8: 140257.9937 | G8: 140246.0882 | H8: 3131.474002 | I8: 140246.0882 | J8: 0 | K8: 140246.0882 | L8: 0 | M8: 11.90542342 | N8: 11.90542342 | O8: 11.90542342 | R8: 1992 | S8: 140257.9937 | T8: 157364.9996 | U8: 140246.0882 | V8: 140246.0882 | W8: 140246.0882 | X8: 3131.474002 | Y8: 0 | Z8: 0 | AA8: 11.90542342 | AB8: 11.90542342 | AC8: 11.90542342
A9: 1993 | B9: 134504.9996 | C9: 645.4 | D9: 495.956125 | E9: 226.9754895 | F9: 130510.9064 | G9: 119348.4007 | H9: 15191.82894 | I9: 130510.9064 | J9: 0 | K9: 130510.9064 | L9: 0 | M9: 11162.50575 | N9: 0 | O9: 0 | R9: 1993 | S9: 130510.9064 | T9: 134504.9996 | U9: 119348.4007 | V9: 130510.9064 | W9: 130510.9064 | X9: 15191.82894 | Y9: 0 | Z9: 0 | AA9: 11162.50575 | AB9: 0 | AC9: 0
A10: 1994 | B10: 139364.9999 | C10: 685.1000008 | D10: 528.2584202 | E10: 246.0257737 | F10: 141464.8199 | G10: 110968.2579 | H10: 28547.18388 | I10: 135968.2579 | J10: 6352.440526 | K10: 141464.8199 | L10: 0 | M10: 30496.562 | N10: 5496.562001 | O10: 0 | R10: 1994 | S10: 141464.8199 | T10: 139364.9999 | U10: 110968.2579 | V10: 135968.2579 | W10: 141464.8199 | X10: 28547.18388 | Y10: 6352.440526 | Z10: 0 | AA10: 30496.562 | AB10: 5496.562001 | AC10: 0
A11: 1995 | B11: 102240.0009 | C11: 589.9000041 | D11: 593.4118832 | E11: 280.4192511 | F11: 161241.0694 | G11: 97850.26072 | H11: 18951.31119 | I11: 121157.1125 | J11: 0 | K11: 122012.991 | L11: 0 | M11: 63390.80867 | N11: 40083.95693 | O11: 39228.0784 | R11: 1995 | S11: 161241.0694 | T11: 102240.0009 | U11: 97850.26072 | V11: 121157.1125 | W11: 122012.991 | X11: 18951.31119 | Y11: 0 | Z11: 0 | AA11: 63390.80867 | AB11: 40083.95693 | AC11: 39228.0784
A12: 1996 | B12: 123390.0003 | C12: 571.3000006 | D12: 537.9916937 | E12: 256.9535622 | F12: 147748.2983 | G12: 105099.0766 | H12: 24287.47286 | I12: 129386.5494 | J12: 0 | K12: 129386.5494 | L12: 0 | M12: 42649.22173 | N12: 18361.74887 | O12: 18361.74887 | R12: 1996 | S12: 147748.2983 | T12: 123390.0003 | U12: 105099.0766 | V12: 129386.5494 | W12: 129386.5494 | X12: 24287.47286 | Y12: 0 | Z12: 0 | AA12: 42649.22173 | AB12: 18361.74887 | AC12: 18361.74887
A13: 1997 | B13: 157949.9987 | C13: 633.8999967 | D13: 537.1833579 | E13: 248.8719038 | F13: 143101.3447 | G13: 143101.3447 | H13: 4678.593019 | I13: 143101.3447 | J13: 0 | K13: 143101.3447 | L13: 0 | M13: 0 | N13: 0 | O13: 0 | R13: 1997 | S13: 143101.3447 | T13: 157949.9987 | U13: 143101.3447 | V13: 143101.3447 | W13: 143101.3447 | X13: 4678.593019 | Y13: 0 | Z13: 0 | AA13: 0 | AB13: 0 | AC13: 0
A14: 1998 | B14: 168255.0007 | C14: 741.6000014 | D14: 516.6540336 | E14: 240.0639131 | F14: 138036.75 | G14: 120584.3242 | H14: 42446.03324 | I14: 138036.75 | J14: 22124.62626 | K14: 138036.75 | L14: 0 | M14: 17452.42581 | N14: 0 | O14: 0 | R14: 1998 | S14: 138036.75 | T14: 168255.0007 | U14: 120584.3242 | V14: 138036.75 | W14: 138036.75 | X14: 42446.03324 | Y14: 22124.62626 | Z14: 0 | AA14: 17452.42581 | AB14: 0 | AC14: 0
A15: 1999 | B15: 176670 | C15: 814.000001 | D15: 539.4374467 | E15: 248.4175957 | F15: 142840.1175 | G15: 139910.2643 | H15: 31410.64788 | I15: 142840.1175 | J15: 11028.36882 | K15: 142840.1175 | L15: 8152.995084 | M15: 2929.853245 | N15: 0 | O15: 0 | R15: 1999 | S15: 142840.1175 | T15: 176670 | U15: 139910.2643 | V15: 142840.1175 | W15: 142840.1175 | X15: 31410.64788 | Y15: 11028.36882 | Z15: 8152.995084 | AA15: 2929.853245 | AB15: 0 | AC15: 0
A16: 2000 | B16: 203444.9995 | C16: 900.7999978 | D16: 517.8763444 | E16: 238.6945521 | F16: 137249.3675 | G16: 119572.7657 | H16: 83872.23375 | I16: 137249.3675 | J16: 66195.632 | K16: 137249.3675 | L16: 66195.632 | M16: 17676.60175 | N16: 0 | O16: 0 | R16: 2000 | S16: 137249.3675 | T16: 203444.9995 | U16: 119572.7657 | V16: 137249.3675 | W16: 137249.3675 | X16: 83872.23375 | Y16: 66195.632 | Z16: 66195.632 | AA16: 17676.60175 | AB16: 0 | AC16: 0
A17: 2001 | B17: 171854.9998 | C17: 681.5000001 | D17: 519.3252197 | E17: 246.9418675 | F17: 141991.5738 | G17: 131839.6803 | H17: 47425.19492 | I17: 141991.5738 | J17: 47425.19492 | K17: 141991.5738 | L17: 47425.19492 | M17: 10151.89346 | N17: 0 | O17: 0 | R17: 2001 | S17: 141991.5738 | T17: 171854.9998 | U17: 131839.6803 | V17: 141991.5738 | W17: 141991.5738 | X17: 47425.19492 | Y17: 47425.19492 | Z17: 47425.19492 | AA17: 10151.89346 | AB17: 0 | AC17: 0
A18: 2002 | B18: 151019.9993 | C18: 708.4000013 | D18: 520.9046571 | E18: 237.9928236 | F18: 136845.8736 | G18: 117179.8331 | H18: 26640.24152 | I18: 136845.8736 | J18: 12582.45283 | K18: 136845.8736 | L18: 12582.45283 | M18: 19666.04052 | N18: 0 | O18: 0 | R18: 2002 | S18: 136845.8736 | T18: 151019.9993 | U18: 117179.8331 | V18: 136845.8736 | W18: 136845.8736 | X18: 26640.24152 | Y18: 12582.45283 | Z18: 12582.45283 | AA18: 19666.04052 | AB18: 0 | AC18: 0
A19: 2003 | B19: 78570.00062 | C19: 438.7000011 | D19: 566.3180029 | E19: 265.0100318 | F19: 152380.7683 | G19: 94855.5628 | H19: 10032.52311 | I19: 114127.9406 | J19: 0 | K19: 139127.9406 | L19: 0 | M19: 57525.20551 | N19: 38252.82769 | O19: 13252.82769 | R19: 2003 | S19: 152380.7683 | T19: 78570.00062 | U19: 94855.5628 | V19: 114127.9406 | W19: 139127.9406 | X19: 10032.52311 | Y19: 0 | Z19: 0 | AA19: 57525.20551 | AB19: 38252.82769 | AC19: 13252.82769
A20: 2004 | B20: 143505.0013 | C20: 653.800003 | D20: 532.3737363 | E20: 247.7632819 | F20: 142463.8871 | G20: 130670.3204 | H20: 3935.361087 | I20: 134605.6815 | J20: 0 | K20: 134605.6815 | L20: 0 | M20: 11793.56664 | N20: 7858.205557 | O20: 7858.205557 | R20: 2004 | S20: 142463.8871 | T20: 143505.0013 | U20: 130670.3204 | V20: 134605.6815 | W20: 134605.6815 | X20: 3935.361087 | Y20: 0 | Z20: 0 | AA20: 11793.56664 | AB20: 7858.205557 | AC20: 7858.205557
A21: 2005 | B21: 155969.9973 | C21: 616.5999937 | D21: 539.5886247 | E21: 251.2994988 | F21: 144497.2118 | G21: 138862.7515 | H21: 4421.479513 | I21: 143284.231 | J21: 0 | K21: 143284.231 | L21: 0 | M21: 5634.460308 | N21: 1212.980795 | O21: 1212.980795 | R21: 2005 | S21: 144497.2118 | T21: 155969.9973 | U21: 138862.7515 | V21: 143284.231 | W21: 143284.231 | X21: 4421.479513 | Y21: 0 | Z21: 0 | AA21: 5634.460308 | AB21: 1212.980795 | AC21: 1212.980795
A22: 2006 | B22: 115784.9988 | C22: 567.899998 | D22: 567.7508506 | E22: 267.7242833 | F22: 153941.4629 | G22: 113552.9622 | H22: 7707.737025 | I22: 121260.6993 | J22: 0 | K22: 121260.6993 | L22: 0 | M22: 40388.50064 | N22: 32680.76362 | O22: 32680.76362 | R22: 2006 | S22: 153941.4629 | T22: 115784.9988 | U22: 113552.9622 | V22: 121260.6993 | W22: 121260.6993 | X22: 7707.737025 | Y22: 0 | Z22: 0 | AA22: 40388.50064 | AB22: 32680.76362 | AC22: 32680.76362
A23: 2007 | B23: 219599.9996 | C23: 822.6000006 | D23: 526.7552182 | E23: 238.4160623 | F23: 137089.2358 | G23: 137089.2358 | H23: 90284.37934 | I23: 137089.2358 | J23: 65284.37934 | K23: 137089.2358 | L23: 40284.37934 | M23: 0 | N23: 0 | O23: 0 | R23: 2007 | S23: 137089.2358 | T23: 219599.9996 | U23: 137089.2358 | V23: 137089.2358 | W23: 137089.2358 | X23: 90284.37934 | Y23: 65284.37934 | Z23: 40284.37934 | AA23: 0 | AB23: 0 | AC23: 0
A24: 2008 | B24: 206684.9976 | C24: 816.999995 | D24: 509.6497428 | E24: 234.757057 | F24: 134985.3078 | G24: 134985.3078 | H24: 54576.41589 | I24: 134985.3078 | J24: 54576.41589 | K24: 134985.3078 | L24: 54576.41589 | M24: 0 | N24: 0 | O24: 0 | R24: 2008 | S24: 134985.3078 | T24: 206684.9976 | U24: 134985.3078 | V24: 134985.3078 | W24: 134985.3078 | X24: 54576.41589 | Y24: 54576.41589 | Z24: 54576.41589 | AA24: 0 | AB24: 0 | AC24: 0
A25: 2009 | B25: 140355.0003 | C25: 651.8000043 | D25: 510.1223813 | E25: 242.229835 | F25: 139282.1551 | G25: 139282.1551 | H25: 9508.821017 | I25: 139282.1551 | J25: 9508.821017 | K25: 139282.1551 | L25: 9508.821017 | M25: 0 | N25: 0 | O25: 0 | R25: 2009 | S25: 139282.1551 | T25: 140355.0003 | U25: 139282.1551 | V25: 139282.1551 | W25: 139282.1551 | X25: 9508.821017 | Y25: 9508.821017 | Z25: 9508.821017 | AA25: 0 | AB25: 0 | AC25: 0
A26: 2010 | B26: 114209.9992 | C26: 536.5999993 | D26: 509.1947077 | E26: 245.7846095 | F26: 141326.1504 | G26: 122286.6653 | H26: 221.7329301 | I26: 141326.1504 | J26: 221.7329301 | K26: 141326.1504 | L26: 221.7329301 | M26: 19039.4851 | N26: 0 | O26: 0 | R26: 2010 | S26: 141326.1504 | T26: 114209.9992 | U26: 122286.6653 | V26: 141326.1504 | W26: 141326.1504 | X26: 221.7329301 | Y26: 221.7329301 | Z26: 221.7329301 | AA26: 19039.4851 | AB26: 0 | AC26: 0
A27: 2011 | B27: 80415.00019 | C27: 480.5000016 | D27: 534.5441251 | E27: 249.0739312 | F27: 143217.5104 | G27: 91235.49224 | H27: 0 | I27: 97196.00714 | J27: 0 | K27: 122196.0071 | L27: 0 | M27: 51982.01821 | N27: 46021.50331 | O27: 21021.50331 | R27: 2011 | S27: 143217.5104 | T27: 80415.00019 | U27: 91235.49224 | V27: 97196.00714 | W27: 122196.0071 | X27: 0 | Y27: 0 | Z27: 0 | AA27: 51982.01821 | AB27: 46021.50331 | AC27: 21021.50331
A28: 2012 | B28: 223784.9993 | C28: 923.2999973 | D28: 470.4365283 | E28: 220.4805316 | F28: 126776.3057 | G28: 126776.3057 | H28: 68384.83467 | I28: 126776.3057 | J28: 43384.83467 | K28: 126776.3057 | L28: 18384.83467 | M28: 0 | N28: 0 | O28: 0 | R28: 2012 | S28: 126776.3057 | T28: 223784.9993 | U28: 126776.3057 | V28: 126776.3057 | W28: 126776.3057 | X28: 68384.83467 | Y28: 43384.83467 | Z28: 18384.83467 | AA28: 0 | AB28: 0 | AC28: 0
A29: 2013 | B29: 162085.8463 | C29: 727.4999976 | D29: 524.5373013 | E29: 246.9949467 | F29: 142022.0943 | G29: 127789.9746 | H29: 34606.48703 | I29: 142022.0943 | J29: 28419.93939 | K29: 142022.0943 | L29: 28419.93939 | M29: 14232.11972 | N29: 0 | O29: 0 | R29: 2013 | S29: 142022.0943 | T29: 162085.8463 | U29: 127789.9746 | V29: 142022.0943 | W29: 142022.0943 | X29: 34606.48703 | Y29: 28419.93939 | Z29: 28419.93939 | AA29: 14232.11972 | AB29: 0 | AC29: 0
A30: 2014 | B30: 181641.796 | C30: 857.1999957 | D30: 536.3331014 | E30: 250.9292084 | F30: 144284.2948 | G30: 135590.7391 | H30: 55118.99668 | I30: 144284.2948 | J30: 47073.4246 | K30: 144284.2948 | L30: 47073.4246 | M30: 8693.555741 | N30: 0 | O30: 0 | R30: 2014 | S30: 144284.2948 | T30: 181641.796 | U30: 135590.7391 | V30: 144284.2948 | W30: 144284.2948 | X30: 55118.99668 | Y30: 47073.4246 | Z30: 47073.4246 | AA30: 8693.555741 | AB30: 0 | AC30: 0
A31: 2015 | B31: 103046.6705 | C31: 610.6000006 | D31: 542.6910233 | E31: 246.8387038 | F31: 141932.2547 | G31: 127418.4796 | H31: 2636.406149 | I31: 141932.2547 | J31: 0 | K31: 141932.2547 | L31: 0 | M31: 14513.77506 | N31: 0 | O31: 0 | R31: 2015 | S31: 141932.2547 | T31: =GETPIVOTDATA("Sum of Harvestable rainfall from polytunnels (m3)",$A$1,"Year",A31) -> 103046.6705 | U31: 127418.4796 | V31: 141932.2547 | W31: 141932.2547 | X31: 2636.406149 | Y31: 0 | Z31: 0 | AA31: 14513.77506 | AB31: 0 | AC31: 0
A32: Grand Total | B32: 4407224.308 | C32: 20095.8 | D32: 15805.21495 | E32: 7377.213605 | F32: 4241897.823 | G32: 3670397.508 | H32: 773213.5701 | I32: 3993756.217 | J32: 470425.7862 | K32: 4078108.94 | L32: 386073.0633 | M32: 571500.3144 | N32: 248141.6058 | O32: 163788.8829
A34: Average | B34: =AVERAGE(B2:B31) -> 146907.4769 | C34: =AVERAGE(C2:C31) -> 669.8600002 | D34: 526.8404983 | E34: =AVERAGE(E2:E31) -> 245.9071202 | F34: 141396.5941 | G34: 122346.5836 | H34: 25773.78567 | I34: 133125.2072 | J34: 15680.85954 | K34: 135936.9647 | L34: 12869.10211 | M34: 19050.01048 | N34: 8271.386861 | O34: 5459.629429 | R34: Min | S34: =MIN(S2:S31) -> 126776.3057 | T34: =MIN(T2:T31) -> 78570.00062 | U34: 88501.86047 | V34: 97196.00714 | W34: 121260.6993 | X34: =MIN(X2:X31) -> 0 | Y34: 0 | Z34: 0 | AA34: =MIN(AA2:AA31) -> 0 | AB34: 0 | AC34: 0
A35: Median | B35: =MEDIAN(B2:B31) -> 142965.0009 | C35: =MEDIAN(C2:C31) -> 652.8000037 | D35: 525.6462597 | E35: =MEDIAN(E2:E31) -> 246.4322387 | F35: 141698.5373 | G35: 124793.8587 | H35: 17071.57006 | I35: 136967.5547 | J35: 3800.374562 | K35: 137342.4729 | L35: 0 | M35: 13012.84318 | N35: 0 | O35: 0 | R35: Max | S35: =MAX(S2:S31) -> 161241.0694 | T35: =MAX(T2:T31) -> 223784.9993 | U35: =MAX(U2:U31) -> 143101.3447 | V35: 144284.2948 | W35: 156403.9366 | X35: =MAX(X2:X31) -> 90284.37934 | Y35: 66195.632 | Z35: 66195.632 | AA35: =MAX(AA2:AA31) -> 67078.1073 | AB35: 46021.50331 | AC35: 39228.0784
A36: Std | B36: =STDEV(B2:B31) -> 37382.0791 | C36: =STDEV(C2:C31) -> 117.184612 | D36: 30.31656981 | E36: =STDEV(E2:E31) -> 14.79286525 | F36: 8505.897522 | G36: 15077.29395 | H36: 24794.62234 | I36: 10840.88167 | J36: 21777.70974 | K36: 8052.086664 | L36: 19813.43069 | M36: 20571.1571 | N36: 15157.45183 | O36: 11201.92656 | R36: Average | S36: =AVERAGE(S2:S31) -> 141396.5941 | T36: =AVERAGE(T2:T31) -> 146907.4769 | U36: 122346.5836 | V36: 133125.2072 | W36: 135936.9647 | X36: =AVERAGE(X2:X31) -> 25773.78567 | Y36: 15680.85954 | Z36: 12869.10211 | AA36: =AVERAGE(AA2:AA31) -> 19050.01048 | AB36: 8271.386861 | AC36: 5459.629429
H37: =$B$34-H34 -> 121133.6913 | J37: =$B$34-J34 -> 131226.6174 | L37: =$B$34-L34 -> 134038.3748

Sheet I Deficit (hidden)
B1: Sum of Irrigation deficit_T1 | C1: Sum of Irrigation deficit_T2 | D1: Sum of Irrigation deficit_T3 | E1: Year | F1: ID1 | G1: ID2 | H1: ID3 | I1: Frequency | J1: Non exceedence probability (%) | K1: ="Minimum storage = "& FIXED(Hydrology!Q1,0,FALSE) &" m3" -> Minimum storage = 50,000 m3 | L1: ="Average storage = "& FIXED(Hydrology!U1,0,FALSE) &" m3" -> Average storage = 75,000 m3 | M1: ="Maximum storage = "& FIXED(Hydrology!Y1,0,FALSE) &" m3" -> Maximum storage = 100,000 m3 | O1: Frequency | P1: ID1 | Q1: ID2 | R1: ID3 | T1: Frequency | U1: Frequency | V1: ID
A2: 1986 | B2: 0 | C2: 0 | D2: 0 | E2: 1986 | F2: =GETPIVOTDATA("Sum of Irrigation deficit_T1",$A$1,"Year",1986) -> 0 | G2: =GETPIVOTDATA("Sum of Irrigation deficit_T2",$A$1,"Year",1986) -> 0 | H2: =GETPIVOTDATA("Sum of Irrigation deficit_T3",$A$1,"Year",1986) -> 0 | I2: =1/30 -> 0.03333333333 | J2: =I2*100 -> 3.333333333 | K2: =_xlfn._xlws.SORT(F2:F31,1,-1) -> 67078.1073 | L2: =_xlfn._xlws.SORT(G2:G31,1,-1) -> 46021.50331 | M2: =_xlfn._xlws.SORT(H2:H31,1,-1) -> 39228.0784 | O2: 0 | P2: =K4 -> 57525.20551 | Q2: =L4 -> 40083.95693 | R2: 30140.43168 | T2: 10 | U2: 50 | V2: 0
A3: 1987 | B3: 9324.490839 | C3: 0 | D3: 0 | E3: =A3 -> 1987 | F3: =GETPIVOTDATA("Sum of Irrigation deficit_T1",$A$1,"Year",1987) -> 9324.490839 | G3: =GETPIVOTDATA("Sum of Irrigation deficit_T2",$A$1,"Year",1987) -> 0 | H3: =GETPIVOTDATA("Sum of Irrigation deficit_T3",$A$1,"Year",1987) -> 0 | I3: =I2+(1/30) -> 0.06666666667 | J3: =I3*100 -> 6.666666667 | K3: 63390.80867 | L3: 42078.1073 | M3: 32680.76362 | O3: 2 | P3: =K4 -> 57525.20551 | Q3: =L4 -> 40083.95693 | R3: 30140.43168 | T3: 10 | U3: 50 | V3: =K2 -> 67078.1073
A4: 1988 | B4: 0 | C4: 0 | D4: 0 | E4: 1988 | F4: =GETPIVOTDATA("Sum of Irrigation deficit_T1",$A$1,"Year",1988) -> 0 | G4: =GETPIVOTDATA("Sum of Irrigation deficit_T2",$A$1,"Year",1988) -> 0 | H4: =GETPIVOTDATA("Sum of Irrigation deficit_T3",$A$1,"Year",1988) -> 0 | I4: =I3+(1/30) -> 0.1 | J4: 10 | K4: 57525.20551 | L4: 40083.95693 | M4: 30140.43168 | O4: 4 | P4: =K4 -> 57525.20551 | Q4: =L4 -> 40083.95693 | R4: 30140.43168
A5: 1989 | B5: 41062.60681 | C5: 16062.60681 | D5: 0 | E5: 1989 | F5: =GETPIVOTDATA("Sum of Irrigation deficit_T1",$A$1,"Year",1989) -> 41062.60681 | G5: =GETPIVOTDATA("Sum of Irrigation deficit_T2",$A$1,"Year",1989) -> 16062.60681 | H5: =GETPIVOTDATA("Sum of Irrigation deficit_T3",$A$1,"Year",1989) -> 0 | I5: 0.1333333333 | J5: 13.33333333 | K5: 51982.01821 | L5: 38252.82769 | M5: 21021.50331 | O5: 6 | P5: =K4 -> 57525.20551 | Q5: =L4 -> 40083.95693 | R5: 30140.43168
A6: 1990 | B6: 67078.1073 | C6: 42078.1073 | D6: 30140.43168 | E6: 1990 | F6: =GETPIVOTDATA("Sum of Irrigation deficit_T1",$A$1,"Year",1990) -> 67078.1073 | G6: =GETPIVOTDATA("Sum of Irrigation deficit_T2",$A$1,"Year",1990) -> 42078.1073 | H6: =GETPIVOTDATA("Sum of Irrigation deficit_T3",$A$1,"Year",1990) -> 30140.43168 | I6: 0.1666666667 | J6: 16.66666667 | K6: 42649.22173 | L6: 32680.76362 | M6: 18361.74887 | O6: 8 | P6: =K4 -> 57525.20551 | Q6: =L4 -> 40083.95693 | R6: 30140.43168
A7: 1991 | B7: 14644.60413 | C7: 20.43752156 | D7: 20.43752156 | E7: 1991 | F7: =GETPIVOTDATA("Sum of Irrigation deficit_T1",$A$1,"Year",1991) -> 14644.60413 | G7: =GETPIVOTDATA("Sum of Irrigation deficit_T2",$A$1,"Year",1991) -> 20.43752156 | H7: =GETPIVOTDATA("Sum of Irrigation deficit_T3",$A$1,"Year",1991) -> 20.43752156 | I7: 0.2 | J7: 20 | K7: 41062.60681 | L7: 18361.74887 | M7: 13252.82769 | O7: 10 | P7: =K4 -> 57525.20551 | Q7: =L4 -> 40083.95693 | R7: 30140.43168
A8: 1992 | B8: 11.90542342 | C8: 11.90542342 | D8: 11.90542342 | E8: 1992 | F8: =GETPIVOTDATA("Sum of Irrigation deficit_T1",$A$1,"Year",1992) -> 11.90542342 | G8: =GETPIVOTDATA("Sum of Irrigation deficit_T2",$A$1,"Year",1992) -> 11.90542342 | H8: =GETPIVOTDATA("Sum of Irrigation deficit_T3",$A$1,"Year",1992) -> 11.90542342 | I8: 0.2333333333 | J8: 23.33333333 | K8: 40388.50064 | L8: 16062.60681 | M8: 7858.205557
A9: 1993 | B9: 11162.50575 | C9: 0 | D9: 0 | E9: 1993 | F9: =GETPIVOTDATA("Sum of Irrigation deficit_T1",$A$1,"Year",1993) -> 11162.50575 | G9: =GETPIVOTDATA("Sum of Irrigation deficit_T2",$A$1,"Year",1993) -> 0 | H9: =GETPIVOTDATA("Sum of Irrigation deficit_T3",$A$1,"Year",1993) -> 0 | I9: 0.2666666667 | J9: 26.66666667 | K9: 30496.562 | L9: 7858.205557 | M9: 1212.980795
A10: 1994 | B10: 30496.562 | C10: 5496.562001 | D10: 0 | E10: 1994 | F10: =GETPIVOTDATA("Sum of Irrigation deficit_T1",$A$1,"Year",1994) -> 30496.562 | G10: =GETPIVOTDATA("Sum of Irrigation deficit_T2",$A$1,"Year",1994) -> 5496.562001 | H10: =GETPIVOTDATA("Sum of Irrigation deficit_T3",$A$1,"Year",1994) -> 0 | I10: 0.3 | J10: 30 | K10: 19666.04052 | L10: 5496.562001 | M10: 20.43752156 | O10: Frequency | P10: ID1 | Q10: ID2 | R10: ID3
A11: 1995 | B11: 63390.80867 | C11: 40083.95693 | D11: 39228.0784 | E11: 1995 | F11: =GETPIVOTDATA("Sum of Irrigation deficit_T1",$A$1,"Year",1995) -> 63390.80867 | G11: =GETPIVOTDATA("Sum of Irrigation deficit_T2",$A$1,"Year",1995) -> 40083.95693 | H11: =GETPIVOTDATA("Sum of Irrigation deficit_T3",$A$1,"Year",1995) -> 39228.0784 | I11: 0.3333333333 | J11: 33.33333333 | K11: 19039.4851 | L11: 1212.980795 | M11: 11.90542342 | O11: 0 | P11: =K16 -> 14232.11972 | Q11: =L16 -> 0 | R11: =M16 -> 0
A12: 1996 | B12: 42649.22173 | C12: 18361.74887 | D12: 18361.74887 | E12: 1996 | F12: =GETPIVOTDATA("Sum of Irrigation deficit_T1",$A$1,"Year",1996) -> 42649.22173 | G12: =GETPIVOTDATA("Sum of Irrigation deficit_T2",$A$1,"Year",1996) -> 18361.74887 | H12: =GETPIVOTDATA("Sum of Irrigation deficit_T3",$A$1,"Year",1996) -> 18361.74887 | I12: 0.3666666667 | J12: 36.66666667 | K12: 17676.60175 | L12: 20.43752156 | M12: 0 | O12: 4 | P12: =K16 -> 14232.11972 | Q12: =L16 -> 0 | R12: 0
A13: 1997 | B13: 0 | C13: 0 | D13: 0 | E13: 1997 | F13: =GETPIVOTDATA("Sum of Irrigation deficit_T1",$A$1,"Year",1997) -> 0 | G13: =GETPIVOTDATA("Sum of Irrigation deficit_T2",$A$1,"Year",1997) -> 0 | H13: =GETPIVOTDATA("Sum of Irrigation deficit_T3",$A$1,"Year",1997) -> 0 | I13: 0.4 | J13: 40 | K13: 17452.42581 | L13: 11.90542342 | M13: 0 | O13: 8 | P13: =K16 -> 14232.11972 | Q13: =L16 -> 0 | R13: 0
A14: 1998 | B14: 17452.42581 | C14: 0 | D14: 0 | E14: 1998 | F14: =GETPIVOTDATA("Sum of Irrigation deficit_T1",$A$1,"Year",1998) -> 17452.42581 | G14: =GETPIVOTDATA("Sum of Irrigation deficit_T2",$A$1,"Year",1998) -> 0 | H14: =GETPIVOTDATA("Sum of Irrigation deficit_T3",$A$1,"Year",1998) -> 0 | I14: 0.4333333333 | J14: 43.33333333 | K14: 14644.60413 | L14: 0 | M14: 0 | O14: 12 | P14: =K16 -> 14232.11972 | Q14: =L16 -> 0 | R14: 0
A15: 1999 | B15: 2929.853245 | C15: 0 | D15: 0 | E15: 1999 | F15: =GETPIVOTDATA("Sum of Irrigation deficit_T1",$A$1,"Year",1999) -> 2929.853245 | G15: =GETPIVOTDATA("Sum of Irrigation deficit_T2",$A$1,"Year",1999) -> 0 | H15: =GETPIVOTDATA("Sum of Irrigation deficit_T3",$A$1,"Year",1999) -> 0 | I15: 0.4666666667 | J15: 46.66666667 | K15: 14513.77506 | L15: 0 | M15: 0 | O15: 16 | P15: =K16 -> 14232.11972 | Q15: =L16 -> 0 | R15: 0
A16: 2000 | B16: 17676.60175 | C16: 0 | D16: 0 | E16: 2000 | F16: =GETPIVOTDATA("Sum of Irrigation deficit_T1",$A$1,"Year",2000) -> 17676.60175 | G16: =GETPIVOTDATA("Sum of Irrigation deficit_T2",$A$1,"Year",2000) -> 0 | H16: =GETPIVOTDATA("Sum of Irrigation deficit_T3",$A$1,"Year",2000) -> 0 | I16: 0.5 | J16: 50 | K16: 14232.11972 | L16: 0 | M16: 0 | O16: 20 | P16: =K16 -> 14232.11972 | Q16: =L16 -> 0 | R16: 0
A17: 2001 | B17: 10151.89346 | C17: 0 | D17: 0 | E17: 2001 | F17: =GETPIVOTDATA("Sum of Irrigation deficit_T1",$A$1,"Year",2001) -> 10151.89346 | G17: =GETPIVOTDATA("Sum of Irrigation deficit_T2",$A$1,"Year",2001) -> 0 | H17: =GETPIVOTDATA("Sum of Irrigation deficit_T3",$A$1,"Year",2001) -> 0 | I17: 0.5333333333 | J17: 53.33333333 | K17: 11793.56664 | L17: 0 | M17: 0 | O17: 24 | P17: =K16 -> 14232.11972 | Q17: =L16 -> 0 | R17: 0
A18: 2002 | B18: 19666.04052 | C18: 0 | D18: 0 | E18: 2002 | F18: =GETPIVOTDATA("Sum of Irrigation deficit_T1",$A$1,"Year",2002) -> 19666.04052 | G18: =GETPIVOTDATA("Sum of Irrigation deficit_T2",$A$1,"Year",2002) -> 0 | H18: =GETPIVOTDATA("Sum of Irrigation deficit_T3",$A$1,"Year",2002) -> 0 | I18: 0.5666666667 | J18: 56.66666667 | K18: 11162.50575 | L18: 0 | M18: 0 | O18: 28 | P18: =K16 -> 14232.11972 | Q18: =L16 -> 0 | R18: 0
A19: 2003 | B19: 57525.20551 | C19: 38252.82769 | D19: 13252.82769 | E19: 2003 | F19: =GETPIVOTDATA("Sum of Irrigation deficit_T1",$A$1,"Year",2003) -> 57525.20551 | G19: =GETPIVOTDATA("Sum of Irrigation deficit_T2",$A$1,"Year",2003) -> 38252.82769 | H19: =GETPIVOTDATA("Sum of Irrigation deficit_T3",$A$1,"Year",2003) -> 13252.82769 | I19: 0.6 | J19: 60 | K19: 10151.89346 | L19: 0 | M19: 0 | O19: 32 | P19: =K16 -> 14232.11972 | Q19: =L16 -> 0 | R19: 0
A20: 2004 | B20: 11793.56664 | C20: 7858.205557 | D20: 7858.205557 | E20: 2004 | F20: =GETPIVOTDATA("Sum of Irrigation deficit_T1",$A$1,"Year",2004) -> 11793.56664 | G20: =GETPIVOTDATA("Sum of Irrigation deficit_T2",$A$1,"Year",2004) -> 7858.205557 | H20: =GETPIVOTDATA("Sum of Irrigation deficit_T3",$A$1,"Year",2004) -> 7858.205557 | I20: 0.6333333333 | J20: 63.33333333 | K20: 9324.490839 | L20: 0 | M20: 0 | O20: 36 | P20: =K16 -> 14232.11972 | Q20: =L16 -> 0 | R20: 0
A21: 2005 | B21: 5634.460308 | C21: 1212.980795 | D21: 1212.980795 | E21: 2005 | F21: =GETPIVOTDATA("Sum of Irrigation deficit_T1",$A$1,"Year",2005) -> 5634.460308 | G21: =GETPIVOTDATA("Sum of Irrigation deficit_T2",$A$1,"Year",2005) -> 1212.980795 | H21: =GETPIVOTDATA("Sum of Irrigation deficit_T3",$A$1,"Year",2005) -> 1212.980795 | I21: 0.6666666667 | J21: 66.66666667 | K21: 8693.555741 | L21: 0 | M21: 0 | O21: 40 | P21: =K16 -> 14232.11972 | Q21: =L16 -> 0 | R21: 0
A22: 2006 | B22: 40388.50064 | C22: 32680.76362 | D22: 32680.76362 | E22: 2006 | F22: =GETPIVOTDATA("Sum of Irrigation deficit_T1",$A$1,"Year",2006) -> 40388.50064 | G22: =GETPIVOTDATA("Sum of Irrigation deficit_T2",$A$1,"Year",2006) -> 32680.76362 | H22: =GETPIVOTDATA("Sum of Irrigation deficit_T3",$A$1,"Year",2006) -> 32680.76362 | I22: 0.7 | J22: 70 | K22: 5634.460308 | L22: 0 | M22: 0 | O22: 44 | P22: =K16 -> 14232.11972 | Q22: =L16 -> 0 | R22: 0
